Workbook

Sheet Update
B1: Start FY | C1: 2022 | D1: End FY | E1: 2023 | F1: # Years: | G1: =End_FY-Start_FY+1 -> 2 | H1: AURORA IN | I1: BP22_INPUT_FP_4_19_2021 | M1: AURORA OUT | N1: BP22_OUTPUT_FP_4_19_2021 | LLH1: 328 | LLI1: 321 | LLJ1: 328 | LLK1: 344 | LLL1: 288 | LLM1: 311 | LLN1: 304 | LLO1: 344 | LLP1: 304 | LLQ1: 344 | LLR1: 312 | LLS1: 320
E3: BP-22 Final Proposal
B8: Fiscal Year | C8: Purchase Expense | D8: Direct Expense | E8: Pisces | F8: Capital | G8: % | H8: Credit | J8: Credit 4 RAM | K8: Purch Exp | L8: Dirc+Pis+Cap Exp | M8: Total | N8: Purch. Exp % | O8: Dir, Pis, Cap Exp %
B9: =IF(Purch_1="","",Purch_1) -> 2022 | C9: =IF(Exp_1/1000="","",Exp_1/1000) -> 131.7824081 | D9: 247.507739 | E9: 0 | F9: 43 | G9: 0.223 | H9: =IF(B9="","",(SUM(C9:F9)*G9)) -> 94.17070281 | J9: =IF(H9="","",H9*-1000) -> -94170.70281 | K9: =C9*G9 -> 29.38747701 | L9: =SUM(D9,E9,F9)*(G9) -> 64.7832258 | M9: =SUM(K9:L9) -> 94.17070281 | N9: =K9/$M9 -> 0.3120660262 | O9: =L9/$M9 -> 0.6879339738
B10: =IF(Purch_2="","",Purch_2) -> 2023 | C10: =IF(Exp_2/1000="","",Exp_2/1000) -> 132.2958043 | D10: 247.195591 | E10: 0 | F10: 43 | G10: 0.223 | H10: =IF(B10="","",(SUM(C10:F10)*G10)) -> 94.21558115 | J10: =IF(H10="","",H10*-1000) -> -94215.58115 | K10: =C10*G10 -> 29.50196435 | L10: =SUM(D10,E10,F10)*(G10) -> 64.71361679 | M10: =SUM(K10:L10) -> 94.21558115 | N10: =K10/$M10 -> 0.3131325413 | O10: =L10/$M10 -> 0.6868674587
B11: =IF(Purch_3="","",Purch_3) ->  | C11: =IF(Exp_3/1000="","",Exp_3/1000) ->  | D11: 258.0822254 | E11: 1.8 | F11: 29.290999 | G11: 0.223 | L11: =SUM(D11,F11)*(G11) -> 64.08422905
B12: =IF(Purch_4="","",Purch_4) ->  | C12: =IF(Exp_4/1000="","",Exp_4/1000) ->  | D12: 258.0822254 | E12: 1.8 | F12: 36.01377764 | G12: 0.223 | L12: 65.58340869
B13: =IF(Purch_5="","",Purch_5) ->  | C13: =IF(Exp_5/1000="","",Exp_5/1000) ->  | D13: 258.0822254 | E13: 1.8 | F13: 36.73765457 | G13: 0.223 | L13: 65.74483324
B14: =IF(Purch_6="","",Purch_6) ->  | C14: =IF(Exp_6/1000="","",Exp_6/1000) ->  | D14: 258.0822254 | E14: 1.8 | F14: 37.45403883 | G14: 0.223 | L14: 65.90458693
B15: =IF(Purch_7="","",Purch_7) ->  | C15: =IF(Exp_7/1000="","",Exp_7/1000) ->  | D15: 258.0822254 | E15: 1.8 | F15: 38.17690178 | G15: 0.223 | L15: 66.06578537
B16: =IF(Purch_8="","",Purch_8) ->  | C16: =IF(Exp_8/1000="","",Exp_8/1000) ->  | D16: 258.0822254 | E16: 1.8 | F16: 38.93280444 | G16: 0.223 | L16: 66.23435166
D17: 258.0822254 | E17: 1.8 | F17: 39.66084788 | G17: 0.223
D18: 258.0822254 | E18: 1.8 | F18: 40.40250573 | G18: 0.223
D19: 258.0822254 | E19: 1.8 | F19: 37.82538541 | G19: 0.223
D20: 258.0822254 | E20: 1.8 | F20: 38.55153673 | G20: 0.223
D21: 258.0822254 | E21: 1.8 | F21: 39.2904377 | G21: 0.223
A28: Fiscal Year | B28: Oct | C28: Nov | D28: Dec | E28: Jan | F28: Feb | G28: Mar | H28: Apr | I28: May | J28: Jun | K28: Jul | L28: Aug | M28: Sep | N28: Total
A29: =B9 -> 2022 | B29: =(ExpenseByItr!C3204+(SUM(Update!$D$9:$F$9)*1000)/12)*Update!$G$9 -> 10194.25731 | C29: =(ExpenseByItr!D3204+(SUM(Update!$D$9:$F$9)*1000)/12)*Update!$G$9 -> 6934.140805 | D29: =(ExpenseByItr!E3204+(SUM(Update!$D$9:$F$9)*1000)/12)*Update!$G$9 -> 9605.122956 | E29: =(ExpenseByItr!F3204+(SUM(Update!$D$9:$F$9)*1000)/12)*Update!$G$9 -> 9550.885644 | F29: =(ExpenseByItr!G3204+(SUM(Update!$D$9:$F$9)*1000)/12)*Update!$G$9 -> 7755.83392 | G29: =(ExpenseByItr!H3204+(SUM(Update!$D$9:$F$9)*1000)/12)*Update!$G$9 -> 8006.061029 | H29: =(ExpenseByItr!I3204+(SUM(Update!$D$9:$F$9)*1000)/12)*Update!$G$9 -> 9398.230548 | I29: =(ExpenseByItr!J3204+(SUM(Update!$D$9:$F$9)*1000)/12)*Update!$G$9 -> 7460.271184 | J29: =(ExpenseByItr!K3204+(SUM(Update!$D$9:$F$9)*1000)/12)*Update!$G$9 -> 6636.451512 | K29: =(ExpenseByItr!L3204+(SUM(Update!$D$9:$F$9)*1000)/12)*Update!$G$9 -> 6251.778167 | L29: =(ExpenseByItr!M3204+(SUM(Update!$D$9:$F$9)*1000)/12)*Update!$G$9 -> 5641.517564 | M29: =(ExpenseByItr!N3204+(SUM(Update!$D$9:$F$9)*1000)/12)*Update!$G$9 -> 6736.15217 | N29: =SUM(B29:M29) -> 94170.70281
A30: =B10 -> 2023 | B30: =(ExpenseByItr!S3204+(SUM(Update!$D$10:$F$10)*1000)/12)*Update!$G$10 -> 10246.80695 | C30: =(ExpenseByItr!T3204+(SUM(Update!$D$10:$F$10)*1000)/12)*Update!$G$10 -> 6907.067282 | D30: =(ExpenseByItr!U3204+(SUM(Update!$D$10:$F$10)*1000)/12)*Update!$G$10 -> 9452.279072 | E30: =(ExpenseByItr!V3204+(SUM(Update!$D$10:$F$10)*1000)/12)*Update!$G$10 -> 9253.016335 | F30: =(ExpenseByItr!W3204+(SUM(Update!$D$10:$F$10)*1000)/12)*Update!$G$10 -> 7722.981792 | G30: =(ExpenseByItr!X3204+(SUM(Update!$D$10:$F$10)*1000)/12)*Update!$G$10 -> 8196.084882 | H30: =(ExpenseByItr!Y3204+(SUM(Update!$D$10:$F$10)*1000)/12)*Update!$G$10 -> 9666.769185 | I30: =(ExpenseByItr!Z3204+(SUM(Update!$D$10:$F$10)*1000)/12)*Update!$G$10 -> 7661.079876 | J30: =(ExpenseByItr!AA3204+(SUM(Update!$D$10:$F$10)*1000)/12)*Update!$G$10 -> 6672.977021 | K30: =(ExpenseByItr!AB3204+(SUM(Update!$D$10:$F$10)*1000)/12)*Update!$G$10 -> 6243.454871 | L30: =(ExpenseByItr!AC3204+(SUM(Update!$D$10:$F$10)*1000)/12)*Update!$G$10 -> 5605.350187 | M30: =(ExpenseByItr!AD3204+(SUM(Update!$D$10:$F$10)*1000)/12)*Update!$G$10 -> 6587.713696 | N30: =SUM(B30:M30) -> 94215.58115
B31: =(ExpenseByItr!#REF!+(SUM(Update!$D$10:$F$10)*1000)/12)*Update!$G$10 ->  | C31: =(ExpenseByItr!#REF!+(SUM(Update!$D$10:$F$10)*1000)/12)*Update!$G$10 ->  | D31: =(ExpenseByItr!#REF!+(SUM(Update!$D$10:$F$10)*1000)/12)*Update!$G$10 ->  | E31: =(ExpenseByItr!#REF!+(SUM(Update!$D$10:$F$10)*1000)/12)*Update!$G$10 ->  | F31: =(ExpenseByItr!#REF!+(SUM(Update!$D$10:$F$10)*1000)/12)*Update!$G$10 ->  | G31: =(ExpenseByItr!#REF!+(SUM(Update!$D$10:$F$10)*1000)/12)*Update!$G$10 ->  | H31: =(ExpenseByItr!#REF!+(SUM(Update!$D$10:$F$10)*1000)/12)*Update!$G$10 ->  | I31: =(ExpenseByItr!#REF!+(SUM(Update!$D$10:$F$10)*1000)/12)*Update!$G$10 ->  | J31: =(ExpenseByItr!#REF!+(SUM(Update!$D$10:$F$10)*1000)/12)*Update!$G$10 ->  | K31: =(ExpenseByItr!#REF!+(SUM(Update!$D$10:$F$10)*1000)/12)*Update!$G$10 ->  | L31: =(ExpenseByItr!#REF!+(SUM(Update!$D$10:$F$10)*1000)/12)*Update!$G$10 ->  | M31: =(ExpenseByItr!#REF!+(SUM(Update!$D$10:$F$10)*1000)/12)*Update!$G$10 -> 
B32: =(ExpenseByItr!#REF!+(SUM(Update!$D$11:$F$11)*1000)/12)*Update!$G$11 ->  | C32: =(ExpenseByItr!#REF!+(SUM(Update!$D$11:$F$11)*1000)/12)*Update!$G$11 ->  | D32: =(ExpenseByItr!#REF!+(SUM(Update!$D$11:$F$11)*1000)/12)*Update!$G$11 ->  | E32: =(ExpenseByItr!#REF!+(SUM(Update!$D$11:$F$11)*1000)/12)*Update!$G$11 ->  | F32: =(ExpenseByItr!#REF!+(SUM(Update!$D$11:$F$11)*1000)/12)*Update!$G$11 ->  | G32: =(ExpenseByItr!#REF!+(SUM(Update!$D$11:$F$11)*1000)/12)*Update!$G$11 ->  | H32: =(ExpenseByItr!#REF!+(SUM(Update!$D$11:$F$11)*1000)/12)*Update!$G$11 ->  | I32: =(ExpenseByItr!#REF!+(SUM(Update!$D$11:$F$11)*1000)/12)*Update!$G$11 ->  | J32: =(ExpenseByItr!#REF!+(SUM(Update!$D$11:$F$11)*1000)/12)*Update!$G$11 ->  | K32: =(ExpenseByItr!#REF!+(SUM(Update!$D$11:$F$11)*1000)/12)*Update!$G$11 ->  | L32: =(ExpenseByItr!#REF!+(SUM(Update!$D$11:$F$11)*1000)/12)*Update!$G$11 ->  | M32: =(ExpenseByItr!#REF!+(SUM(Update!$D$11:$F$11)*1000)/12)*Update!$G$11 -> 
B33: =(ExpenseByItr!#REF!+(SUM(Update!$D$13:$F$13)*1000)/12)*Update!$G$13 ->  | C33: =(ExpenseByItr!#REF!+(SUM(Update!$D$13:$F$13)*1000)/12)*Update!$G$13 ->  | D33: =(ExpenseByItr!#REF!+(SUM(Update!$D$13:$F$13)*1000)/12)*Update!$G$13 ->  | E33: =(ExpenseByItr!#REF!+(SUM(Update!$D$13:$F$13)*1000)/12)*Update!$G$13 ->  | F33: =(ExpenseByItr!#REF!+(SUM(Update!$D$13:$F$13)*1000)/12)*Update!$G$13 ->  | G33: =(ExpenseByItr!#REF!+(SUM(Update!$D$13:$F$13)*1000)/12)*Update!$G$13 ->  | H33: =(ExpenseByItr!#REF!+(SUM(Update!$D$13:$F$13)*1000)/12)*Update!$G$13 ->  | I33: =(ExpenseByItr!#REF!+(SUM(Update!$D$13:$F$13)*1000)/12)*Update!$G$13 ->  | J33: =(ExpenseByItr!#REF!+(SUM(Update!$D$13:$F$13)*1000)/12)*Update!$G$13 ->  | K33: =(ExpenseByItr!#REF!+(SUM(Update!$D$13:$F$13)*1000)/12)*Update!$G$13 ->  | L33: =(ExpenseByItr!#REF!+(SUM(Update!$D$13:$F$13)*1000)/12)*Update!$G$13 ->  | M33: =(ExpenseByItr!#REF!+(SUM(Update!$D$13:$F$13)*1000)/12)*Update!$G$13 -> 
B34: =(ExpenseByItr!#REF!+(SUM(Update!$D$14:$F$14)*1000)/12)*Update!$G$14 ->  | C34: =(ExpenseByItr!#REF!+(SUM(Update!$D$14:$F$14)*1000)/12)*Update!$G$14 ->  | D34: =(ExpenseByItr!#REF!+(SUM(Update!$D$14:$F$14)*1000)/12)*Update!$G$14 ->  | E34: =(ExpenseByItr!#REF!+(SUM(Update!$D$14:$F$14)*1000)/12)*Update!$G$14 ->  | F34: =(ExpenseByItr!#REF!+(SUM(Update!$D$14:$F$14)*1000)/12)*Update!$G$14 ->  | G34: =(ExpenseByItr!#REF!+(SUM(Update!$D$14:$F$14)*1000)/12)*Update!$G$14 ->  | H34: =(ExpenseByItr!#REF!+(SUM(Update!$D$14:$F$14)*1000)/12)*Update!$G$14 ->  | I34: =(ExpenseByItr!#REF!+(SUM(Update!$D$14:$F$14)*1000)/12)*Update!$G$14 ->  | J34: =(ExpenseByItr!#REF!+(SUM(Update!$D$14:$F$14)*1000)/12)*Update!$G$14 ->  | K34: =(ExpenseByItr!#REF!+(SUM(Update!$D$14:$F$14)*1000)/12)*Update!$G$14 ->  | L34: =(ExpenseByItr!#REF!+(SUM(Update!$D$14:$F$14)*1000)/12)*Update!$G$14 ->  | M34: =(ExpenseByItr!#REF!+(SUM(Update!$D$14:$F$14)*1000)/12)*Update!$G$14 -> 
B35: =(ExpenseByItr!#REF!+(SUM(Update!$D$15:$F$15)*1000)/12)*Update!$G$15 ->  | C35: =(ExpenseByItr!#REF!+(SUM(Update!$D$15:$F$15)*1000)/12)*Update!$G$15 ->  | D35: =(ExpenseByItr!#REF!+(SUM(Update!$D$15:$F$15)*1000)/12)*Update!$G$15 ->  | E35: =(ExpenseByItr!#REF!+(SUM(Update!$D$15:$F$15)*1000)/12)*Update!$G$15 ->  | F35: =(ExpenseByItr!#REF!+(SUM(Update!$D$15:$F$15)*1000)/12)*Update!$G$15 ->  | G35: =(ExpenseByItr!#REF!+(SUM(Update!$D$15:$F$15)*1000)/12)*Update!$G$15 ->  | H35: =(ExpenseByItr!#REF!+(SUM(Update!$D$15:$F$15)*1000)/12)*Update!$G$15 ->  | I35: =(ExpenseByItr!#REF!+(SUM(Update!$D$15:$F$15)*1000)/12)*Update!$G$15 ->  | J35: =(ExpenseByItr!#REF!+(SUM(Update!$D$15:$F$15)*1000)/12)*Update!$G$15 ->  | K35: =(ExpenseByItr!#REF!+(SUM(Update!$D$15:$F$15)*1000)/12)*Update!$G$15 ->  | L35: =(ExpenseByItr!#REF!+(SUM(Update!$D$15:$F$15)*1000)/12)*Update!$G$15 ->  | M35: =(ExpenseByItr!#REF!+(SUM(Update!$D$15:$F$15)*1000)/12)*Update!$G$15 -> 
B36: =(ExpenseByItr!#REF!+(SUM(Update!$D$16:$F$16)*1000)/12)*Update!$G$16 ->  | C36: =(ExpenseByItr!#REF!+(SUM(Update!$D$16:$F$16)*1000)/12)*Update!$G$16 ->  | D36: =(ExpenseByItr!#REF!+(SUM(Update!$D$16:$F$16)*1000)/12)*Update!$G$16 ->  | E36: =(ExpenseByItr!#REF!+(SUM(Update!$D$16:$F$16)*1000)/12)*Update!$G$16 ->  | F36: =(ExpenseByItr!#REF!+(SUM(Update!$D$16:$F$16)*1000)/12)*Update!$G$16 ->  | G36: =(ExpenseByItr!#REF!+(SUM(Update!$D$16:$F$16)*1000)/12)*Update!$G$16 ->  | H36: =(ExpenseByItr!#REF!+(SUM(Update!$D$16:$F$16)*1000)/12)*Update!$G$16 ->  | I36: =(ExpenseByItr!#REF!+(SUM(Update!$D$16:$F$16)*1000)/12)*Update!$G$16 ->  | J36: =(ExpenseByItr!#REF!+(SUM(Update!$D$16:$F$16)*1000)/12)*Update!$G$16 ->  | K36: =(ExpenseByItr!#REF!+(SUM(Update!$D$16:$F$16)*1000)/12)*Update!$G$16 ->  | L36: =(ExpenseByItr!#REF!+(SUM(Update!$D$16:$F$16)*1000)/12)*Update!$G$16 ->  | M36: =(ExpenseByItr!#REF!+(SUM(Update!$D$16:$F$16)*1000)/12)*Update!$G$16 -> 
A37: 0 | B37: =(ExpenseByItr!#REF!+(SUM(Update!$D$17:$F$17)*1000)/12)*Update!$G$17 ->  | C37: =(ExpenseByItr!#REF!+(SUM(Update!$D$17:$F$17)*1000)/12)*Update!$G$17 ->  | D37: =(ExpenseByItr!#REF!+(SUM(Update!$D$17:$F$17)*1000)/12)*Update!$G$17 ->  | E37: =(ExpenseByItr!#REF!+(SUM(Update!$D$17:$F$17)*1000)/12)*Update!$G$17 ->  | F37: =(ExpenseByItr!#REF!+(SUM(Update!$D$17:$F$17)*1000)/12)*Update!$G$17 ->  | G37: =(ExpenseByItr!#REF!+(SUM(Update!$D$17:$F$17)*1000)/12)*Update!$G$17 ->  | H37: =(ExpenseByItr!#REF!+(SUM(Update!$D$17:$F$17)*1000)/12)*Update!$G$17 ->  | I37: =(ExpenseByItr!#REF!+(SUM(Update!$D$17:$F$17)*1000)/12)*Update!$G$17 ->  | J37: =(ExpenseByItr!#REF!+(SUM(Update!$D$17:$F$17)*1000)/12)*Update!$G$17 ->  | K37: =(ExpenseByItr!#REF!+(SUM(Update!$D$17:$F$17)*1000)/12)*Update!$G$17 ->  | L37: =(ExpenseByItr!#REF!+(SUM(Update!$D$17:$F$17)*1000)/12)*Update!$G$17 ->  | M37: =(ExpenseByItr!#REF!+(SUM(Update!$D$17:$F$17)*1000)/12)*Update!$G$17 -> 
A38: 0 | B38: =(ExpenseByItr!#REF!+(SUM(Update!$D$18:$F$18)*1000)/12)*Update!$G$18 ->  | C38: =(ExpenseByItr!#REF!+(SUM(Update!$D$18:$F$18)*1000)/12)*Update!$G$18 ->  | D38: =(ExpenseByItr!#REF!+(SUM(Update!$D$18:$F$18)*1000)/12)*Update!$G$18 ->  | E38: =(ExpenseByItr!#REF!+(SUM(Update!$D$18:$F$18)*1000)/12)*Update!$G$18 ->  | F38: =(ExpenseByItr!#REF!+(SUM(Update!$D$18:$F$18)*1000)/12)*Update!$G$18 ->  | G38: =(ExpenseByItr!#REF!+(SUM(Update!$D$18:$F$18)*1000)/12)*Update!$G$18 ->  | H38: =(ExpenseByItr!#REF!+(SUM(Update!$D$18:$F$18)*1000)/12)*Update!$G$18 ->  | I38: =(ExpenseByItr!#REF!+(SUM(Update!$D$18:$F$18)*1000)/12)*Update!$G$18 ->  | J38: =(ExpenseByItr!#REF!+(SUM(Update!$D$18:$F$18)*1000)/12)*Update!$G$18 ->  | K38: =(ExpenseByItr!#REF!+(SUM(Update!$D$18:$F$18)*1000)/12)*Update!$G$18 ->  | L38: =(ExpenseByItr!#REF!+(SUM(Update!$D$18:$F$18)*1000)/12)*Update!$G$18 ->  | M38: =(ExpenseByItr!#REF!+(SUM(Update!$D$18:$F$18)*1000)/12)*Update!$G$18 -> 
A39: 0 | B39: =(ExpenseByItr!#REF!+(SUM(Update!$D$19:$F$19)*1000)/12)*Update!$G$19 ->  | C39: =(ExpenseByItr!#REF!+(SUM(Update!$D$19:$F$19)*1000)/12)*Update!$G$19 ->  | D39: =(ExpenseByItr!#REF!+(SUM(Update!$D$19:$F$19)*1000)/12)*Update!$G$19 ->  | E39: =(ExpenseByItr!#REF!+(SUM(Update!$D$19:$F$19)*1000)/12)*Update!$G$19 ->  | F39: =(ExpenseByItr!#REF!+(SUM(Update!$D$19:$F$19)*1000)/12)*Update!$G$19 ->  | G39: =(ExpenseByItr!#REF!+(SUM(Update!$D$19:$F$19)*1000)/12)*Update!$G$19 ->  | H39: =(ExpenseByItr!#REF!+(SUM(Update!$D$19:$F$19)*1000)/12)*Update!$G$19 ->  | I39: =(ExpenseByItr!#REF!+(SUM(Update!$D$19:$F$19)*1000)/12)*Update!$G$19 ->  | J39: =(ExpenseByItr!#REF!+(SUM(Update!$D$19:$F$19)*1000)/12)*Update!$G$19 ->  | K39: =(ExpenseByItr!#REF!+(SUM(Update!$D$19:$F$19)*1000)/12)*Update!$G$19 ->  | L39: =(ExpenseByItr!#REF!+(SUM(Update!$D$19:$F$19)*1000)/12)*Update!$G$19 ->  | M39: =(ExpenseByItr!#REF!+(SUM(Update!$D$19:$F$19)*1000)/12)*Update!$G$19 -> 
A40: 0 | B40: =(ExpenseByItr!#REF!+(SUM(Update!$D$20:$F$20)*1000)/12)*Update!$G$20 ->  | C40: =(ExpenseByItr!#REF!+(SUM(Update!$D$20:$F$20)*1000)/12)*Update!$G$20 ->  | D40: =(ExpenseByItr!#REF!+(SUM(Update!$D$20:$F$20)*1000)/12)*Update!$G$20 ->  | E40: =(ExpenseByItr!#REF!+(SUM(Update!$D$20:$F$20)*1000)/12)*Update!$G$20 ->  | F40: =(ExpenseByItr!#REF!+(SUM(Update!$D$20:$F$20)*1000)/12)*Update!$G$20 ->  | G40: =(ExpenseByItr!#REF!+(SUM(Update!$D$20:$F$20)*1000)/12)*Update!$G$20 ->  | H40: =(ExpenseByItr!#REF!+(SUM(Update!$D$20:$F$20)*1000)/12)*Update!$G$20 ->  | I40: =(ExpenseByItr!#REF!+(SUM(Update!$D$20:$F$20)*1000)/12)*Update!$G$20 ->  | J40: =(ExpenseByItr!#REF!+(SUM(Update!$D$20:$F$20)*1000)/12)*Update!$G$20 ->  | K40: =(ExpenseByItr!#REF!+(SUM(Update!$D$20:$F$20)*1000)/12)*Update!$G$20 ->  | L40: =(ExpenseByItr!#REF!+(SUM(Update!$D$20:$F$20)*1000)/12)*Update!$G$20 ->  | M40: =(ExpenseByItr!#REF!+(SUM(Update!$D$20:$F$20)*1000)/12)*Update!$G$20 -> 
A41: 0 | B41: =(ExpenseByItr!#REF!+(SUM(Update!$D$21:$F$21)*1000)/12)*Update!$G$21 ->  | C41: =(ExpenseByItr!#REF!+(SUM(Update!$D$21:$F$21)*1000)/12)*Update!$G$21 ->  | D41: =(ExpenseByItr!#REF!+(SUM(Update!$D$21:$F$21)*1000)/12)*Update!$G$21 ->  | E41: =(ExpenseByItr!#REF!+(SUM(Update!$D$21:$F$21)*1000)/12)*Update!$G$21 ->  | F41: =(ExpenseByItr!#REF!+(SUM(Update!$D$21:$F$21)*1000)/12)*Update!$G$21 ->  | G41: =(ExpenseByItr!#REF!+(SUM(Update!$D$21:$F$21)*1000)/12)*Update!$G$21 ->  | H41: =(ExpenseByItr!#REF!+(SUM(Update!$D$21:$F$21)*1000)/12)*Update!$G$21 ->  | I41: =(ExpenseByItr!#REF!+(SUM(Update!$D$21:$F$21)*1000)/12)*Update!$G$21 ->  | J41: =(ExpenseByItr!#REF!+(SUM(Update!$D$21:$F$21)*1000)/12)*Update!$G$21 ->  | K41: =(ExpenseByItr!#REF!+(SUM(Update!$D$21:$F$21)*1000)/12)*Update!$G$21 ->  | L41: =(ExpenseByItr!#REF!+(SUM(Update!$D$21:$F$21)*1000)/12)*Update!$G$21 ->  | M41: =(ExpenseByItr!#REF!+(SUM(Update!$D$21:$F$21)*1000)/12)*Update!$G$21 -> 
A42: 0 | B42: =(ExpenseByItr!#REF!+(SUM(Update!$D$22:$F$22)*1000)/12)*Update!$G$22 ->  | C42: =(ExpenseByItr!#REF!+(SUM(Update!$D$22:$F$22)*1000)/12)*Update!$G$22 ->  | D42: =(ExpenseByItr!#REF!+(SUM(Update!$D$22:$F$22)*1000)/12)*Update!$G$22 ->  | E42: =(ExpenseByItr!#REF!+(SUM(Update!$D$22:$F$22)*1000)/12)*Update!$G$22 ->  | F42: =(ExpenseByItr!#REF!+(SUM(Update!$D$22:$F$22)*1000)/12)*Update!$G$22 ->  | G42: =(ExpenseByItr!#REF!+(SUM(Update!$D$22:$F$22)*1000)/12)*Update!$G$22 ->  | H42: =(ExpenseByItr!#REF!+(SUM(Update!$D$22:$F$22)*1000)/12)*Update!$G$22 ->  | I42: =(ExpenseByItr!#REF!+(SUM(Update!$D$22:$F$22)*1000)/12)*Update!$G$22 ->  | J42: =(ExpenseByItr!#REF!+(SUM(Update!$D$22:$F$22)*1000)/12)*Update!$G$22 ->  | K42: =(ExpenseByItr!#REF!+(SUM(Update!$D$22:$F$22)*1000)/12)*Update!$G$22 ->  | L42: =(ExpenseByItr!#REF!+(SUM(Update!$D$22:$F$22)*1000)/12)*Update!$G$22 ->  | M42: =(ExpenseByItr!#REF!+(SUM(Update!$D$22:$F$22)*1000)/12)*Update!$G$22 -> 
A43: 0 | B43: =(ExpenseByItr!#REF!+(SUM(Update!$D$23:$F$23)*1000)/12)*Update!$G$23 ->  | C43: =(ExpenseByItr!#REF!+(SUM(Update!$D$23:$F$23)*1000)/12)*Update!$G$23 ->  | D43: =(ExpenseByItr!#REF!+(SUM(Update!$D$23:$F$23)*1000)/12)*Update!$G$23 ->  | E43: =(ExpenseByItr!#REF!+(SUM(Update!$D$23:$F$23)*1000)/12)*Update!$G$23 ->  | F43: =(ExpenseByItr!#REF!+(SUM(Update!$D$23:$F$23)*1000)/12)*Update!$G$23 ->  | G43: =(ExpenseByItr!#REF!+(SUM(Update!$D$23:$F$23)*1000)/12)*Update!$G$23 ->  | H43: =(ExpenseByItr!#REF!+(SUM(Update!$D$23:$F$23)*1000)/12)*Update!$G$23 ->  | I43: =(ExpenseByItr!#REF!+(SUM(Update!$D$23:$F$23)*1000)/12)*Update!$G$23 ->  | J43: =(ExpenseByItr!#REF!+(SUM(Update!$D$23:$F$23)*1000)/12)*Update!$G$23 ->  | K43: =(ExpenseByItr!#REF!+(SUM(Update!$D$23:$F$23)*1000)/12)*Update!$G$23 ->  | L43: =(ExpenseByItr!#REF!+(SUM(Update!$D$23:$F$23)*1000)/12)*Update!$G$23 ->  | M43: =(ExpenseByItr!#REF!+(SUM(Update!$D$23:$F$23)*1000)/12)*Update!$G$23 -> 
A47: BP22 Initial Proposal
A49: Fiscal Year | B49: Oct | C49: Nov | D49: Dec | E49: Jan | F49: Feb | G49: Mar | H49: Apr | I49: May | J49: Jun | K49: Jul | L49: Aug | M49: Sep | N49: Total
A50: 2022 | B50: 9960.426207 | C50: 6911.397991 | D50: 9833.665353 | E50: 9756.512399 | F50: 8008.321139 | G50: 7520.570649 | H50: 8840.109093 | I50: 7281.520927 | J50: 6332.88568 | K50: 5811.240728 | L50: 5581.706847 | M50: 6955.996299 | N50: 92794.35331
A51: 2023 | B51: 9898.298157 | C51: 6863.427769 | D51: 9588.776521 | E51: 9403.792836 | F51: 7931.867867 | G51: 7542.418762 | H51: 8783.880628 | I51: 7316.477607 | J51: 6324.188768 | K51: 5820.255469 | L51: 5541.40824 | M51: 6913.098376 | N51: 91927.891
A52: Deltas
A53: =A29 -> 2022 | B53: =B29-B50 -> 233.8311017 | C53: =C29-C50 -> 22.74281415 | D53: -228.5423967 | E53: -205.6267548 | F53: -252.4872195 | G53: 485.4903797 | H53: 558.1214551 | I53: 178.7502568 | J53: 303.5658321 | K53: 440.5374389 | L53: 59.81071716 | M53: -219.8441285 | N53: 1376.349496
A54: =A30 -> 2023 | B54: =B30-B51 -> 348.5087903 | C54: 43.63951314 | D54: -136.4974489 | E54: -150.7765018 | F54: -208.8860758 | G54: 653.6661201 | H54: 882.8885569 | I54: 344.6022691 | J54: 348.7882535 | K54: 423.1994024 | L54: 63.94194752 | M54: -325.3846797 | N54: 2287.690147
B56: =A47 -> BP22 Initial Proposal
B57: Fiscal Year | C57: Purchase Expense | D57: Direct Expense | E57: Pisces | F57: Capital | G57: % | H57: Credit
B58: 2022 | C58: 125.6104373 | D58: 247.507739 | E58: 0 | F58: 43 | G58: 0.223 | H58: 92.79435331
B59: 2023 | C59: 122.0371041 | D59: 247.195591 | E59: 0 | F59: 43 | G59: 0.223 | H59: 91.927891
B60: Change
B61: =A29 -> 2022 | C61: =C9-C58 -> 6.171970834 | D61: =D9-D58 -> 0 | E61: =E9-E58 -> 0 | F61: 0 | G61: 0 | H61: =H9-H58 -> 1.376349496
B62: =A30 -> 2023 | C62: =C10-C59 -> 10.25870021 | D62: =D10-D59 -> 0 | E62: 0 | F62: 0 | G62: 0 | H62: 2.287690147

Sheet MonthlySummaries
A2: =Update!E3 -> BP-22 Final Proposal | P2: =A2 -> BP-22 Final Proposal
G3: Directe Expense | H3: =Update!D9 -> 247.507739 | I3: Pices | J3: =Update!E9 -> 0 | K3: Capital | L3: =Update!F9 -> 43 | M3: =Update!G9 -> 0.223 | N3: =((N7/1000)+SUM(H3,J3,L3))*M3 -> 94.17070281 | V3: Directe Expense | W3: =Update!D10 -> 247.195591 | X3: Pices | Y3: =Update!E10 -> 0 | Z3: Capital | AA3: =Update!F10 -> 43 | AB3: =Update!G10 -> 0.223 | AC3: =((AC7/1000)+SUM(W3,Y3,AA3))*AB3 -> 94.21558115
A4: =Purch_1 -> 2022 | B4: Oct | C4: Nov | D4: Dec | E4: Jan | F4: Feb | G4: Mar | H4: Apr | I4: May | J4: Jun | K4: Jul | L4: Aug | M4: Sep | N4: Total | P4: =Purch_2 -> 2023 | Q4: Oct | R4: Nov | S4: Dec | T4: Jan | U4: Feb | V4: Mar | W4: Apr | X4: May | Y4: Jun | Z4: Jul | AA4: Aug | AB4: Sep | AC4: Total
A5: Purchase (aMW) | B5: =ReplacementPurches!C95 -> 935.6125 | C5: =ReplacementPurches!D95 -> 292.0625 | D5: =ReplacementPurches!E95 -> 631.3875 | E5: =ReplacementPurches!F95 -> 664.625 | F5: =ReplacementPurches!G95 -> 386.6375 | G5: =ReplacementPurches!H95 -> 468.6125 | H5: =ReplacementPurches!I95 -> 859.5479167 | I5: =ReplacementPurches!J95 -> 541.1125 | J5: =ReplacementPurches!K95 -> 293.25 | K5: =ReplacementPurches!L95 -> 119.075 | L5: =ReplacementPurches!M95 -> 36.71989247 | M5: =ReplacementPurches!N95 -> 275.5875 | N5: =ReplacementPurches!O95 -> 459.5710217 | P5: Purchase (aMW) | Q5: =ReplacementPurches!S95 -> 948.2 | R5: =ReplacementPurches!T95 -> 289.15 | S5: =ReplacementPurches!U95 -> 624.3625 | T5: =ReplacementPurches!V95 -> 640.3 | U5: =ReplacementPurches!W95 -> 391.2375 | V5: =ReplacementPurches!X95 -> 480.25 | W5: =ReplacementPurches!Y95 -> 868.5125 | X5: =ReplacementPurches!Z95 -> 536.7125 | Y5: =ReplacementPurches!AA95 -> 284.7875 | Z5: =ReplacementPurches!AB95 -> 127.5625 | AA5: =ReplacementPurches!AC95 -> 33.11169355 | AB5: =ReplacementPurches!AD95 -> 267.075 | AC5: =ReplacementPurches!AE95 -> 458.4600342
A6: Price | B6: =((B7*1000)/(B5*PricesByItr!C$1)) -> 30.89399932 | C6: =((C7*1000)/(C5*PricesByItr!D$1)) -> 32.69977976 | D6: =((D7*1000)/(D5*PricesByItr!E$1)) -> 40.15589067 | E6: =((E7*1000)/(E5*PricesByItr!F$1)) -> 37.65585605 | F6: =((F7*1000)/(F5*PricesByItr!G$1)) -> 40.68404965 | G6: =((G7*1000)/(G5*PricesByItr!H$1)) -> 33.5822602 | H6: =((H7*1000)/(H5*PricesByItr!I$1)) -> 28.98092159 | I6: =((I7*1000)/(I5*PricesByItr!J$1)) -> 22.96431962 | J6: =((J7*1000)/(J5*PricesByItr!K$1)) -> 26.29011084 | K6: =((K7*1000)/(K5*PricesByItr!L$1)) -> 43.18572852 | L6: =((L7*1000)/(L5*PricesByItr!M$1)) -> 39.87272103 | M6: =((M7*1000)/(M5*PricesByItr!N$1)) -> 30.22826061 | N6: =((N7*1000)/(N5*PricesByItr!O$1)) -> 32.73412201 | P6: Price | Q6: =((Q7*1000)/(Q5*PricesByItr!S$1)) -> 30.85478459 | R6: =((R7*1000)/(R5*PricesByItr!T$1)) -> 32.57157903 | S6: =((S7*1000)/(S5*PricesByItr!U$1)) -> 39.18822092 | T6: =((T7*1000)/(T5*PricesByItr!V$1)) -> 36.33709349 | U6: =((U7*1000)/(U5*PricesByItr!W$1)) -> 39.74430731 | V6: =((V7*1000)/(V5*PricesByItr!X$1)) -> 35.22945849 | W6: =((W7*1000)/(W5*PricesByItr!Y$1)) -> 30.64910603 | X6: =((X7*1000)/(X5*PricesByItr!Z$1)) -> 25.47281041 | Y6: =((Y7*1000)/(Y5*PricesByItr!AA$1)) -> 27.99698536 | Z6: =ABS((Z7*1000)/(Z5*PricesByItr!AB$1)) -> 40.19313282 | AA6: =((AA7*1000)/(AA5*PricesByItr!AC$1)) -> 38.69006323 | AB6: =((AB7*1000)/(AB5*PricesByItr!AD$1)) -> 27.86540977 | AC6: =((AC7*1000)/(AC5*PricesByItr!O$1)) -> 32.94128088
A7: Purchase Expense | B7: =ExpenseByItr!C3204 -> 21505.18008 | C7: =ExpenseByItr!D3204 -> 6885.823567 | D7: =ExpenseByItr!E3204 -> 18863.322 | E7: =ExpenseByItr!F3204 -> 18620.10535 | F7: =ExpenseByItr!G3204 -> 10570.54605 | G7: =ExpenseByItr!H3204 -> 11692.64071 | H7: =ExpenseByItr!I3204 -> 17935.55336 | I7: =ExpenseByItr!J3204 -> 9245.152619 | J7: =ExpenseByItr!K3204 -> 5550.894002 | K7: =ExpenseByItr!L3204 -> 3825.901424 | L7: =ExpenseByItr!M3204 -> 1089.30679 | M7: =ExpenseByItr!N3204 -> 5997.982154 | N7: =ExpenseByItr!O3204 -> 131782.4081 | P7: Purchase Expense | Q7: =ExpenseByItr!S3204 -> 21766.84102 | R7: =ExpenseByItr!T3204 -> 6790.429966 | S7: =ExpenseByItr!U3204 -> 18203.93575 | T7: =ExpenseByItr!V3204 -> 17310.38088 | U7: =ExpenseByItr!W3204 -> 10449.23943 | V7: =ExpenseByItr!X3204 -> 12570.77795 | W7: =ExpenseByItr!Y3204 -> 19165.77482 | X7: =ExpenseByItr!Z3204 -> 10171.65236 | Y7: =ExpenseByItr!AA3204 -> 5740.697856 | Z7: =ExpenseByItr!AB3204 -> 3814.58956 | AA7: =ExpenseByItr!AC3204 -> 953.1335767 | AB7: =ExpenseByItr!AD3204 -> 5358.351106 | AC7: =ExpenseByItr!AE3204 -> 132295.8043
A8: Credit | B8: =(B7+(SUM(Update!$D$9:$F$9)*1000)/12)*Update!$G$9 -> 10194.25731 | C8: =(C7+(SUM(Update!$D$9:$F$9)*1000)/12)*Update!$G$9 -> 6934.140805 | D8: =(D7+(SUM(Update!$D$9:$F$9)*1000)/12)*Update!$G$9 -> 9605.122956 | E8: =(E7+(SUM(Update!$D$9:$F$9)*1000)/12)*Update!$G$9 -> 9550.885644 | F8: =(F7+(SUM(Update!$D$9:$F$9)*1000)/12)*Update!$G$9 -> 7755.83392 | G8: =(G7+(SUM(Update!$D$9:$F$9)*1000)/12)*Update!$G$9 -> 8006.061029 | H8: =(H7+(SUM(Update!$D$9:$F$9)*1000)/12)*Update!$G$9 -> 9398.230548 | I8: =(I7+(SUM(Update!$D$9:$F$9)*1000)/12)*Update!$G$9 -> 7460.271184 | J8: =(J7+(SUM(Update!$D$9:$F$9)*1000)/12)*Update!$G$9 -> 6636.451512 | K8: =(K7+(SUM(Update!$D$9:$F$9)*1000)/12)*Update!$G$9 -> 6251.778167 | L8: =(L7+(SUM(Update!$D$9:$F$9)*1000)/12)*Update!$G$9 -> 5641.517564 | M8: =(M7+(SUM(Update!$D$9:$F$9)*1000)/12)*Update!$G$9 -> 6736.15217 | N8: =SUM(B8:M8) -> 94170.70281 | P8: Credit | Q8: =(Q7+(SUM(W3,Y3,AA3)*1000)/12)*Update!$G$10 -> 10246.80695 | R8: =(R7+(SUM(Update!$D$10:$F$10)*1000)/12)*Update!$G$10 -> 6907.067282 | S8: =(S7+(SUM(Update!$D$10:$F$10)*1000)/12)*Update!$G$10 -> 9452.279072 | T8: =(T7+(SUM(Update!$D$10:$F$10)*1000)/12)*Update!$G$10 -> 9253.016335 | U8: =(U7+(SUM(Update!$D$10:$F$10)*1000)/12)*Update!$G$10 -> 7722.981792 | V8: =(V7+(SUM(Update!$D$10:$F$10)*1000)/12)*Update!$G$10 -> 8196.084882 | W8: =(W7+(SUM(Update!$D$10:$F$10)*1000)/12)*Update!$G$10 -> 9666.769185 | X8: =(X7+(SUM(Update!$D$10:$F$10)*1000)/12)*Update!$G$10 -> 7661.079876 | Y8: =(Y7+(SUM(Update!$D$10:$F$10)*1000)/12)*Update!$G$10 -> 6672.977021 | Z8: =(Z7+(SUM(Update!$D$10:$F$10)*1000)/12)*Update!$G$10 -> 6243.454871 | AA8: =(AA7+(SUM(Update!$D$10:$F$10)*1000)/12)*Update!$G$10 -> 5605.350187 | AB8: =(AB7+(SUM(Update!$D$10:$F$10)*1000)/12)*Update!$G$10 -> 6587.713696 | AC8: =SUM(Q8:AB8) -> 94215.58115
A11: BP-22 Initial Proposal | P11: BP-22 Initial Proposal
G12: Directe Expense | H12: 247.507739 | I12: Pices | J12: 0 | K12: Capital | L12: 43 | M12: 0.223 | N12: 92.79435331 | V12: Directe Expense | W12: 247.195591 | X12: Pices | Y12: 0 | Z12: Capital | AA12: 43 | AB12: 0.223 | AC12: 91.927891
A13: 2022 | B13: Oct | C13: Nov | D13: Dec | E13: Jan | F13: Feb | G13: Mar | H13: Apr | I13: May | J13: Jun | K13: Jul | L13: Aug | M13: Sep | N13: Total | P13: 2023 | Q13: Oct | R13: Nov | S13: Dec | T13: Jan | U13: Feb | V13: Mar | W13: Apr | X13: May | Y13: Jun | Z13: Jul | AA13: Aug | AB13: Sep | AC13: Total
A14: Purchase (aMW) | B14: 935.4625 | C14: 288.65 | D14: 666.6625 | E14: 696.2875 | F14: 446.625 | G14: 432.775 | H14: 797.0125 | I14: 483.9166667 | J14: 250.55 | K14: 56.9625 | L14: 26.35416667 | M14: 328.95 | N14: 451.247714 | P14: Purchase (aMW) | Q14: 948.3875 | R14: 295.9 | S14: 665.275 | T14: 695.8375 | U14: 447.45 | V14: 438.525 | W14: 797.50625 | X14: 466.1416667 | Y14: 246.6 | Z14: 59.225 | AA14: 19.91599462 | AB14: 327.1125 | AC14: 451.0376912
A15: Price | B15: 29.39235267 | C15: 32.59632448 | D15: 40.09737924 | E15: 37.72349171 | F15: 38.99209594 | G15: 29.59259774 | H15: 26.89342765 | I15: 23.45217941 | J15: 23.22452961 | K15: 43.66193598 | L15: 41.87669492 | M15: 29.48704744 | N15: 31.77653995 | P15: Price | Q15: 28.63380491 | R15: 30.911299 | S15: 38.01490437 | T15: 34.74290319 | U15: 37.86652235 | V15: 29.58510583 | W15: 26.4829574 | X15: 24.8734628 | Y15: 23.52339017 | Z15: 43.50173596 | AA15: 44.97373957 | AB15: 28.9463582 | AC15: 30.88694478
A16: Purchase Expense | B16: 20456.61012 | C16: 6783.837853 | D16: 19888.1758 | E16: 19542.19843 | F16: 11702.77574 | G16: 9515.55381 | H16: 15432.76656 | I16: 8443.58196 | J16: 4189.612243 | K16: 1850.397213 | L16: 821.0972956 | M16: 6983.830264 | N16: 125610.4373 | P16: Purchase Expense | Q16: 20204.02133 | R16: 6594.737082 | S16: 18816.03194 | T16: 17986.50869 | U16: 11385.94829 | V16: 9639.53974 | W16: 15206.63331 | X16: 8626.350708 | Y16: 4176.624971 | Z16: 1916.834392 | AA16: 666.398386 | AB16: 6817.47523 | AC16: 122037.1041
A17: Credit | B17: 9960.426207 | C17: 6911.397991 | D17: 9833.665353 | E17: 9756.512399 | F17: 8008.321139 | G17: 7520.570649 | H17: 8840.109093 | I17: 7281.520927 | J17: 6332.88568 | K17: 5811.240728 | L17: 5581.706847 | M17: 6955.996299 | N17: 92794.35331 | P17: Credit | Q17: 9898.298157 | R17: 6863.427769 | S17: 9588.776521 | T17: 9403.792836 | U17: 7931.867867 | V17: 7542.418762 | W17: 8783.880628 | X17: 7316.477607 | Y17: 6324.188768 | Z17: 5820.255469 | AA17: 5541.40824 | AB17: 6913.098376 | AC17: 91927.891
G19: Directe Expense | H19: =H3-H12 -> 0 | I19: Pices | J19: 0 | K19: Capital | L19: =L3-L12 -> 0 | M19: 0.223 | N19: =N3-N12 -> 1.376349496 | V19: Directe Expense | W19: =W3-W12 -> 0 | X19: Pices | Y19: 0 | Z19: Capital | AA19: =AA3-AA12 -> 0 | AB19: 0.223 | AC19: =AC3-AC12 -> 2.287690147
A20: Purchase (aMW) | B20: =B5-B14 -> 0.15 | C20: 3.4125 | D20: -35.275 | E20: -31.6625 | F20: -59.9875 | G20: 35.8375 | H20: 62.53541667 | I20: 57.19583333 | J20: 42.7 | K20: 62.1125 | L20: 10.36572581 | M20: -53.3625 | N20: 8.323307648 | P20: Purchase (aMW) | Q20: =Q5-Q14 -> -0.1875 | R20: -6.75 | S20: -40.9125 | T20: -55.5375 | U20: -56.2125 | V20: 41.725 | W20: 71.00625 | X20: 70.57083333 | Y20: 38.1875 | Z20: 68.3375 | AA20: 13.19569892 | AB20: -60.0375 | AC20: 7.422343037
A21: Price | B21: =B6-B15 -> 1.50164665 | C21: 0.1034552824 | D21: 0.05851143727 | E21: -0.06763566083 | F21: 1.691953713 | G21: 3.989662465 | H21: 2.087493938 | I21: -0.4878597845 | J21: 3.065581227 | K21: -0.4762074653 | L21: -2.003973882 | M21: 0.7412131649 | N21: 0.9575820533 | P21: Price | Q21: =Q6-Q15 -> 2.220979682 | R21: 1.660280028 | S21: 1.173316545 | T21: 1.594190297 | U21: 1.87778496 | V21: 5.644352659 | W21: 4.166148627 | X21: 0.599347614 | Y21: 4.47359519 | Z21: -3.308603138 | AA21: -6.283676337 | AB21: -1.080948435 | AC21: 2.054336101
A22: Purchase Expense | B22: =B7-B16 -> 1048.569963 | C22: 101.9857137 | D22: -1024.853797 | E22: -922.0930711 | F22: -1132.229684 | G22: 2177.086905 | H22: 2502.786794 | I22: 801.5706582 | J22: 1361.281758 | K22: 1975.504211 | L22: 268.209494 | M22: -985.84811 | N22: 6171.970834 | P22: Purchase Expense | Q22: =Q7-Q16 -> 1562.819687 | R22: 195.692884 | S22: -612.0961834 | T22: -676.1278107 | U22: -936.7088602 | V22: 2931.238207 | W22: 3959.141511 | X22: 1545.301655 | Y22: 1564.072886 | Z22: 1897.755168 | AA22: 286.7351907 | AB22: -1459.124124 | AC22: 10258.70021
A23: Credit | B23: =B8-B17 -> 233.8311017 | C23: 22.74281415 | D23: -228.5423967 | E23: -205.6267548 | F23: -252.4872195 | G23: 485.4903797 | H23: 558.1214551 | I23: 178.7502568 | J23: 303.5658321 | K23: 440.5374389 | L23: 59.81071716 | M23: -219.8441285 | N23: 1376.349496 | P23: Credit | Q23: =Q8-Q17 -> 348.5087903 | R23: 43.63951314 | S23: -136.4974489 | T23: -150.7765018 | U23: -208.8860758 | V23: 653.6661201 | W23: 882.8885569 | X23: 344.6022691 | Y23: 348.7882535 | Z23: 423.1994024 | AA23: 63.94194752 | AB23: -325.3846797 | AC23: 2287.690147

Sheet ReplacementPurches
A1: Hours | C1: =PricesByItr!C1 -> 744 | D1: 721 | E1: 744 | F1: 744 | G1: 672 | H1: 743 | I1: 720 | J1: 744 | K1: 720 | L1: 744 | M1: 744 | N1: 720 | O1: 8760 | Q1: Hours | S1: 744 | T1: 721 | U1: 744 | V1: 744 | W1: 672 | X1: 743 | Y1: 720 | Z1: 744 | AA1: 720 | AB1: 744 | AC1: 744 | AD1: 720 | AE1: 8760
A2: FY | B2: WY | C2: =CreditByItr!C2 -> 2021-10-01 | D2: =DATE(Purch_1-1,11,1) -> 2021-11-01 | E2: =DATE(Purch_1-1,12,1) -> 2021-12-01 | F2: =DATE(Purch_1,1,1) -> 2022-01-01 | G2: =DATE(Purch_1,2,1) -> 2022-02-01 | H2: =DATE(Purch_1,3,1) -> 2022-03-01 | I2: =DATE(Purch_1,4,1) -> 2022-04-01 | J2: =DATE(Purch_1,5,1) -> 2022-05-01 | K2: =DATE(Purch_1,6,1) -> 2022-06-01 | L2: =DATE(Purch_1,7,1) -> 2022-07-01 | M2: =DATE(Purch_1,8,1) -> 2022-08-01 | N2: =DATE(Purch_1,9,1) -> 2022-09-01 | O2: Wtd Avg | Q2: FY | R2: WY | S2: =DATE(Purch_2-1,10,1) -> 2022-10-01 | T2: =DATE(Purch_2-1,11,1) -> 2022-11-01 | U2: =DATE(Purch_2-1,12,1) -> 2022-12-01 | V2: =DATE(Purch_2,1,1) -> 2023-01-01 | W2: =DATE(Purch_2,2,1) -> 2023-02-01 | X2: =DATE(Purch_2,3,1) -> 2023-03-01 | Y2: =DATE(Purch_2,4,1) -> 2023-04-01 | Z2: =DATE(Purch_2,5,1) -> 2023-05-01 | AA2: =DATE(Purch_2,6,1) -> 2023-06-01 | AB2: =DATE(Purch_2,7,1) -> 2023-07-01 | AC2: =DATE(Purch_2,8,1) -> 2023-08-01 | AD2: =DATE(Purch_2,9,1) -> 2023-09-01 | AE2: Wtd Avg
A3: =Prices_1 -> 2022 | B3: 1929 | C3: 1049 | D3: 546 | E3: 1495 | F3: 2037 | G3: 1472 | H3: 1445 | I3: 2281.5 | J3: 3517 | K3: 9 | L3: 1244 | M3: 101.1290323 | N3: 0 | O3: =IFERROR((SUMPRODUCT(C3:N3,C$1:N$1)/O$1),"") -> 1270.700114 | Q3: =Prices_2 -> 2023 | R3: 1929 | S3: 1048 | T3: 545 | U3: 1495 | V3: 2036 | W3: 1475 | X3: 1429 | Y3: 2304.5 | Z3: 3519 | AA3: 0 | AB3: 1253 | AC3: 94.35483871 | AD3: 0 | AE3: =IFERROR((SUMPRODUCT(S3:AD3,S$1:AD$1)/AE$1),"") -> 1270.830594
A4: 2022 | B4: 1930 | C4: 1176 | D4: 1050 | E4: 2093 | F4: 3161 | G4: 1394 | H4: 2225 | I4: 3082.5 | J4: 2219 | K4: 2170 | L4: -94 | M4: 138.9677419 | N4: -78 | O4: =IFERROR((SUMPRODUCT(C4:N4,C$1:N$1)/O$1),"") -> 1545.769977 | Q4: 2023 | R4: 1930 | S4: 1219 | T4: 1080 | U4: 2084 | V4: 3159 | W4: 1317 | X4: 2242 | Y4: 3084 | Z4: 2257 | AA4: 2160 | AB4: -55 | AC4: 145.6451613 | AD4: -87 | AE4: =IFERROR((SUMPRODUCT(S4:AD4,S$1:AD$1)/AE$1),"") -> 1552.160502
A5: 2022 | B5: 1931 | C5: 997 | D5: 365 | E5: 1977 | F5: 3325 | G5: 1030 | H5: 922 | I5: 2598 | J5: 2217 | K5: 1353 | L5: 0 | M5: 0 | N5: 0 | O5: 1235.273402 | Q5: 2023 | R5: 1931 | S5: 1001 | T5: 364 | U5: 1976 | V5: 3225 | W5: 1145 | X5: 968 | Y5: 2607 | Z5: 2226 | AA5: 1336 | AB5: 0 | AC5: 0 | AD5: 0 | AE5: =IFERROR((SUMPRODUCT(S5:AD5,S$1:AD$1)/AE$1),"") -> 1239.783105
A6: 2022 | B6: 1932 | C6: 729 | D6: 488 | E6: 1635 | F6: 2051 | G6: 1631 | H6: -59 | I6: 0 | J6: 0 | K6: 0 | L6: 0 | M6: -38.5483871 | N6: 491 | O6: 572.3336758 | Q6: 2023 | R6: 1932 | S6: 728 | T6: 487 | U6: 1634 | V6: 2066 | W6: 1278 | X6: -93 | Y6: 0 | Z6: 0 | AA6: 0 | AB6: 0 | AC6: -38.70967742 | AD6: 490 | AE6: 543.296347
A7: 2022 | B7: 1933 | C7: 1121 | D7: 798 | E7: 0 | F7: 0 | G7: 0 | H7: 0 | I7: 721 | J7: 187 | K7: 0 | L7: 0 | M7: 0 | N7: 383 | O7: 267.510274 | Q7: 2023 | R7: 1933 | S7: 1120 | T7: 737 | U7: 0 | V7: 0 | W7: 0 | X7: 0 | Y7: 746 | Z7: 81 | AA7: 0 | AB7: 0 | AC7: 0 | AD7: 382 | AE7: 255.3745434
A8: 2022 | B8: 1934 | C8: 388 | D8: 0 | E8: 0 | F8: 0 | G8: 0 | H8: 0 | I8: 0 | J8: 0 | K8: -492 | L8: 694 | M8: 61.09677419 | N8: 0 | O8: 56.64657534 | Q8: 2023 | R8: 1934 | S8: 387 | T8: 0 | U8: 0 | V8: 0 | W8: 0 | X8: 0 | Y8: 0 | Z8: 0 | AA8: -496 | AB8: 711 | AC8: 49.61290323 | AD8: 0 | AE8: 56.70136986
A9: 2022 | B9: 1935 | C9: 979 | D9: 1526 | E9: 1174 | F9: 0 | G9: 0 | H9: 4 | I9: 1925.5 | J9: 457 | K9: 570 | L9: -211 | M9: 0 | N9: 875 | O9: 606.71621 | Q9: 2023 | R9: 1935 | S9: 1094 | T9: 1462 | U9: 1173 | V9: 0 | W9: 0 | X9: 55 | Y9: 1949.5 | Z9: 450 | AA9: 507 | AB9: -208 | AC9: 0 | AD9: 874 | AE9: 611.8291096
A10: 2022 | B10: 1936 | C10: 1205 | D10: 559 | E10: 1515 | F10: 2882 | G10: 2621 | H10: 913 | I10: 950.5 | J10: 0 | K10: 0 | L10: 0 | M10: 5.161290323 | N10: 698 | O10: 936.2280822 | Q10: 2023 | R10: 1936 | S10: 1204 | T10: 558 | U10: 1513 | V10: 2835 | W10: 2713 | X10: 932 | Y10: 964.5 | Z10: 0 | AA10: 0 | AB10: 0 | AC10: 4.838709677 | AD10: 693 | AE10: 941.2805936
A11: 2022 | B11: 1937 | C11: 1278 | D11: 240 | E11: 1508 | F11: 3272 | G11: 3013 | H11: 1924 | I11: 2280 | J11: 2196 | K11: 398 | L11: 319 | M11: 56.70967742 | N11: -253 | O11: 1346.325571 | Q11: 2023 | R11: 1937 | S11: 1277 | T11: 239 | U11: 1507 | V11: 3169 | W11: 2985 | X11: 1872 | Y11: 2384 | Z11: 2283 | AA11: 412 | AB11: 322 | AC11: 40.61290323 | AD11: -280 | AE11: 1344.523174
A12: 2022 | B12: 1938 | C12: 726 | D12: 230 | E12: 1031 | F12: 0 | G12: 0 | H12: 0 | I12: 0 | J12: 0 | K12: 0 | L12: -8 | M12: 178.2365591 | N12: -82 | O12: 175.8737443 | Q12: 2023 | R12: 1938 | S12: 780 | T12: 263 | U12: 994 | V12: 0 | W12: 0 | X12: 0 | Y12: 0 | Z12: 0 | AA12: 0 | AB12: -7 | AC12: 173.6451613 | AD12: -80 | AE12: 179.8930365
A13: 2022 | B13: 1939 | C13: 1026 | D13: 797 | E13: 1865 | F13: 868 | G13: 21 | H13: 838 | I13: 909.5 | J13: 200 | K13: 868 | L13: -72 | M13: 0 | N13: 527 | O13: 657.8254566 | Q13: 2023 | R13: 1939 | S13: 1022 | T13: 795 | U13: 1846 | V13: 866 | W13: 19 | X13: 866 | Y13: 925.5 | Z13: 148 | AA13: 806 | AB13: -65 | AC13: 0 | AD13: 526 | AE13: 650.0740868
A14: 2022 | B14: 1940 | C14: 1253 | D14: 281 | E14: 1516 | F14: 61 | G14: 465 | H14: 0 | I14: 386.5 | J14: 948 | K14: 1074 | L14: 762 | M14: 341.6129032 | N14: 0 | O14: 593.4430365 | Q14: 2023 | R14: 1940 | S14: 1252 | T14: 280 | U14: 1514 | V14: 0 | W14: 780 | X14: 0 | Y14: 423.5 | Z14: 955 | AA14: 1080 | AB14: 763 | AC14: 341.6129032 | AD14: 0 | AE14: 616.3031963
A15: 2022 | B15: 1941 | C15: 919 | D15: 443 | E15: 751 | F15: 2687 | G15: 1405 | H15: 1268 | I15: 2213.5 | J15: 1731 | K15: 1610 | L15: 293 | M15: 0 | N15: 0 | O15: 1107.998973 | Q15: 2023 | R15: 1941 | S15: 918 | T15: 530 | U15: 749 | V15: 2685 | W15: 1217 | X15: 1457 | Y15: 2216 | Z15: 1731 | AA15: 1603 | AB15: 292 | AC15: 0 | AD15: 0 | AE15: 1115.888699
A16: 2022 | B16: 1942 | C16: 445 | D16: 0 | E16: 0 | F16: 0 | G16: 0 | H16: 3350 | I16: 1786.833333 | J16: 1796.666667 | K16: 0 | L16: 0 | M16: 0 | N16: -379 | O16: 590.2385845 | Q16: 2023 | R16: 1942 | S16: 443 | T16: 0 | U16: 0 | V16: 0 | W16: 0 | X16: 3334 | Y16: 1793.5 | Z16: 1777 | AA16: 0 | AB16: 0 | AC16: 0 | AD16: -375 | AE16: 587.9180365
A17: 2022 | B17: 1943 | C17: 961 | D17: 864 | E17: 659 | F17: 0 | G17: 0 | H17: 0 | I17: 0 | J17: 0 | K17: 0 | L17: 0 | M17: 0 | N17: 808 | O17: 275.1123288 | Q17: 2023 | R17: 1943 | S17: 962 | T17: 863 | U17: 657 | V17: 0 | W17: 0 | X17: 0 | Y17: 0 | Z17: 0 | AA17: 0 | AB17: 0 | AC17: 0 | AD17: 806 | AE17: 274.7807078
A18: 2022 | B18: 1944 | C18: 1550 | D18: 564 | E18: 1792 | F18: 2179 | G18: 684 | H18: 1928 | I18: 2865.5 | J18: 3189 | K18: 1976 | L18: 986 | M18: -38.41935484 | N18: 0 | O18: 1480.584018 | Q18: 2023 | R18: 1944 | S18: 1549 | T18: 562 | U18: 1790 | V18: 2177 | W18: 682 | X18: 1947 | Y18: 2868.5 | Z18: 3189 | AA18: 1962 | AB18: 986 | AC18: -45.51612903 | AD18: 0 | AE18: 1479.946005
A19: 2022 | B19: 1945 | C19: 602 | D19: 94 | E19: 1505 | F19: 2806 | G19: 2667 | H19: 2424 | I19: 2039.5 | J19: 986.6666667 | K19: 0 | L19: 471 | M19: -181 | N19: -272 | O19: 1088.897489 | Q19: 2023 | R19: 1945 | S19: 646 | T19: 147 | U19: 1503 | V19: 2721 | W19: 2672 | X19: 2564 | Y19: 2058.5 | Z19: 978 | AA19: 0 | AB19: 468 | AC19: -207.3870968 | AD19: -361 | AE19: 1092.880251
A20: 2022 | B20: 1946 | C20: 949 | D20: 611 | E20: 996 | F20: 0 | G20: 0 | H20: 0 | I20: 0 | J20: 0 | K20: 0 | L20: 0 | M20: 0 | N20: 487 | O20: 255.508105 | Q20: 2023 | R20: 1946 | S20: 1026 | T20: 687 | U20: 1005 | V20: 0 | W20: 0 | X20: 0 | Y20: 0 | Z20: 0 | AA20: 0 | AB20: 0 | AC20: 0 | AD20: 485 | AE20: 268.9030822
A21: 2022 | B21: 1947 | C21: 1445 | D21: 0 | E21: 0 | F21: 0 | G21: 0 | H21: 0 | I21: 328 | J21: 0 | K21: 0 | L21: 0 | M21: 0 | N21: 359 | O21: 179.1917808 | Q21: 2023 | R21: 1947 | S21: 1443 | T21: 0 | U21: 0 | V21: 0 | W21: 0 | X21: 0 | Y21: 340.5 | Z21: 0 | AA21: 0 | AB21: 0 | AC21: 0 | AD21: 357 | AE21: 179.8849315
A22: 2022 | B22: 1948 | C22: 0 | D22: 0 | E22: 0 | F22: 0 | G22: 0 | H22: 0 | I22: 92.5 | J22: 0 | K22: 0 | L22: 0 | M22: 0 | N22: 162 | O22: 20.91780822 | Q22: 2023 | R22: 1948 | S22: 0 | T22: 0 | U22: 0 | V22: 0 | W22: 0 | X22: 0 | Y22: 128.5 | Z22: 0 | AA22: 0 | AB22: 0 | AC22: 0 | AD22: 160 | AE22: 23.71232877
A23: 2022 | B23: 1949 | C23: 788 | D23: 0 | E23: 1195 | F23: 0 | G23: 355 | H23: 0 | I23: 0 | J23: 0 | K23: 0 | L23: 240 | M23: 346.0322581 | N23: -123 | O23: 235.3150685 | Q23: 2023 | R23: 1949 | S23: 787 | T23: 0 | U23: 1193 | V23: 0 | W23: 352 | X23: 0 | Y23: 0 | Z23: 0 | AA23: 0 | AB23: 288 | AC23: 263.9677419 | AD23: -167 | AE23: 228.3205479
A24: 2022 | B24: 1950 | C24: 1174 | D24: 843 | E24: 527 | F24: 0 | G24: 0 | H24: 0 | I24: 661 | J24: 0 | K24: 0 | L24: 0 | M24: 0 | N24: 424 | O24: 303.0304795 | Q24: 2023 | R24: 1950 | S24: 1306 | T24: 924 | U24: 528 | V24: 0 | W24: 0 | X24: 0 | Y24: 724.5 | Z24: 0 | AA24: 0 | AB24: 0 | AC24: 0 | AD24: 422 | AE24: 326.0479452
A25: 2022 | B25: 1951 | C25: 4 | D25: 0 | E25: 0 | F25: 0 | G25: 0 | H25: 0 | I25: 0 | J25: 0 | K25: 0 | L25: 0 | M25: 0 | N25: 458 | O25: 37.98356164 | Q25: 2023 | R25: 1951 | S25: 3 | T25: 0 | U25: 0 | V25: 0 | W25: 0 | X25: 0 | Y25: 0 | Z25: 0 | AA25: 0 | AB25: 0 | AC25: 0 | AD25: 457 | AE25: 37.81643836
A26: 2022 | B26: 1952 | C26: 0 | D26: 0 | E26: 0 | F26: 0 | G26: 0 | H26: 0 | I26: 0 | J26: 0 | K26: 0 | L26: 0 | M26: 0 | N26: 845 | O26: 69.45205479 | Q26: 2023 | R26: 1952 | S26: 0 | T26: 0 | U26: 0 | V26: 0 | W26: 0 | X26: 0 | Y26: 0 | Z26: 0 | AA26: 0 | AB26: 0 | AC26: 0 | AD26: 849 | AE26: 69.78082192
A27: 2022 | B27: 1953 | C27: 1536 | D27: 276 | E27: 1583 | F27: 916 | G27: 0 | H27: 588 | I27: 2302 | J27: 494 | K27: 0 | L27: 0 | M27: 0 | N27: 333 | O27: 673.8191781 | Q27: 2023 | R27: 1953 | S27: 1535 | T27: 275 | U27: 1582 | V27: 845 | W27: 0 | X27: 617 | Y27: 2306 | Z27: 494 | AA27: 0 | AB27: 0 | AC27: 0 | AD27: 332 | AE27: 670.2431507
A28: 2022 | B28: 1954 | C28: 1077 | D28: 0 | E28: 0 | F28: 0 | G28: 0 | H28: 0 | I28: 131.5 | J28: 0 | K28: 0 | L28: 0 | M28: 0 | N28: 0 | O28: 102.2794521 | Q28: 2023 | R28: 1954 | S28: 1075 | T28: 0 | U28: 0 | V28: 0 | W28: 0 | X28: 0 | Y28: 175.5 | Z28: 0 | AA28: 0 | AB28: 0 | AC28: 0 | AD28: 0 | AE28: 105.7260274
A29: 2022 | B29: 1955 | C29: 474 | D29: 0 | E29: 0 | F29: 1188 | G29: 260 | H29: 1740 | I29: 1450 | J29: 969 | K29: 0 | L29: 0 | M29: 0 | N29: 450 | O29: 547.1465753 | Q29: 2023 | R29: 1955 | S29: 473 | T29: 0 | U29: 0 | V29: 1186 | W29: 278 | X29: 1640 | Y29: 1424 | Z29: 958 | AA29: 0 | AB29: 0 | AC29: 0 | AD29: 449 | AE29: 536.6374429
A30: 2022 | B30: 1956 | C30: 827 | D30: 0 | E30: 0 | F30: 0 | G30: 0 | H30: 0 | I30: 0 | J30: 0 | K30: 0 | L30: 0 | M30: 0 | N30: 578 | O30: 117.7452055 | Q30: 2023 | R30: 1956 | S30: 826 | T30: 0 | U30: 0 | V30: 0 | W30: 0 | X30: 0 | Y30: 0 | Z30: 0 | AA30: 0 | AB30: 0 | AC30: 0 | AD30: 577 | AE30: 117.5780822
A31: 2022 | B31: 1957 | C31: 772 | D31: 0 | E31: 0 | F31: 0 | G31: 0 | H31: 0 | I31: 0 | J31: 0 | K31: 0 | L31: 0 | M31: -50.82795699 | N31: 579 | O31: 108.8392694 | Q31: 2023 | R31: 1957 | S31: 771 | T31: 0 | U31: 0 | V31: 0 | W31: 0 | X31: 0 | Y31: 263.5 | Z31: 0 | AA31: 0 | AB31: 0 | AC31: -29.80645161 | AD31: 617 | AE31: 135.3205479
A32: 2022 | B32: 1958 | C32: 1479 | D32: 515 | E32: 1137 | F32: 0 | G32: 0 | H32: 0 | I32: 504.5 | J32: 0 | K32: 0 | L32: -89 | M32: -59.76344086 | N32: 453 | O32: 330.6323059 | Q32: 2023 | R32: 1958 | S32: 1478 | T32: 513 | U32: 1103 | V32: 0 | W32: 0 | X32: 0 | Y32: 541.5 | Z32: 0 | AA32: 0 | AB32: -77 | AC32: -27.70967742 | AD32: 148 | AE32: 309.2092466
A33: 2022 | B33: 1959 | C33: 1266 | D33: 0 | E33: 0 | F33: 0 | G33: 0 | H33: 0 | I33: 0 | J33: 0 | K33: 0 | L33: 0 | M33: 0 | N33: 0 | O33: 107.5232877 | Q33: 2023 | R33: 1959 | S33: 1220 | T33: 0 | U33: 0 | V33: 0 | W33: 0 | X33: 0 | Y33: 0 | Z33: 0 | AA33: 0 | AB33: 0 | AC33: 0 | AD33: 0 | AE33: 103.6164384
A34: 2022 | B34: 1960 | C34: 0 | D34: 0 | E34: 0 | F34: 0 | G34: 0 | H34: 0 | I34: 0 | J34: 201 | K34: 0 | L34: -455 | M34: 0 | N34: 576 | O34: 25.76986301 | Q34: 2023 | R34: 1960 | S34: 0 | T34: 0 | U34: 0 | V34: 0 | W34: 0 | X34: 0 | Y34: 0 | Z34: 182 | AA34: 0 | AB34: -446 | AC34: 0 | AD34: 575 | AE34: 24.83835616
A35: =Prices_1 -> 2022 | B35: 1961 | C35: 1056 | D35: 0 | E35: 339 | F35: 0 | G35: 0 | H35: 0 | I35: 419 | J35: 0 | K35: 0 | L35: -299 | M35: -68.5483871 | N35: 527 | O35: 165.0164384 | Q35: =Prices_2 -> 2023 | R35: 1961 | S35: 1055 | T35: 0 | U35: 337 | V35: 0 | W35: 0 | X35: 0 | Y35: 429 | Z35: 0 | AA35: 0 | AB35: -267 | AC35: 0 | AD35: 617 | AE35: 181.5205479
A36: 2022 | B36: 1962 | C36: 1728 | D36: 381 | E36: 453 | F36: 0 | G36: 0 | H36: 1116 | I36: 0 | J36: 0 | K36: 0 | L36: -120 | M36: -32.74193548 | N36: 496 | O36: 339.044863 | Q36: 2023 | R36: 1962 | S36: 1727 | T36: 380 | U36: 451 | V36: 0 | W36: 0 | X36: 1160 | Y36: 0 | Z36: 0 | AA36: 0 | AB36: -118 | AC36: -32.41935484 | AD36: 496 | AE36: 342.6369863
A37: 2022 | B37: 1963 | C37: 845 | D37: 0 | E37: 0 | F37: 0 | G37: 0 | H37: 710 | I37: 1312 | J37: 742 | K37: 0 | L37: 0 | M37: 0 | N37: 53 | O37: 307.1984018 | Q37: 2023 | R37: 1963 | S37: 844 | T37: 0 | U37: 0 | V37: 0 | W37: 0 | X37: 764 | Y37: 1338.5 | Z37: 737 | AA37: 0 | AB37: 0 | AC37: 0 | AD37: 52 | AE37: 313.3648402
A38: 2022 | B38: 1964 | C38: 1162 | D38: 634 | E38: 385 | F38: 949 | G38: 0 | H38: 1108 | I38: 771.5 | J38: 0 | K38: 0 | L38: 0 | M38: 0 | N38: 0 | O38: 421.559589 | Q38: 2023 | R38: 1964 | S38: 1161 | T38: 633 | U38: 383 | V38: 947 | W38: 0 | X38: 1117 | Y38: 768 | Z38: 0 | AA38: 0 | AB38: 0 | AC38: 0 | AD38: 0 | AE38: 421.5283105
A39: 2022 | B39: 1965 | C39: 42 | D39: 0 | E39: 0 | F39: 0 | G39: 0 | H39: 0 | I39: 0 | J39: 0 | K39: 0 | L39: 0 | M39: 0 | N39: 412 | O39: 37.43013699 | Q39: 2023 | R39: 1965 | S39: 41 | T39: 0 | U39: 0 | V39: 0 | W39: 0 | X39: 0 | Y39: 0 | Z39: 0 | AA39: 0 | AB39: 0 | AC39: 0 | AD39: 412 | AE39: 37.34520548
A40: 2022 | B40: 1966 | C40: 744 | D40: 419 | E40: 69 | F40: 0 | G40: 0 | H40: 587 | I40: 294.5 | J40: 1274 | K40: 0 | L40: 0 | M40: 0 | N40: 583 | O40: 333.6493151 | Q40: 2023 | R40: 1966 | S40: 742 | T40: 417 | U40: 67 | V40: 0 | W40: 0 | X40: 618 | Y40: 305.5 | Z40: 1247 | AA40: 0 | AB40: 0 | AC40: 0 | AD40: 581 | AE40: 334.2208904
A41: 2022 | B41: 1967 | C41: 1378 | D41: 629 | E41: 0 | F41: 0 | G41: 0 | H41: 0 | I41: 620.5 | J41: 314 | K41: 0 | L41: 0 | M41: 0 | N41: 280 | O41: 269.488242 | Q41: 2023 | R41: 1967 | S41: 1377 | T41: 628 | U41: 0 | V41: 0 | W41: 0 | X41: 0 | Y41: 625.5 | Z41: 274 | AA41: 0 | AB41: 0 | AC41: 0 | AD41: 279 | AE41: 266.2525114
A42: 2022 | B42: 1968 | C42: 917 | D42: 0 | E42: 0 | F42: 0 | G42: 0 | H42: 0 | I42: 1886 | J42: 962 | K42: 0 | L42: 0 | M42: 0 | N42: 0 | O42: 314.6 | Q42: 2023 | R42: 1968 | S42: 915 | T42: 0 | U42: 0 | V42: 0 | W42: 0 | X42: 0 | Y42: 1900 | Z42: 944 | AA42: 0 | AB42: 0 | AC42: 0 | AD42: 0 | AE42: 314.0520548
A43: 2022 | B43: 1969 | C43: 0 | D43: 0 | E43: 0 | F43: 0 | G43: 0 | H43: 0 | I43: 0 | J43: 0 | K43: 0 | L43: -313 | M43: 0 | N43: 565 | O43: 19.85479452 | Q43: 2023 | R43: 1969 | S43: 0 | T43: 0 | U43: 0 | V43: 0 | W43: 0 | X43: 0 | Y43: 0 | Z43: 0 | AA43: 0 | AB43: 0 | AC43: 0 | AD43: 564 | AE43: 46.35616438
A44: 2022 | B44: 1970 | C44: 1237 | D44: 0 | E44: 988 | F44: 0 | G44: 0 | H44: 214 | I44: 1963 | J44: 0 | K44: 0 | L44: 10 | M44: -51.95698925 | N44: 512 | O44: 406.9847032 | Q44: 2023 | R44: 1970 | S44: 1236 | T44: 0 | U44: 986 | V44: 0 | W44: 0 | X44: 253 | Y44: 1986 | Z44: 0 | AA44: 0 | AB44: 7 | AC44: -51.80645161 | AD44: 510 | AE44: 411.5218037
A45: 2022 | B45: 1971 | C45: 1437 | D45: 629 | E45: 701 | F45: 0 | G45: 0 | H45: 0 | I45: 0 | J45: 0 | K45: 0 | L45: 0 | M45: 0 | N45: 208 | O45: 250.4498858 | Q45: 2023 | R45: 1971 | S45: 1435 | T45: 627 | U45: 699 | V45: 0 | W45: 0 | X45: 0 | Y45: 0 | Z45: 0 | AA45: 0 | AB45: 0 | AC45: 0 | AD45: 206 | AE45: 249.7811644
A46: 2022 | B46: 1972 | C46: 769 | D46: 0 | E46: 0 | F46: 0 | G46: 0 | H46: 0 | I46: 0 | J46: 0 | K46: 0 | L46: 0 | M46: 0 | N46: 0 | O46: 65.31232877 | Q46: 2023 | R46: 1972 | S46: 767 | T46: 0 | U46: 0 | V46: 0 | W46: 0 | X46: 0 | Y46: 0 | Z46: 0 | AA46: 0 | AB46: 0 | AC46: 0 | AD46: 0 | AE46: 65.14246575
A47: 2022 | B47: 1973 | C47: 387 | D47: 0 | E47: 234 | F47: 0 | G47: 0 | H47: 973 | I47: 2175.5 | J47: 1906 | K47: 1146 | L47: 658 | M47: 220.2903226 | N47: -142 | O47: 633.0724886 | Q47: 2023 | R47: 1973 | S47: 385 | T47: 0 | U47: 232 | V47: 0 | W47: 0 | X47: 994 | Y47: 2167 | Z47: 1905 | AA47: 1105 | AB47: 683 | AC47: 198.8064516 | AD47: -226 | AE47: 623.7550228
A48: 2022 | B48: 1974 | C48: 1085 | D48: 281 | E48: 0 | F48: 0 | G48: 0 | H48: 0 | I48: 0 | J48: 0 | K48: 0 | L48: 0 | M48: 0 | N48: 0 | O48: 115.278653 | Q48: 2023 | R48: 1974 | S48: 1158 | T48: 277 | U48: 0 | V48: 0 | W48: 0 | X48: 0 | Y48: 0 | Z48: 0 | AA48: 0 | AB48: 0 | AC48: 0 | AD48: 0 | AE48: 121.1494292
A49: 2022 | B49: 1975 | C49: 1240 | D49: 522 | E49: 993 | F49: 0 | G49: 0 | H49: 0 | I49: 913.5 | J49: 160 | K49: 0 | L49: 0 | M49: 0 | N49: 0 | O49: 321.2869863 | Q49: 2023 | R49: 1975 | S49: 1239 | T49: 520 | U49: 991 | V49: 0 | W49: 0 | X49: 0 | Y49: 985 | Z49: 249 | AA49: 0 | AB49: 0 | AC49: 0 | AD49: 0 | AE49: 334.3031963
A50: 2022 | B50: 1976 | C50: 0 | D50: 0 | E50: 0 | F50: 0 | G50: 0 | H50: 0 | I50: 0 | J50: 0 | K50: 0 | L50: 0 | M50: 0 | N50: 0 | O50: 0 | Q50: 2023 | R50: 1976 | S50: 0 | T50: 0 | U50: 0 | V50: 0 | W50: 0 | X50: 0 | Y50: 0 | Z50: 0 | AA50: 0 | AB50: 0 | AC50: 0 | AD50: 0 | AE50: 0
A51: 2022 | B51: 1977 | C51: 373 | D51: 541 | E51: 1314 | F51: 1582 | G51: 421 | H51: 2174 | I51: 2683.5 | J51: 2601 | K51: 2242 | L51: 1043 | M51: -128.2580645 | N51: 0 | O51: 1242.290297 | Q51: 2023 | R51: 1977 | S51: 371 | T51: 539 | U51: 1313 | V51: 1580 | W51: 421 | X51: 2189 | Y51: 2690.5 | Z51: 2603 | AA51: 2242 | AB51: 1042 | AC51: -142.8064516 | AD51: -13 | AE51: 1241.329452
A52: 2022 | B52: 1978 | C52: 926 | D52: 215 | E52: 180 | F52: 0 | G52: 436 | H52: 484 | I52: 417.5 | J52: 0 | K52: 0 | L52: 0 | M52: -15 | N52: 0 | O52: 219.1692922 | Q52: 2023 | R52: 1978 | S52: 948 | T52: 162 | U52: 194 | V52: 0 | W52: 443 | X52: 504 | Y52: 406.5 | Z52: 0 | AA52: 0 | AB52: 0 | AC52: -56.12903226 | AD52: 0 | AE52: 215.7006849
A53: 2022 | B53: 1979 | C53: 135 | D53: 684 | E53: 1564 | F53: 869 | G53: 411 | H53: 51 | I53: 1846.5 | J53: 0 | K53: 632 | L53: 668 | M53: 189.7096774 | N53: -86 | O53: 579.7462329 | Q53: 2023 | R53: 1979 | S53: 349 | T53: 67 | U53: 1394 | V53: 49 | W53: 582 | X53: 0 | Y53: 1128.5 | Z53: 0 | AA53: 220 | AB53: 757 | AC53: 130.6129032 | AD53: -4 | AE53: 388.251484
A54: 2022 | B54: 1980 | C54: 899 | D54: 1098 | E54: 2018 | F54: 1201 | G54: 979 | H54: 1334 | I54: 727 | J54: 0 | K54: 0 | L54: -72 | M54: -26.02150538 | N54: 508 | O54: 721.5493151 | Q54: 2023 | R54: 1980 | S54: 952 | T54: 1109 | U54: 2061 | V54: 1198 | W54: 976 | X54: 1377 | Y54: 752 | Z54: 0 | AA54: 0 | AB54: -70 | AC54: -63.77419355 | AD54: 558 | AE54: 736.8981735
A55: 2022 | B55: 1981 | C55: 1197 | D55: 34 | E55: 0 | F55: 0 | G55: 0 | H55: 467 | I55: 1717.5 | J55: 103 | K55: 0 | L55: 0 | M55: 0 | N55: 92 | O55: 301.5450913 | Q55: 2023 | R55: 1981 | S55: 1195 | T55: 32 | U55: 0 | V55: 0 | W55: 0 | X55: 545 | Y55: 1746.5 | Z55: 146 | AA55: 0 | AB55: 0 | AC55: 0 | AD55: 91 | AE55: 313.7797945
A56: 2022 | B56: 1982 | C56: 1175 | D56: 0 | E56: 8 | F56: 0 | G56: 0 | H56: 0 | I56: 0 | J56: 0 | K56: 0 | L56: 0 | M56: 0 | N56: 0 | O56: 100.4739726 | Q56: 2023 | R56: 1982 | S56: 1174 | T56: 0 | U56: 6 | V56: 0 | W56: 0 | X56: 0 | Y56: 53.5 | Z56: 0 | AA56: 0 | AB56: 0 | AC56: 0 | AD56: 0 | AE56: 104.6164384
A57: 2022 | B57: 1983 | C57: 0 | D57: 0 | E57: 0 | F57: 0 | G57: 0 | H57: 0 | I57: 140 | J57: 0 | K57: 0 | L57: 0 | M57: 0 | N57: 35 | O57: 14.38356164 | Q57: 2023 | R57: 1983 | S57: 0 | T57: 0 | U57: 0 | V57: 0 | W57: 0 | X57: 0 | Y57: 174 | Z57: 0 | AA57: 0 | AB57: 0 | AC57: 0 | AD57: 34 | AE57: 17.09589041
A58: 2022 | B58: 1984 | C58: 831 | D58: 0 | E58: 0 | F58: 0 | G58: 0 | H58: 0 | I58: 0 | J58: 0 | K58: 0 | L58: 0 | M58: 0 | N58: 0 | O58: 70.57808219 | Q58: 2023 | R58: 1984 | S58: 829 | T58: 0 | U58: 0 | V58: 0 | W58: 0 | X58: 0 | Y58: 0 | Z58: 0 | AA58: 0 | AB58: 0 | AC58: 0 | AD58: 0 | AE58: 70.40821918
A59: 2022 | B59: 1985 | C59: 788 | D59: 0 | E59: 148 | F59: 0 | G59: 0 | H59: 589 | I59: 186.5 | J59: 90 | K59: 476 | L59: 453 | M59: 401.6129032 | N59: -35 | O59: 261.2560502 | Q59: 2023 | R59: 1985 | S59: 786 | T59: 0 | U59: 146 | V59: 0 | W59: 0 | X59: 610 | Y59: 184.5 | Z59: 0 | AA59: 424 | AB59: 485 | AC59: 401.1290323 | AD59: -43 | AE59: 252.6344749
A60: 2022 | B60: 1986 | C60: 325 | D60: 0 | E60: 0 | F60: 0 | G60: 0 | H60: 0 | I60: 546.5 | J60: 38 | K60: 0 | L60: 0 | M60: -62.79569892 | N60: 755 | O60: 132.4694064 | Q60: 2023 | R60: 1986 | S60: 310 | T60: 0 | U60: 0 | V60: 0 | W60: 0 | X60: 0 | Y60: 586.5 | Z60: 18 | AA60: 0 | AB60: 0 | AC60: -58.35483871 | AD60: 743 | AE60: 132.1753425
A61: 2022 | B61: 1987 | C61: 1567 | D61: 55 | E61: 0 | F61: 614 | G61: 915 | H61: -42 | I61: 600.5 | J61: 0 | K61: 631 | L61: 1280 | M61: 358.5483871 | N61: 51 | O61: 500.9672374 | Q61: 2023 | R61: 1987 | S61: 1566 | T61: 53 | U61: 0 | V61: 612 | W61: 942 | X61: -31 | Y61: 645.5 | Z61: 0 | AA61: 637 | AB61: 1299 | AC61: 358.0645161 | AD61: 50 | AE61: 509.2342466
A62: 2022 | B62: 1988 | C62: 1338 | D62: 956 | E62: 1993 | F62: 3666 | G62: 1422 | H62: 1723 | I62: 2364.5 | J62: 2203 | K62: 1506 | L62: -194 | M62: 142.9677419 | N62: -121 | O62: 1419.123402 | Q62: 2023 | R62: 1988 | S62: 1337 | T62: 955 | U62: 1968 | V62: 3491 | W62: 1507 | X62: 1762 | Y62: 2398.5 | Z62: 2204 | AA62: 1518 | AB62: -173 | AC62: 121.6129032 | AD62: -120 | AE62: 1415.716096
A63: 2022 | B63: 1989 | C63: 1117 | D63: -31 | E63: 1044 | F63: 1915 | G63: 2073 | H63: 0 | I63: 0 | J63: 0 | K63: 302 | L63: -138 | M63: 214.3548387 | N63: 0 | O63: 533.9608447 | Q63: 2023 | R63: 1989 | S63: 1165 | T63: -83 | U63: 1038 | V63: 1791 | W63: 2072 | X63: 0 | Y63: 0 | Z63: 0 | AA63: 270 | AB63: -127 | AC63: 215.3225806 | AD63: 0 | AE63: 521.0261416
A64: 2022 | B64: 1990 | C64: 1119 | D64: 697 | E64: 0 | F64: 0 | G64: 0 | H64: 0 | I64: 492.5 | J64: 731 | K64: 0 | L64: -86 | M64: 0 | N64: 731 | O64: 307.7480594 | Q64: 2023 | R64: 1990 | S64: 1139 | T64: 695 | U64: 0 | V64: 0 | W64: 0 | X64: 0 | Y64: 522 | Z64: 757 | AA64: 0 | AB64: -87 | AC64: 0 | AD64: 730 | AE64: 313.7478311
A65: 2022 | B65: 1991 | C65: 1579 | D65: 0 | E65: 0 | F65: 0 | G65: 0 | H65: 0 | I65: 231 | J65: 63 | K65: 0 | L65: 0 | M65: 0 | N65: 897 | O65: 232.169863 | Q65: 2023 | R65: 1991 | S65: 1578 | T65: 0 | U65: 0 | V65: 0 | W65: 0 | X65: 0 | Y65: 293.5 | Z65: 82 | AA65: 0 | AB65: 0 | AC65: 0 | AD65: 896 | AE65: 238.7534247
A66: 2022 | B66: 1992 | C66: 1161 | D66: 373 | E66: 2030 | F66: 989 | G66: 850 | H66: 3 | I66: 1248 | J66: 874 | K66: 1491 | L66: 1095 | M66: 321.3225806 | N66: -114 | O66: 861.4477169 | Q66: 2023 | R66: 1992 | S66: 1160 | T66: 370 | U66: 1943 | V66: 987 | W66: 848 | X66: 24 | Y66: 1253 | Z66: 851 | AA66: 1489 | AB66: 1094 | AC66: 306.8709677 | AD66: -217 | AE66: 843.6997717
A67: =Prices_1 -> 2022 | B67: 1993 | C67: 1193 | D67: 347 | E67: 1696 | F67: 2631 | G67: 2539 | H67: 714 | I67: 1772.5 | J67: 0 | K67: 0 | L67: 0 | M67: -77.90322581 | N67: 0 | O67: 891.7827626 | Q67: =Prices_2 -> 2023 | R67: 1993 | S67: 1253 | T67: 402 | U67: 1676 | V67: 2594 | W67: 2540 | X67: 764 | Y67: 1828.5 | Z67: 0 | AA67: 0 | AB67: 0 | AC67: -76.93548387 | AD67: 0 | AE67: 905.566895
A68: 2022 | B68: 1994 | C68: 1190 | D68: 668 | E68: 1401 | F68: 3316 | G68: 788 | H68: 1493 | I68: 1889 | J68: 1110 | K68: 1804 | L68: 304 | M68: 175.6451613 | N68: 0 | O68: =IFERROR((SUMPRODUCT(C68:N68,C$1:N$1)/O$1),"") -> 1182.297603 | Q68: 2023 | R68: 1994 | S68: 1249 | T68: 672 | U68: 1399 | V68: 3201 | W68: 904 | X68: 1500 | Y68: 1926 | Z68: 1094 | AA68: 1793 | AB68: 304 | AC68: 169.3548387 | AD68: -19 | AE68: =IFERROR((SUMPRODUCT(S68:AD68,S$1:AD$1)/AE$1),"") -> 1185.875342
A69: 2022 | B69: 1995 | C69: 1209 | D69: 1063 | E69: 1113 | F69: 1546 | G69: 0 | H69: 0 | I69: 2185.5 | J69: 229 | K69: 0 | L69: 0 | M69: 0 | N69: 219 | O69: 633.0857306 | Q69: 2023 | R69: 1995 | S69: 1208 | T69: 1074 | U69: 1132 | V69: 1544 | W69: 0 | X69: 0 | Y69: 2185 | Z69: 219 | AA69: 0 | AB69: 0 | AC69: 0 | AD69: 217 | AE69: 634.2952055
A70: 2022 | B70: 1996 | C70: 81 | D70: 0 | E70: 0 | F70: 0 | G70: 0 | H70: 0 | I70: 0 | J70: 0 | K70: 0 | L70: 0 | M70: 0 | N70: 493 | O70: 47.4 | Q70: 2023 | R70: 1996 | S70: 79 | T70: 0 | U70: 0 | V70: 0 | W70: 0 | X70: 0 | Y70: 0 | Z70: 0 | AA70: 0 | AB70: 0 | AC70: 0 | AD70: 491 | AE70: 47.06575342
A71: 2022 | B71: 1997 | C71: 1126 | D71: 0 | E71: 0 | F71: 0 | G71: 0 | H71: 0 | I71: 0 | J71: 0 | K71: 0 | L71: 0 | M71: 0 | N71: 0 | O71: 95.63287671 | Q71: 2023 | R71: 1997 | S71: 1124 | T71: 0 | U71: 0 | V71: 0 | W71: 0 | X71: 0 | Y71: 0 | Z71: 0 | AA71: 0 | AB71: 0 | AC71: 0 | AD71: 0 | AE71: 95.4630137
A72: 2022 | B72: 1998 | C72: 0 | D72: 0 | E72: 165 | F72: 0 | G72: 0 | H72: 0 | I72: 1450.5 | J72: 0 | K72: 0 | L72: 0 | M72: 0 | N72: 496 | O72: 174 | Q72: 2023 | R72: 1998 | S72: 0 | T72: 0 | U72: 163 | V72: 0 | W72: 0 | X72: 0 | Y72: 1501 | Z72: 0 | AA72: 0 | AB72: 0 | AC72: 0 | AD72: 494 | AE72: 177.8164384
A73: 2022 | B73: 1999 | C73: 1331 | D73: 1015 | E73: 0 | F73: 0 | G73: 0 | H73: 0 | I73: 0 | J73: 181 | K73: 0 | L73: 0 | M73: 0 | N73: 509 | O73: 253.7925799 | Q73: 2023 | R73: 1999 | S73: 1329 | T73: 1013 | U73: 0 | V73: 0 | W73: 0 | X73: 0 | Y73: 0 | Z73: 124 | AA73: 0 | AB73: 0 | AC73: 0 | AD73: 508 | AE73: 248.5348174
A74: 2022 | B74: 2000 | C74: 1315 | D74: 0 | E74: 0 | F74: 0 | G74: 0 | H74: 0 | I74: 0 | J74: 55 | K74: 889 | L74: -47 | M74: -97.89247312 | N74: 965 | O74: 256.43379 | Q74: 2023 | R74: 2000 | S74: 1314 | T74: 0 | U74: 0 | V74: 0 | W74: 0 | X74: 0 | Y74: 0 | Z74: 41 | AA74: 884 | AB74: -47 | AC74: -104.2580645 | AD74: 963 | AE74: 254.0438356
A75: 2022 | B75: 2001 | C75: 1416 | D75: 619 | E75: 1465 | F75: 1642 | G75: 671 | H75: 1659 | I75: 2845 | J75: 3037 | K75: 2315 | L75: 867 | M75: -119.0645161 | N75: 0 | O75: 1372.848402 | Q75: 2023 | R75: 2001 | S75: 1414 | T75: 618 | U75: 1464 | V75: 1640 | W75: 669 | X75: 1679 | Y75: 2847 | Z75: 3035 | AA75: 2310 | AB75: 865 | AC75: -131 | AD75: 0 | AE75: 1372.284361
A76: 2022 | B76: 2002 | C76: 1149 | D76: 407 | E76: 900 | F76: 1624 | G76: 1591 | H76: 1261 | I76: 0 | J76: 178.6666667 | K76: 0 | L76: 0 | M76: -92.69892473 | N76: 700 | O76: 639.2915525 | Q76: 2023 | R76: 2002 | S76: 1200 | T76: 456 | U76: 899 | V76: 1527 | W76: 1555 | X76: 1296 | Y76: 14.5 | Z76: 175 | AA76: 0 | AB76: 0 | AC76: -92.51612903 | AD76: 699 | AE76: 640.3534247
A77: 2022 | B77: 2003 | C77: 1340 | D77: 177 | E77: 1534 | F77: 1760 | G77: 524 | H77: 0 | I77: 193.5 | J77: 1599 | K77: 0 | L77: 489 | M77: 412.2580645 | N77: 0 | O77: 676.5928082 | Q77: 2023 | R77: 2003 | S77: 1339 | T77: 175 | U77: 1500 | V77: 1661 | W77: 636 | X77: 0 | Y77: 205 | Z77: 1564 | AA77: 0 | AB77: 488 | AC77: 411.2903226 | AD77: 0 | AE77: 671.4446347
A78: 2022 | B78: 2004 | C78: 1209 | D78: 121 | E78: 231 | F78: 1433 | G78: 0 | H78: 1114 | I78: 1608 | J78: 1821 | K78: 295 | L78: 212 | M78: 446.1290323 | N78: 598 | O78: 764.5715753 | Q78: 2023 | R78: 2004 | S78: 1280 | T78: 226 | U78: 180 | V78: 1432 | W78: 0 | X78: 1159 | Y78: 1634 | Z78: 1811 | AA78: 344 | AB78: 211 | AC78: 439.3548387 | AD78: 597 | AE78: 783.2167808
A79: 2022 | B79: 2005 | C79: 512 | D79: 0 | E79: 0 | F79: 0 | G79: 0 | H79: 123 | I79: 1992 | J79: 1480 | K79: 195 | L79: 0 | M79: 0 | N79: 730 | O79: 419.3695205 | Q79: 2023 | R79: 2005 | S79: 510 | T79: 0 | U79: 0 | V79: 0 | W79: 0 | X79: 160 | Y79: 2001.5 | Z79: 1472 | AA79: 177 | AB79: 0 | AC79: 0 | AD79: 670 | AE79: 416.0283105
A80: 2022 | B80: 2006 | C80: 1796 | D80: 0 | E80: 191 | F80: 0 | G80: 0 | H80: 0 | I80: 0 | J80: 0 | K80: 0 | L80: -147 | M80: -14.50537634 | N80: 1024 | O80: 239.2063927 | Q80: 2023 | R80: 2006 | S80: 1795 | T80: 0 | U80: 189 | V80: 0 | W80: 0 | X80: 0 | Y80: 0 | Z80: 0 | AA80: 0 | AB80: -149 | AC80: -27.16129032 | AD80: 962 | AE80: 232.6109589
A81: 2022 | B81: 2007 | C81: 1662 | D81: -259 | E81: 153 | F81: 0 | G81: 0 | H81: 0 | I81: 85.5 | J81: 229 | K81: 0 | L81: -217 | M81: 84.17204301 | N81: 1240 | O81: 249.9466895 | Q81: 2023 | R81: 2007 | S81: 1661 | T81: -196 | U81: 151 | V81: 0 | W81: 0 | X81: 0 | Y81: 85 | Z81: 157 | AA81: 0 | AB81: -217 | AC81: 71.58064516 | AD81: 1174 | AE81: 242.2269406
A82: 2022 | B82: 2008 | C82: 1568 | D82: 0 | E82: 1247 | F82: 0 | G82: 293 | H82: 124 | I82: 1675.5 | J82: 0 | K82: 0 | L82: 0 | M82: -102.4193548 | N82: 567 | O82: 447.6926941 | Q82: 2023 | R82: 2008 | S82: 1567 | T82: 0 | U82: 1141 | V82: 0 | W82: 291 | X82: 146 | Y82: 1685 | Z82: 0 | AA82: 0 | AB82: 0 | AC82: -103.0645161 | AD82: 565 | AE82: 440.8792237
B83: Average | C83: =AVERAGE(C3:C82) -> 935.6125 | D83: =AVERAGE(D3:D82) -> 292.0625 | E83: 631.3875 | F83: 664.625 | G83: 386.6375 | H83: 468.6125 | I83: 859.5479167 | J83: 541.1125 | K83: 293.25 | L83: 119.075 | M83: 36.71989247 | N83: 275.5875 | O83: =IFERROR((SUMPRODUCT(C83:N83,C$1:N$1)/O$1),"") -> 459.5710217 | R83: Average | S83: =AVERAGE(S3:S82) -> 948.2 | T83: =AVERAGE(T3:T82) -> 289.15 | U83: =AVERAGE(U3:U82) -> 624.3625 | V83: =AVERAGE(V3:V82) -> 640.3 | W83: =AVERAGE(W3:W82) -> 391.2375 | X83: =AVERAGE(X3:X82) -> 480.25 | Y83: =AVERAGE(Y3:Y82) -> 868.5125 | Z83: =AVERAGE(Z3:Z82) -> 536.7125 | AA83: =AVERAGE(AA3:AA82) -> 284.7875 | AB83: =AVERAGE(AB3:AB82) -> 127.5625 | AC83: =AVERAGE(AC3:AC82) -> 33.11169355 | AD83: =AVERAGE(AD3:AD82) -> 267.075 | AE83: =IFERROR((SUMPRODUCT(S83:AD83,S$1:AD$1)/AE$1),"") -> 458.4600342
B95: Average | C95: =IFERROR(AVERAGE(C3:C82),"") -> 935.6125 | D95: =IFERROR(AVERAGE(D3:D82),"") -> 292.0625 | E95: 631.3875 | F95: 664.625 | G95: 386.6375 | H95: 468.6125 | I95: 859.5479167 | J95: 541.1125 | K95: 293.25 | L95: 119.075 | M95: 36.71989247 | N95: 275.5875 | O95: =IFERROR(AVERAGE(O3:O82),"") -> 459.5710217 | S95: =IFERROR(AVERAGE(S3:S82),"") -> 948.2 | T95: =IFERROR(AVERAGE(T3:T82),"") -> 289.15 | U95: 624.3625 | V95: 640.3 | W95: 391.2375 | X95: 480.25 | Y95: 868.5125 | Z95: 536.7125 | AA95: 284.7875 | AB95: 127.5625 | AC95: 33.11169355 | AD95: 267.075 | AE95: 458.4600342

Sheet ExpenseByItr
A1: =ReplacementPurches!A1 -> Hours | C1: =ReplacementPurches!C1 -> 744 | D1: =ReplacementPurches!D1 -> 721 | E1: =ReplacementPurches!E1 -> 744 | F1: =ReplacementPurches!F1 -> 744 | G1: =ReplacementPurches!G1 -> 672 | H1: =ReplacementPurches!H1 -> 743 | I1: =ReplacementPurches!I1 -> 720 | J1: =ReplacementPurches!J1 -> 744 | K1: =ReplacementPurches!K1 -> 720 | L1: =ReplacementPurches!L1 -> 744 | M1: =ReplacementPurches!M1 -> 744 | N1: =ReplacementPurches!N1 -> 720 | O1: =ReplacementPurches!O1 -> 8760 | Q1: =ReplacementPurches!Q1 -> Hours | S1: =ReplacementPurches!S1 -> 744 | T1: =ReplacementPurches!T1 -> 721 | U1: =ReplacementPurches!U1 -> 744 | V1: =ReplacementPurches!V1 -> 744 | W1: =ReplacementPurches!W1 -> 672 | X1: =ReplacementPurches!X1 -> 743 | Y1: =ReplacementPurches!Y1 -> 720 | Z1: =ReplacementPurches!Z1 -> 744 | AA1: =ReplacementPurches!AA1 -> 720 | AB1: =ReplacementPurches!AB1 -> 744 | AC1: =ReplacementPurches!AC1 -> 744 | AD1: =ReplacementPurches!AD1 -> 720 | AE1: =ReplacementPurches!AE1 -> 8760
A2: =ReplacementPurches!A2 -> FY | B2: =ReplacementPurches!B2 -> WY | C2: =ReplacementPurches!C2 -> 2021-10-01 | D2: =ReplacementPurches!D2 -> 2021-11-01 | E2: =ReplacementPurches!E2 -> 2021-12-01 | F2: =ReplacementPurches!F2 -> 2022-01-01 | G2: =ReplacementPurches!G2 -> 2022-02-01 | H2: =ReplacementPurches!H2 -> 2022-03-01 | I2: =ReplacementPurches!I2 -> 2022-04-01 | J2: =ReplacementPurches!J2 -> 2022-05-01 | K2: =ReplacementPurches!K2 -> 2022-06-01 | L2: =ReplacementPurches!L2 -> 2022-07-01 | M2: =ReplacementPurches!M2 -> 2022-08-01 | N2: =ReplacementPurches!N2 -> 2022-09-01 | O2: =ReplacementPurches!O2 -> Wtd Avg | Q2: =ReplacementPurches!Q2 -> FY | R2: =ReplacementPurches!R2 -> WY | S2: =ReplacementPurches!S2 -> 2022-10-01 | T2: =ReplacementPurches!T2 -> 2022-11-01 | U2: =ReplacementPurches!U2 -> 2022-12-01 | V2: =ReplacementPurches!V2 -> 2023-01-01 | W2: =ReplacementPurches!W2 -> 2023-02-01 | X2: =ReplacementPurches!X2 -> 2023-03-01 | Y2: =ReplacementPurches!Y2 -> 2023-04-01 | Z2: =ReplacementPurches!Z2 -> 2023-05-01 | AA2: =ReplacementPurches!AA2 -> 2023-06-01 | AB2: =ReplacementPurches!AB2 -> 2023-07-01 | AC2: =ReplacementPurches!AC2 -> 2023-08-01 | AD2: =ReplacementPurches!AD2 -> 2023-09-01 | AE2: =ReplacementPurches!AE2 -> Wtd Avg
A3: =PurchByItr!A3 -> 2022 | B3: =PurchByItr!B3 -> 1950 | C3: =IF(PricesByItr!C3<0,0,(PurchByItr!C3*C$1*PricesByItr!C3)/1000) -> 30561.90498 | D3: =IF(PricesByItr!D3<0,0,(PurchByItr!D3*D$1*PricesByItr!D3)/1000) -> 19794.71021 | E3: =IF(PricesByItr!E3<0,0,(PurchByItr!E3*E$1*PricesByItr!E3)/1000) -> 13425.88079 | F3: =IF(PricesByItr!F3<0,0,(PurchByItr!F3*F$1*PricesByItr!F3)/1000) -> 0 | G3: =IF(PricesByItr!G3<0,0,(PurchByItr!G3*G$1*PricesByItr!G3)/1000) -> 0 | H3: =IF(PricesByItr!H3<0,0,(PurchByItr!H3*H$1*PricesByItr!H3)/1000) -> 0 | I3: =IF(PricesByItr!I3<0,0,(PurchByItr!I3*I$1*PricesByItr!I3)/1000) -> 6202.912576 | J3: =IF(PricesByItr!J3<0,0,(PurchByItr!J3*J$1*PricesByItr!J3)/1000) -> 0 | K3: =IF(PricesByItr!K3<0,0,(PurchByItr!K3*K$1*PricesByItr!K3)/1000) -> 0 | L3: =IF(PricesByItr!L3<0,0,(PurchByItr!L3*L$1*PricesByItr!L3)/1000) -> 0 | M3: =IF(PricesByItr!M3<0,0,(PurchByItr!M3*M$1*PricesByItr!M3)/1000) -> 0 | N3: =IF(PricesByItr!N3<0,0,(PurchByItr!N3*N$1*PricesByItr!N3)/1000) -> 10646.84166 | O3: =SUM(C3:N3) -> 80632.25022 | Q3: =PurchByItr!Q3 -> 2023 | R3: =PurchByItr!R3 -> 1951 | S3: =IF(PricesByItr!S3<0,0,(PurchByItr!S3*S$1*PricesByItr!S3)/1000) -> 69.65076572 | T3: =IF(PricesByItr!T3<0,0,(PurchByItr!T3*T$1*PricesByItr!T3)/1000) -> 0 | U3: =IF(PricesByItr!U3<0,0,(PurchByItr!U3*U$1*PricesByItr!U3)/1000) -> 0 | V3: =IF(PricesByItr!V3<0,0,(PurchByItr!V3*V$1*PricesByItr!V3)/1000) -> 0 | W3: =IF(PricesByItr!W3<0,0,(PurchByItr!W3*W$1*PricesByItr!W3)/1000) -> 0 | X3: =IF(PricesByItr!X3<0,0,(PurchByItr!X3*X$1*PricesByItr!X3)/1000) -> 0 | Y3: =IF(PricesByItr!Y3<0,0,(PurchByItr!Y3*Y$1*PricesByItr!Y3)/1000) -> 0 | Z3: =IF(PricesByItr!Z3<0,0,(PurchByItr!Z3*Z$1*PricesByItr!Z3)/1000) -> 0 | AA3: =IF(PricesByItr!AA3<0,0,(PurchByItr!AA3*AA$1*PricesByItr!AA3)/1000) -> 0 | AB3: =IF(PricesByItr!AB3<0,0,(PurchByItr!AB3*AB$1*PricesByItr!AB3)/1000) -> 0 | AC3: =IF(PricesByItr!AC3<0,0,(PurchByItr!AC3*AC$1*PricesByItr!AC3)/1000) -> 0 | AD3: =IF(PricesByItr!AD3<0,0,(PurchByItr!AD3*AD$1*PricesByItr!AD3)/1000) -> 8287.739838 | AE3: =SUM(S3:AD3) -> 8357.390604
A4: =PurchByItr!A4 -> 2022 | B4: =PurchByItr!B4 -> 1941 | C4: =IF(PricesByItr!C4<0,0,(PurchByItr!C4*C$1*PricesByItr!C4)/1000) -> 22090.71704 | D4: =IF(PricesByItr!D4<0,0,(PurchByItr!D4*D$1*PricesByItr!D4)/1000) -> 11222.00554 | E4: =IF(PricesByItr!E4<0,0,(PurchByItr!E4*E$1*PricesByItr!E4)/1000) -> 21238.95853 | F4: =IF(PricesByItr!F4<0,0,(PurchByItr!F4*F$1*PricesByItr!F4)/1000) -> 69740.4433 | G4: =IF(PricesByItr!G4<0,0,(PurchByItr!G4*G$1*PricesByItr!G4)/1000) -> 42360.43202 | H4: =IF(PricesByItr!H4<0,0,(PurchByItr!H4*H$1*PricesByItr!H4)/1000) -> 30798.87764 | I4: =IF(PricesByItr!I4<0,0,(PurchByItr!I4*I$1*PricesByItr!I4)/1000) -> 48240.48859 | J4: =IF(PricesByItr!J4<0,0,(PurchByItr!J4*J$1*PricesByItr!J4)/1000) -> 38487.13364 | K4: =IF(PricesByItr!K4<0,0,(PurchByItr!K4*K$1*PricesByItr!K4)/1000) -> 22487.74177 | L4: =IF(PricesByItr!L4<0,0,(PurchByItr!L4*L$1*PricesByItr!L4)/1000) -> 8928.922586 | M4: =IF(PricesByItr!M4<0,0,(PurchByItr!M4*M$1*PricesByItr!M4)/1000) -> 0 | N4: =IF(PricesByItr!N4<0,0,(PurchByItr!N4*N$1*PricesByItr!N4)/1000) -> 0 | O4: =SUM(C4:N4) -> 315595.7207 | Q4: =PurchByItr!Q4 -> 2023 | R4: =PurchByItr!R4 -> 1942 | S4: =IF(PricesByItr!S4<0,0,(PurchByItr!S4*S$1*PricesByItr!S4)/1000) -> 12028.07277 | T4: =IF(PricesByItr!T4<0,0,(PurchByItr!T4*T$1*PricesByItr!T4)/1000) -> 0 | U4: =IF(PricesByItr!U4<0,0,(PurchByItr!U4*U$1*PricesByItr!U4)/1000) -> 0 | V4: =IF(PricesByItr!V4<0,0,(PurchByItr!V4*V$1*PricesByItr!V4)/1000) -> 0 | W4: =IF(PricesByItr!W4<0,0,(PurchByItr!W4*W$1*PricesByItr!W4)/1000) -> 0 | X4: =IF(PricesByItr!X4<0,0,(PurchByItr!X4*X$1*PricesByItr!X4)/1000) -> 94117.78068 | Y4: =IF(PricesByItr!Y4<0,0,(PurchByItr!Y4*Y$1*PricesByItr!Y4)/1000) -> 46817.70779 | Z4: =IF(PricesByItr!Z4<0,0,(PurchByItr!Z4*Z$1*PricesByItr!Z4)/1000) -> 38627.22592 | AA4: =IF(PricesByItr!AA4<0,0,(PurchByItr!AA4*AA$1*PricesByItr!AA4)/1000) -> 0 | AB4: =IF(PricesByItr!AB4<0,0,(PurchByItr!AB4*AB$1*PricesByItr!AB4)/1000) -> 0 | AC4: =IF(PricesByItr!AC4<0,0,(PurchByItr!AC4*AC$1*PricesByItr!AC4)/1000) -> 0 | AD4: =IF(PricesByItr!AD4<0,0,(PurchByItr!AD4*AD$1*PricesByItr!AD4)/1000) -> -6394.733391 | AE4: =SUM(S4:AD4) -> 185196.0538
A5: =PurchByItr!A5 -> 2022 | B5: =PurchByItr!B5 -> 1968 | C5: =IF(PricesByItr!C5<0,0,(PurchByItr!C5*C$1*PricesByItr!C5)/1000) -> 22727.12613 | D5: =IF(PricesByItr!D5<0,0,(PurchByItr!D5*D$1*PricesByItr!D5)/1000) -> 0 | E5: =IF(PricesByItr!E5<0,0,(PurchByItr!E5*E$1*PricesByItr!E5)/1000) -> 0 | F5: =IF(PricesByItr!F5<0,0,(PurchByItr!F5*F$1*PricesByItr!F5)/1000) -> 0 | G5: =IF(PricesByItr!G5<0,0,(PurchByItr!G5*G$1*PricesByItr!G5)/1000) -> 0 | H5: =IF(PricesByItr!H5<0,0,(PurchByItr!H5*H$1*PricesByItr!H5)/1000) -> 0 | I5: =IF(PricesByItr!I5<0,0,(PurchByItr!I5*I$1*PricesByItr!I5)/1000) -> 45948.91764 | J5: =IF(PricesByItr!J5<0,0,(PurchByItr!J5*J$1*PricesByItr!J5)/1000) -> 13748.31611 | K5: =IF(PricesByItr!K5<0,0,(PurchByItr!K5*K$1*PricesByItr!K5)/1000) -> 0 | L5: =IF(PricesByItr!L5<0,0,(PurchByItr!L5*L$1*PricesByItr!L5)/1000) -> 0 | M5: =IF(PricesByItr!M5<0,0,(PurchByItr!M5*M$1*PricesByItr!M5)/1000) -> 0 | N5: =IF(PricesByItr!N5<0,0,(PurchByItr!N5*N$1*PricesByItr!N5)/1000) -> 0 | O5: 82424.35988 | Q5: =PurchByItr!Q5 -> 2023 | R5: =PurchByItr!R5 -> 1969 | S5: =IF(PricesByItr!S5<0,0,(PurchByItr!S5*S$1*PricesByItr!S5)/1000) -> 0 | T5: =IF(PricesByItr!T5<0,0,(PurchByItr!T5*T$1*PricesByItr!T5)/1000) -> 0 | U5: =IF(PricesByItr!U5<0,0,(PurchByItr!U5*U$1*PricesByItr!U5)/1000) -> 0 | V5: =IF(PricesByItr!V5<0,0,(PurchByItr!V5*V$1*PricesByItr!V5)/1000) -> 0 | W5: =IF(PricesByItr!W5<0,0,(PurchByItr!W5*W$1*PricesByItr!W5)/1000) -> 0 | X5: =IF(PricesByItr!X5<0,0,(PurchByItr!X5*X$1*PricesByItr!X5)/1000) -> 0 | Y5: =IF(PricesByItr!Y5<0,0,(PurchByItr!Y5*Y$1*PricesByItr!Y5)/1000) -> 0 | Z5: =IF(PricesByItr!Z5<0,0,(PurchByItr!Z5*Z$1*PricesByItr!Z5)/1000) -> 0 | AA5: =IF(PricesByItr!AA5<0,0,(PurchByItr!AA5*AA$1*PricesByItr!AA5)/1000) -> 0 | AB5: =IF(PricesByItr!AB5<0,0,(PurchByItr!AB5*AB$1*PricesByItr!AB5)/1000) -> 0 | AC5: =IF(PricesByItr!AC5<0,0,(PurchByItr!AC5*AC$1*PricesByItr!AC5)/1000) -> 0 | AD5: =IF(PricesByItr!AD5<0,0,(PurchByItr!AD5*AD$1*PricesByItr!AD5)/1000) -> 12766.80438 | AE5: 12766.80438
A6: =PurchByItr!A6 -> 2022 | B6: =PurchByItr!B6 -> 1940 | C6: =IF(PricesByItr!C6<0,0,(PurchByItr!C6*C$1*PricesByItr!C6)/1000) -> 30437.16991 | D6: =IF(PricesByItr!D6<0,0,(PurchByItr!D6*D$1*PricesByItr!D6)/1000) -> 6434.246298 | E6: =IF(PricesByItr!E6<0,0,(PurchByItr!E6*E$1*PricesByItr!E6)/1000) -> 49530.02541 | F6: =IF(PricesByItr!F6<0,0,(PurchByItr!F6*F$1*PricesByItr!F6)/1000) -> 1610.542341 | G6: =IF(PricesByItr!G6<0,0,(PurchByItr!G6*G$1*PricesByItr!G6)/1000) -> 13899.07943 | H6: =IF(PricesByItr!H6<0,0,(PurchByItr!H6*H$1*PricesByItr!H6)/1000) -> 0 | I6: =IF(PricesByItr!I6<0,0,(PurchByItr!I6*I$1*PricesByItr!I6)/1000) -> 6613.815553 | J6: =IF(PricesByItr!J6<0,0,(PurchByItr!J6*J$1*PricesByItr!J6)/1000) -> 9743.565076 | K6: =IF(PricesByItr!K6<0,0,(PurchByItr!K6*K$1*PricesByItr!K6)/1000) -> 16845.85568 | L6: =IF(PricesByItr!L6<0,0,(PurchByItr!L6*L$1*PricesByItr!L6)/1000) -> 18193.89759 | M6: =IF(PricesByItr!M6<0,0,(PurchByItr!M6*M$1*PricesByItr!M6)/1000) -> 9196.493339 | N6: =IF(PricesByItr!N6<0,0,(PurchByItr!N6*N$1*PricesByItr!N6)/1000) -> 0 | O6: 162504.6906 | Q6: =PurchByItr!Q6 -> 2023 | R6: =PurchByItr!R6 -> 1941 | S6: =IF(PricesByItr!S6<0,0,(PurchByItr!S6*S$1*PricesByItr!S6)/1000) -> 24110.00156 | T6: =IF(PricesByItr!T6<0,0,(PurchByItr!T6*T$1*PricesByItr!T6)/1000) -> 13472.22306 | U6: =IF(PricesByItr!U6<0,0,(PurchByItr!U6*U$1*PricesByItr!U6)/1000) -> 21884.38139 | V6: =IF(PricesByItr!V6<0,0,(PurchByItr!V6*V$1*PricesByItr!V6)/1000) -> 67287.87567 | W6: =IF(PricesByItr!W6<0,0,(PurchByItr!W6*W$1*PricesByItr!W6)/1000) -> 18684.91372 | X6: =IF(PricesByItr!X6<0,0,(PurchByItr!X6*X$1*PricesByItr!X6)/1000) -> 28998.16116 | Y6: =IF(PricesByItr!Y6<0,0,(PurchByItr!Y6*Y$1*PricesByItr!Y6)/1000) -> 40582.84801 | Z6: =IF(PricesByItr!Z6<0,0,(PurchByItr!Z6*Z$1*PricesByItr!Z6)/1000) -> 20703.65059 | AA6: =IF(PricesByItr!AA6<0,0,(PurchByItr!AA6*AA$1*PricesByItr!AA6)/1000) -> 27157.42664 | AB6: =IF(PricesByItr!AB6<0,0,(PurchByItr!AB6*AB$1*PricesByItr!AB6)/1000) -> 5515.604869 | AC6: =IF(PricesByItr!AC6<0,0,(PurchByItr!AC6*AC$1*PricesByItr!AC6)/1000) -> 0 | AD6: =IF(PricesByItr!AD6<0,0,(PurchByItr!AD6*AD$1*PricesByItr!AD6)/1000) -> 0 | AE6: 268397.0867
A7: =PurchByItr!A7 -> 2022 | B7: =PurchByItr!B7 -> 1962 | C7: =IF(PricesByItr!C7<0,0,(PurchByItr!C7*C$1*PricesByItr!C7)/1000) -> 46184.67679 | D7: =IF(PricesByItr!D7<0,0,(PurchByItr!D7*D$1*PricesByItr!D7)/1000) -> 8581.899805 | E7: =IF(PricesByItr!E7<0,0,(PurchByItr!E7*E$1*PricesByItr!E7)/1000) -> 13160.39425 | F7: =IF(PricesByItr!F7<0,0,(PurchByItr!F7*F$1*PricesByItr!F7)/1000) -> 0 | G7: =IF(PricesByItr!G7<0,0,(PurchByItr!G7*G$1*PricesByItr!G7)/1000) -> 0 | H7: =IF(PricesByItr!H7<0,0,(PurchByItr!H7*H$1*PricesByItr!H7)/1000) -> 36141.89715 | I7: =IF(PricesByItr!I7<0,0,(PurchByItr!I7*I$1*PricesByItr!I7)/1000) -> 0 | J7: =IF(PricesByItr!J7<0,0,(PurchByItr!J7*J$1*PricesByItr!J7)/1000) -> 0 | K7: =IF(PricesByItr!K7<0,0,(PurchByItr!K7*K$1*PricesByItr!K7)/1000) -> 0 | L7: =IF(PricesByItr!L7<0,0,(PurchByItr!L7*L$1*PricesByItr!L7)/1000) -> -3704.879513 | M7: =IF(PricesByItr!M7<0,0,(PurchByItr!M7*M$1*PricesByItr!M7)/1000) -> -839.9773784 | N7: =IF(PricesByItr!N7<0,0,(PurchByItr!N7*N$1*PricesByItr!N7)/1000) -> 11329.00616 | O7: 110853.0173 | Q7: =PurchByItr!Q7 -> 2023 | R7: =PurchByItr!R7 -> 1963 | S7: =IF(PricesByItr!S7<0,0,(PurchByItr!S7*S$1*PricesByItr!S7)/1000) -> 15527.97624 | T7: =IF(PricesByItr!T7<0,0,(PurchByItr!T7*T$1*PricesByItr!T7)/1000) -> 0 | U7: =IF(PricesByItr!U7<0,0,(PurchByItr!U7*U$1*PricesByItr!U7)/1000) -> 0 | V7: =IF(PricesByItr!V7<0,0,(PurchByItr!V7*V$1*PricesByItr!V7)/1000) -> 0 | W7: =IF(PricesByItr!W7<0,0,(PurchByItr!W7*W$1*PricesByItr!W7)/1000) -> 0 | X7: =IF(PricesByItr!X7<0,0,(PurchByItr!X7*X$1*PricesByItr!X7)/1000) -> 18481.27715 | Y7: =IF(PricesByItr!Y7<0,0,(PurchByItr!Y7*Y$1*PricesByItr!Y7)/1000) -> 17477.10368 | Z7: =IF(PricesByItr!Z7<0,0,(PurchByItr!Z7*Z$1*PricesByItr!Z7)/1000) -> 6718.375719 | AA7: =IF(PricesByItr!AA7<0,0,(PurchByItr!AA7*AA$1*PricesByItr!AA7)/1000) -> 0 | AB7: =IF(PricesByItr!AB7<0,0,(PurchByItr!AB7*AB$1*PricesByItr!AB7)/1000) -> 0 | AC7: =IF(PricesByItr!AC7<0,0,(PurchByItr!AC7*AC$1*PricesByItr!AC7)/1000) -> 0 | AD7: =IF(PricesByItr!AD7<0,0,(PurchByItr!AD7*AD$1*PricesByItr!AD7)/1000) -> 797.4742249 | AE7: 59002.20701
A8: =PurchByItr!A8 -> 2022 | B8: =PurchByItr!B8 -> 1995 | C8: =IF(PricesByItr!C8<0,0,(PurchByItr!C8*C$1*PricesByItr!C8)/1000) -> 19357.7445 | D8: =IF(PricesByItr!D8<0,0,(PurchByItr!D8*D$1*PricesByItr!D8)/1000) -> 20916.21972 | E8: =IF(PricesByItr!E8<0,0,(PurchByItr!E8*E$1*PricesByItr!E8)/1000) -> 24742.45846 | F8: =IF(PricesByItr!F8<0,0,(PurchByItr!F8*F$1*PricesByItr!F8)/1000) -> 39910.63821 | G8: =IF(PricesByItr!G8<0,0,(PurchByItr!G8*G$1*PricesByItr!G8)/1000) -> 0 | H8: =IF(PricesByItr!H8<0,0,(PurchByItr!H8*H$1*PricesByItr!H8)/1000) -> 0 | I8: =IF(PricesByItr!I8<0,0,(PurchByItr!I8*I$1*PricesByItr!I8)/1000) -> 45189.51153 | J8: =IF(PricesByItr!J8<0,0,(PurchByItr!J8*J$1*PricesByItr!J8)/1000) -> 3067.981697 | K8: =IF(PricesByItr!K8<0,0,(PurchByItr!K8*K$1*PricesByItr!K8)/1000) -> 0 | L8: =IF(PricesByItr!L8<0,0,(PurchByItr!L8*L$1*PricesByItr!L8)/1000) -> 0 | M8: =IF(PricesByItr!M8<0,0,(PurchByItr!M8*M$1*PricesByItr!M8)/1000) -> 0 | N8: =IF(PricesByItr!N8<0,0,(PurchByItr!N8*N$1*PricesByItr!N8)/1000) -> 4465.2633 | O8: 157649.8174 | Q8: =PurchByItr!Q8 -> 2023 | R8: =PurchByItr!R8 -> 1996 | S8: =IF(PricesByItr!S8<0,0,(PurchByItr!S8*S$1*PricesByItr!S8)/1000) -> 874.6214607 | T8: =IF(PricesByItr!T8<0,0,(PurchByItr!T8*T$1*PricesByItr!T8)/1000) -> 0 | U8: =IF(PricesByItr!U8<0,0,(PurchByItr!U8*U$1*PricesByItr!U8)/1000) -> 0 | V8: =IF(PricesByItr!V8<0,0,(PurchByItr!V8*V$1*PricesByItr!V8)/1000) -> 0 | W8: =IF(PricesByItr!W8<0,0,(PurchByItr!W8*W$1*PricesByItr!W8)/1000) -> 0 | X8: =IF(PricesByItr!X8<0,0,(PurchByItr!X8*X$1*PricesByItr!X8)/1000) -> 0 | Y8: =IF(PricesByItr!Y8<0,0,(PurchByItr!Y8*Y$1*PricesByItr!Y8)/1000) -> 0 | Z8: =IF(PricesByItr!Z8<0,0,(PurchByItr!Z8*Z$1*PricesByItr!Z8)/1000) -> 0 | AA8: =IF(PricesByItr!AA8<0,0,(PurchByItr!AA8*AA$1*PricesByItr!AA8)/1000) -> 0 | AB8: =IF(PricesByItr!AB8<0,0,(PurchByItr!AB8*AB$1*PricesByItr!AB8)/1000) -> 0 | AC8: =IF(PricesByItr!AC8<0,0,(PurchByItr!AC8*AC$1*PricesByItr!AC8)/1000) -> 0 | AD8: =IF(PricesByItr!AD8<0,0,(PurchByItr!AD8*AD$1*PricesByItr!AD8)/1000) -> 8667.758921 | AE8: 9542.380382
A9: =PurchByItr!A9 -> 2022 | B9: =PurchByItr!B9 -> 1943 | C9: =IF(PricesByItr!C9<0,0,(PurchByItr!C9*C$1*PricesByItr!C9)/1000) -> 19973.62315 | D9: =IF(PricesByItr!D9<0,0,(PurchByItr!D9*D$1*PricesByItr!D9)/1000) -> 17635.26735 | E9: =IF(PricesByItr!E9<0,0,(PurchByItr!E9*E$1*PricesByItr!E9)/1000) -> 16635.6912 | F9: =IF(PricesByItr!F9<0,0,(PurchByItr!F9*F$1*PricesByItr!F9)/1000) -> 0 | G9: =IF(PricesByItr!G9<0,0,(PurchByItr!G9*G$1*PricesByItr!G9)/1000) -> 0 | H9: =IF(PricesByItr!H9<0,0,(PurchByItr!H9*H$1*PricesByItr!H9)/1000) -> 0 | I9: =IF(PricesByItr!I9<0,0,(PurchByItr!I9*I$1*PricesByItr!I9)/1000) -> 0 | J9: =IF(PricesByItr!J9<0,0,(PurchByItr!J9*J$1*PricesByItr!J9)/1000) -> 0 | K9: =IF(PricesByItr!K9<0,0,(PurchByItr!K9*K$1*PricesByItr!K9)/1000) -> 0 | L9: =IF(PricesByItr!L9<0,0,(PurchByItr!L9*L$1*PricesByItr!L9)/1000) -> 0 | M9: =IF(PricesByItr!M9<0,0,(PurchByItr!M9*M$1*PricesByItr!M9)/1000) -> 0 | N9: =IF(PricesByItr!N9<0,0,(PurchByItr!N9*N$1*PricesByItr!N9)/1000) -> 15661.93549 | O9: 69906.51719 | Q9: =PurchByItr!Q9 -> 2023 | R9: =PurchByItr!R9 -> 1944 | S9: =IF(PricesByItr!S9<0,0,(PurchByItr!S9*S$1*PricesByItr!S9)/1000) -> 30614.99733 | T9: =IF(PricesByItr!T9<0,0,(PurchByItr!T9*T$1*PricesByItr!T9)/1000) -> 10633.68432 | U9: =IF(PricesByItr!U9<0,0,(PurchByItr!U9*U$1*PricesByItr!U9)/1000) -> 52046.73911 | V9: =IF(PricesByItr!V9<0,0,(PurchByItr!V9*V$1*PricesByItr!V9)/1000) -> 51012.08595 | W9: =IF(PricesByItr!W9<0,0,(PurchByItr!W9*W$1*PricesByItr!W9)/1000) -> 15670.19961 | X9: =IF(PricesByItr!X9<0,0,(PurchByItr!X9*X$1*PricesByItr!X9)/1000) -> 50561.21801 | Y9: =IF(PricesByItr!Y9<0,0,(PurchByItr!Y9*Y$1*PricesByItr!Y9)/1000) -> 59884.83797 | Z9: =IF(PricesByItr!Z9<0,0,(PurchByItr!Z9*Z$1*PricesByItr!Z9)/1000) -> 89984.2889 | AA9: =IF(PricesByItr!AA9<0,0,(PurchByItr!AA9*AA$1*PricesByItr!AA9)/1000) -> 48267.86368 | AB9: =IF(PricesByItr!AB9<0,0,(PurchByItr!AB9*AB$1*PricesByItr!AB9)/1000) -> 23513.1272 | AC9: =IF(PricesByItr!AC9<0,0,(PurchByItr!AC9*AC$1*PricesByItr!AC9)/1000) -> -1247.562377 | AD9: =IF(PricesByItr!AD9<0,0,(PurchByItr!AD9*AD$1*PricesByItr!AD9)/1000) -> 0 | AE9: 430941.4797
A10: =PurchByItr!A10 -> 2022 | B10: =PurchByItr!B10 -> 1966 | C10: =IF(PricesByItr!C10<0,0,(PurchByItr!C10*C$1*PricesByItr!C10)/1000) -> 10994.49825 | D10: =IF(PricesByItr!D10<0,0,(PurchByItr!D10*D$1*PricesByItr!D10)/1000) -> 8736.032434 | E10: =IF(PricesByItr!E10<0,0,(PurchByItr!E10*E$1*PricesByItr!E10)/1000) -> 1576.541381 | F10: =IF(PricesByItr!F10<0,0,(PurchByItr!F10*F$1*PricesByItr!F10)/1000) -> 0 | G10: =IF(PricesByItr!G10<0,0,(PurchByItr!G10*G$1*PricesByItr!G10)/1000) -> 0 | H10: =IF(PricesByItr!H10<0,0,(PurchByItr!H10*H$1*PricesByItr!H10)/1000) -> 13483.8306 | I10: =IF(PricesByItr!I10<0,0,(PurchByItr!I10*I$1*PricesByItr!I10)/1000) -> 4543.56109 | J10: =IF(PricesByItr!J10<0,0,(PurchByItr!J10*J$1*PricesByItr!J10)/1000) -> 19211.13448 | K10: =IF(PricesByItr!K10<0,0,(PurchByItr!K10*K$1*PricesByItr!K10)/1000) -> 0 | L10: =IF(PricesByItr!L10<0,0,(PurchByItr!L10*L$1*PricesByItr!L10)/1000) -> 0 | M10: =IF(PricesByItr!M10<0,0,(PurchByItr!M10*M$1*PricesByItr!M10)/1000) -> 0 | N10: =IF(PricesByItr!N10<0,0,(PurchByItr!N10*N$1*PricesByItr!N10)/1000) -> 13237.31604 | O10: 71782.91427 | Q10: =PurchByItr!Q10 -> 2023 | R10: =PurchByItr!R10 -> 1967 | S10: =IF(PricesByItr!S10<0,0,(PurchByItr!S10*S$1*PricesByItr!S10)/1000) -> 25153.92263 | T10: =IF(PricesByItr!T10<0,0,(PurchByItr!T10*T$1*PricesByItr!T10)/1000) -> 15430.39148 | U10: =IF(PricesByItr!U10<0,0,(PurchByItr!U10*U$1*PricesByItr!U10)/1000) -> 0 | V10: =IF(PricesByItr!V10<0,0,(PurchByItr!V10*V$1*PricesByItr!V10)/1000) -> 0 | W10: =IF(PricesByItr!W10<0,0,(PurchByItr!W10*W$1*PricesByItr!W10)/1000) -> 0 | X10: =IF(PricesByItr!X10<0,0,(PurchByItr!X10*X$1*PricesByItr!X10)/1000) -> 0 | Y10: =IF(PricesByItr!Y10<0,0,(PurchByItr!Y10*Y$1*PricesByItr!Y10)/1000) -> 10438.89158 | Z10: =IF(PricesByItr!Z10<0,0,(PurchByItr!Z10*Z$1*PricesByItr!Z10)/1000) -> 3461.51359 | AA10: =IF(PricesByItr!AA10<0,0,(PurchByItr!AA10*AA$1*PricesByItr!AA10)/1000) -> 0 | AB10: =IF(PricesByItr!AB10<0,0,(PurchByItr!AB10*AB$1*PricesByItr!AB10)/1000) -> 0 | AC10: =IF(PricesByItr!AC10<0,0,(PurchByItr!AC10*AC$1*PricesByItr!AC10)/1000) -> 0 | AD10: =IF(PricesByItr!AD10<0,0,(PurchByItr!AD10*AD$1*PricesByItr!AD10)/1000) -> 5910.827562 | AE10: 60395.54685
A11: =PurchByItr!A11 -> 2022 | B11: =PurchByItr!B11 -> 2004 | C11: =IF(PricesByItr!C11<0,0,(PurchByItr!C11*C$1*PricesByItr!C11)/1000) -> 29154.56421 | D11: =IF(PricesByItr!D11<0,0,(PurchByItr!D11*D$1*PricesByItr!D11)/1000) -> 2588.958768 | E11: =IF(PricesByItr!E11<0,0,(PurchByItr!E11*E$1*PricesByItr!E11)/1000) -> 6335.781509 | F11: =IF(PricesByItr!F11<0,0,(PurchByItr!F11*F$1*PricesByItr!F11)/1000) -> 40232.98357 | G11: =IF(PricesByItr!G11<0,0,(PurchByItr!G11*G$1*PricesByItr!G11)/1000) -> 0 | H11: =IF(PricesByItr!H11<0,0,(PurchByItr!H11*H$1*PricesByItr!H11)/1000) -> 29797.69559 | I11: =IF(PricesByItr!I11<0,0,(PurchByItr!I11*I$1*PricesByItr!I11)/1000) -> 26952.34895 | J11: =IF(PricesByItr!J11<0,0,(PurchByItr!J11*J$1*PricesByItr!J11)/1000) -> 29955.72281 | K11: =IF(PricesByItr!K11<0,0,(PurchByItr!K11*K$1*PricesByItr!K11)/1000) -> 5590.633586 | L11: =IF(PricesByItr!L11<0,0,(PurchByItr!L11*L$1*PricesByItr!L11)/1000) -> 4829.100441 | M11: =IF(PricesByItr!M11<0,0,(PurchByItr!M11*M$1*PricesByItr!M11)/1000) -> 10815.39111 | N11: =IF(PricesByItr!N11<0,0,(PurchByItr!N11*N$1*PricesByItr!N11)/1000) -> 10160.48317 | O11: 196413.6637 | Q11: =PurchByItr!Q11 -> 2023 | R11: =PurchByItr!R11 -> 2005 | S11: =IF(PricesByItr!S11<0,0,(PurchByItr!S11*S$1*PricesByItr!S11)/1000) -> 10459.16271 | T11: =IF(PricesByItr!T11<0,0,(PurchByItr!T11*T$1*PricesByItr!T11)/1000) -> 0 | U11: =IF(PricesByItr!U11<0,0,(PurchByItr!U11*U$1*PricesByItr!U11)/1000) -> 0 | V11: =IF(PricesByItr!V11<0,0,(PurchByItr!V11*V$1*PricesByItr!V11)/1000) -> 0 | W11: =IF(PricesByItr!W11<0,0,(PurchByItr!W11*W$1*PricesByItr!W11)/1000) -> 0 | X11: =IF(PricesByItr!X11<0,0,(PurchByItr!X11*X$1*PricesByItr!X11)/1000) -> 3177.323583 | Y11: =IF(PricesByItr!Y11<0,0,(PurchByItr!Y11*Y$1*PricesByItr!Y11)/1000) -> 34871.57537 | Z11: =IF(PricesByItr!Z11<0,0,(PurchByItr!Z11*Z$1*PricesByItr!Z11)/1000) -> 19746.6308 | AA11: =IF(PricesByItr!AA11<0,0,(PurchByItr!AA11*AA$1*PricesByItr!AA11)/1000) -> 2847.543461 | AB11: =IF(PricesByItr!AB11<0,0,(PurchByItr!AB11*AB$1*PricesByItr!AB11)/1000) -> 0 | AC11: =IF(PricesByItr!AC11<0,0,(PurchByItr!AC11*AC$1*PricesByItr!AC11)/1000) -> 0 | AD11: =IF(PricesByItr!AD11<0,0,(PurchByItr!AD11*AD$1*PricesByItr!AD11)/1000) -> 13541.86107 | AE11: 84644.09699
A12: =PurchByItr!A12 -> 2022 | B12: =PurchByItr!B12 -> 1954 | C12: =IF(PricesByItr!C12<0,0,(PurchByItr!C12*C$1*PricesByItr!C12)/1000) -> 23789.22415 | D12: =IF(PricesByItr!D12<0,0,(PurchByItr!D12*D$1*PricesByItr!D12)/1000) -> 0 | E12: =IF(PricesByItr!E12<0,0,(PurchByItr!E12*E$1*PricesByItr!E12)/1000) -> 0 | F12: =IF(PricesByItr!F12<0,0,(PurchByItr!F12*F$1*PricesByItr!F12)/1000) -> 0 | G12: =IF(PricesByItr!G12<0,0,(PurchByItr!G12*G$1*PricesByItr!G12)/1000) -> 0 | H12: =IF(PricesByItr!H12<0,0,(PurchByItr!H12*H$1*PricesByItr!H12)/1000) -> 0 | I12: =IF(PricesByItr!I12<0,0,(PurchByItr!I12*I$1*PricesByItr!I12)/1000) -> 2960.623177 | J12: =IF(PricesByItr!J12<0,0,(PurchByItr!J12*J$1*PricesByItr!J12)/1000) -> 0 | K12: =IF(PricesByItr!K12<0,0,(PurchByItr!K12*K$1*PricesByItr!K12)/1000) -> 0 | L12: =IF(PricesByItr!L12<0,0,(PurchByItr!L12*L$1*PricesByItr!L12)/1000) -> 0 | M12: =IF(PricesByItr!M12<0,0,(PurchByItr!M12*M$1*PricesByItr!M12)/1000) -> 0 | N12: =IF(PricesByItr!N12<0,0,(PurchByItr!N12*N$1*PricesByItr!N12)/1000) -> 0 | O12: 26749.84732 | Q12: =PurchByItr!Q12 -> 2023 | R12: =PurchByItr!R12 -> 1955 | S12: =IF(PricesByItr!S12<0,0,(PurchByItr!S12*S$1*PricesByItr!S12)/1000) -> 13124.37146 | T12: =IF(PricesByItr!T12<0,0,(PurchByItr!T12*T$1*PricesByItr!T12)/1000) -> 0 | U12: =IF(PricesByItr!U12<0,0,(PurchByItr!U12*U$1*PricesByItr!U12)/1000) -> 0 | V12: =IF(PricesByItr!V12<0,0,(PurchByItr!V12*V$1*PricesByItr!V12)/1000) -> 29160.81295 | W12: =IF(PricesByItr!W12<0,0,(PurchByItr!W12*W$1*PricesByItr!W12)/1000) -> 8471.225909 | X12: =IF(PricesByItr!X12<0,0,(PurchByItr!X12*X$1*PricesByItr!X12)/1000) -> 42814.83516 | Y12: =IF(PricesByItr!Y12<0,0,(PurchByItr!Y12*Y$1*PricesByItr!Y12)/1000) -> 33242.14642 | Z12: =IF(PricesByItr!Z12<0,0,(PurchByItr!Z12*Z$1*PricesByItr!Z12)/1000) -> 17169.08322 | AA12: =IF(PricesByItr!AA12<0,0,(PurchByItr!AA12*AA$1*PricesByItr!AA12)/1000) -> 0 | AB12: =IF(PricesByItr!AB12<0,0,(PurchByItr!AB12*AB$1*PricesByItr!AB12)/1000) -> 0 | AC12: =IF(PricesByItr!AC12<0,0,(PurchByItr!AC12*AC$1*PricesByItr!AC12)/1000) -> 0 | AD12: =IF(PricesByItr!AD12<0,0,(PurchByItr!AD12*AD$1*PricesByItr!AD12)/1000) -> 8316.15498 | AE12: 152298.6301
A13: =PurchByItr!A13 -> 2022 | B13: =PurchByItr!B13 -> 1944 | C13: =IF(PricesByItr!C13<0,0,(PurchByItr!C13*C$1*PricesByItr!C13)/1000) -> 39306.07603 | D13: =IF(PricesByItr!D13<0,0,(PurchByItr!D13*D$1*PricesByItr!D13)/1000) -> 17290.17743 | E13: =IF(PricesByItr!E13<0,0,(PurchByItr!E13*E$1*PricesByItr!E13)/1000) -> 64279.57058 | F13: =IF(PricesByItr!F13<0,0,(PurchByItr!F13*F$1*PricesByItr!F13)/1000) -> 80937.50462 | G13: =IF(PricesByItr!G13<0,0,(PurchByItr!G13*G$1*PricesByItr!G13)/1000) -> 20526.85611 | H13: =IF(PricesByItr!H13<0,0,(PurchByItr!H13*H$1*PricesByItr!H13)/1000) -> 67298.48333 | I13: =IF(PricesByItr!I13<0,0,(PurchByItr!I13*I$1*PricesByItr!I13)/1000) -> 87092.61063 | J13: =IF(PricesByItr!J13<0,0,(PurchByItr!J13*J$1*PricesByItr!J13)/1000) -> 74402.75286 | K13: =IF(PricesByItr!K13<0,0,(PurchByItr!K13*K$1*PricesByItr!K13)/1000) -> 44367.83891 | L13: =IF(PricesByItr!L13<0,0,(PurchByItr!L13*L$1*PricesByItr!L13)/1000) -> 33555.79209 | M13: =IF(PricesByItr!M13<0,0,(PurchByItr!M13*M$1*PricesByItr!M13)/1000) -> -1064.607722 | N13: =IF(PricesByItr!N13<0,0,(PurchByItr!N13*N$1*PricesByItr!N13)/1000) -> 0 | O13: 527993.0549 | Q13: =PurchByItr!Q13 -> 2023 | R13: =PurchByItr!R13 -> 1945 | S13: =IF(PricesByItr!S13<0,0,(PurchByItr!S13*S$1*PricesByItr!S13)/1000) -> 18183.22893 | T13: =IF(PricesByItr!T13<0,0,(PurchByItr!T13*T$1*PricesByItr!T13)/1000) -> 4333.692815 | U13: =IF(PricesByItr!U13<0,0,(PurchByItr!U13*U$1*PricesByItr!U13)/1000) -> 40348.51978 | V13: =IF(PricesByItr!V13<0,0,(PurchByItr!V13*V$1*PricesByItr!V13)/1000) -> 72549.94204 | W13: =IF(PricesByItr!W13<0,0,(PurchByItr!W13*W$1*PricesByItr!W13)/1000) -> 67992.34119 | X13: =IF(PricesByItr!X13<0,0,(PurchByItr!X13*X$1*PricesByItr!X13)/1000) -> 62797.79976 | Y13: =IF(PricesByItr!Y13<0,0,(PurchByItr!Y13*Y$1*PricesByItr!Y13)/1000) -> 43581.9865 | Z13: =IF(PricesByItr!Z13<0,0,(PurchByItr!Z13*Z$1*PricesByItr!Z13)/1000) -> 12847.77427 | AA13: =IF(PricesByItr!AA13<0,0,(PurchByItr!AA13*AA$1*PricesByItr!AA13)/1000) -> 0 | AB13: =IF(PricesByItr!AB13<0,0,(PurchByItr!AB13*AB$1*PricesByItr!AB13)/1000) -> 13352.76775 | AC13: =IF(PricesByItr!AC13<0,0,(PurchByItr!AC13*AC$1*PricesByItr!AC13)/1000) -> -3676.099802 | AD13: =IF(PricesByItr!AD13<0,0,(PurchByItr!AD13*AD$1*PricesByItr!AD13)/1000) -> -7369.665722 | AE13: 324942.2875
A14: =PurchByItr!A14 -> 2022 | B14: =PurchByItr!B14 -> 1971 | C14: =IF(PricesByItr!C14<0,0,(PurchByItr!C14*C$1*PricesByItr!C14)/1000) -> 31685.74085 | D14: =IF(PricesByItr!D14<0,0,(PurchByItr!D14*D$1*PricesByItr!D14)/1000) -> 16009.00405 | E14: =IF(PricesByItr!E14<0,0,(PurchByItr!E14*E$1*PricesByItr!E14)/1000) -> 19876.58417 | F14: =IF(PricesByItr!F14<0,0,(PurchByItr!F14*F$1*PricesByItr!F14)/1000) -> 0 | G14: =IF(PricesByItr!G14<0,0,(PurchByItr!G14*G$1*PricesByItr!G14)/1000) -> 0 | H14: =IF(PricesByItr!H14<0,0,(PurchByItr!H14*H$1*PricesByItr!H14)/1000) -> 0 | I14: =IF(PricesByItr!I14<0,0,(PurchByItr!I14*I$1*PricesByItr!I14)/1000) -> 0 | J14: =IF(PricesByItr!J14<0,0,(PurchByItr!J14*J$1*PricesByItr!J14)/1000) -> 0 | K14: =IF(PricesByItr!K14<0,0,(PurchByItr!K14*K$1*PricesByItr!K14)/1000) -> 0 | L14: =IF(PricesByItr!L14<0,0,(PurchByItr!L14*L$1*PricesByItr!L14)/1000) -> 0 | M14: =IF(PricesByItr!M14<0,0,(PurchByItr!M14*M$1*PricesByItr!M14)/1000) -> 0 | N14: =IF(PricesByItr!N14<0,0,(PurchByItr!N14*N$1*PricesByItr!N14)/1000) -> 3985.302471 | O14: 71556.63154 | Q14: =PurchByItr!Q14 -> 2023 | R14: =PurchByItr!R14 -> 1972 | S14: =IF(PricesByItr!S14<0,0,(PurchByItr!S14*S$1*PricesByItr!S14)/1000) -> 15406.94932 | T14: =IF(PricesByItr!T14<0,0,(PurchByItr!T14*T$1*PricesByItr!T14)/1000) -> 0 | U14: =IF(PricesByItr!U14<0,0,(PurchByItr!U14*U$1*PricesByItr!U14)/1000) -> 0 | V14: =IF(PricesByItr!V14<0,0,(PurchByItr!V14*V$1*PricesByItr!V14)/1000) -> 0 | W14: =IF(PricesByItr!W14<0,0,(PurchByItr!W14*W$1*PricesByItr!W14)/1000) -> 0 | X14: =IF(PricesByItr!X14<0,0,(PurchByItr!X14*X$1*PricesByItr!X14)/1000) -> 0 | Y14: =IF(PricesByItr!Y14<0,0,(PurchByItr!Y14*Y$1*PricesByItr!Y14)/1000) -> 0 | Z14: =IF(PricesByItr!Z14<0,0,(PurchByItr!Z14*Z$1*PricesByItr!Z14)/1000) -> 0 | AA14: =IF(PricesByItr!AA14<0,0,(PurchByItr!AA14*AA$1*PricesByItr!AA14)/1000) -> 0 | AB14: =IF(PricesByItr!AB14<0,0,(PurchByItr!AB14*AB$1*PricesByItr!AB14)/1000) -> 0 | AC14: =IF(PricesByItr!AC14<0,0,(PurchByItr!AC14*AC$1*PricesByItr!AC14)/1000) -> 0 | AD14: =IF(PricesByItr!AD14<0,0,(PurchByItr!AD14*AD$1*PricesByItr!AD14)/1000) -> 0 | AE14: 15406.94932
A15: =PurchByItr!A15 -> 2022 | B15: =PurchByItr!B15 -> 1957 | C15: =IF(PricesByItr!C15<0,0,(PurchByItr!C15*C$1*PricesByItr!C15)/1000) -> 14876.09336 | D15: =IF(PricesByItr!D15<0,0,(PurchByItr!D15*D$1*PricesByItr!D15)/1000) -> 0 | E15: =IF(PricesByItr!E15<0,0,(PurchByItr!E15*E$1*PricesByItr!E15)/1000) -> 0 | F15: =IF(PricesByItr!F15<0,0,(PurchByItr!F15*F$1*PricesByItr!F15)/1000) -> 0 | G15: =IF(PricesByItr!G15<0,0,(PurchByItr!G15*G$1*PricesByItr!G15)/1000) -> 0 | H15: =IF(PricesByItr!H15<0,0,(PurchByItr!H15*H$1*PricesByItr!H15)/1000) -> 0 | I15: =IF(PricesByItr!I15<0,0,(PurchByItr!I15*I$1*PricesByItr!I15)/1000) -> 0 | J15: =IF(PricesByItr!J15<0,0,(PurchByItr!J15*J$1*PricesByItr!J15)/1000) -> 0 | K15: =IF(PricesByItr!K15<0,0,(PurchByItr!K15*K$1*PricesByItr!K15)/1000) -> 0 | L15: =IF(PricesByItr!L15<0,0,(PurchByItr!L15*L$1*PricesByItr!L15)/1000) -> 0 | M15: =IF(PricesByItr!M15<0,0,(PurchByItr!M15*M$1*PricesByItr!M15)/1000) -> -777.0556729 | N15: =IF(PricesByItr!N15<0,0,(PurchByItr!N15*N$1*PricesByItr!N15)/1000) -> 8694.895815 | O15: 22793.9335 | Q15: =PurchByItr!Q15 -> 2023 | R15: =PurchByItr!R15 -> 1958 | S15: =IF(PricesByItr!S15<0,0,(PurchByItr!S15*S$1*PricesByItr!S15)/1000) -> 31525.24642 | T15: =IF(PricesByItr!T15<0,0,(PurchByItr!T15*T$1*PricesByItr!T15)/1000) -> 10573.83168 | U15: =IF(PricesByItr!U15<0,0,(PurchByItr!U15*U$1*PricesByItr!U15)/1000) -> 25529.02528 | V15: =IF(PricesByItr!V15<0,0,(PurchByItr!V15*V$1*PricesByItr!V15)/1000) -> 0 | W15: =IF(PricesByItr!W15<0,0,(PurchByItr!W15*W$1*PricesByItr!W15)/1000) -> 0 | X15: =IF(PricesByItr!X15<0,0,(PurchByItr!X15*X$1*PricesByItr!X15)/1000) -> 0 | Y15: =IF(PricesByItr!Y15<0,0,(PurchByItr!Y15*Y$1*PricesByItr!Y15)/1000) -> 7395.348523 | Z15: =IF(PricesByItr!Z15<0,0,(PurchByItr!Z15*Z$1*PricesByItr!Z15)/1000) -> 0 | AA15: =IF(PricesByItr!AA15<0,0,(PurchByItr!AA15*AA$1*PricesByItr!AA15)/1000) -> 0 | AB15: =IF(PricesByItr!AB15<0,0,(PurchByItr!AB15*AB$1*PricesByItr!AB15)/1000) -> -1918.833137 | AC15: =IF(PricesByItr!AC15<0,0,(PurchByItr!AC15*AC$1*PricesByItr!AC15)/1000) -> -472.3745637 | AD15: =IF(PricesByItr!AD15<0,0,(PurchByItr!AD15*AD$1*PricesByItr!AD15)/1000) -> 1979.209424 | AE15: 74611.45362
A16: =PurchByItr!A16 -> 2022 | B16: =PurchByItr!B16 -> 1945 | C16: =IF(PricesByItr!C16<0,0,(PurchByItr!C16*C$1*PricesByItr!C16)/1000) -> 12826.25643 | D16: =IF(PricesByItr!D16<0,0,(PurchByItr!D16*D$1*PricesByItr!D16)/1000) -> 2710.336739 | E16: =IF(PricesByItr!E16<0,0,(PurchByItr!E16*E$1*PricesByItr!E16)/1000) -> 50077.93456 | F16: =IF(PricesByItr!F16<0,0,(PurchByItr!F16*F$1*PricesByItr!F16)/1000) -> 78785.27738 | G16: =IF(PricesByItr!G16<0,0,(PurchByItr!G16*G$1*PricesByItr!G16)/1000) -> 69443.53776 | H16: =IF(PricesByItr!H16<0,0,(PurchByItr!H16*H$1*PricesByItr!H16)/1000) -> 57766.80846 | I16: =IF(PricesByItr!I16<0,0,(PurchByItr!I16*I$1*PricesByItr!I16)/1000) -> 41935.62172 | J16: =IF(PricesByItr!J16<0,0,(PurchByItr!J16*J$1*PricesByItr!J16)/1000) -> 12959.34108 | K16: =IF(PricesByItr!K16<0,0,(PurchByItr!K16*K$1*PricesByItr!K16)/1000) -> 0 | L16: =IF(PricesByItr!L16<0,0,(PurchByItr!L16*L$1*PricesByItr!L16)/1000) -> 14124.92466 | M16: =IF(PricesByItr!M16<0,0,(PurchByItr!M16*M$1*PricesByItr!M16)/1000) -> -5123.142825 | N16: =IF(PricesByItr!N16<0,0,(PurchByItr!N16*N$1*PricesByItr!N16)/1000) -> -6834.429067 | O16: 328672.4669 | Q16: =PurchByItr!Q16 -> 2023 | R16: =PurchByItr!R16 -> 1946 | S16: =IF(PricesByItr!S16<0,0,(PurchByItr!S16*S$1*PricesByItr!S16)/1000) -> 27778.65442 | T16: =IF(PricesByItr!T16<0,0,(PurchByItr!T16*T$1*PricesByItr!T16)/1000) -> 12753.26974 | U16: =IF(PricesByItr!U16<0,0,(PurchByItr!U16*U$1*PricesByItr!U16)/1000) -> 23281.1885 | V16: =IF(PricesByItr!V16<0,0,(PurchByItr!V16*V$1*PricesByItr!V16)/1000) -> 0 | W16: =IF(PricesByItr!W16<0,0,(PurchByItr!W16*W$1*PricesByItr!W16)/1000) -> 0 | X16: =IF(PricesByItr!X16<0,0,(PurchByItr!X16*X$1*PricesByItr!X16)/1000) -> 0 | Y16: =IF(PricesByItr!Y16<0,0,(PurchByItr!Y16*Y$1*PricesByItr!Y16)/1000) -> 0 | Z16: =IF(PricesByItr!Z16<0,0,(PurchByItr!Z16*Z$1*PricesByItr!Z16)/1000) -> 0 | AA16: =IF(PricesByItr!AA16<0,0,(PurchByItr!AA16*AA$1*PricesByItr!AA16)/1000) -> 0 | AB16: =IF(PricesByItr!AB16<0,0,(PurchByItr!AB16*AB$1*PricesByItr!AB16)/1000) -> 0 | AC16: =IF(PricesByItr!AC16<0,0,(PurchByItr!AC16*AC$1*PricesByItr!AC16)/1000) -> 0 | AD16: =IF(PricesByItr!AD16<0,0,(PurchByItr!AD16*AD$1*PricesByItr!AD16)/1000) -> 11846.64185 | AE16: 75659.75452
A17: =PurchByItr!A17 -> 2022 | B17: =PurchByItr!B17 -> 1969 | C17: =IF(PricesByItr!C17<0,0,(PurchByItr!C17*C$1*PricesByItr!C17)/1000) -> 0 | D17: =IF(PricesByItr!D17<0,0,(PurchByItr!D17*D$1*PricesByItr!D17)/1000) -> 0 | E17: =IF(PricesByItr!E17<0,0,(PurchByItr!E17*E$1*PricesByItr!E17)/1000) -> 0 | F17: =IF(PricesByItr!F17<0,0,(PurchByItr!F17*F$1*PricesByItr!F17)/1000) -> 0 | G17: =IF(PricesByItr!G17<0,0,(PurchByItr!G17*G$1*PricesByItr!G17)/1000) -> 0 | H17: =IF(PricesByItr!H17<0,0,(PurchByItr!H17*H$1*PricesByItr!H17)/1000) -> 0 | I17: =IF(PricesByItr!I17<0,0,(PurchByItr!I17*I$1*PricesByItr!I17)/1000) -> 0 | J17: =IF(PricesByItr!J17<0,0,(PurchByItr!J17*J$1*PricesByItr!J17)/1000) -> 0 | K17: =IF(PricesByItr!K17<0,0,(PurchByItr!K17*K$1*PricesByItr!K17)/1000) -> 0 | L17: =IF(PricesByItr!L17<0,0,(PurchByItr!L17*L$1*PricesByItr!L17)/1000) -> -6773.32895 | M17: =IF(PricesByItr!M17<0,0,(PurchByItr!M17*M$1*PricesByItr!M17)/1000) -> 0 | N17: =IF(PricesByItr!N17<0,0,(PurchByItr!N17*N$1*PricesByItr!N17)/1000) -> 11895.42332 | O17: 5122.094372 | Q17: =PurchByItr!Q17 -> 2023 | R17: =PurchByItr!R17 -> 1970 | S17: =IF(PricesByItr!S17<0,0,(PurchByItr!S17*S$1*PricesByItr!S17)/1000) -> 21408.78555 | T17: =IF(PricesByItr!T17<0,0,(PurchByItr!T17*T$1*PricesByItr!T17)/1000) -> 0 | U17: =IF(PricesByItr!U17<0,0,(PurchByItr!U17*U$1*PricesByItr!U17)/1000) -> 27177.61846 | V17: =IF(PricesByItr!V17<0,0,(PurchByItr!V17*V$1*PricesByItr!V17)/1000) -> 0 | W17: =IF(PricesByItr!W17<0,0,(PurchByItr!W17*W$1*PricesByItr!W17)/1000) -> 0 | X17: =IF(PricesByItr!X17<0,0,(PurchByItr!X17*X$1*PricesByItr!X17)/1000) -> 5210.667051 | Y17: =IF(PricesByItr!Y17<0,0,(PurchByItr!Y17*Y$1*PricesByItr!Y17)/1000) -> 36541.38573 | Z17: =IF(PricesByItr!Z17<0,0,(PurchByItr!Z17*Z$1*PricesByItr!Z17)/1000) -> 0 | AA17: =IF(PricesByItr!AA17<0,0,(PurchByItr!AA17*AA$1*PricesByItr!AA17)/1000) -> 0 | AB17: =IF(PricesByItr!AB17<0,0,(PurchByItr!AB17*AB$1*PricesByItr!AB17)/1000) -> 150.4885236 | AC17: =IF(PricesByItr!AC17<0,0,(PurchByItr!AC17*AC$1*PricesByItr!AC17)/1000) -> -834.9921914 | AD17: =IF(PricesByItr!AD17<0,0,(PurchByItr!AD17*AD$1*PricesByItr!AD17)/1000) -> 9368.744357 | AE17: 99022.69748
A18: =PurchByItr!A18 -> 2022 | B18: =PurchByItr!B18 -> 1953 | C18: =IF(PricesByItr!C18<0,0,(PurchByItr!C18*C$1*PricesByItr!C18)/1000) -> 36413.80514 | D18: =IF(PricesByItr!D18<0,0,(PurchByItr!D18*D$1*PricesByItr!D18)/1000) -> 5392.444106 | E18: =IF(PricesByItr!E18<0,0,(PurchByItr!E18*E$1*PricesByItr!E18)/1000) -> 46341.25335 | F18: =IF(PricesByItr!F18<0,0,(PurchByItr!F18*F$1*PricesByItr!F18)/1000) -> 21864.41026 | G18: =IF(PricesByItr!G18<0,0,(PurchByItr!G18*G$1*PricesByItr!G18)/1000) -> 0 | H18: =IF(PricesByItr!H18<0,0,(PurchByItr!H18*H$1*PricesByItr!H18)/1000) -> 11613.36478 | I18: =IF(PricesByItr!I18<0,0,(PurchByItr!I18*I$1*PricesByItr!I18)/1000) -> 43661.00123 | J18: =IF(PricesByItr!J18<0,0,(PurchByItr!J18*J$1*PricesByItr!J18)/1000) -> 4396.433587 | K18: =IF(PricesByItr!K18<0,0,(PurchByItr!K18*K$1*PricesByItr!K18)/1000) -> 0 | L18: =IF(PricesByItr!L18<0,0,(PurchByItr!L18*L$1*PricesByItr!L18)/1000) -> 0 | M18: =IF(PricesByItr!M18<0,0,(PurchByItr!M18*M$1*PricesByItr!M18)/1000) -> 0 | N18: =IF(PricesByItr!N18<0,0,(PurchByItr!N18*N$1*PricesByItr!N18)/1000) -> 5726.397082 | O18: 175409.1095 | Q18: =PurchByItr!Q18 -> 2023 | R18: =PurchByItr!R18 -> 1954 | S18: =IF(PricesByItr!S18<0,0,(PurchByItr!S18*S$1*PricesByItr!S18)/1000) -> 26706.77946 | T18: =IF(PricesByItr!T18<0,0,(PurchByItr!T18*T$1*PricesByItr!T18)/1000) -> 0 | U18: =IF(PricesByItr!U18<0,0,(PurchByItr!U18*U$1*PricesByItr!U18)/1000) -> 0 | V18: =IF(PricesByItr!V18<0,0,(PurchByItr!V18*V$1*PricesByItr!V18)/1000) -> 0 | W18: =IF(PricesByItr!W18<0,0,(PurchByItr!W18*W$1*PricesByItr!W18)/1000) -> 0 | X18: =IF(PricesByItr!X18<0,0,(PurchByItr!X18*X$1*PricesByItr!X18)/1000) -> 0 | Y18: =IF(PricesByItr!Y18<0,0,(PurchByItr!Y18*Y$1*PricesByItr!Y18)/1000) -> 2805.169093 | Z18: =IF(PricesByItr!Z18<0,0,(PurchByItr!Z18*Z$1*PricesByItr!Z18)/1000) -> 0 | AA18: =IF(PricesByItr!AA18<0,0,(PurchByItr!AA18*AA$1*PricesByItr!AA18)/1000) -> 0 | AB18: =IF(PricesByItr!AB18<0,0,(PurchByItr!AB18*AB$1*PricesByItr!AB18)/1000) -> 0 | AC18: =IF(PricesByItr!AC18<0,0,(PurchByItr!AC18*AC$1*PricesByItr!AC18)/1000) -> 0 | AD18: =IF(PricesByItr!AD18<0,0,(PurchByItr!AD18*AD$1*PricesByItr!AD18)/1000) -> 0 | AE18: 29511.94855
A19: =PurchByItr!A19 -> 2022 | B19: =PurchByItr!B19 -> 1951 | C19: =IF(PricesByItr!C19<0,0,(PurchByItr!C19*C$1*PricesByItr!C19)/1000) -> 55.53352338 | D19: =IF(PricesByItr!D19<0,0,(PurchByItr!D19*D$1*PricesByItr!D19)/1000) -> 0 | E19: =IF(PricesByItr!E19<0,0,(PurchByItr!E19*E$1*PricesByItr!E19)/1000) -> 0 | F19: =IF(PricesByItr!F19<0,0,(PurchByItr!F19*F$1*PricesByItr!F19)/1000) -> 0 | G19: =IF(PricesByItr!G19<0,0,(PurchByItr!G19*G$1*PricesByItr!G19)/1000) -> 0 | H19: =IF(PricesByItr!H19<0,0,(PurchByItr!H19*H$1*PricesByItr!H19)/1000) -> 0 | I19: =IF(PricesByItr!I19<0,0,(PurchByItr!I19*I$1*PricesByItr!I19)/1000) -> 0 | J19: =IF(PricesByItr!J19<0,0,(PurchByItr!J19*J$1*PricesByItr!J19)/1000) -> 0 | K19: =IF(PricesByItr!K19<0,0,(PurchByItr!K19*K$1*PricesByItr!K19)/1000) -> 0 | L19: =IF(PricesByItr!L19<0,0,(PurchByItr!L19*L$1*PricesByItr!L19)/1000) -> 0 | M19: =IF(PricesByItr!M19<0,0,(PurchByItr!M19*M$1*PricesByItr!M19)/1000) -> 0 | N19: =IF(PricesByItr!N19<0,0,(PurchByItr!N19*N$1*PricesByItr!N19)/1000) -> 8603.310351 | O19: 8658.843874 | Q19: =PurchByItr!Q19 -> 2023 | R19: =PurchByItr!R19 -> 1952 | S19: =IF(PricesByItr!S19<0,0,(PurchByItr!S19*S$1*PricesByItr!S19)/1000) -> 0 | T19: =IF(PricesByItr!T19<0,0,(PurchByItr!T19*T$1*PricesByItr!T19)/1000) -> 0 | U19: =IF(PricesByItr!U19<0,0,(PurchByItr!U19*U$1*PricesByItr!U19)/1000) -> 0 | V19: =IF(PricesByItr!V19<0,0,(PurchByItr!V19*V$1*PricesByItr!V19)/1000) -> 0 | W19: =IF(PricesByItr!W19<0,0,(PurchByItr!W19*W$1*PricesByItr!W19)/1000) -> 0 | X19: =IF(PricesByItr!X19<0,0,(PurchByItr!X19*X$1*PricesByItr!X19)/1000) -> 0 | Y19: =IF(PricesByItr!Y19<0,0,(PurchByItr!Y19*Y$1*PricesByItr!Y19)/1000) -> 0 | Z19: =IF(PricesByItr!Z19<0,0,(PurchByItr!Z19*Z$1*PricesByItr!Z19)/1000) -> 0 | AA19: =IF(PricesByItr!AA19<0,0,(PurchByItr!AA19*AA$1*PricesByItr!AA19)/1000) -> 0 | AB19: =IF(PricesByItr!AB19<0,0,(PurchByItr!AB19*AB$1*PricesByItr!AB19)/1000) -> 0 | AC19: =IF(PricesByItr!AC19<0,0,(PurchByItr!AC19*AC$1*PricesByItr!AC19)/1000) -> 0 | AD19: =IF(PricesByItr!AD19<0,0,(PurchByItr!AD19*AD$1*PricesByItr!AD19)/1000) -> 14161.41846 | AE19: 14161.41846
A20: =PurchByItr!A20 -> 2022 | B20: =PurchByItr!B20 -> 1983 | C20: =IF(PricesByItr!C20<0,0,(PurchByItr!C20*C$1*PricesByItr!C20)/1000) -> 0 | D20: =IF(PricesByItr!D20<0,0,(PurchByItr!D20*D$1*PricesByItr!D20)/1000) -> 0 | E20: =IF(PricesByItr!E20<0,0,(PurchByItr!E20*E$1*PricesByItr!E20)/1000) -> 0 | F20: =IF(PricesByItr!F20<0,0,(PurchByItr!F20*F$1*PricesByItr!F20)/1000) -> 0 | G20: =IF(PricesByItr!G20<0,0,(PurchByItr!G20*G$1*PricesByItr!G20)/1000) -> 0 | H20: =IF(PricesByItr!H20<0,0,(PurchByItr!H20*H$1*PricesByItr!H20)/1000) -> 0 | I20: =IF(PricesByItr!I20<0,0,(PurchByItr!I20*I$1*PricesByItr!I20)/1000) -> 2468.468622 | J20: =IF(PricesByItr!J20<0,0,(PurchByItr!J20*J$1*PricesByItr!J20)/1000) -> 0 | K20: =IF(PricesByItr!K20<0,0,(PurchByItr!K20*K$1*PricesByItr!K20)/1000) -> 0 | L20: =IF(PricesByItr!L20<0,0,(PurchByItr!L20*L$1*PricesByItr!L20)/1000) -> 0 | M20: =IF(PricesByItr!M20<0,0,(PurchByItr!M20*M$1*PricesByItr!M20)/1000) -> 0 | N20: =IF(PricesByItr!N20<0,0,(PurchByItr!N20*N$1*PricesByItr!N20)/1000) -> 665.7343719 | O20: 3134.202994 | Q20: =PurchByItr!Q20 -> 2023 | R20: =PurchByItr!R20 -> 1984 | S20: =IF(PricesByItr!S20<0,0,(PurchByItr!S20*S$1*PricesByItr!S20)/1000) -> 16353.61593 | T20: =IF(PricesByItr!T20<0,0,(PurchByItr!T20*T$1*PricesByItr!T20)/1000) -> 0 | U20: =IF(PricesByItr!U20<0,0,(PurchByItr!U20*U$1*PricesByItr!U20)/1000) -> 0 | V20: =IF(PricesByItr!V20<0,0,(PurchByItr!V20*V$1*PricesByItr!V20)/1000) -> 0 | W20: =IF(PricesByItr!W20<0,0,(PurchByItr!W20*W$1*PricesByItr!W20)/1000) -> 0 | X20: =IF(PricesByItr!X20<0,0,(PurchByItr!X20*X$1*PricesByItr!X20)/1000) -> 0 | Y20: =IF(PricesByItr!Y20<0,0,(PurchByItr!Y20*Y$1*PricesByItr!Y20)/1000) -> 0 | Z20: =IF(PricesByItr!Z20<0,0,(PurchByItr!Z20*Z$1*PricesByItr!Z20)/1000) -> 0 | AA20: =IF(PricesByItr!AA20<0,0,(PurchByItr!AA20*AA$1*PricesByItr!AA20)/1000) -> 0 | AB20: =IF(PricesByItr!AB20<0,0,(PurchByItr!AB20*AB$1*PricesByItr!AB20)/1000) -> 0 | AC20: =IF(PricesByItr!AC20<0,0,(PurchByItr!AC20*AC$1*PricesByItr!AC20)/1000) -> 0 | AD20: =IF(PricesByItr!AD20<0,0,(PurchByItr!AD20*AD$1*PricesByItr!AD20)/1000) -> 0 | AE20: 16353.61593
A21: =PurchByItr!A21 -> 2022 | B21: =PurchByItr!B21 -> 1946 | C21: =IF(PricesByItr!C21<0,0,(PurchByItr!C21*C$1*PricesByItr!C21)/1000) -> 19072.31307 | D21: =IF(PricesByItr!D21<0,0,(PurchByItr!D21*D$1*PricesByItr!D21)/1000) -> 12127.52713 | E21: =IF(PricesByItr!E21<0,0,(PurchByItr!E21*E$1*PricesByItr!E21)/1000) -> 30275.41802 | F21: =IF(PricesByItr!F21<0,0,(PurchByItr!F21*F$1*PricesByItr!F21)/1000) -> 0 | G21: =IF(PricesByItr!G21<0,0,(PurchByItr!G21*G$1*PricesByItr!G21)/1000) -> 0 | H21: =IF(PricesByItr!H21<0,0,(PurchByItr!H21*H$1*PricesByItr!H21)/1000) -> 0 | I21: =IF(PricesByItr!I21<0,0,(PurchByItr!I21*I$1*PricesByItr!I21)/1000) -> 0 | J21: =IF(PricesByItr!J21<0,0,(PurchByItr!J21*J$1*PricesByItr!J21)/1000) -> 0 | K21: =IF(PricesByItr!K21<0,0,(PurchByItr!K21*K$1*PricesByItr!K21)/1000) -> 0 | L21: =IF(PricesByItr!L21<0,0,(PurchByItr!L21*L$1*PricesByItr!L21)/1000) -> 0 | M21: =IF(PricesByItr!M21<0,0,(PurchByItr!M21*M$1*PricesByItr!M21)/1000) -> 0 | N21: =IF(PricesByItr!N21<0,0,(PurchByItr!N21*N$1*PricesByItr!N21)/1000) -> 10001.35699 | O21: 71476.61521 | Q21: =PurchByItr!Q21 -> 2023 | R21: =PurchByItr!R21 -> 1947 | S21: =IF(PricesByItr!S21<0,0,(PurchByItr!S21*S$1*PricesByItr!S21)/1000) -> 28844.53447 | T21: =IF(PricesByItr!T21<0,0,(PurchByItr!T21*T$1*PricesByItr!T21)/1000) -> 0 | U21: =IF(PricesByItr!U21<0,0,(PurchByItr!U21*U$1*PricesByItr!U21)/1000) -> 0 | V21: =IF(PricesByItr!V21<0,0,(PurchByItr!V21*V$1*PricesByItr!V21)/1000) -> 0 | W21: =IF(PricesByItr!W21<0,0,(PurchByItr!W21*W$1*PricesByItr!W21)/1000) -> 0 | X21: =IF(PricesByItr!X21<0,0,(PurchByItr!X21*X$1*PricesByItr!X21)/1000) -> 0 | Y21: =IF(PricesByItr!Y21<0,0,(PurchByItr!Y21*Y$1*PricesByItr!Y21)/1000) -> 5356.594589 | Z21: =IF(PricesByItr!Z21<0,0,(PurchByItr!Z21*Z$1*PricesByItr!Z21)/1000) -> 0 | AA21: =IF(PricesByItr!AA21<0,0,(PurchByItr!AA21*AA$1*PricesByItr!AA21)/1000) -> 0 | AB21: =IF(PricesByItr!AB21<0,0,(PurchByItr!AB21*AB$1*PricesByItr!AB21)/1000) -> 0 | AC21: =IF(PricesByItr!AC21<0,0,(PurchByItr!AC21*AC$1*PricesByItr!AC21)/1000) -> 0 | AD21: =IF(PricesByItr!AD21<0,0,(PurchByItr!AD21*AD$1*PricesByItr!AD21)/1000) -> 6614.836309 | AE21: 40815.96537
A22: =PurchByItr!A22 -> 2022 | B22: =PurchByItr!B22 -> 1990 | C22: =IF(PricesByItr!C22<0,0,(PurchByItr!C22*C$1*PricesByItr!C22)/1000) -> 27534.88649 | D22: =IF(PricesByItr!D22<0,0,(PurchByItr!D22*D$1*PricesByItr!D22)/1000) -> 16503.24003 | E22: =IF(PricesByItr!E22<0,0,(PurchByItr!E22*E$1*PricesByItr!E22)/1000) -> 0 | F22: =IF(PricesByItr!F22<0,0,(PurchByItr!F22*F$1*PricesByItr!F22)/1000) -> 0 | G22: =IF(PricesByItr!G22<0,0,(PurchByItr!G22*G$1*PricesByItr!G22)/1000) -> 0 | H22: =IF(PricesByItr!H22<0,0,(PurchByItr!H22*H$1*PricesByItr!H22)/1000) -> 0 | I22: =IF(PricesByItr!I22<0,0,(PurchByItr!I22*I$1*PricesByItr!I22)/1000) -> 9719.193831 | J22: =IF(PricesByItr!J22<0,0,(PurchByItr!J22*J$1*PricesByItr!J22)/1000) -> 8883.728943 | K22: =IF(PricesByItr!K22<0,0,(PurchByItr!K22*K$1*PricesByItr!K22)/1000) -> 0 | L22: =IF(PricesByItr!L22<0,0,(PurchByItr!L22*L$1*PricesByItr!L22)/1000) -> -1704.693034 | M22: =IF(PricesByItr!M22<0,0,(PurchByItr!M22*M$1*PricesByItr!M22)/1000) -> 0 | N22: =IF(PricesByItr!N22<0,0,(PurchByItr!N22*N$1*PricesByItr!N22)/1000) -> 17168.97322 | O22: 78105.32948 | Q22: =PurchByItr!Q22 -> 2023 | R22: =PurchByItr!R22 -> 1991 | S22: =IF(PricesByItr!S22<0,0,(PurchByItr!S22*S$1*PricesByItr!S22)/1000) -> 50086.5403 | T22: =IF(PricesByItr!T22<0,0,(PurchByItr!T22*T$1*PricesByItr!T22)/1000) -> 0 | U22: =IF(PricesByItr!U22<0,0,(PurchByItr!U22*U$1*PricesByItr!U22)/1000) -> 0 | V22: =IF(PricesByItr!V22<0,0,(PurchByItr!V22*V$1*PricesByItr!V22)/1000) -> 0 | W22: =IF(PricesByItr!W22<0,0,(PurchByItr!W22*W$1*PricesByItr!W22)/1000) -> 0 | X22: =IF(PricesByItr!X22<0,0,(PurchByItr!X22*X$1*PricesByItr!X22)/1000) -> 0 | Y22: =IF(PricesByItr!Y22<0,0,(PurchByItr!Y22*Y$1*PricesByItr!Y22)/1000) -> 6708.584307 | Z22: =IF(PricesByItr!Z22<0,0,(PurchByItr!Z22*Z$1*PricesByItr!Z22)/1000) -> 1032.439232 | AA22: =IF(PricesByItr!AA22<0,0,(PurchByItr!AA22*AA$1*PricesByItr!AA22)/1000) -> 0 | AB22: =IF(PricesByItr!AB22<0,0,(PurchByItr!AB22*AB$1*PricesByItr!AB22)/1000) -> 0 | AC22: =IF(PricesByItr!AC22<0,0,(PurchByItr!AC22*AC$1*PricesByItr!AC22)/1000) -> 0 | AD22: =IF(PricesByItr!AD22<0,0,(PurchByItr!AD22*AD$1*PricesByItr!AD22)/1000) -> 21335.25625 | AE22: 79162.82009
A23: =PurchByItr!A23 -> 2022 | B23: =PurchByItr!B23 -> 1964 | C23: =IF(PricesByItr!C23<0,0,(PurchByItr!C23*C$1*PricesByItr!C23)/1000) -> 32470.96406 | D23: =IF(PricesByItr!D23<0,0,(PurchByItr!D23*D$1*PricesByItr!D23)/1000) -> 13852.87106 | E23: =IF(PricesByItr!E23<0,0,(PurchByItr!E23*E$1*PricesByItr!E23)/1000) -> 10328.73492 | F23: =IF(PricesByItr!F23<0,0,(PurchByItr!F23*F$1*PricesByItr!F23)/1000) -> 18020.79754 | G23: =IF(PricesByItr!G23<0,0,(PurchByItr!G23*G$1*PricesByItr!G23)/1000) -> 0 | H23: =IF(PricesByItr!H23<0,0,(PurchByItr!H23*H$1*PricesByItr!H23)/1000) -> 28047.05258 | I23: =IF(PricesByItr!I23<0,0,(PurchByItr!I23*I$1*PricesByItr!I23)/1000) -> 15187.19383 | J23: =IF(PricesByItr!J23<0,0,(PurchByItr!J23*J$1*PricesByItr!J23)/1000) -> 0 | K23: =IF(PricesByItr!K23<0,0,(PurchByItr!K23*K$1*PricesByItr!K23)/1000) -> 0 | L23: =IF(PricesByItr!L23<0,0,(PurchByItr!L23*L$1*PricesByItr!L23)/1000) -> 0 | M23: =IF(PricesByItr!M23<0,0,(PurchByItr!M23*M$1*PricesByItr!M23)/1000) -> 0 | N23: =IF(PricesByItr!N23<0,0,(PurchByItr!N23*N$1*PricesByItr!N23)/1000) -> 0 | O23: 117907.614 | Q23: =PurchByItr!Q23 -> 2023 | R23: =PurchByItr!R23 -> 1965 | S23: =IF(PricesByItr!S23<0,0,(PurchByItr!S23*S$1*PricesByItr!S23)/1000) -> 983.0364362 | T23: =IF(PricesByItr!T23<0,0,(PurchByItr!T23*T$1*PricesByItr!T23)/1000) -> 0 | U23: =IF(PricesByItr!U23<0,0,(PurchByItr!U23*U$1*PricesByItr!U23)/1000) -> 0 | V23: =IF(PricesByItr!V23<0,0,(PurchByItr!V23*V$1*PricesByItr!V23)/1000) -> 0 | W23: =IF(PricesByItr!W23<0,0,(PurchByItr!W23*W$1*PricesByItr!W23)/1000) -> 0 | X23: =IF(PricesByItr!X23<0,0,(PurchByItr!X23*X$1*PricesByItr!X23)/1000) -> 0 | Y23: =IF(PricesByItr!Y23<0,0,(PurchByItr!Y23*Y$1*PricesByItr!Y23)/1000) -> 0 | Z23: =IF(PricesByItr!Z23<0,0,(PurchByItr!Z23*Z$1*PricesByItr!Z23)/1000) -> 0 | AA23: =IF(PricesByItr!AA23<0,0,(PurchByItr!AA23*AA$1*PricesByItr!AA23)/1000) -> 0 | AB23: =IF(PricesByItr!AB23<0,0,(PurchByItr!AB23*AB$1*PricesByItr!AB23)/1000) -> 0 | AC23: =IF(PricesByItr!AC23<0,0,(PurchByItr!AC23*AC$1*PricesByItr!AC23)/1000) -> 0 | AD23: =IF(PricesByItr!AD23<0,0,(PurchByItr!AD23*AD$1*PricesByItr!AD23)/1000) -> 10166.64819 | AE23: 11149.68463
A24: =PurchByItr!A24 -> 2022 | B24: =PurchByItr!B24 -> 1931 | C24: =IF(PricesByItr!C24<0,0,(PurchByItr!C24*C$1*PricesByItr!C24)/1000) -> 64049.38293 | D24: =IF(PricesByItr!D24<0,0,(PurchByItr!D24*D$1*PricesByItr!D24)/1000) -> 12642.6343 | E24: =IF(PricesByItr!E24<0,0,(PurchByItr!E24*E$1*PricesByItr!E24)/1000) -> 92959.1662 | F24: =IF(PricesByItr!F24<0,0,(PurchByItr!F24*F$1*PricesByItr!F24)/1000) -> 82126.75094 | G24: =IF(PricesByItr!G24<0,0,(PurchByItr!G24*G$1*PricesByItr!G24)/1000) -> 22721.52968 | H24: =IF(PricesByItr!H24<0,0,(PurchByItr!H24*H$1*PricesByItr!H24)/1000) -> 22135.51982 | I24: =IF(PricesByItr!I24<0,0,(PurchByItr!I24*I$1*PricesByItr!I24)/1000) -> 51762.53694 | J24: =IF(PricesByItr!J24<0,0,(PurchByItr!J24*J$1*PricesByItr!J24)/1000) -> 42401.8734 | K24: =IF(PricesByItr!K24<0,0,(PurchByItr!K24*K$1*PricesByItr!K24)/1000) -> 26603.35371 | L24: =IF(PricesByItr!L24<0,0,(PurchByItr!L24*L$1*PricesByItr!L24)/1000) -> 0 | M24: =IF(PricesByItr!M24<0,0,(PurchByItr!M24*M$1*PricesByItr!M24)/1000) -> 0 | N24: =IF(PricesByItr!N24<0,0,(PurchByItr!N24*N$1*PricesByItr!N24)/1000) -> 0 | O24: 417402.7479 | Q24: =PurchByItr!Q24 -> 2023 | R24: =PurchByItr!R24 -> 1932 | S24: =IF(PricesByItr!S24<0,0,(PurchByItr!S24*S$1*PricesByItr!S24)/1000) -> 28468.77932 | T24: =IF(PricesByItr!T24<0,0,(PurchByItr!T24*T$1*PricesByItr!T24)/1000) -> 15241.85994 | U24: =IF(PricesByItr!U24<0,0,(PurchByItr!U24*U$1*PricesByItr!U24)/1000) -> 47141.35423 | V24: =IF(PricesByItr!V24<0,0,(PurchByItr!V24*V$1*PricesByItr!V24)/1000) -> 53059.98867 | W24: =IF(PricesByItr!W24<0,0,(PurchByItr!W24*W$1*PricesByItr!W24)/1000) -> 40227.5645 | X24: =IF(PricesByItr!X24<0,0,(PurchByItr!X24*X$1*PricesByItr!X24)/1000) -> -2461.518528 | Y24: =IF(PricesByItr!Y24<0,0,(PurchByItr!Y24*Y$1*PricesByItr!Y24)/1000) -> 0 | Z24: =IF(PricesByItr!Z24<0,0,(PurchByItr!Z24*Z$1*PricesByItr!Z24)/1000) -> 0 | AA24: =IF(PricesByItr!AA24<0,0,(PurchByItr!AA24*AA$1*PricesByItr!AA24)/1000) -> 0 | AB24: =IF(PricesByItr!AB24<0,0,(PurchByItr!AB24*AB$1*PricesByItr!AB24)/1000) -> 0 | AC24: =IF(PricesByItr!AC24<0,0,(PurchByItr!AC24*AC$1*PricesByItr!AC24)/1000) -> -915.7188591 | AD24: =IF(PricesByItr!AD24<0,0,(PurchByItr!AD24*AD$1*PricesByItr!AD24)/1000) -> 9915.677414 | AE24: 190677.9867
A25: =PurchByItr!A25 -> 2022 | B25: =PurchByItr!B25 -> 1973 | C25: =IF(PricesByItr!C25<0,0,(PurchByItr!C25*C$1*PricesByItr!C25)/1000) -> 9229.512511 | D25: =IF(PricesByItr!D25<0,0,(PurchByItr!D25*D$1*PricesByItr!D25)/1000) -> 0 | E25: =IF(PricesByItr!E25<0,0,(PurchByItr!E25*E$1*PricesByItr!E25)/1000) -> 5813.323603 | F25: =IF(PricesByItr!F25<0,0,(PurchByItr!F25*F$1*PricesByItr!F25)/1000) -> 0 | G25: =IF(PricesByItr!G25<0,0,(PurchByItr!G25*G$1*PricesByItr!G25)/1000) -> 0 | H25: =IF(PricesByItr!H25<0,0,(PurchByItr!H25*H$1*PricesByItr!H25)/1000) -> 19141.13038 | I25: =IF(PricesByItr!I25<0,0,(PurchByItr!I25*I$1*PricesByItr!I25)/1000) -> 35508.87781 | J25: =IF(PricesByItr!J25<0,0,(PurchByItr!J25*J$1*PricesByItr!J25)/1000) -> 17591.92435 | K25: =IF(PricesByItr!K25<0,0,(PurchByItr!K25*K$1*PricesByItr!K25)/1000) -> 15602.07842 | L25: =IF(PricesByItr!L25<0,0,(PurchByItr!L25*L$1*PricesByItr!L25)/1000) -> 18606.93742 | M25: =IF(PricesByItr!M25<0,0,(PurchByItr!M25*M$1*PricesByItr!M25)/1000) -> 4267.594412 | N25: =IF(PricesByItr!N25<0,0,(PurchByItr!N25*N$1*PricesByItr!N25)/1000) -> -2830.900525 | O25: 122930.4784 | Q25: =PurchByItr!Q25 -> 2023 | R25: =PurchByItr!R25 -> 1974 | S25: =IF(PricesByItr!S25<0,0,(PurchByItr!S25*S$1*PricesByItr!S25)/1000) -> 32061.84451 | T25: =IF(PricesByItr!T25<0,0,(PurchByItr!T25*T$1*PricesByItr!T25)/1000) -> 5339.491601 | U25: =IF(PricesByItr!U25<0,0,(PurchByItr!U25*U$1*PricesByItr!U25)/1000) -> 0 | V25: =IF(PricesByItr!V25<0,0,(PurchByItr!V25*V$1*PricesByItr!V25)/1000) -> 0 | W25: =IF(PricesByItr!W25<0,0,(PurchByItr!W25*W$1*PricesByItr!W25)/1000) -> 0 | X25: =IF(PricesByItr!X25<0,0,(PurchByItr!X25*X$1*PricesByItr!X25)/1000) -> 0 | Y25: =IF(PricesByItr!Y25<0,0,(PurchByItr!Y25*Y$1*PricesByItr!Y25)/1000) -> 0 | Z25: =IF(PricesByItr!Z25<0,0,(PurchByItr!Z25*Z$1*PricesByItr!Z25)/1000) -> 0 | AA25: =IF(PricesByItr!AA25<0,0,(PurchByItr!AA25*AA$1*PricesByItr!AA25)/1000) -> 0 | AB25: =IF(PricesByItr!AB25<0,0,(PurchByItr!AB25*AB$1*PricesByItr!AB25)/1000) -> 0 | AC25: =IF(PricesByItr!AC25<0,0,(PurchByItr!AC25*AC$1*PricesByItr!AC25)/1000) -> 0 | AD25: =IF(PricesByItr!AD25<0,0,(PurchByItr!AD25*AD$1*PricesByItr!AD25)/1000) -> 0 | AE25: 37401.33611
A26: =PurchByItr!A26 -> 2022 | B26: =PurchByItr!B26 -> 1976 | C26: =IF(PricesByItr!C26<0,0,(PurchByItr!C26*C$1*PricesByItr!C26)/1000) -> 0 | D26: =IF(PricesByItr!D26<0,0,(PurchByItr!D26*D$1*PricesByItr!D26)/1000) -> 0 | E26: =IF(PricesByItr!E26<0,0,(PurchByItr!E26*E$1*PricesByItr!E26)/1000) -> 0 | F26: =IF(PricesByItr!F26<0,0,(PurchByItr!F26*F$1*PricesByItr!F26)/1000) -> 0 | G26: =IF(PricesByItr!G26<0,0,(PurchByItr!G26*G$1*PricesByItr!G26)/1000) -> 0 | H26: =IF(PricesByItr!H26<0,0,(PurchByItr!H26*H$1*PricesByItr!H26)/1000) -> 0 | I26: =IF(PricesByItr!I26<0,0,(PurchByItr!I26*I$1*PricesByItr!I26)/1000) -> 0 | J26: =IF(PricesByItr!J26<0,0,(PurchByItr!J26*J$1*PricesByItr!J26)/1000) -> 0 | K26: =IF(PricesByItr!K26<0,0,(PurchByItr!K26*K$1*PricesByItr!K26)/1000) -> 0 | L26: =IF(PricesByItr!L26<0,0,(PurchByItr!L26*L$1*PricesByItr!L26)/1000) -> 0 | M26: =IF(PricesByItr!M26<0,0,(PurchByItr!M26*M$1*PricesByItr!M26)/1000) -> 0 | N26: =IF(PricesByItr!N26<0,0,(PurchByItr!N26*N$1*PricesByItr!N26)/1000) -> 0 | O26: 0 | Q26: =PurchByItr!Q26 -> 2023 | R26: =PurchByItr!R26 -> 1977 | S26: =IF(PricesByItr!S26<0,0,(PurchByItr!S26*S$1*PricesByItr!S26)/1000) -> 5386.072518 | T26: =IF(PricesByItr!T26<0,0,(PurchByItr!T26*T$1*PricesByItr!T26)/1000) -> 9508.515464 | U26: =IF(PricesByItr!U26<0,0,(PurchByItr!U26*U$1*PricesByItr!U26)/1000) -> 26630.89339 | V26: =IF(PricesByItr!V26<0,0,(PurchByItr!V26*V$1*PricesByItr!V26)/1000) -> 28373.75599 | W26: =IF(PricesByItr!W26<0,0,(PurchByItr!W26*W$1*PricesByItr!W26)/1000) -> 8306.593433 | X26: =IF(PricesByItr!X26<0,0,(PurchByItr!X26*X$1*PricesByItr!X26)/1000) -> 47728.13426 | Y26: =IF(PricesByItr!Y26<0,0,(PurchByItr!Y26*Y$1*PricesByItr!Y26)/1000) -> 56463.76426 | Z26: =IF(PricesByItr!Z26<0,0,(PurchByItr!Z26*Z$1*PricesByItr!Z26)/1000) -> 48227.49863 | AA26: =IF(PricesByItr!AA26<0,0,(PurchByItr!AA26*AA$1*PricesByItr!AA26)/1000) -> 38403.01595 | AB26: =IF(PricesByItr!AB26<0,0,(PurchByItr!AB26*AB$1*PricesByItr!AB26)/1000) -> 17903.34609 | AC26: =IF(PricesByItr!AC26<0,0,(PurchByItr!AC26*AC$1*PricesByItr!AC26)/1000) -> -2232.361711 | AD26: =IF(PricesByItr!AD26<0,0,(PurchByItr!AD26*AD$1*PricesByItr!AD26)/1000) -> -199.5795265 | AE26: 284499.6488
A27: =PurchByItr!A27 -> 2022 | B27: =PurchByItr!B27 -> 1929 | C27: =IF(PricesByItr!C27<0,0,(PurchByItr!C27*C$1*PricesByItr!C27)/1000) -> 21052.83502 | D27: =IF(PricesByItr!D27<0,0,(PurchByItr!D27*D$1*PricesByItr!D27)/1000) -> 11297.60077 | E27: =IF(PricesByItr!E27<0,0,(PurchByItr!E27*E$1*PricesByItr!E27)/1000) -> 47616.68132 | F27: =IF(PricesByItr!F27<0,0,(PurchByItr!F27*F$1*PricesByItr!F27)/1000) -> 51443.47111 | G27: =IF(PricesByItr!G27<0,0,(PurchByItr!G27*G$1*PricesByItr!G27)/1000) -> 37885.16318 | H27: =IF(PricesByItr!H27<0,0,(PurchByItr!H27*H$1*PricesByItr!H27)/1000) -> 34913.41193 | I27: =IF(PricesByItr!I27<0,0,(PurchByItr!I27*I$1*PricesByItr!I27)/1000) -> 38218.90151 | J27: =IF(PricesByItr!J27<0,0,(PurchByItr!J27*J$1*PricesByItr!J27)/1000) -> 57090.77108 | K27: =IF(PricesByItr!K27<0,0,(PurchByItr!K27*K$1*PricesByItr!K27)/1000) -> 145.6556754 | L27: =IF(PricesByItr!L27<0,0,(PurchByItr!L27*L$1*PricesByItr!L27)/1000) -> 33300.7627 | M27: =IF(PricesByItr!M27<0,0,(PurchByItr!M27*M$1*PricesByItr!M27)/1000) -> 2457.653201 | N27: =IF(PricesByItr!N27<0,0,(PurchByItr!N27*N$1*PricesByItr!N27)/1000) -> 0 | O27: 335422.9075 | Q27: =PurchByItr!Q27 -> 2023 | R27: =PurchByItr!R27 -> 1930 | S27: =IF(PricesByItr!S27<0,0,(PurchByItr!S27*S$1*PricesByItr!S27)/1000) -> 37279.19335 | T27: =IF(PricesByItr!T27<0,0,(PurchByItr!T27*T$1*PricesByItr!T27)/1000) -> 24614.56018 | U27: =IF(PricesByItr!U27<0,0,(PurchByItr!U27*U$1*PricesByItr!U27)/1000) -> 69879.35828 | V27: =IF(PricesByItr!V27<0,0,(PurchByItr!V27*V$1*PricesByItr!V27)/1000) -> 77827.3069 | W27: =IF(PricesByItr!W27<0,0,(PurchByItr!W27*W$1*PricesByItr!W27)/1000) -> 26445.11781 | X27: =IF(PricesByItr!X27<0,0,(PurchByItr!X27*X$1*PricesByItr!X27)/1000) -> 50042.34098 | Y27: =IF(PricesByItr!Y27<0,0,(PurchByItr!Y27*Y$1*PricesByItr!Y27)/1000) -> 57410.60162 | Z27: =IF(PricesByItr!Z27<0,0,(PurchByItr!Z27*Z$1*PricesByItr!Z27)/1000) -> 35700.29067 | AA27: =IF(PricesByItr!AA27<0,0,(PurchByItr!AA27*AA$1*PricesByItr!AA27)/1000) -> 40758.86566 | AB27: =IF(PricesByItr!AB27<0,0,(PurchByItr!AB27*AB$1*PricesByItr!AB27)/1000) -> -1043.963152 | AC27: =IF(PricesByItr!AC27<0,0,(PurchByItr!AC27*AC$1*PricesByItr!AC27)/1000) -> 2266.092856 | AD27: =IF(PricesByItr!AD27<0,0,(PurchByItr!AD27*AD$1*PricesByItr!AD27)/1000) -> -1018.286347 | AE27: 420161.4788
A28: =PurchByItr!A28 -> 2022 | B28: =PurchByItr!B28 -> 2001 | C28: =IF(PricesByItr!C28<0,0,(PurchByItr!C28*C$1*PricesByItr!C28)/1000) -> 32349.22627 | D28: =IF(PricesByItr!D28<0,0,(PurchByItr!D28*D$1*PricesByItr!D28)/1000) -> 10302.23759 | E28: =IF(PricesByItr!E28<0,0,(PurchByItr!E28*E$1*PricesByItr!E28)/1000) -> 42150.40675 | F28: =IF(PricesByItr!F28<0,0,(PurchByItr!F28*F$1*PricesByItr!F28)/1000) -> 42849.03041 | G28: =IF(PricesByItr!G28<0,0,(PurchByItr!G28*G$1*PricesByItr!G28)/1000) -> 15342.49073 | H28: =IF(PricesByItr!H28<0,0,(PurchByItr!H28*H$1*PricesByItr!H28)/1000) -> 44788.42674 | I28: =IF(PricesByItr!I28<0,0,(PurchByItr!I28*I$1*PricesByItr!I28)/1000) -> 70599.70454 | J28: =IF(PricesByItr!J28<0,0,(PurchByItr!J28*J$1*PricesByItr!J28)/1000) -> 62247.52883 | K28: =IF(PricesByItr!K28<0,0,(PurchByItr!K28*K$1*PricesByItr!K28)/1000) -> 59894.73767 | L28: =IF(PricesByItr!L28<0,0,(PurchByItr!L28*L$1*PricesByItr!L28)/1000) -> 50318.46228 | M28: =IF(PricesByItr!M28<0,0,(PurchByItr!M28*M$1*PricesByItr!M28)/1000) -> -5610.872105 | N28: =IF(PricesByItr!N28<0,0,(PurchByItr!N28*N$1*PricesByItr!N28)/1000) -> 0 | O28: 425231.3797 | Q28: =PurchByItr!Q28 -> 2023 | R28: =PurchByItr!R28 -> 2002 | S28: =IF(PricesByItr!S28<0,0,(PurchByItr!S28*S$1*PricesByItr!S28)/1000) -> 33462.51929 | T28: =IF(PricesByItr!T28<0,0,(PurchByItr!T28*T$1*PricesByItr!T28)/1000) -> 12683.00121 | U28: =IF(PricesByItr!U28<0,0,(PurchByItr!U28*U$1*PricesByItr!U28)/1000) -> 22129.49298 | V28: =IF(PricesByItr!V28<0,0,(PurchByItr!V28*V$1*PricesByItr!V28)/1000) -> 39830.22648 | W28: =IF(PricesByItr!W28<0,0,(PurchByItr!W28*W$1*PricesByItr!W28)/1000) -> 41203.74348 | X28: =IF(PricesByItr!X28<0,0,(PurchByItr!X28*X$1*PricesByItr!X28)/1000) -> 29142.07994 | Y28: =IF(PricesByItr!Y28<0,0,(PurchByItr!Y28*Y$1*PricesByItr!Y28)/1000) -> 237.8510916 | Z28: =IF(PricesByItr!Z28<0,0,(PurchByItr!Z28*Z$1*PricesByItr!Z28)/1000) -> 2610.909296 | AA28: =IF(PricesByItr!AA28<0,0,(PurchByItr!AA28*AA$1*PricesByItr!AA28)/1000) -> 0 | AB28: =IF(PricesByItr!AB28<0,0,(PurchByItr!AB28*AB$1*PricesByItr!AB28)/1000) -> 0 | AC28: =IF(PricesByItr!AC28<0,0,(PurchByItr!AC28*AC$1*PricesByItr!AC28)/1000) -> -2479.246846 | AD28: =IF(PricesByItr!AD28<0,0,(PurchByItr!AD28*AD$1*PricesByItr!AD28)/1000) -> 16803.75287 | AE28: 195624.3298
A29: =PurchByItr!A29 -> 2022 | B29: =PurchByItr!B29 -> 1989 | C29: =IF(PricesByItr!C29<0,0,(PurchByItr!C29*C$1*PricesByItr!C29)/1000) -> 20249.78764 | D29: =IF(PricesByItr!D29<0,0,(PurchByItr!D29*D$1*PricesByItr!D29)/1000) -> -533.1917758 | E29: =IF(PricesByItr!E29<0,0,(PurchByItr!E29*E$1*PricesByItr!E29)/1000) -> 27314.23261 | F29: =IF(PricesByItr!F29<0,0,(PurchByItr!F29*F$1*PricesByItr!F29)/1000) -> 50352.09271 | G29: =IF(PricesByItr!G29<0,0,(PurchByItr!G29*G$1*PricesByItr!G29)/1000) -> 50650.32855 | H29: =IF(PricesByItr!H29<0,0,(PurchByItr!H29*H$1*PricesByItr!H29)/1000) -> 0 | I29: =IF(PricesByItr!I29<0,0,(PurchByItr!I29*I$1*PricesByItr!I29)/1000) -> 0 | J29: =IF(PricesByItr!J29<0,0,(PurchByItr!J29*J$1*PricesByItr!J29)/1000) -> 0 | K29: =IF(PricesByItr!K29<0,0,(PurchByItr!K29*K$1*PricesByItr!K29)/1000) -> 3504.303934 | L29: =IF(PricesByItr!L29<0,0,(PurchByItr!L29*L$1*PricesByItr!L29)/1000) -> -3309.561509 | M29: =IF(PricesByItr!M29<0,0,(PurchByItr!M29*M$1*PricesByItr!M29)/1000) -> 5079.127303 | N29: =IF(PricesByItr!N29<0,0,(PurchByItr!N29*N$1*PricesByItr!N29)/1000) -> 0 | O29: 153307.1195 | Q29: =PurchByItr!Q29 -> 2023 | R29: =PurchByItr!R29 -> 1990 | S29: =IF(PricesByItr!S29<0,0,(PurchByItr!S29*S$1*PricesByItr!S29)/1000) -> 16924.21295 | T29: =IF(PricesByItr!T29<0,0,(PurchByItr!T29*T$1*PricesByItr!T29)/1000) -> 11656.08869 | U29: =IF(PricesByItr!U29<0,0,(PurchByItr!U29*U$1*PricesByItr!U29)/1000) -> 0 | V29: =IF(PricesByItr!V29<0,0,(PurchByItr!V29*V$1*PricesByItr!V29)/1000) -> 0 | W29: =IF(PricesByItr!W29<0,0,(PurchByItr!W29*W$1*PricesByItr!W29)/1000) -> 0 | X29: =IF(PricesByItr!X29<0,0,(PurchByItr!X29*X$1*PricesByItr!X29)/1000) -> 0 | Y29: =IF(PricesByItr!Y29<0,0,(PurchByItr!Y29*Y$1*PricesByItr!Y29)/1000) -> 11261.92578 | Z29: =IF(PricesByItr!Z29<0,0,(PurchByItr!Z29*Z$1*PricesByItr!Z29)/1000) -> 16388.67294 | AA29: =IF(PricesByItr!AA29<0,0,(PurchByItr!AA29*AA$1*PricesByItr!AA29)/1000) -> 0 | AB29: =IF(PricesByItr!AB29<0,0,(PurchByItr!AB29*AB$1*PricesByItr!AB29)/1000) -> -2034.561153 | AC29: =IF(PricesByItr!AC29<0,0,(PurchByItr!AC29*AC$1*PricesByItr!AC29)/1000) -> 0 | AD29: =IF(PricesByItr!AD29<0,0,(PurchByItr!AD29*AD$1*PricesByItr!AD29)/1000) -> 17596.22071 | AE29: 71792.55992
A30: =PurchByItr!A30 -> 2022 | B30: =PurchByItr!B30 -> 2002 | C30: =IF(PricesByItr!C30<0,0,(PurchByItr!C30*C$1*PricesByItr!C30)/1000) -> 18904.16043 | D30: =IF(PricesByItr!D30<0,0,(PurchByItr!D30*D$1*PricesByItr!D30)/1000) -> 9422.973012 | E30: =IF(PricesByItr!E30<0,0,(PurchByItr!E30*E$1*PricesByItr!E30)/1000) -> 24232.2048 | F30: =IF(PricesByItr!F30<0,0,(PurchByItr!F30*F$1*PricesByItr!F30)/1000) -> 43641.04343 | G30: =IF(PricesByItr!G30<0,0,(PurchByItr!G30*G$1*PricesByItr!G30)/1000) -> 45773.43066 | H30: =IF(PricesByItr!H30<0,0,(PurchByItr!H30*H$1*PricesByItr!H30)/1000) -> 34270.44709 | I30: =IF(PricesByItr!I30<0,0,(PurchByItr!I30*I$1*PricesByItr!I30)/1000) -> 0 | J30: =IF(PricesByItr!J30<0,0,(PurchByItr!J30*J$1*PricesByItr!J30)/1000) -> 3025.804451 | K30: =IF(PricesByItr!K30<0,0,(PurchByItr!K30*K$1*PricesByItr!K30)/1000) -> 0 | L30: =IF(PricesByItr!L30<0,0,(PurchByItr!L30*L$1*PricesByItr!L30)/1000) -> 0 | M30: =IF(PricesByItr!M30<0,0,(PurchByItr!M30*M$1*PricesByItr!M30)/1000) -> -1953.990372 | N30: =IF(PricesByItr!N30<0,0,(PurchByItr!N30*N$1*PricesByItr!N30)/1000) -> 10414.96382 | O30: 187731.0373 | Q30: =PurchByItr!Q30 -> 2023 | R30: =PurchByItr!R30 -> 2003 | S30: =IF(PricesByItr!S30<0,0,(PurchByItr!S30*S$1*PricesByItr!S30)/1000) -> 22485.60793 | T30: =IF(PricesByItr!T30<0,0,(PurchByItr!T30*T$1*PricesByItr!T30)/1000) -> 3676.016687 | U30: =IF(PricesByItr!U30<0,0,(PurchByItr!U30*U$1*PricesByItr!U30)/1000) -> 39631.79993 | V30: =IF(PricesByItr!V30<0,0,(PurchByItr!V30*V$1*PricesByItr!V30)/1000) -> 44040.9186 | W30: =IF(PricesByItr!W30<0,0,(PurchByItr!W30*W$1*PricesByItr!W30)/1000) -> 13312.44242 | X30: =IF(PricesByItr!X30<0,0,(PurchByItr!X30*X$1*PricesByItr!X30)/1000) -> 0 | Y30: =IF(PricesByItr!Y30<0,0,(PurchByItr!Y30*Y$1*PricesByItr!Y30)/1000) -> 4099.015977 | Z30: =IF(PricesByItr!Z30<0,0,(PurchByItr!Z30*Z$1*PricesByItr!Z30)/1000) -> 28106.13437 | AA30: =IF(PricesByItr!AA30<0,0,(PurchByItr!AA30*AA$1*PricesByItr!AA30)/1000) -> 0 | AB30: =IF(PricesByItr!AB30<0,0,(PurchByItr!AB30*AB$1*PricesByItr!AB30)/1000) -> 16854.89931 | AC30: =IF(PricesByItr!AC30<0,0,(PurchByItr!AC30*AC$1*PricesByItr!AC30)/1000) -> 12072.86331 | AD30: =IF(PricesByItr!AD30<0,0,(PurchByItr!AD30*AD$1*PricesByItr!AD30)/1000) -> 0 | AE30: 184279.6985
A31: =PurchByItr!A31 -> 2022 | B31: =PurchByItr!B31 -> 1934 | C31: =IF(PricesByItr!C31<0,0,(PurchByItr!C31*C$1*PricesByItr!C31)/1000) -> 5809.424241 | D31: =IF(PricesByItr!D31<0,0,(PurchByItr!D31*D$1*PricesByItr!D31)/1000) -> 0 | E31: =IF(PricesByItr!E31<0,0,(PurchByItr!E31*E$1*PricesByItr!E31)/1000) -> 0 | F31: =IF(PricesByItr!F31<0,0,(PurchByItr!F31*F$1*PricesByItr!F31)/1000) -> 0 | G31: =IF(PricesByItr!G31<0,0,(PurchByItr!G31*G$1*PricesByItr!G31)/1000) -> 0 | H31: =IF(PricesByItr!H31<0,0,(PurchByItr!H31*H$1*PricesByItr!H31)/1000) -> 0 | I31: =IF(PricesByItr!I31<0,0,(PurchByItr!I31*I$1*PricesByItr!I31)/1000) -> 0 | J31: =IF(PricesByItr!J31<0,0,(PurchByItr!J31*J$1*PricesByItr!J31)/1000) -> 0 | K31: =IF(PricesByItr!K31<0,0,(PurchByItr!K31*K$1*PricesByItr!K31)/1000) -> -7418.728184 | L31: =IF(PricesByItr!L31<0,0,(PurchByItr!L31*L$1*PricesByItr!L31)/1000) -> 20798.0786 | M31: =IF(PricesByItr!M31<0,0,(PurchByItr!M31*M$1*PricesByItr!M31)/1000) -> 1114.194261 | N31: =IF(PricesByItr!N31<0,0,(PurchByItr!N31*N$1*PricesByItr!N31)/1000) -> 0 | O31: 20302.96892 | Q31: =PurchByItr!Q31 -> 2023 | R31: =PurchByItr!R31 -> 1935 | S31: =IF(PricesByItr!S31<0,0,(PurchByItr!S31*S$1*PricesByItr!S31)/1000) -> 16308.85788 | T31: =IF(PricesByItr!T31<0,0,(PurchByItr!T31*T$1*PricesByItr!T31)/1000) -> 32389.73151 | U31: =IF(PricesByItr!U31<0,0,(PurchByItr!U31*U$1*PricesByItr!U31)/1000) -> 29831.944 | V31: =IF(PricesByItr!V31<0,0,(PurchByItr!V31*V$1*PricesByItr!V31)/1000) -> 0 | W31: =IF(PricesByItr!W31<0,0,(PurchByItr!W31*W$1*PricesByItr!W31)/1000) -> 0 | X31: =IF(PricesByItr!X31<0,0,(PurchByItr!X31*X$1*PricesByItr!X31)/1000) -> 1294.12855 | Y31: =IF(PricesByItr!Y31<0,0,(PurchByItr!Y31*Y$1*PricesByItr!Y31)/1000) -> 33939.69377 | Z31: =IF(PricesByItr!Z31<0,0,(PurchByItr!Z31*Z$1*PricesByItr!Z31)/1000) -> 7896.600577 | AA31: =IF(PricesByItr!AA31<0,0,(PurchByItr!AA31*AA$1*PricesByItr!AA31)/1000) -> 8943.15969 | AB31: =IF(PricesByItr!AB31<0,0,(PurchByItr!AB31*AB$1*PricesByItr!AB31)/1000) -> -5168.479164 | AC31: =IF(PricesByItr!AC31<0,0,(PurchByItr!AC31*AC$1*PricesByItr!AC31)/1000) -> 0 | AD31: =IF(PricesByItr!AD31<0,0,(PurchByItr!AD31*AD$1*PricesByItr!AD31)/1000) -> 20527.75867 | AE31: 145963.3955
A32: =PurchByItr!A32 -> 2022 | B32: =PurchByItr!B32 -> 1936 | C32: =IF(PricesByItr!C32<0,0,(PurchByItr!C32*C$1*PricesByItr!C32)/1000) -> 31683.16905 | D32: =IF(PricesByItr!D32<0,0,(PurchByItr!D32*D$1*PricesByItr!D32)/1000) -> 14803.09526 | E32: =IF(PricesByItr!E32<0,0,(PurchByItr!E32*E$1*PricesByItr!E32)/1000) -> 47311.4414 | F32: =IF(PricesByItr!F32<0,0,(PurchByItr!F32*F$1*PricesByItr!F32)/1000) -> 82596.81717 | G32: =IF(PricesByItr!G32<0,0,(PurchByItr!G32*G$1*PricesByItr!G32)/1000) -> 77191.70353 | H32: =IF(PricesByItr!H32<0,0,(PurchByItr!H32*H$1*PricesByItr!H32)/1000) -> 24197.98007 | I32: =IF(PricesByItr!I32<0,0,(PurchByItr!I32*I$1*PricesByItr!I32)/1000) -> 17110.15645 | J32: =IF(PricesByItr!J32<0,0,(PurchByItr!J32*J$1*PricesByItr!J32)/1000) -> 0 | K32: =IF(PricesByItr!K32<0,0,(PurchByItr!K32*K$1*PricesByItr!K32)/1000) -> 0 | L32: =IF(PricesByItr!L32<0,0,(PurchByItr!L32*L$1*PricesByItr!L32)/1000) -> 0 | M32: =IF(PricesByItr!M32<0,0,(PurchByItr!M32*M$1*PricesByItr!M32)/1000) -> 138.2523106 | N32: =IF(PricesByItr!N32<0,0,(PurchByItr!N32*N$1*PricesByItr!N32)/1000) -> 21077.68715 | O32: 316110.3024 | Q32: =PurchByItr!Q32 -> 2023 | R32: =PurchByItr!R32 -> 1937 | S32: =IF(PricesByItr!S32<0,0,(PurchByItr!S32*S$1*PricesByItr!S32)/1000) -> 36371.66895 | T32: =IF(PricesByItr!T32<0,0,(PurchByItr!T32*T$1*PricesByItr!T32)/1000) -> 6478.991978 | U32: =IF(PricesByItr!U32<0,0,(PurchByItr!U32*U$1*PricesByItr!U32)/1000) -> 38535.49488 | V32: =IF(PricesByItr!V32<0,0,(PurchByItr!V32*V$1*PricesByItr!V32)/1000) -> 99318.61064 | W32: =IF(PricesByItr!W32<0,0,(PurchByItr!W32*W$1*PricesByItr!W32)/1000) -> 106168.0773 | X32: =IF(PricesByItr!X32<0,0,(PurchByItr!X32*X$1*PricesByItr!X32)/1000) -> 61620.23244 | Y32: =IF(PricesByItr!Y32<0,0,(PurchByItr!Y32*Y$1*PricesByItr!Y32)/1000) -> 75559.91965 | Z32: =IF(PricesByItr!Z32<0,0,(PurchByItr!Z32*Z$1*PricesByItr!Z32)/1000) -> 55674.42008 | AA32: =IF(PricesByItr!AA32<0,0,(PurchByItr!AA32*AA$1*PricesByItr!AA32)/1000) -> 9237.59228 | AB32: =IF(PricesByItr!AB32<0,0,(PurchByItr!AB32*AB$1*PricesByItr!AB32)/1000) -> 10810.16657 | AC32: =IF(PricesByItr!AC32<0,0,(PurchByItr!AC32*AC$1*PricesByItr!AC32)/1000) -> 1067.714841 | AD32: =IF(PricesByItr!AD32<0,0,(PurchByItr!AD32*AD$1*PricesByItr!AD32)/1000) -> -7362.210181 | AE32: 493480.6794
A33: =PurchByItr!A33 -> 2022 | B33: =PurchByItr!B33 -> 1958 | C33: =IF(PricesByItr!C33<0,0,(PurchByItr!C33*C$1*PricesByItr!C33)/1000) -> 41902.26079 | D33: =IF(PricesByItr!D33<0,0,(PurchByItr!D33*D$1*PricesByItr!D33)/1000) -> 15537.02164 | E33: =IF(PricesByItr!E33<0,0,(PurchByItr!E33*E$1*PricesByItr!E33)/1000) -> 44755.28183 | F33: =IF(PricesByItr!F33<0,0,(PurchByItr!F33*F$1*PricesByItr!F33)/1000) -> 0 | G33: =IF(PricesByItr!G33<0,0,(PurchByItr!G33*G$1*PricesByItr!G33)/1000) -> 0 | H33: =IF(PricesByItr!H33<0,0,(PurchByItr!H33*H$1*PricesByItr!H33)/1000) -> 0 | I33: =IF(PricesByItr!I33<0,0,(PurchByItr!I33*I$1*PricesByItr!I33)/1000) -> 9191.723001 | J33: =IF(PricesByItr!J33<0,0,(PurchByItr!J33*J$1*PricesByItr!J33)/1000) -> 0 | K33: =IF(PricesByItr!K33<0,0,(PurchByItr!K33*K$1*PricesByItr!K33)/1000) -> 0 | L33: =IF(PricesByItr!L33<0,0,(PurchByItr!L33*L$1*PricesByItr!L33)/1000) -> -2907.517501 | M33: =IF(PricesByItr!M33<0,0,(PurchByItr!M33*M$1*PricesByItr!M33)/1000) -> -2016.533094 | N33: =IF(PricesByItr!N33<0,0,(PurchByItr!N33*N$1*PricesByItr!N33)/1000) -> 12643.05913 | O33: 119105.2958 | Q33: =PurchByItr!Q33 -> 2023 | R33: =PurchByItr!R33 -> 1959 | S33: =IF(PricesByItr!S33<0,0,(PurchByItr!S33*S$1*PricesByItr!S33)/1000) -> 33670.3168 | T33: =IF(PricesByItr!T33<0,0,(PurchByItr!T33*T$1*PricesByItr!T33)/1000) -> 0 | U33: =IF(PricesByItr!U33<0,0,(PurchByItr!U33*U$1*PricesByItr!U33)/1000) -> 0 | V33: =IF(PricesByItr!V33<0,0,(PurchByItr!V33*V$1*PricesByItr!V33)/1000) -> 0 | W33: =IF(PricesByItr!W33<0,0,(PurchByItr!W33*W$1*PricesByItr!W33)/1000) -> 0 | X33: =IF(PricesByItr!X33<0,0,(PurchByItr!X33*X$1*PricesByItr!X33)/1000) -> 0 | Y33: =IF(PricesByItr!Y33<0,0,(PurchByItr!Y33*Y$1*PricesByItr!Y33)/1000) -> 0 | Z33: =IF(PricesByItr!Z33<0,0,(PurchByItr!Z33*Z$1*PricesByItr!Z33)/1000) -> 0 | AA33: =IF(PricesByItr!AA33<0,0,(PurchByItr!AA33*AA$1*PricesByItr!AA33)/1000) -> 0 | AB33: =IF(PricesByItr!AB33<0,0,(PurchByItr!AB33*AB$1*PricesByItr!AB33)/1000) -> 0 | AC33: =IF(PricesByItr!AC33<0,0,(PurchByItr!AC33*AC$1*PricesByItr!AC33)/1000) -> 0 | AD33: =IF(PricesByItr!AD33<0,0,(PurchByItr!AD33*AD$1*PricesByItr!AD33)/1000) -> 0 | AE33: 33670.3168
A34: =PurchByItr!A34 -> 2022 | B34: =PurchByItr!B34 -> 1996 | C34: =IF(PricesByItr!C34<0,0,(PurchByItr!C34*C$1*PricesByItr!C34)/1000) -> 1137.238246 | D34: =IF(PricesByItr!D34<0,0,(PurchByItr!D34*D$1*PricesByItr!D34)/1000) -> 0 | E34: =IF(PricesByItr!E34<0,0,(PurchByItr!E34*E$1*PricesByItr!E34)/1000) -> 0 | F34: =IF(PricesByItr!F34<0,0,(PurchByItr!F34*F$1*PricesByItr!F34)/1000) -> 0 | G34: =IF(PricesByItr!G34<0,0,(PurchByItr!G34*G$1*PricesByItr!G34)/1000) -> 0 | H34: =IF(PricesByItr!H34<0,0,(PurchByItr!H34*H$1*PricesByItr!H34)/1000) -> 0 | I34: =IF(PricesByItr!I34<0,0,(PurchByItr!I34*I$1*PricesByItr!I34)/1000) -> 0 | J34: =IF(PricesByItr!J34<0,0,(PurchByItr!J34*J$1*PricesByItr!J34)/1000) -> 0 | K34: =IF(PricesByItr!K34<0,0,(PurchByItr!K34*K$1*PricesByItr!K34)/1000) -> 0 | L34: =IF(PricesByItr!L34<0,0,(PurchByItr!L34*L$1*PricesByItr!L34)/1000) -> 0 | M34: =IF(PricesByItr!M34<0,0,(PurchByItr!M34*M$1*PricesByItr!M34)/1000) -> 0 | N34: =IF(PricesByItr!N34<0,0,(PurchByItr!N34*N$1*PricesByItr!N34)/1000) -> 9920.269054 | O34: 11057.5073 | Q34: =PurchByItr!Q34 -> 2023 | R34: =PurchByItr!R34 -> 1997 | S34: =IF(PricesByItr!S34<0,0,(PurchByItr!S34*S$1*PricesByItr!S34)/1000) -> 17326.86207 | T34: =IF(PricesByItr!T34<0,0,(PurchByItr!T34*T$1*PricesByItr!T34)/1000) -> 0 | U34: =IF(PricesByItr!U34<0,0,(PurchByItr!U34*U$1*PricesByItr!U34)/1000) -> 0 | V34: =IF(PricesByItr!V34<0,0,(PurchByItr!V34*V$1*PricesByItr!V34)/1000) -> 0 | W34: =IF(PricesByItr!W34<0,0,(PurchByItr!W34*W$1*PricesByItr!W34)/1000) -> 0 | X34: =IF(PricesByItr!X34<0,0,(PurchByItr!X34*X$1*PricesByItr!X34)/1000) -> 0 | Y34: =IF(PricesByItr!Y34<0,0,(PurchByItr!Y34*Y$1*PricesByItr!Y34)/1000) -> 0 | Z34: =IF(PricesByItr!Z34<0,0,(PurchByItr!Z34*Z$1*PricesByItr!Z34)/1000) -> 0 | AA34: =IF(PricesByItr!AA34<0,0,(PurchByItr!AA34*AA$1*PricesByItr!AA34)/1000) -> 0 | AB34: =IF(PricesByItr!AB34<0,0,(PurchByItr!AB34*AB$1*PricesByItr!AB34)/1000) -> 0 | AC34: =IF(PricesByItr!AC34<0,0,(PurchByItr!AC34*AC$1*PricesByItr!AC34)/1000) -> 0 | AD34: =IF(PricesByItr!AD34<0,0,(PurchByItr!AD34*AD$1*PricesByItr!AD34)/1000) -> 0 | AE34: 17326.86207
A35: =PurchByItr!A35 -> 2022 | B35: =PurchByItr!B35 -> 1979 | C35: =IF(PricesByItr!C35<0,0,(PurchByItr!C35*C$1*PricesByItr!C35)/1000) -> 3026.901884 | D35: =IF(PricesByItr!D35<0,0,(PurchByItr!D35*D$1*PricesByItr!D35)/1000) -> 14299.52634 | E35: =IF(PricesByItr!E35<0,0,(PurchByItr!E35*E$1*PricesByItr!E35)/1000) -> 46530.94684 | F35: =IF(PricesByItr!F35<0,0,(PurchByItr!F35*F$1*PricesByItr!F35)/1000) -> 18553.51859 | G35: =IF(PricesByItr!G35<0,0,(PurchByItr!G35*G$1*PricesByItr!G35)/1000) -> 10127.59499 | H35: =IF(PricesByItr!H35<0,0,(PurchByItr!H35*H$1*PricesByItr!H35)/1000) -> 1128.338636 | I35: =IF(PricesByItr!I35<0,0,(PurchByItr!I35*I$1*PricesByItr!I35)/1000) -> 35758.25087 | J35: =IF(PricesByItr!J35<0,0,(PurchByItr!J35*J$1*PricesByItr!J35)/1000) -> 0 | K35: =IF(PricesByItr!K35<0,0,(PurchByItr!K35*K$1*PricesByItr!K35)/1000) -> 12618.41393 | L35: =IF(PricesByItr!L35<0,0,(PurchByItr!L35*L$1*PricesByItr!L35)/1000) -> 20732.41152 | M35: =IF(PricesByItr!M35<0,0,(PurchByItr!M35*M$1*PricesByItr!M35)/1000) -> 4586.433869 | N35: =IF(PricesByItr!N35<0,0,(PurchByItr!N35*N$1*PricesByItr!N35)/1000) -> -1693.717956 | O35: 165668.6195 | Q35: =PurchByItr!Q35 -> 2023 | R35: =PurchByItr!R35 -> 1980 | S35: =IF(PricesByItr!S35<0,0,(PurchByItr!S35*S$1*PricesByItr!S35)/1000) -> 22527.94219 | T35: =IF(PricesByItr!T35<0,0,(PurchByItr!T35*T$1*PricesByItr!T35)/1000) -> 23430.44496 | U35: =IF(PricesByItr!U35<0,0,(PurchByItr!U35*U$1*PricesByItr!U35)/1000) -> 56683.76546 | V35: =IF(PricesByItr!V35<0,0,(PurchByItr!V35*V$1*PricesByItr!V35)/1000) -> 25400.10519 | W35: =IF(PricesByItr!W35<0,0,(PurchByItr!W35*W$1*PricesByItr!W35)/1000) -> 24146.51438 | X35: =IF(PricesByItr!X35<0,0,(PurchByItr!X35*X$1*PricesByItr!X35)/1000) -> 27742.85314 | Y35: =IF(PricesByItr!Y35<0,0,(PurchByItr!Y35*Y$1*PricesByItr!Y35)/1000) -> 11761.48987 | Z35: =IF(PricesByItr!Z35<0,0,(PurchByItr!Z35*Z$1*PricesByItr!Z35)/1000) -> 0 | AA35: =IF(PricesByItr!AA35<0,0,(PurchByItr!AA35*AA$1*PricesByItr!AA35)/1000) -> 0 | AB35: =IF(PricesByItr!AB35<0,0,(PurchByItr!AB35*AB$1*PricesByItr!AB35)/1000) -> -1755.831011 | AC35: =IF(PricesByItr!AC35<0,0,(PurchByItr!AC35*AC$1*PricesByItr!AC35)/1000) -> -1848.611474 | AD35: =IF(PricesByItr!AD35<0,0,(PurchByItr!AD35*AD$1*PricesByItr!AD35)/1000) -> 11429.39192 | AE35: 199518.0646
A36: =PurchByItr!A36 -> 2022 | B36: =PurchByItr!B36 -> 1988 | C36: =IF(PricesByItr!C36<0,0,(PurchByItr!C36*C$1*PricesByItr!C36)/1000) -> 29344.57868 | D36: =IF(PricesByItr!D36<0,0,(PurchByItr!D36*D$1*PricesByItr!D36)/1000) -> 24100.22547 | E36: =IF(PricesByItr!E36<0,0,(PurchByItr!E36*E$1*PricesByItr!E36)/1000) -> 79157.4791 | F36: =IF(PricesByItr!F36<0,0,(PurchByItr!F36*F$1*PricesByItr!F36)/1000) -> 143206.4234 | G36: =IF(PricesByItr!G36<0,0,(PurchByItr!G36*G$1*PricesByItr!G36)/1000) -> 45804.87572 | H36: =IF(PricesByItr!H36<0,0,(PurchByItr!H36*H$1*PricesByItr!H36)/1000) -> 44952.28171 | I36: =IF(PricesByItr!I36<0,0,(PurchByItr!I36*I$1*PricesByItr!I36)/1000) -> 46996.90966 | J36: =IF(PricesByItr!J36<0,0,(PurchByItr!J36*J$1*PricesByItr!J36)/1000) -> 40167.26286 | K36: =IF(PricesByItr!K36<0,0,(PurchByItr!K36*K$1*PricesByItr!K36)/1000) -> 25419.65542 | L36: =IF(PricesByItr!L36<0,0,(PurchByItr!L36*L$1*PricesByItr!L36)/1000) -> -5310.455238 | M36: =IF(PricesByItr!M36<0,0,(PurchByItr!M36*M$1*PricesByItr!M36)/1000) -> 4116.378998 | N36: =IF(PricesByItr!N36<0,0,(PurchByItr!N36*N$1*PricesByItr!N36)/1000) -> -2419.246076 | O36: 475536.3697 | Q36: =PurchByItr!Q36 -> 2023 | R36: =PurchByItr!R36 -> 1989 | S36: =IF(PricesByItr!S36<0,0,(PurchByItr!S36*S$1*PricesByItr!S36)/1000) -> 22279.02035 | T36: =IF(PricesByItr!T36<0,0,(PurchByItr!T36*T$1*PricesByItr!T36)/1000) -> -1536.520902 | U36: =IF(PricesByItr!U36<0,0,(PurchByItr!U36*U$1*PricesByItr!U36)/1000) -> 26271.03517 | V36: =IF(PricesByItr!V36<0,0,(PurchByItr!V36*V$1*PricesByItr!V36)/1000) -> 45563.04519 | W36: =IF(PricesByItr!W36<0,0,(PurchByItr!W36*W$1*PricesByItr!W36)/1000) -> 58623.23031 | X36: =IF(PricesByItr!X36<0,0,(PurchByItr!X36*X$1*PricesByItr!X36)/1000) -> 0 | Y36: =IF(PricesByItr!Y36<0,0,(PurchByItr!Y36*Y$1*PricesByItr!Y36)/1000) -> 0 | Z36: =IF(PricesByItr!Z36<0,0,(PurchByItr!Z36*Z$1*PricesByItr!Z36)/1000) -> 0 | AA36: =IF(PricesByItr!AA36<0,0,(PurchByItr!AA36*AA$1*PricesByItr!AA36)/1000) -> 4534.125062 | AB36: =IF(PricesByItr!AB36<0,0,(PurchByItr!AB36*AB$1*PricesByItr!AB36)/1000) -> -2660.021866 | AC36: =IF(PricesByItr!AC36<0,0,(PurchByItr!AC36*AC$1*PricesByItr!AC36)/1000) -> 5234.322969 | AD36: =IF(PricesByItr!AD36<0,0,(PurchByItr!AD36*AD$1*PricesByItr!AD36)/1000) -> 0 | AE36: 158308.2363
A37: =PurchByItr!A37 -> 2022 | B37: =PurchByItr!B37 -> 1967 | C37: =IF(PricesByItr!C37<0,0,(PurchByItr!C37*C$1*PricesByItr!C37)/1000) -> 30398.1529 | D37: =IF(PricesByItr!D37<0,0,(PurchByItr!D37*D$1*PricesByItr!D37)/1000) -> 14643.27365 | E37: =IF(PricesByItr!E37<0,0,(PurchByItr!E37*E$1*PricesByItr!E37)/1000) -> 0 | F37: =IF(PricesByItr!F37<0,0,(PurchByItr!F37*F$1*PricesByItr!F37)/1000) -> 0 | G37: =IF(PricesByItr!G37<0,0,(PurchByItr!G37*G$1*PricesByItr!G37)/1000) -> 0 | H37: =IF(PricesByItr!H37<0,0,(PurchByItr!H37*H$1*PricesByItr!H37)/1000) -> 0 | I37: =IF(PricesByItr!I37<0,0,(PurchByItr!I37*I$1*PricesByItr!I37)/1000) -> 12090.51629 | J37: =IF(PricesByItr!J37<0,0,(PurchByItr!J37*J$1*PricesByItr!J37)/1000) -> 5024.126978 | K37: =IF(PricesByItr!K37<0,0,(PurchByItr!K37*K$1*PricesByItr!K37)/1000) -> 0 | L37: =IF(PricesByItr!L37<0,0,(PurchByItr!L37*L$1*PricesByItr!L37)/1000) -> 0 | M37: =IF(PricesByItr!M37<0,0,(PurchByItr!M37*M$1*PricesByItr!M37)/1000) -> 0 | N37: =IF(PricesByItr!N37<0,0,(PurchByItr!N37*N$1*PricesByItr!N37)/1000) -> 6172.527625 | O37: 68328.59745 | Q37: =PurchByItr!Q37 -> 2023 | R37: =PurchByItr!R37 -> 1968 | S37: =IF(PricesByItr!S37<0,0,(PurchByItr!S37*S$1*PricesByItr!S37)/1000) -> 16945.55718 | T37: =IF(PricesByItr!T37<0,0,(PurchByItr!T37*T$1*PricesByItr!T37)/1000) -> 0 | U37: =IF(PricesByItr!U37<0,0,(PurchByItr!U37*U$1*PricesByItr!U37)/1000) -> 0 | V37: =IF(PricesByItr!V37<0,0,(PurchByItr!V37*V$1*PricesByItr!V37)/1000) -> 0 | W37: =IF(PricesByItr!W37<0,0,(PurchByItr!W37*W$1*PricesByItr!W37)/1000) -> 0 | X37: =IF(PricesByItr!X37<0,0,(PurchByItr!X37*X$1*PricesByItr!X37)/1000) -> 0 | Y37: =IF(PricesByItr!Y37<0,0,(PurchByItr!Y37*Y$1*PricesByItr!Y37)/1000) -> 74035.17398 | Z37: =IF(PricesByItr!Z37<0,0,(PurchByItr!Z37*Z$1*PricesByItr!Z37)/1000) -> 21080.64728 | AA37: =IF(PricesByItr!AA37<0,0,(PurchByItr!AA37*AA$1*PricesByItr!AA37)/1000) -> 0 | AB37: =IF(PricesByItr!AB37<0,0,(PurchByItr!AB37*AB$1*PricesByItr!AB37)/1000) -> 0 | AC37: =IF(PricesByItr!AC37<0,0,(PurchByItr!AC37*AC$1*PricesByItr!AC37)/1000) -> 0 | AD37: =IF(PricesByItr!AD37<0,0,(PurchByItr!AD37*AD$1*PricesByItr!AD37)/1000) -> 0 | AE37: 112061.3784
A38: =PurchByItr!A38 -> 2022 | B38: =PurchByItr!B38 -> 1939 | C38: =IF(PricesByItr!C38<0,0,(PurchByItr!C38*C$1*PricesByItr!C38)/1000) -> 22073.4548 | D38: =IF(PricesByItr!D38<0,0,(PurchByItr!D38*D$1*PricesByItr!D38)/1000) -> 17605.42926 | E38: =IF(PricesByItr!E38<0,0,(PurchByItr!E38*E$1*PricesByItr!E38)/1000) -> 55351.16875 | F38: =IF(PricesByItr!F38<0,0,(PurchByItr!F38*F$1*PricesByItr!F38)/1000) -> 23993.16151 | G38: =IF(PricesByItr!G38<0,0,(PurchByItr!G38*G$1*PricesByItr!G38)/1000) -> 502.5509231 | H38: =IF(PricesByItr!H38<0,0,(PurchByItr!H38*H$1*PricesByItr!H38)/1000) -> 23033.83587 | I38: =IF(PricesByItr!I38<0,0,(PurchByItr!I38*I$1*PricesByItr!I38)/1000) -> 16532.28795 | J38: =IF(PricesByItr!J38<0,0,(PurchByItr!J38*J$1*PricesByItr!J38)/1000) -> 2228.789066 | K38: =IF(PricesByItr!K38<0,0,(PurchByItr!K38*K$1*PricesByItr!K38)/1000) -> 19302.86246 | L38: =IF(PricesByItr!L38<0,0,(PurchByItr!L38*L$1*PricesByItr!L38)/1000) -> -1228.97676 | M38: =IF(PricesByItr!M38<0,0,(PurchByItr!M38*M$1*PricesByItr!M38)/1000) -> 0 | N38: =IF(PricesByItr!N38<0,0,(PurchByItr!N38*N$1*PricesByItr!N38)/1000) -> 11227.61631 | O38: 190622.1801 | Q38: =PurchByItr!Q38 -> 2023 | R38: =PurchByItr!R38 -> 1940 | S38: =IF(PricesByItr!S38<0,0,(PurchByItr!S38*S$1*PricesByItr!S38)/1000) -> 35557.52675 | T38: =IF(PricesByItr!T38<0,0,(PurchByItr!T38*T$1*PricesByItr!T38)/1000) -> 6639.546378 | U38: =IF(PricesByItr!U38<0,0,(PurchByItr!U38*U$1*PricesByItr!U38)/1000) -> 45383.68202 | V38: =IF(PricesByItr!V38<0,0,(PurchByItr!V38*V$1*PricesByItr!V38)/1000) -> 0 | W38: =IF(PricesByItr!W38<0,0,(PurchByItr!W38*W$1*PricesByItr!W38)/1000) -> 21161.66317 | X38: =IF(PricesByItr!X38<0,0,(PurchByItr!X38*X$1*PricesByItr!X38)/1000) -> 0 | Y38: =IF(PricesByItr!Y38<0,0,(PurchByItr!Y38*Y$1*PricesByItr!Y38)/1000) -> 9751.69959 | Z38: =IF(PricesByItr!Z38<0,0,(PurchByItr!Z38*Z$1*PricesByItr!Z38)/1000) -> 22134.50722 | AA38: =IF(PricesByItr!AA38<0,0,(PurchByItr!AA38*AA$1*PricesByItr!AA38)/1000) -> 29090.281 | AB38: =IF(PricesByItr!AB38<0,0,(PurchByItr!AB38*AB$1*PricesByItr!AB38)/1000) -> 25089.19904 | AC38: =IF(PricesByItr!AC38<0,0,(PurchByItr!AC38*AC$1*PricesByItr!AC38)/1000) -> 10603.50572 | AD38: =IF(PricesByItr!AD38<0,0,(PurchByItr!AD38*AD$1*PricesByItr!AD38)/1000) -> 0 | AE38: 205411.6109
A39: =PurchByItr!A39 -> 2022 | B39: =PurchByItr!B39 -> 1984 | C39: =IF(PricesByItr!C39<0,0,(PurchByItr!C39*C$1*PricesByItr!C39)/1000) -> 21109.60174 | D39: =IF(PricesByItr!D39<0,0,(PurchByItr!D39*D$1*PricesByItr!D39)/1000) -> 0 | E39: =IF(PricesByItr!E39<0,0,(PurchByItr!E39*E$1*PricesByItr!E39)/1000) -> 0 | F39: =IF(PricesByItr!F39<0,0,(PurchByItr!F39*F$1*PricesByItr!F39)/1000) -> 0 | G39: =IF(PricesByItr!G39<0,0,(PurchByItr!G39*G$1*PricesByItr!G39)/1000) -> 0 | H39: =IF(PricesByItr!H39<0,0,(PurchByItr!H39*H$1*PricesByItr!H39)/1000) -> 0 | I39: =IF(PricesByItr!I39<0,0,(PurchByItr!I39*I$1*PricesByItr!I39)/1000) -> 0 | J39: =IF(PricesByItr!J39<0,0,(PurchByItr!J39*J$1*PricesByItr!J39)/1000) -> 0 | K39: =IF(PricesByItr!K39<0,0,(PurchByItr!K39*K$1*PricesByItr!K39)/1000) -> 0 | L39: =IF(PricesByItr!L39<0,0,(PurchByItr!L39*L$1*PricesByItr!L39)/1000) -> 0 | M39: =IF(PricesByItr!M39<0,0,(PurchByItr!M39*M$1*PricesByItr!M39)/1000) -> 0 | N39: =IF(PricesByItr!N39<0,0,(PurchByItr!N39*N$1*PricesByItr!N39)/1000) -> 0 | O39: 21109.60174 | Q39: =PurchByItr!Q39 -> 2023 | R39: =PurchByItr!R39 -> 1985 | S39: =IF(PricesByItr!S39<0,0,(PurchByItr!S39*S$1*PricesByItr!S39)/1000) -> 15621.88212 | T39: =IF(PricesByItr!T39<0,0,(PurchByItr!T39*T$1*PricesByItr!T39)/1000) -> 0 | U39: =IF(PricesByItr!U39<0,0,(PurchByItr!U39*U$1*PricesByItr!U39)/1000) -> 3968.593565 | V39: =IF(PricesByItr!V39<0,0,(PurchByItr!V39*V$1*PricesByItr!V39)/1000) -> 0 | W39: =IF(PricesByItr!W39<0,0,(PurchByItr!W39*W$1*PricesByItr!W39)/1000) -> 0 | X39: =IF(PricesByItr!X39<0,0,(PurchByItr!X39*X$1*PricesByItr!X39)/1000) -> 16408.6435 | Y39: =IF(PricesByItr!Y39<0,0,(PurchByItr!Y39*Y$1*PricesByItr!Y39)/1000) -> 4251.615314 | Z39: =IF(PricesByItr!Z39<0,0,(PurchByItr!Z39*Z$1*PricesByItr!Z39)/1000) -> 0 | AA39: =IF(PricesByItr!AA39<0,0,(PurchByItr!AA39*AA$1*PricesByItr!AA39)/1000) -> 8730.951338 | AB39: =IF(PricesByItr!AB39<0,0,(PurchByItr!AB39*AB$1*PricesByItr!AB39)/1000) -> 14451.31327 | AC39: =IF(PricesByItr!AC39<0,0,(PurchByItr!AC39*AC$1*PricesByItr!AC39)/1000) -> 13231.73397 | AD39: =IF(PricesByItr!AD39<0,0,(PurchByItr!AD39*AD$1*PricesByItr!AD39)/1000) -> -1020.732952 | AE39: 75644.00013
A40: =PurchByItr!A40 -> 2022 | B40: =PurchByItr!B40 -> 1970 | C40: =IF(PricesByItr!C40<0,0,(PurchByItr!C40*C$1*PricesByItr!C40)/1000) -> 29837.62645 | D40: =IF(PricesByItr!D40<0,0,(PurchByItr!D40*D$1*PricesByItr!D40)/1000) -> 0 | E40: =IF(PricesByItr!E40<0,0,(PurchByItr!E40*E$1*PricesByItr!E40)/1000) -> 27581.5219 | F40: =IF(PricesByItr!F40<0,0,(PurchByItr!F40*F$1*PricesByItr!F40)/1000) -> 0 | G40: =IF(PricesByItr!G40<0,0,(PurchByItr!G40*G$1*PricesByItr!G40)/1000) -> 0 | H40: =IF(PricesByItr!H40<0,0,(PurchByItr!H40*H$1*PricesByItr!H40)/1000) -> 5386.055791 | I40: =IF(PricesByItr!I40<0,0,(PurchByItr!I40*I$1*PricesByItr!I40)/1000) -> 54369.96054 | J40: =IF(PricesByItr!J40<0,0,(PurchByItr!J40*J$1*PricesByItr!J40)/1000) -> 0 | K40: =IF(PricesByItr!K40<0,0,(PurchByItr!K40*K$1*PricesByItr!K40)/1000) -> 0 | L40: =IF(PricesByItr!L40<0,0,(PurchByItr!L40*L$1*PricesByItr!L40)/1000) -> 320.2432953 | M40: =IF(PricesByItr!M40<0,0,(PurchByItr!M40*M$1*PricesByItr!M40)/1000) -> -1852.902396 | N40: =IF(PricesByItr!N40<0,0,(PurchByItr!N40*N$1*PricesByItr!N40)/1000) -> 10158.20961 | O40: 125800.7152 | Q40: =PurchByItr!Q40 -> 2023 | R40: =PurchByItr!R40 -> 1971 | S40: =IF(PricesByItr!S40<0,0,(PurchByItr!S40*S$1*PricesByItr!S40)/1000) -> 26591.54077 | T40: =IF(PricesByItr!T40<0,0,(PurchByItr!T40*T$1*PricesByItr!T40)/1000) -> 12938.22239 | U40: =IF(PricesByItr!U40<0,0,(PurchByItr!U40*U$1*PricesByItr!U40)/1000) -> 20122.09508 | V40: =IF(PricesByItr!V40<0,0,(PurchByItr!V40*V$1*PricesByItr!V40)/1000) -> 0 | W40: =IF(PricesByItr!W40<0,0,(PurchByItr!W40*W$1*PricesByItr!W40)/1000) -> 0 | X40: =IF(PricesByItr!X40<0,0,(PurchByItr!X40*X$1*PricesByItr!X40)/1000) -> 0 | Y40: =IF(PricesByItr!Y40<0,0,(PurchByItr!Y40*Y$1*PricesByItr!Y40)/1000) -> 0 | Z40: =IF(PricesByItr!Z40<0,0,(PurchByItr!Z40*Z$1*PricesByItr!Z40)/1000) -> 0 | AA40: =IF(PricesByItr!AA40<0,0,(PurchByItr!AA40*AA$1*PricesByItr!AA40)/1000) -> 0 | AB40: =IF(PricesByItr!AB40<0,0,(PurchByItr!AB40*AB$1*PricesByItr!AB40)/1000) -> 0 | AC40: =IF(PricesByItr!AC40<0,0,(PurchByItr!AC40*AC$1*PricesByItr!AC40)/1000) -> 0 | AD40: =IF(PricesByItr!AD40<0,0,(PurchByItr!AD40*AD$1*PricesByItr!AD40)/1000) -> 4214.581271 | AE40: 63866.43951
A41: =PurchByItr!A41 -> 2022 | B41: =PurchByItr!B41 -> 1963 | C41: =IF(PricesByItr!C41<0,0,(PurchByItr!C41*C$1*PricesByItr!C41)/1000) -> 17358.07052 | D41: =IF(PricesByItr!D41<0,0,(PurchByItr!D41*D$1*PricesByItr!D41)/1000) -> 0 | E41: =IF(PricesByItr!E41<0,0,(PurchByItr!E41*E$1*PricesByItr!E41)/1000) -> 0 | F41: =IF(PricesByItr!F41<0,0,(PurchByItr!F41*F$1*PricesByItr!F41)/1000) -> 0 | G41: =IF(PricesByItr!G41<0,0,(PurchByItr!G41*G$1*PricesByItr!G41)/1000) -> 0 | H41: =IF(PricesByItr!H41<0,0,(PurchByItr!H41*H$1*PricesByItr!H41)/1000) -> 21024.48415 | I41: =IF(PricesByItr!I41<0,0,(PurchByItr!I41*I$1*PricesByItr!I41)/1000) -> 29797.65676 | J41: =IF(PricesByItr!J41<0,0,(PurchByItr!J41*J$1*PricesByItr!J41)/1000) -> 10329.96596 | K41: =IF(PricesByItr!K41<0,0,(PurchByItr!K41*K$1*PricesByItr!K41)/1000) -> 0 | L41: =IF(PricesByItr!L41<0,0,(PurchByItr!L41*L$1*PricesByItr!L41)/1000) -> 0 | M41: =IF(PricesByItr!M41<0,0,(PurchByItr!M41*M$1*PricesByItr!M41)/1000) -> 0 | N41: =IF(PricesByItr!N41<0,0,(PurchByItr!N41*N$1*PricesByItr!N41)/1000) -> 1173.363058 | O41: 79683.54045 | Q41: =PurchByItr!Q41 -> 2023 | R41: =PurchByItr!R41 -> 1964 | S41: =IF(PricesByItr!S41<0,0,(PurchByItr!S41*S$1*PricesByItr!S41)/1000) -> 25902.27866 | T41: =IF(PricesByItr!T41<0,0,(PurchByItr!T41*T$1*PricesByItr!T41)/1000) -> 15134.95392 | U41: =IF(PricesByItr!U41<0,0,(PurchByItr!U41*U$1*PricesByItr!U41)/1000) -> 12606.27895 | V41: =IF(PricesByItr!V41<0,0,(PurchByItr!V41*V$1*PricesByItr!V41)/1000) -> 24942.62447 | W41: =IF(PricesByItr!W41<0,0,(PurchByItr!W41*W$1*PricesByItr!W41)/1000) -> 0 | X41: =IF(PricesByItr!X41<0,0,(PurchByItr!X41*X$1*PricesByItr!X41)/1000) -> 29478.38569 | Y41: =IF(PricesByItr!Y41<0,0,(PurchByItr!Y41*Y$1*PricesByItr!Y41)/1000) -> 16191.73219 | Z41: =IF(PricesByItr!Z41<0,0,(PurchByItr!Z41*Z$1*PricesByItr!Z41)/1000) -> 0 | AA41: =IF(PricesByItr!AA41<0,0,(PurchByItr!AA41*AA$1*PricesByItr!AA41)/1000) -> 0 | AB41: =IF(PricesByItr!AB41<0,0,(PurchByItr!AB41*AB$1*PricesByItr!AB41)/1000) -> 0 | AC41: =IF(PricesByItr!AC41<0,0,(PurchByItr!AC41*AC$1*PricesByItr!AC41)/1000) -> 0 | AD41: =IF(PricesByItr!AD41<0,0,(PurchByItr!AD41*AD$1*PricesByItr!AD41)/1000) -> 0 | AE41: 124256.2539
A42: =PurchByItr!A42 -> 2022 | B42: =PurchByItr!B42 -> 1986 | C42: =IF(PricesByItr!C42<0,0,(PurchByItr!C42*C$1*PricesByItr!C42)/1000) -> 5075.051143 | D42: =IF(PricesByItr!D42<0,0,(PurchByItr!D42*D$1*PricesByItr!D42)/1000) -> 0 | E42: =IF(PricesByItr!E42<0,0,(PurchByItr!E42*E$1*PricesByItr!E42)/1000) -> 0 | F42: =IF(PricesByItr!F42<0,0,(PurchByItr!F42*F$1*PricesByItr!F42)/1000) -> 0 | G42: =IF(PricesByItr!G42<0,0,(PurchByItr!G42*G$1*PricesByItr!G42)/1000) -> 0 | H42: =IF(PricesByItr!H42<0,0,(PurchByItr!H42*H$1*PricesByItr!H42)/1000) -> 0 | I42: =IF(PricesByItr!I42<0,0,(PurchByItr!I42*I$1*PricesByItr!I42)/1000) -> 9105.974762 | J42: =IF(PricesByItr!J42<0,0,(PurchByItr!J42*J$1*PricesByItr!J42)/1000) -> 813.8549724 | K42: =IF(PricesByItr!K42<0,0,(PurchByItr!K42*K$1*PricesByItr!K42)/1000) -> 0 | L42: =IF(PricesByItr!L42<0,0,(PurchByItr!L42*L$1*PricesByItr!L42)/1000) -> 0 | M42: =IF(PricesByItr!M42<0,0,(PurchByItr!M42*M$1*PricesByItr!M42)/1000) -> -2172.640803 | N42: =IF(PricesByItr!N42<0,0,(PurchByItr!N42*N$1*PricesByItr!N42)/1000) -> 21491.87521 | O42: 34314.11528 | Q42: =PurchByItr!Q42 -> 2023 | R42: =PurchByItr!R42 -> 1987 | S42: =IF(PricesByItr!S42<0,0,(PurchByItr!S42*S$1*PricesByItr!S42)/1000) -> 71041.12662 | T42: =IF(PricesByItr!T42<0,0,(PurchByItr!T42*T$1*PricesByItr!T42)/1000) -> 1625.82604 | U42: =IF(PricesByItr!U42<0,0,(PurchByItr!U42*U$1*PricesByItr!U42)/1000) -> 0 | V42: =IF(PricesByItr!V42<0,0,(PurchByItr!V42*V$1*PricesByItr!V42)/1000) -> 14976.68007 | W42: =IF(PricesByItr!W42<0,0,(PurchByItr!W42*W$1*PricesByItr!W42)/1000) -> 20902.15351 | X42: =IF(PricesByItr!X42<0,0,(PurchByItr!X42*X$1*PricesByItr!X42)/1000) -> -608.448983 | Y42: =IF(PricesByItr!Y42<0,0,(PurchByItr!Y42*Y$1*PricesByItr!Y42)/1000) -> 11028.71499 | Z42: =IF(PricesByItr!Z42<0,0,(PurchByItr!Z42*Z$1*PricesByItr!Z42)/1000) -> 0 | AA42: =IF(PricesByItr!AA42<0,0,(PurchByItr!AA42*AA$1*PricesByItr!AA42)/1000) -> 12085.51395 | AB42: =IF(PricesByItr!AB42<0,0,(PurchByItr!AB42*AB$1*PricesByItr!AB42)/1000) -> 33417.81734 | AC42: =IF(PricesByItr!AC42<0,0,(PurchByItr!AC42*AC$1*PricesByItr!AC42)/1000) -> 10477.51501 | AD42: =IF(PricesByItr!AD42<0,0,(PurchByItr!AD42*AD$1*PricesByItr!AD42)/1000) -> 1126.901627 | AE42: 176073.8002
A43: =PurchByItr!A43 -> 2022 | B43: =PurchByItr!B43 -> 1947 | C43: =IF(PricesByItr!C43<0,0,(PurchByItr!C43*C$1*PricesByItr!C43)/1000) -> 35039.50363 | D43: =IF(PricesByItr!D43<0,0,(PurchByItr!D43*D$1*PricesByItr!D43)/1000) -> 0 | E43: =IF(PricesByItr!E43<0,0,(PurchByItr!E43*E$1*PricesByItr!E43)/1000) -> 0 | F43: =IF(PricesByItr!F43<0,0,(PurchByItr!F43*F$1*PricesByItr!F43)/1000) -> 0 | G43: =IF(PricesByItr!G43<0,0,(PurchByItr!G43*G$1*PricesByItr!G43)/1000) -> 0 | H43: =IF(PricesByItr!H43<0,0,(PurchByItr!H43*H$1*PricesByItr!H43)/1000) -> 0 | I43: =IF(PricesByItr!I43<0,0,(PurchByItr!I43*I$1*PricesByItr!I43)/1000) -> 4375.621039 | J43: =IF(PricesByItr!J43<0,0,(PurchByItr!J43*J$1*PricesByItr!J43)/1000) -> 0 | K43: =IF(PricesByItr!K43<0,0,(PurchByItr!K43*K$1*PricesByItr!K43)/1000) -> 0 | L43: =IF(PricesByItr!L43<0,0,(PurchByItr!L43*L$1*PricesByItr!L43)/1000) -> 0 | M43: =IF(PricesByItr!M43<0,0,(PurchByItr!M43*M$1*PricesByItr!M43)/1000) -> 0 | N43: =IF(PricesByItr!N43<0,0,(PurchByItr!N43*N$1*PricesByItr!N43)/1000) -> 6606.269126 | O43: 46021.3938 | Q43: =PurchByItr!Q43 -> 2023 | R43: =PurchByItr!R43 -> 1948 | S43: =IF(PricesByItr!S43<0,0,(PurchByItr!S43*S$1*PricesByItr!S43)/1000) -> 0 | T43: =IF(PricesByItr!T43<0,0,(PurchByItr!T43*T$1*PricesByItr!T43)/1000) -> 0 | U43: =IF(PricesByItr!U43<0,0,(PurchByItr!U43*U$1*PricesByItr!U43)/1000) -> 0 | V43: =IF(PricesByItr!V43<0,0,(PurchByItr!V43*V$1*PricesByItr!V43)/1000) -> 0 | W43: =IF(PricesByItr!W43<0,0,(PurchByItr!W43*W$1*PricesByItr!W43)/1000) -> 0 | X43: =IF(PricesByItr!X43<0,0,(PurchByItr!X43*X$1*PricesByItr!X43)/1000) -> 0 | Y43: =IF(PricesByItr!Y43<0,0,(PurchByItr!Y43*Y$1*PricesByItr!Y43)/1000) -> 2457.182349 | Z43: =IF(PricesByItr!Z43<0,0,(PurchByItr!Z43*Z$1*PricesByItr!Z43)/1000) -> 0 | AA43: =IF(PricesByItr!AA43<0,0,(PurchByItr!AA43*AA$1*PricesByItr!AA43)/1000) -> 0 | AB43: =IF(PricesByItr!AB43<0,0,(PurchByItr!AB43*AB$1*PricesByItr!AB43)/1000) -> 0 | AC43: =IF(PricesByItr!AC43<0,0,(PurchByItr!AC43*AC$1*PricesByItr!AC43)/1000) -> 0 | AD43: =IF(PricesByItr!AD43<0,0,(PurchByItr!AD43*AD$1*PricesByItr!AD43)/1000) -> 3117.953394 | AE43: 5575.135742
A44: =PurchByItr!A44 -> 2022 | B44: =PurchByItr!B44 -> 1997 | C44: =IF(PricesByItr!C44<0,0,(PurchByItr!C44*C$1*PricesByItr!C44)/1000) -> 20053.03042 | D44: =IF(PricesByItr!D44<0,0,(PurchByItr!D44*D$1*PricesByItr!D44)/1000) -> 0 | E44: =IF(PricesByItr!E44<0,0,(PurchByItr!E44*E$1*PricesByItr!E44)/1000) -> 0 | F44: =IF(PricesByItr!F44<0,0,(PurchByItr!F44*F$1*PricesByItr!F44)/1000) -> 0 | G44: =IF(PricesByItr!G44<0,0,(PurchByItr!G44*G$1*PricesByItr!G44)/1000) -> 0 | H44: =IF(PricesByItr!H44<0,0,(PurchByItr!H44*H$1*PricesByItr!H44)/1000) -> 0 | I44: =IF(PricesByItr!I44<0,0,(PurchByItr!I44*I$1*PricesByItr!I44)/1000) -> 0 | J44: =IF(PricesByItr!J44<0,0,(PurchByItr!J44*J$1*PricesByItr!J44)/1000) -> 0 | K44: =IF(PricesByItr!K44<0,0,(PurchByItr!K44*K$1*PricesByItr!K44)/1000) -> 0 | L44: =IF(PricesByItr!L44<0,0,(PurchByItr!L44*L$1*PricesByItr!L44)/1000) -> 0 | M44: =IF(PricesByItr!M44<0,0,(PurchByItr!M44*M$1*PricesByItr!M44)/1000) -> 0 | N44: =IF(PricesByItr!N44<0,0,(PurchByItr!N44*N$1*PricesByItr!N44)/1000) -> 0 | O44: 20053.03042 | Q44: =PurchByItr!Q44 -> 2023 | R44: =PurchByItr!R44 -> 1998 | S44: =IF(PricesByItr!S44<0,0,(PurchByItr!S44*S$1*PricesByItr!S44)/1000) -> 0 | T44: =IF(PricesByItr!T44<0,0,(PurchByItr!T44*T$1*PricesByItr!T44)/1000) -> 0 | U44: =IF(PricesByItr!U44<0,0,(PurchByItr!U44*U$1*PricesByItr!U44)/1000) -> 4384.266014 | V44: =IF(PricesByItr!V44<0,0,(PurchByItr!V44*V$1*PricesByItr!V44)/1000) -> 0 | W44: =IF(PricesByItr!W44<0,0,(PurchByItr!W44*W$1*PricesByItr!W44)/1000) -> 0 | X44: =IF(PricesByItr!X44<0,0,(PurchByItr!X44*X$1*PricesByItr!X44)/1000) -> 0 | Y44: =IF(PricesByItr!Y44<0,0,(PurchByItr!Y44*Y$1*PricesByItr!Y44)/1000) -> 28817.73899 | Z44: =IF(PricesByItr!Z44<0,0,(PurchByItr!Z44*Z$1*PricesByItr!Z44)/1000) -> 0 | AA44: =IF(PricesByItr!AA44<0,0,(PurchByItr!AA44*AA$1*PricesByItr!AA44)/1000) -> 0 | AB44: =IF(PricesByItr!AB44<0,0,(PurchByItr!AB44*AB$1*PricesByItr!AB44)/1000) -> 0 | AC44: =IF(PricesByItr!AC44<0,0,(PurchByItr!AC44*AC$1*PricesByItr!AC44)/1000) -> 0 | AD44: =IF(PricesByItr!AD44<0,0,(PurchByItr!AD44*AD$1*PricesByItr!AD44)/1000) -> 8374.625379 | AE44: 41576.63038
A45: =PurchByItr!A45 -> 2022 | B45: =PurchByItr!B45 -> 1974 | C45: =IF(PricesByItr!C45<0,0,(PurchByItr!C45*C$1*PricesByItr!C45)/1000) -> 28826.46579 | D45: =IF(PricesByItr!D45<0,0,(PurchByItr!D45*D$1*PricesByItr!D45)/1000) -> 6652.360693 | E45: =IF(PricesByItr!E45<0,0,(PurchByItr!E45*E$1*PricesByItr!E45)/1000) -> 0 | F45: =IF(PricesByItr!F45<0,0,(PurchByItr!F45*F$1*PricesByItr!F45)/1000) -> 0 | G45: =IF(PricesByItr!G45<0,0,(PurchByItr!G45*G$1*PricesByItr!G45)/1000) -> 0 | H45: =IF(PricesByItr!H45<0,0,(PurchByItr!H45*H$1*PricesByItr!H45)/1000) -> 0 | I45: =IF(PricesByItr!I45<0,0,(PurchByItr!I45*I$1*PricesByItr!I45)/1000) -> 0 | J45: =IF(PricesByItr!J45<0,0,(PurchByItr!J45*J$1*PricesByItr!J45)/1000) -> 0 | K45: =IF(PricesByItr!K45<0,0,(PurchByItr!K45*K$1*PricesByItr!K45)/1000) -> 0 | L45: =IF(PricesByItr!L45<0,0,(PurchByItr!L45*L$1*PricesByItr!L45)/1000) -> 0 | M45: =IF(PricesByItr!M45<0,0,(PurchByItr!M45*M$1*PricesByItr!M45)/1000) -> 0 | N45: =IF(PricesByItr!N45<0,0,(PurchByItr!N45*N$1*PricesByItr!N45)/1000) -> 0 | O45: 35478.82648 | Q45: =PurchByItr!Q45 -> 2023 | R45: =PurchByItr!R45 -> 1975 | S45: =IF(PricesByItr!S45<0,0,(PurchByItr!S45*S$1*PricesByItr!S45)/1000) -> 32842.56548 | T45: =IF(PricesByItr!T45<0,0,(PurchByItr!T45*T$1*PricesByItr!T45)/1000) -> 12071.27304 | U45: =IF(PricesByItr!U45<0,0,(PurchByItr!U45*U$1*PricesByItr!U45)/1000) -> 28702.33249 | V45: =IF(PricesByItr!V45<0,0,(PurchByItr!V45*V$1*PricesByItr!V45)/1000) -> 0 | W45: =IF(PricesByItr!W45<0,0,(PurchByItr!W45*W$1*PricesByItr!W45)/1000) -> 0 | X45: =IF(PricesByItr!X45<0,0,(PurchByItr!X45*X$1*PricesByItr!X45)/1000) -> 0 | Y45: =IF(PricesByItr!Y45<0,0,(PurchByItr!Y45*Y$1*PricesByItr!Y45)/1000) -> 18153.86052 | Z45: =IF(PricesByItr!Z45<0,0,(PurchByItr!Z45*Z$1*PricesByItr!Z45)/1000) -> 3950.554842 | AA45: =IF(PricesByItr!AA45<0,0,(PurchByItr!AA45*AA$1*PricesByItr!AA45)/1000) -> 0 | AB45: =IF(PricesByItr!AB45<0,0,(PurchByItr!AB45*AB$1*PricesByItr!AB45)/1000) -> 0 | AC45: =IF(PricesByItr!AC45<0,0,(PurchByItr!AC45*AC$1*PricesByItr!AC45)/1000) -> 0 | AD45: =IF(PricesByItr!AD45<0,0,(PurchByItr!AD45*AD$1*PricesByItr!AD45)/1000) -> 0 | AE45: 95720.58636
A46: =PurchByItr!A46 -> 2022 | B46: =PurchByItr!B46 -> 1977 | C46: =IF(PricesByItr!C46<0,0,(PurchByItr!C46*C$1*PricesByItr!C46)/1000) -> 9488.336447 | D46: =IF(PricesByItr!D46<0,0,(PurchByItr!D46*D$1*PricesByItr!D46)/1000) -> 14541.70716 | E46: =IF(PricesByItr!E46<0,0,(PurchByItr!E46*E$1*PricesByItr!E46)/1000) -> 46996.41589 | F46: =IF(PricesByItr!F46<0,0,(PurchByItr!F46*F$1*PricesByItr!F46)/1000) -> 55253.68216 | G46: =IF(PricesByItr!G46<0,0,(PurchByItr!G46*G$1*PricesByItr!G46)/1000) -> 12459.61017 | H46: =IF(PricesByItr!H46<0,0,(PurchByItr!H46*H$1*PricesByItr!H46)/1000) -> 67913.13398 | I46: =IF(PricesByItr!I46<0,0,(PurchByItr!I46*I$1*PricesByItr!I46)/1000) -> 76055.54702 | J46: =IF(PricesByItr!J46<0,0,(PurchByItr!J46*J$1*PricesByItr!J46)/1000) -> 58629.24451 | K46: =IF(PricesByItr!K46<0,0,(PurchByItr!K46*K$1*PricesByItr!K46)/1000) -> 48295.15039 | L46: =IF(PricesByItr!L46<0,0,(PurchByItr!L46*L$1*PricesByItr!L46)/1000) -> 39537.06708 | M46: =IF(PricesByItr!M46<0,0,(PurchByItr!M46*M$1*PricesByItr!M46)/1000) -> -4033.775385 | N46: =IF(PricesByItr!N46<0,0,(PurchByItr!N46*N$1*PricesByItr!N46)/1000) -> 0 | O46: 425136.1194 | Q46: =PurchByItr!Q46 -> 2023 | R46: =PurchByItr!R46 -> 1978 | S46: =IF(PricesByItr!S46<0,0,(PurchByItr!S46*S$1*PricesByItr!S46)/1000) -> 37306.74818 | T46: =IF(PricesByItr!T46<0,0,(PurchByItr!T46*T$1*PricesByItr!T46)/1000) -> 4443.541182 | U46: =IF(PricesByItr!U46<0,0,(PurchByItr!U46*U$1*PricesByItr!U46)/1000) -> 5597.844371 | V46: =IF(PricesByItr!V46<0,0,(PurchByItr!V46*V$1*PricesByItr!V46)/1000) -> 0 | W46: =IF(PricesByItr!W46<0,0,(PurchByItr!W46*W$1*PricesByItr!W46)/1000) -> 9443.318601 | X46: =IF(PricesByItr!X46<0,0,(PurchByItr!X46*X$1*PricesByItr!X46)/1000) -> 10556.35945 | Y46: =IF(PricesByItr!Y46<0,0,(PurchByItr!Y46*Y$1*PricesByItr!Y46)/1000) -> 5193.312404 | Z46: =IF(PricesByItr!Z46<0,0,(PurchByItr!Z46*Z$1*PricesByItr!Z46)/1000) -> 0 | AA46: =IF(PricesByItr!AA46<0,0,(PurchByItr!AA46*AA$1*PricesByItr!AA46)/1000) -> 0 | AB46: =IF(PricesByItr!AB46<0,0,(PurchByItr!AB46*AB$1*PricesByItr!AB46)/1000) -> 0 | AC46: =IF(PricesByItr!AC46<0,0,(PurchByItr!AC46*AC$1*PricesByItr!AC46)/1000) -> -1429.885019 | AD46: =IF(PricesByItr!AD46<0,0,(PurchByItr!AD46*AD$1*PricesByItr!AD46)/1000) -> 0 | AE46: 71111.23917
A47: =PurchByItr!A47 -> 2022 | B47: =PurchByItr!B47 -> 1955 | C47: =IF(PricesByItr!C47<0,0,(PurchByItr!C47*C$1*PricesByItr!C47)/1000) -> 13182.28375 | D47: =IF(PricesByItr!D47<0,0,(PurchByItr!D47*D$1*PricesByItr!D47)/1000) -> 0 | E47: =IF(PricesByItr!E47<0,0,(PurchByItr!E47*E$1*PricesByItr!E47)/1000) -> 0 | F47: =IF(PricesByItr!F47<0,0,(PurchByItr!F47*F$1*PricesByItr!F47)/1000) -> 31333.42887 | G47: =IF(PricesByItr!G47<0,0,(PurchByItr!G47*G$1*PricesByItr!G47)/1000) -> 7990.66325 | H47: =IF(PricesByItr!H47<0,0,(PurchByItr!H47*H$1*PricesByItr!H47)/1000) -> 52307.16286 | I47: =IF(PricesByItr!I47<0,0,(PurchByItr!I47*I$1*PricesByItr!I47)/1000) -> 30089.58022 | J47: =IF(PricesByItr!J47<0,0,(PurchByItr!J47*J$1*PricesByItr!J47)/1000) -> 14921.58978 | K47: =IF(PricesByItr!K47<0,0,(PurchByItr!K47*K$1*PricesByItr!K47)/1000) -> 0 | L47: =IF(PricesByItr!L47<0,0,(PurchByItr!L47*L$1*PricesByItr!L47)/1000) -> 0 | M47: =IF(PricesByItr!M47<0,0,(PurchByItr!M47*M$1*PricesByItr!M47)/1000) -> 0 | N47: =IF(PricesByItr!N47<0,0,(PurchByItr!N47*N$1*PricesByItr!N47)/1000) -> 10301.52379 | O47: 160126.2325 | Q47: =PurchByItr!Q47 -> 2023 | R47: =PurchByItr!R47 -> 1956 | S47: =IF(PricesByItr!S47<0,0,(PurchByItr!S47*S$1*PricesByItr!S47)/1000) -> 14758.36384 | T47: =IF(PricesByItr!T47<0,0,(PurchByItr!T47*T$1*PricesByItr!T47)/1000) -> 0 | U47: =IF(PricesByItr!U47<0,0,(PurchByItr!U47*U$1*PricesByItr!U47)/1000) -> 0 | V47: =IF(PricesByItr!V47<0,0,(PurchByItr!V47*V$1*PricesByItr!V47)/1000) -> 0 | W47: =IF(PricesByItr!W47<0,0,(PurchByItr!W47*W$1*PricesByItr!W47)/1000) -> 0 | X47: =IF(PricesByItr!X47<0,0,(PurchByItr!X47*X$1*PricesByItr!X47)/1000) -> 0 | Y47: =IF(PricesByItr!Y47<0,0,(PurchByItr!Y47*Y$1*PricesByItr!Y47)/1000) -> 0 | Z47: =IF(PricesByItr!Z47<0,0,(PurchByItr!Z47*Z$1*PricesByItr!Z47)/1000) -> 0 | AA47: =IF(PricesByItr!AA47<0,0,(PurchByItr!AA47*AA$1*PricesByItr!AA47)/1000) -> 0 | AB47: =IF(PricesByItr!AB47<0,0,(PurchByItr!AB47*AB$1*PricesByItr!AB47)/1000) -> 0 | AC47: =IF(PricesByItr!AC47<0,0,(PurchByItr!AC47*AC$1*PricesByItr!AC47)/1000) -> 0 | AD47: =IF(PricesByItr!AD47<0,0,(PurchByItr!AD47*AD$1*PricesByItr!AD47)/1000) -> 12037.54725 | AE47: 26795.91109
A48: =PurchByItr!A48 -> 2022 | B48: =PurchByItr!B48 -> 1972 | C48: =IF(PricesByItr!C48<0,0,(PurchByItr!C48*C$1*PricesByItr!C48)/1000) -> 15024.30082 | D48: =IF(PricesByItr!D48<0,0,(PurchByItr!D48*D$1*PricesByItr!D48)/1000) -> 0 | E48: =IF(PricesByItr!E48<0,0,(PurchByItr!E48*E$1*PricesByItr!E48)/1000) -> 0 | F48: =IF(PricesByItr!F48<0,0,(PurchByItr!F48*F$1*PricesByItr!F48)/1000) -> 0 | G48: =IF(PricesByItr!G48<0,0,(PurchByItr!G48*G$1*PricesByItr!G48)/1000) -> 0 | H48: =IF(PricesByItr!H48<0,0,(PurchByItr!H48*H$1*PricesByItr!H48)/1000) -> 0 | I48: =IF(PricesByItr!I48<0,0,(PurchByItr!I48*I$1*PricesByItr!I48)/1000) -> 0 | J48: =IF(PricesByItr!J48<0,0,(PurchByItr!J48*J$1*PricesByItr!J48)/1000) -> 0 | K48: =IF(PricesByItr!K48<0,0,(PurchByItr!K48*K$1*PricesByItr!K48)/1000) -> 0 | L48: =IF(PricesByItr!L48<0,0,(PurchByItr!L48*L$1*PricesByItr!L48)/1000) -> 0 | M48: =IF(PricesByItr!M48<0,0,(PurchByItr!M48*M$1*PricesByItr!M48)/1000) -> 0 | N48: =IF(PricesByItr!N48<0,0,(PurchByItr!N48*N$1*PricesByItr!N48)/1000) -> 0 | O48: 15024.30082 | Q48: =PurchByItr!Q48 -> 2023 | R48: =PurchByItr!R48 -> 1973 | S48: =IF(PricesByItr!S48<0,0,(PurchByItr!S48*S$1*PricesByItr!S48)/1000) -> 5563.715312 | T48: =IF(PricesByItr!T48<0,0,(PurchByItr!T48*T$1*PricesByItr!T48)/1000) -> 0 | U48: =IF(PricesByItr!U48<0,0,(PurchByItr!U48*U$1*PricesByItr!U48)/1000) -> 6089.50392 | V48: =IF(PricesByItr!V48<0,0,(PurchByItr!V48*V$1*PricesByItr!V48)/1000) -> 0 | W48: =IF(PricesByItr!W48<0,0,(PurchByItr!W48*W$1*PricesByItr!W48)/1000) -> 0 | X48: =IF(PricesByItr!X48<0,0,(PurchByItr!X48*X$1*PricesByItr!X48)/1000) -> 20997.36738 | Y48: =IF(PricesByItr!Y48<0,0,(PurchByItr!Y48*Y$1*PricesByItr!Y48)/1000) -> 39453.87819 | Z48: =IF(PricesByItr!Z48<0,0,(PurchByItr!Z48*Z$1*PricesByItr!Z48)/1000) -> 34476.79214 | AA48: =IF(PricesByItr!AA48<0,0,(PurchByItr!AA48*AA$1*PricesByItr!AA48)/1000) -> 18897.39753 | AB48: =IF(PricesByItr!AB48<0,0,(PurchByItr!AB48*AB$1*PricesByItr!AB48)/1000) -> 18867.80092 | AC48: =IF(PricesByItr!AC48<0,0,(PurchByItr!AC48*AC$1*PricesByItr!AC48)/1000) -> 4348.581838 | AD48: =IF(PricesByItr!AD48<0,0,(PurchByItr!AD48*AD$1*PricesByItr!AD48)/1000) -> -4483.030192 | AE48: 144212.007
A49: =PurchByItr!A49 -> 2022 | B49: =PurchByItr!B49 -> 1949 | C49: =IF(PricesByItr!C49<0,0,(PurchByItr!C49*C$1*PricesByItr!C49)/1000) -> 20840.51113 | D49: =IF(PricesByItr!D49<0,0,(PurchByItr!D49*D$1*PricesByItr!D49)/1000) -> 0 | E49: =IF(PricesByItr!E49<0,0,(PurchByItr!E49*E$1*PricesByItr!E49)/1000) -> 43376.60754 | F49: =IF(PricesByItr!F49<0,0,(PurchByItr!F49*F$1*PricesByItr!F49)/1000) -> 0 | G49: =IF(PricesByItr!G49<0,0,(PurchByItr!G49*G$1*PricesByItr!G49)/1000) -> 9023.436238 | H49: =IF(PricesByItr!H49<0,0,(PurchByItr!H49*H$1*PricesByItr!H49)/1000) -> 0 | I49: =IF(PricesByItr!I49<0,0,(PurchByItr!I49*I$1*PricesByItr!I49)/1000) -> 0 | J49: =IF(PricesByItr!J49<0,0,(PurchByItr!J49*J$1*PricesByItr!J49)/1000) -> 0 | K49: =IF(PricesByItr!K49<0,0,(PurchByItr!K49*K$1*PricesByItr!K49)/1000) -> 0 | L49: =IF(PricesByItr!L49<0,0,(PurchByItr!L49*L$1*PricesByItr!L49)/1000) -> 7827.371276 | M49: =IF(PricesByItr!M49<0,0,(PurchByItr!M49*M$1*PricesByItr!M49)/1000) -> 13169.82939 | N49: =IF(PricesByItr!N49<0,0,(PurchByItr!N49*N$1*PricesByItr!N49)/1000) -> -3122.639077 | O49: 91115.1165 | Q49: =PurchByItr!Q49 -> 2023 | R49: =PurchByItr!R49 -> 1950 | S49: =IF(PricesByItr!S49<0,0,(PurchByItr!S49*S$1*PricesByItr!S49)/1000) -> 32385.77776 | T49: =IF(PricesByItr!T49<0,0,(PurchByItr!T49*T$1*PricesByItr!T49)/1000) -> 21522.5791 | U49: =IF(PricesByItr!U49<0,0,(PurchByItr!U49*U$1*PricesByItr!U49)/1000) -> 16003.77275 | V49: =IF(PricesByItr!V49<0,0,(PurchByItr!V49*V$1*PricesByItr!V49)/1000) -> 0 | W49: =IF(PricesByItr!W49<0,0,(PurchByItr!W49*W$1*PricesByItr!W49)/1000) -> 0 | X49: =IF(PricesByItr!X49<0,0,(PurchByItr!X49*X$1*PricesByItr!X49)/1000) -> 0 | Y49: =IF(PricesByItr!Y49<0,0,(PurchByItr!Y49*Y$1*PricesByItr!Y49)/1000) -> 10294.45318 | Z49: =IF(PricesByItr!Z49<0,0,(PurchByItr!Z49*Z$1*PricesByItr!Z49)/1000) -> 0 | AA49: =IF(PricesByItr!AA49<0,0,(PurchByItr!AA49*AA$1*PricesByItr!AA49)/1000) -> 0 | AB49: =IF(PricesByItr!AB49<0,0,(PurchByItr!AB49*AB$1*PricesByItr!AB49)/1000) -> 0 | AC49: =IF(PricesByItr!AC49<0,0,(PurchByItr!AC49*AC$1*PricesByItr!AC49)/1000) -> 0 | AD49: =IF(PricesByItr!AD49<0,0,(PurchByItr!AD49*AD$1*PricesByItr!AD49)/1000) -> 8378.486687 | AE49: 88585.06948
A50: =PurchByItr!A50 -> 2022 | B50: =PurchByItr!B50 -> 2003 | C50: =IF(PricesByItr!C50<0,0,(PurchByItr!C50*C$1*PricesByItr!C50)/1000) -> 35246.75302 | D50: =IF(PricesByItr!D50<0,0,(PurchByItr!D50*D$1*PricesByItr!D50)/1000) -> 4809.320962 | E50: =IF(PricesByItr!E50<0,0,(PurchByItr!E50*E$1*PricesByItr!E50)/1000) -> 51830.19845 | F50: =IF(PricesByItr!F50<0,0,(PurchByItr!F50*F$1*PricesByItr!F50)/1000) -> 41451.73415 | G50: =IF(PricesByItr!G50<0,0,(PurchByItr!G50*G$1*PricesByItr!G50)/1000) -> 12549.11961 | H50: =IF(PricesByItr!H50<0,0,(PurchByItr!H50*H$1*PricesByItr!H50)/1000) -> 0 | I50: =IF(PricesByItr!I50<0,0,(PurchByItr!I50*I$1*PricesByItr!I50)/1000) -> 3476.189737 | J50: =IF(PricesByItr!J50<0,0,(PurchByItr!J50*J$1*PricesByItr!J50)/1000) -> 26596.24512 | K50: =IF(PricesByItr!K50<0,0,(PurchByItr!K50*K$1*PricesByItr!K50)/1000) -> 0 | L50: =IF(PricesByItr!L50<0,0,(PurchByItr!L50*L$1*PricesByItr!L50)/1000) -> 11842.40227 | M50: =IF(PricesByItr!M50<0,0,(PurchByItr!M50*M$1*PricesByItr!M50)/1000) -> 11983.47406 | N50: =IF(PricesByItr!N50<0,0,(PurchByItr!N50*N$1*PricesByItr!N50)/1000) -> 0 | O50: 199785.4374 | Q50: =PurchByItr!Q50 -> 2023 | R50: =PurchByItr!R50 -> 2004 | S50: =IF(PricesByItr!S50<0,0,(PurchByItr!S50*S$1*PricesByItr!S50)/1000) -> 23857.16658 | T50: =IF(PricesByItr!T50<0,0,(PurchByItr!T50*T$1*PricesByItr!T50)/1000) -> 4060.152954 | U50: =IF(PricesByItr!U50<0,0,(PurchByItr!U50*U$1*PricesByItr!U50)/1000) -> 4126.873549 | V50: =IF(PricesByItr!V50<0,0,(PurchByItr!V50*V$1*PricesByItr!V50)/1000) -> 30875.2863 | W50: =IF(PricesByItr!W50<0,0,(PurchByItr!W50*W$1*PricesByItr!W50)/1000) -> 0 | X50: =IF(PricesByItr!X50<0,0,(PurchByItr!X50*X$1*PricesByItr!X50)/1000) -> 31465.39029 | Y50: =IF(PricesByItr!Y50<0,0,(PurchByItr!Y50*Y$1*PricesByItr!Y50)/1000) -> 32080.75788 | Z50: =IF(PricesByItr!Z50<0,0,(PurchByItr!Z50*Z$1*PricesByItr!Z50)/1000) -> 38618.18721 | AA50: =IF(PricesByItr!AA50<0,0,(PurchByItr!AA50*AA$1*PricesByItr!AA50)/1000) -> 5327.804424 | AB50: =IF(PricesByItr!AB50<0,0,(PurchByItr!AB50*AB$1*PricesByItr!AB50)/1000) -> 5646.273209 | AC50: =IF(PricesByItr!AC50<0,0,(PurchByItr!AC50*AC$1*PricesByItr!AC50)/1000) -> 10520.47157 | AD50: =IF(PricesByItr!AD50<0,0,(PurchByItr!AD50*AD$1*PricesByItr!AD50)/1000) -> 13271.33159 | AE50: 199849.6956
A51: =PurchByItr!A51 -> 2022 | B51: =PurchByItr!B51 -> 2000 | C51: =IF(PricesByItr!C51<0,0,(PurchByItr!C51*C$1*PricesByItr!C51)/1000) -> 27050.41185 | D51: =IF(PricesByItr!D51<0,0,(PurchByItr!D51*D$1*PricesByItr!D51)/1000) -> 0 | E51: =IF(PricesByItr!E51<0,0,(PurchByItr!E51*E$1*PricesByItr!E51)/1000) -> 0 | F51: =IF(PricesByItr!F51<0,0,(PurchByItr!F51*F$1*PricesByItr!F51)/1000) -> 0 | G51: =IF(PricesByItr!G51<0,0,(PurchByItr!G51*G$1*PricesByItr!G51)/1000) -> 0 | H51: =IF(PricesByItr!H51<0,0,(PurchByItr!H51*H$1*PricesByItr!H51)/1000) -> 0 | I51: =IF(PricesByItr!I51<0,0,(PurchByItr!I51*I$1*PricesByItr!I51)/1000) -> 0 | J51: =IF(PricesByItr!J51<0,0,(PurchByItr!J51*J$1*PricesByItr!J51)/1000) -> 826.3367251 | K51: =IF(PricesByItr!K51<0,0,(PurchByItr!K51*K$1*PricesByItr!K51)/1000) -> 14887.48223 | L51: =IF(PricesByItr!L51<0,0,(PurchByItr!L51*L$1*PricesByItr!L51)/1000) -> -1003.363597 | M51: =IF(PricesByItr!M51<0,0,(PurchByItr!M51*M$1*PricesByItr!M51)/1000) -> -2754.081148 | N51: =IF(PricesByItr!N51<0,0,(PurchByItr!N51*N$1*PricesByItr!N51)/1000) -> 20096.60812 | O51: 59103.39417 | Q51: =PurchByItr!Q51 -> 2023 | R51: =PurchByItr!R51 -> 2001 | S51: =IF(PricesByItr!S51<0,0,(PurchByItr!S51*S$1*PricesByItr!S51)/1000) -> 22882.76368 | T51: =IF(PricesByItr!T51<0,0,(PurchByItr!T51*T$1*PricesByItr!T51)/1000) -> 12073.57664 | U51: =IF(PricesByItr!U51<0,0,(PurchByItr!U51*U$1*PricesByItr!U51)/1000) -> 36517.30665 | V51: =IF(PricesByItr!V51<0,0,(PurchByItr!V51*V$1*PricesByItr!V51)/1000) -> 45369.93255 | W51: =IF(PricesByItr!W51<0,0,(PurchByItr!W51*W$1*PricesByItr!W51)/1000) -> 15393.37408 | X51: =IF(PricesByItr!X51<0,0,(PurchByItr!X51*X$1*PricesByItr!X51)/1000) -> 33869.78584 | Y51: =IF(PricesByItr!Y51<0,0,(PurchByItr!Y51*Y$1*PricesByItr!Y51)/1000) -> 66317.00042 | Z51: =IF(PricesByItr!Z51<0,0,(PurchByItr!Z51*Z$1*PricesByItr!Z51)/1000) -> 73176.18956 | AA51: =IF(PricesByItr!AA51<0,0,(PurchByItr!AA51*AA$1*PricesByItr!AA51)/1000) -> 48361.97587 | AB51: =IF(PricesByItr!AB51<0,0,(PurchByItr!AB51*AB$1*PricesByItr!AB51)/1000) -> 23106.3533 | AC51: =IF(PricesByItr!AC51<0,0,(PurchByItr!AC51*AC$1*PricesByItr!AC51)/1000) -> -3263.848365 | AD51: =IF(PricesByItr!AD51<0,0,(PurchByItr!AD51*AD$1*PricesByItr!AD51)/1000) -> 0 | AE51: 373804.4102
A52: =PurchByItr!A52 -> 2022 | B52: =PurchByItr!B52 -> 1991 | C52: =IF(PricesByItr!C52<0,0,(PurchByItr!C52*C$1*PricesByItr!C52)/1000) -> 29338.73141 | D52: =IF(PricesByItr!D52<0,0,(PurchByItr!D52*D$1*PricesByItr!D52)/1000) -> 0 | E52: =IF(PricesByItr!E52<0,0,(PurchByItr!E52*E$1*PricesByItr!E52)/1000) -> 0 | F52: =IF(PricesByItr!F52<0,0,(PurchByItr!F52*F$1*PricesByItr!F52)/1000) -> 0 | G52: =IF(PricesByItr!G52<0,0,(PurchByItr!G52*G$1*PricesByItr!G52)/1000) -> 0 | H52: =IF(PricesByItr!H52<0,0,(PurchByItr!H52*H$1*PricesByItr!H52)/1000) -> 0 | I52: =IF(PricesByItr!I52<0,0,(PurchByItr!I52*I$1*PricesByItr!I52)/1000) -> 3811.024796 | J52: =IF(PricesByItr!J52<0,0,(PurchByItr!J52*J$1*PricesByItr!J52)/1000) -> 701.5956735 | K52: =IF(PricesByItr!K52<0,0,(PurchByItr!K52*K$1*PricesByItr!K52)/1000) -> 0 | L52: =IF(PricesByItr!L52<0,0,(PurchByItr!L52*L$1*PricesByItr!L52)/1000) -> 0 | M52: =IF(PricesByItr!M52<0,0,(PurchByItr!M52*M$1*PricesByItr!M52)/1000) -> 0 | N52: =IF(PricesByItr!N52<0,0,(PurchByItr!N52*N$1*PricesByItr!N52)/1000) -> 17088.47468 | O52: 50939.82656 | Q52: =PurchByItr!Q52 -> 2023 | R52: =PurchByItr!R52 -> 1992 | S52: =IF(PricesByItr!S52<0,0,(PurchByItr!S52*S$1*PricesByItr!S52)/1000) -> 27565.24291 | T52: =IF(PricesByItr!T52<0,0,(PurchByItr!T52*T$1*PricesByItr!T52)/1000) -> 11857.33131 | U52: =IF(PricesByItr!U52<0,0,(PurchByItr!U52*U$1*PricesByItr!U52)/1000) -> 64353.87234 | V52: =IF(PricesByItr!V52<0,0,(PurchByItr!V52*V$1*PricesByItr!V52)/1000) -> 34848.88025 | W52: =IF(PricesByItr!W52<0,0,(PurchByItr!W52*W$1*PricesByItr!W52)/1000) -> 21554.31266 | X52: =IF(PricesByItr!X52<0,0,(PurchByItr!X52*X$1*PricesByItr!X52)/1000) -> 546.0694071 | Y52: =IF(PricesByItr!Y52<0,0,(PurchByItr!Y52*Y$1*PricesByItr!Y52)/1000) -> 29135.29455 | Z52: =IF(PricesByItr!Z52<0,0,(PurchByItr!Z52*Z$1*PricesByItr!Z52)/1000) -> 13426.73118 | AA52: =IF(PricesByItr!AA52<0,0,(PurchByItr!AA52*AA$1*PricesByItr!AA52)/1000) -> 35808.85926 | AB52: =IF(PricesByItr!AB52<0,0,(PurchByItr!AB52*AB$1*PricesByItr!AB52)/1000) -> 31200.58906 | AC52: =IF(PricesByItr!AC52<0,0,(PurchByItr!AC52*AC$1*PricesByItr!AC52)/1000) -> 8673.914461 | AD52: =IF(PricesByItr!AD52<0,0,(PurchByItr!AD52*AD$1*PricesByItr!AD52)/1000) -> -4514.071409 | AE52: 274457.026
A53: =PurchByItr!A53 -> 2022 | B53: =PurchByItr!B53 -> 1981 | C53: =IF(PricesByItr!C53<0,0,(PurchByItr!C53*C$1*PricesByItr!C53)/1000) -> 30024.12024 | D53: =IF(PricesByItr!D53<0,0,(PurchByItr!D53*D$1*PricesByItr!D53)/1000) -> 759.2038649 | E53: =IF(PricesByItr!E53<0,0,(PurchByItr!E53*E$1*PricesByItr!E53)/1000) -> 0 | F53: =IF(PricesByItr!F53<0,0,(PurchByItr!F53*F$1*PricesByItr!F53)/1000) -> 0 | G53: =IF(PricesByItr!G53<0,0,(PurchByItr!G53*G$1*PricesByItr!G53)/1000) -> 0 | H53: =IF(PricesByItr!H53<0,0,(PurchByItr!H53*H$1*PricesByItr!H53)/1000) -> 12613.69972 | I53: =IF(PricesByItr!I53<0,0,(PurchByItr!I53*I$1*PricesByItr!I53)/1000) -> 52278.46884 | J53: =IF(PricesByItr!J53<0,0,(PurchByItr!J53*J$1*PricesByItr!J53)/1000) -> 1978.695169 | K53: =IF(PricesByItr!K53<0,0,(PurchByItr!K53*K$1*PricesByItr!K53)/1000) -> 0 | L53: =IF(PricesByItr!L53<0,0,(PurchByItr!L53*L$1*PricesByItr!L53)/1000) -> 0 | M53: =IF(PricesByItr!M53<0,0,(PurchByItr!M53*M$1*PricesByItr!M53)/1000) -> 0 | N53: =IF(PricesByItr!N53<0,0,(PurchByItr!N53*N$1*PricesByItr!N53)/1000) -> 2674.173529 | O53: 100328.3614 | Q53: =PurchByItr!Q53 -> 2023 | R53: =PurchByItr!R53 -> 1982 | S53: =IF(PricesByItr!S53<0,0,(PurchByItr!S53*S$1*PricesByItr!S53)/1000) -> 28012.35854 | T53: =IF(PricesByItr!T53<0,0,(PurchByItr!T53*T$1*PricesByItr!T53)/1000) -> 0 | U53: =IF(PricesByItr!U53<0,0,(PurchByItr!U53*U$1*PricesByItr!U53)/1000) -> 143.1575085 | V53: =IF(PricesByItr!V53<0,0,(PurchByItr!V53*V$1*PricesByItr!V53)/1000) -> 0 | W53: =IF(PricesByItr!W53<0,0,(PurchByItr!W53*W$1*PricesByItr!W53)/1000) -> 0 | X53: =IF(PricesByItr!X53<0,0,(PurchByItr!X53*X$1*PricesByItr!X53)/1000) -> 0 | Y53: =IF(PricesByItr!Y53<0,0,(PurchByItr!Y53*Y$1*PricesByItr!Y53)/1000) -> 1114.647381 | Z53: =IF(PricesByItr!Z53<0,0,(PurchByItr!Z53*Z$1*PricesByItr!Z53)/1000) -> 0 | AA53: =IF(PricesByItr!AA53<0,0,(PurchByItr!AA53*AA$1*PricesByItr!AA53)/1000) -> 0 | AB53: =IF(PricesByItr!AB53<0,0,(PurchByItr!AB53*AB$1*PricesByItr!AB53)/1000) -> 0 | AC53: =IF(PricesByItr!AC53<0,0,(PurchByItr!AC53*AC$1*PricesByItr!AC53)/1000) -> 0 | AD53: =IF(PricesByItr!AD53<0,0,(PurchByItr!AD53*AD$1*PricesByItr!AD53)/1000) -> 0 | AE53: 29270.16343
A54: =PurchByItr!A54 -> 2022 | B54: =PurchByItr!B54 -> 1980 | C54: =IF(PricesByItr!C54<0,0,(PurchByItr!C54*C$1*PricesByItr!C54)/1000) -> 19288.26502 | D54: =IF(PricesByItr!D54<0,0,(PurchByItr!D54*D$1*PricesByItr!D54)/1000) -> 22270.64164 | E54: =IF(PricesByItr!E54<0,0,(PurchByItr!E54*E$1*PricesByItr!E54)/1000) -> 61015.15642 | F54: =IF(PricesByItr!F54<0,0,(PurchByItr!F54*F$1*PricesByItr!F54)/1000) -> 30549.76289 | G54: =IF(PricesByItr!G54<0,0,(PurchByItr!G54*G$1*PricesByItr!G54)/1000) -> 33308.36499 | H54: =IF(PricesByItr!H54<0,0,(PurchByItr!H54*H$1*PricesByItr!H54)/1000) -> 40303.32207 | I54: =IF(PricesByItr!I54<0,0,(PurchByItr!I54*I$1*PricesByItr!I54)/1000) -> 16238.37392 | J54: =IF(PricesByItr!J54<0,0,(PurchByItr!J54*J$1*PricesByItr!J54)/1000) -> 0 | K54: =IF(PricesByItr!K54<0,0,(PurchByItr!K54*K$1*PricesByItr!K54)/1000) -> 0 | L54: =IF(PricesByItr!L54<0,0,(PurchByItr!L54*L$1*PricesByItr!L54)/1000) -> -1983.467598 | M54: =IF(PricesByItr!M54<0,0,(PurchByItr!M54*M$1*PricesByItr!M54)/1000) -> -523.458716 | N54: =IF(PricesByItr!N54<0,0,(PurchByItr!N54*N$1*PricesByItr!N54)/1000) -> 7416.520172 | O54: 227883.4808 | Q54: =PurchByItr!Q54 -> 2023 | R54: =PurchByItr!R54 -> 1981 | S54: =IF(PricesByItr!S54<0,0,(PurchByItr!S54*S$1*PricesByItr!S54)/1000) -> 24126.0814 | T54: =IF(PricesByItr!T54<0,0,(PurchByItr!T54*T$1*PricesByItr!T54)/1000) -> 541.8190678 | U54: =IF(PricesByItr!U54<0,0,(PurchByItr!U54*U$1*PricesByItr!U54)/1000) -> 0 | V54: =IF(PricesByItr!V54<0,0,(PurchByItr!V54*V$1*PricesByItr!V54)/1000) -> 0 | W54: =IF(PricesByItr!W54<0,0,(PurchByItr!W54*W$1*PricesByItr!W54)/1000) -> 0 | X54: =IF(PricesByItr!X54<0,0,(PurchByItr!X54*X$1*PricesByItr!X54)/1000) -> 14162.55058 | Y54: =IF(PricesByItr!Y54<0,0,(PurchByItr!Y54*Y$1*PricesByItr!Y54)/1000) -> 42891.61756 | Z54: =IF(PricesByItr!Z54<0,0,(PurchByItr!Z54*Z$1*PricesByItr!Z54)/1000) -> 2188.218223 | AA54: =IF(PricesByItr!AA54<0,0,(PurchByItr!AA54*AA$1*PricesByItr!AA54)/1000) -> 0 | AB54: =IF(PricesByItr!AB54<0,0,(PurchByItr!AB54*AB$1*PricesByItr!AB54)/1000) -> 0 | AC54: =IF(PricesByItr!AC54<0,0,(PurchByItr!AC54*AC$1*PricesByItr!AC54)/1000) -> 0 | AD54: =IF(PricesByItr!AD54<0,0,(PurchByItr!AD54*AD$1*PricesByItr!AD54)/1000) -> 1931.466933 | AE54: 85841.75377
A55: =PurchByItr!A55 -> 2022 | B55: =PurchByItr!B55 -> 1956 | C55: =IF(PricesByItr!C55<0,0,(PurchByItr!C55*C$1*PricesByItr!C55)/1000) -> 11273.13139 | D55: =IF(PricesByItr!D55<0,0,(PurchByItr!D55*D$1*PricesByItr!D55)/1000) -> 0 | E55: =IF(PricesByItr!E55<0,0,(PurchByItr!E55*E$1*PricesByItr!E55)/1000) -> 0 | F55: =IF(PricesByItr!F55<0,0,(PurchByItr!F55*F$1*PricesByItr!F55)/1000) -> 0 | G55: =IF(PricesByItr!G55<0,0,(PurchByItr!G55*G$1*PricesByItr!G55)/1000) -> 0 | H55: =IF(PricesByItr!H55<0,0,(PurchByItr!H55*H$1*PricesByItr!H55)/1000) -> 0 | I55: =IF(PricesByItr!I55<0,0,(PurchByItr!I55*I$1*PricesByItr!I55)/1000) -> 0 | J55: =IF(PricesByItr!J55<0,0,(PurchByItr!J55*J$1*PricesByItr!J55)/1000) -> 0 | K55: =IF(PricesByItr!K55<0,0,(PurchByItr!K55*K$1*PricesByItr!K55)/1000) -> 0 | L55: =IF(PricesByItr!L55<0,0,(PurchByItr!L55*L$1*PricesByItr!L55)/1000) -> 0 | M55: =IF(PricesByItr!M55<0,0,(PurchByItr!M55*M$1*PricesByItr!M55)/1000) -> 0 | N55: =IF(PricesByItr!N55<0,0,(PurchByItr!N55*N$1*PricesByItr!N55)/1000) -> 11060.08697 | O55: 22333.21836 | Q55: =PurchByItr!Q55 -> 2023 | R55: =PurchByItr!R55 -> 1957 | S55: =IF(PricesByItr!S55<0,0,(PurchByItr!S55*S$1*PricesByItr!S55)/1000) -> 11820.76636 | T55: =IF(PricesByItr!T55<0,0,(PurchByItr!T55*T$1*PricesByItr!T55)/1000) -> 0 | U55: =IF(PricesByItr!U55<0,0,(PurchByItr!U55*U$1*PricesByItr!U55)/1000) -> 0 | V55: =IF(PricesByItr!V55<0,0,(PurchByItr!V55*V$1*PricesByItr!V55)/1000) -> 0 | W55: =IF(PricesByItr!W55<0,0,(PurchByItr!W55*W$1*PricesByItr!W55)/1000) -> 0 | X55: =IF(PricesByItr!X55<0,0,(PurchByItr!X55*X$1*PricesByItr!X55)/1000) -> 0 | Y55: =IF(PricesByItr!Y55<0,0,(PurchByItr!Y55*Y$1*PricesByItr!Y55)/1000) -> 2723.443862 | Z55: =IF(PricesByItr!Z55<0,0,(PurchByItr!Z55*Z$1*PricesByItr!Z55)/1000) -> 0 | AA55: =IF(PricesByItr!AA55<0,0,(PurchByItr!AA55*AA$1*PricesByItr!AA55)/1000) -> 0 | AB55: =IF(PricesByItr!AB55<0,0,(PurchByItr!AB55*AB$1*PricesByItr!AB55)/1000) -> 0 | AC55: =IF(PricesByItr!AC55<0,0,(PurchByItr!AC55*AC$1*PricesByItr!AC55)/1000) -> -528.270827 | AD55: =IF(PricesByItr!AD55<0,0,(PurchByItr!AD55*AD$1*PricesByItr!AD55)/1000) -> 12857.48587 | AE55: 26873.42526
A56: =PurchByItr!A56 -> 2022 | B56: =PurchByItr!B56 -> 1942 | C56: =IF(PricesByItr!C56<0,0,(PurchByItr!C56*C$1*PricesByItr!C56)/1000) -> 8463.435471 | D56: =IF(PricesByItr!D56<0,0,(PurchByItr!D56*D$1*PricesByItr!D56)/1000) -> 0 | E56: =IF(PricesByItr!E56<0,0,(PurchByItr!E56*E$1*PricesByItr!E56)/1000) -> 0 | F56: =IF(PricesByItr!F56<0,0,(PurchByItr!F56*F$1*PricesByItr!F56)/1000) -> 0 | G56: =IF(PricesByItr!G56<0,0,(PurchByItr!G56*G$1*PricesByItr!G56)/1000) -> 0 | H56: =IF(PricesByItr!H56<0,0,(PurchByItr!H56*H$1*PricesByItr!H56)/1000) -> 68538.17699 | I56: =IF(PricesByItr!I56<0,0,(PurchByItr!I56*I$1*PricesByItr!I56)/1000) -> 29391.87528 | J56: =IF(PricesByItr!J56<0,0,(PurchByItr!J56*J$1*PricesByItr!J56)/1000) -> 26992.57217 | K56: =IF(PricesByItr!K56<0,0,(PurchByItr!K56*K$1*PricesByItr!K56)/1000) -> 0 | L56: =IF(PricesByItr!L56<0,0,(PurchByItr!L56*L$1*PricesByItr!L56)/1000) -> 0 | M56: =IF(PricesByItr!M56<0,0,(PurchByItr!M56*M$1*PricesByItr!M56)/1000) -> 0 | N56: =IF(PricesByItr!N56<0,0,(PurchByItr!N56*N$1*PricesByItr!N56)/1000) -> -6872.292449 | O56: 126513.7675 | Q56: =PurchByItr!Q56 -> 2023 | R56: =PurchByItr!R56 -> 1943 | S56: =IF(PricesByItr!S56<0,0,(PurchByItr!S56*S$1*PricesByItr!S56)/1000) -> 18896.3966 | T56: =IF(PricesByItr!T56<0,0,(PurchByItr!T56*T$1*PricesByItr!T56)/1000) -> 21513.5062 | U56: =IF(PricesByItr!U56<0,0,(PurchByItr!U56*U$1*PricesByItr!U56)/1000) -> 17816.09663 | V56: =IF(PricesByItr!V56<0,0,(PurchByItr!V56*V$1*PricesByItr!V56)/1000) -> 0 | W56: =IF(PricesByItr!W56<0,0,(PurchByItr!W56*W$1*PricesByItr!W56)/1000) -> 0 | X56: =IF(PricesByItr!X56<0,0,(PurchByItr!X56*X$1*PricesByItr!X56)/1000) -> 0 | Y56: =IF(PricesByItr!Y56<0,0,(PurchByItr!Y56*Y$1*PricesByItr!Y56)/1000) -> 0 | Z56: =IF(PricesByItr!Z56<0,0,(PurchByItr!Z56*Z$1*PricesByItr!Z56)/1000) -> 0 | AA56: =IF(PricesByItr!AA56<0,0,(PurchByItr!AA56*AA$1*PricesByItr!AA56)/1000) -> 0 | AB56: =IF(PricesByItr!AB56<0,0,(PurchByItr!AB56*AB$1*PricesByItr!AB56)/1000) -> 0 | AC56: =IF(PricesByItr!AC56<0,0,(PurchByItr!AC56*AC$1*PricesByItr!AC56)/1000) -> 0 | AD56: =IF(PricesByItr!AD56<0,0,(PurchByItr!AD56*AD$1*PricesByItr!AD56)/1000) -> 11681.59219 | AE56: 69907.59162
A57: =PurchByItr!A57 -> 2022 | B57: =PurchByItr!B57 -> 1937 | C57: =IF(PricesByItr!C57<0,0,(PurchByItr!C57*C$1*PricesByItr!C57)/1000) -> 30303.01619 | D57: =IF(PricesByItr!D57<0,0,(PurchByItr!D57*D$1*PricesByItr!D57)/1000) -> 5201.746059 | E57: =IF(PricesByItr!E57<0,0,(PurchByItr!E57*E$1*PricesByItr!E57)/1000) -> 51421.45372 | F57: =IF(PricesByItr!F57<0,0,(PurchByItr!F57*F$1*PricesByItr!F57)/1000) -> 107557.7093 | G57: =IF(PricesByItr!G57<0,0,(PurchByItr!G57*G$1*PricesByItr!G57)/1000) -> 85009.77358 | H57: =IF(PricesByItr!H57<0,0,(PurchByItr!H57*H$1*PricesByItr!H57)/1000) -> 47784.54934 | I57: =IF(PricesByItr!I57<0,0,(PurchByItr!I57*I$1*PricesByItr!I57)/1000) -> 50387.31338 | J57: =IF(PricesByItr!J57<0,0,(PurchByItr!J57*J$1*PricesByItr!J57)/1000) -> 37516.39913 | K57: =IF(PricesByItr!K57<0,0,(PurchByItr!K57*K$1*PricesByItr!K57)/1000) -> 6482.049154 | L57: =IF(PricesByItr!L57<0,0,(PurchByItr!L57*L$1*PricesByItr!L57)/1000) -> 10706.75777 | M57: =IF(PricesByItr!M57<0,0,(PurchByItr!M57*M$1*PricesByItr!M57)/1000) -> 1483.966322 | N57: =IF(PricesByItr!N57<0,0,(PurchByItr!N57*N$1*PricesByItr!N57)/1000) -> -5759.784349 | O57: 428094.9496 | Q57: =PurchByItr!Q57 -> 2023 | R57: =PurchByItr!R57 -> 1938 | S57: =IF(PricesByItr!S57<0,0,(PurchByItr!S57*S$1*PricesByItr!S57)/1000) -> 20068.95278 | T57: =IF(PricesByItr!T57<0,0,(PurchByItr!T57*T$1*PricesByItr!T57)/1000) -> 6199.882198 | U57: =IF(PricesByItr!U57<0,0,(PurchByItr!U57*U$1*PricesByItr!U57)/1000) -> 26941.60478 | V57: =IF(PricesByItr!V57<0,0,(PurchByItr!V57*V$1*PricesByItr!V57)/1000) -> 0 | W57: =IF(PricesByItr!W57<0,0,(PurchByItr!W57*W$1*PricesByItr!W57)/1000) -> 0 | X57: =IF(PricesByItr!X57<0,0,(PurchByItr!X57*X$1*PricesByItr!X57)/1000) -> 0 | Y57: =IF(PricesByItr!Y57<0,0,(PurchByItr!Y57*Y$1*PricesByItr!Y57)/1000) -> 0 | Z57: =IF(PricesByItr!Z57<0,0,(PurchByItr!Z57*Z$1*PricesByItr!Z57)/1000) -> 0 | AA57: =IF(PricesByItr!AA57<0,0,(PurchByItr!AA57*AA$1*PricesByItr!AA57)/1000) -> 0 | AB57: =IF(PricesByItr!AB57<0,0,(PurchByItr!AB57*AB$1*PricesByItr!AB57)/1000) -> -261.1966768 | AC57: =IF(PricesByItr!AC57<0,0,(PurchByItr!AC57*AC$1*PricesByItr!AC57)/1000) -> 5031.061092 | AD57: =IF(PricesByItr!AD57<0,0,(PurchByItr!AD57*AD$1*PricesByItr!AD57)/1000) -> -1888.434326 | AE57: 56091.86985
A58: =PurchByItr!A58 -> 2022 | B58: =PurchByItr!B58 -> 1975 | C58: =IF(PricesByItr!C58<0,0,(PurchByItr!C58*C$1*PricesByItr!C58)/1000) -> 29658.57797 | D58: =IF(PricesByItr!D58<0,0,(PurchByItr!D58*D$1*PricesByItr!D58)/1000) -> 13808.8793 | E58: =IF(PricesByItr!E58<0,0,(PurchByItr!E58*E$1*PricesByItr!E58)/1000) -> 40911.99592 | F58: =IF(PricesByItr!F58<0,0,(PurchByItr!F58*F$1*PricesByItr!F58)/1000) -> 0 | G58: =IF(PricesByItr!G58<0,0,(PurchByItr!G58*G$1*PricesByItr!G58)/1000) -> 0 | H58: =IF(PricesByItr!H58<0,0,(PurchByItr!H58*H$1*PricesByItr!H58)/1000) -> 0 | I58: =IF(PricesByItr!I58<0,0,(PurchByItr!I58*I$1*PricesByItr!I58)/1000) -> 20820.85213 | J58: =IF(PricesByItr!J58<0,0,(PurchByItr!J58*J$1*PricesByItr!J58)/1000) -> 2208.071833 | K58: =IF(PricesByItr!K58<0,0,(PurchByItr!K58*K$1*PricesByItr!K58)/1000) -> 0 | L58: =IF(PricesByItr!L58<0,0,(PurchByItr!L58*L$1*PricesByItr!L58)/1000) -> 0 | M58: =IF(PricesByItr!M58<0,0,(PurchByItr!M58*M$1*PricesByItr!M58)/1000) -> 0 | N58: =IF(PricesByItr!N58<0,0,(PurchByItr!N58*N$1*PricesByItr!N58)/1000) -> 0 | O58: 107408.3772 | Q58: =PurchByItr!Q58 -> 2023 | R58: =PurchByItr!R58 -> 1976 | S58: =IF(PricesByItr!S58<0,0,(PurchByItr!S58*S$1*PricesByItr!S58)/1000) -> 0 | T58: =IF(PricesByItr!T58<0,0,(PurchByItr!T58*T$1*PricesByItr!T58)/1000) -> 0 | U58: =IF(PricesByItr!U58<0,0,(PurchByItr!U58*U$1*PricesByItr!U58)/1000) -> 0 | V58: =IF(PricesByItr!V58<0,0,(PurchByItr!V58*V$1*PricesByItr!V58)/1000) -> 0 | W58: =IF(PricesByItr!W58<0,0,(PurchByItr!W58*W$1*PricesByItr!W58)/1000) -> 0 | X58: =IF(PricesByItr!X58<0,0,(PurchByItr!X58*X$1*PricesByItr!X58)/1000) -> 0 | Y58: =IF(PricesByItr!Y58<0,0,(PurchByItr!Y58*Y$1*PricesByItr!Y58)/1000) -> 0 | Z58: =IF(PricesByItr!Z58<0,0,(PurchByItr!Z58*Z$1*PricesByItr!Z58)/1000) -> 0 | AA58: =IF(PricesByItr!AA58<0,0,(PurchByItr!AA58*AA$1*PricesByItr!AA58)/1000) -> 0 | AB58: =IF(PricesByItr!AB58<0,0,(PurchByItr!AB58*AB$1*PricesByItr!AB58)/1000) -> 0 | AC58: =IF(PricesByItr!AC58<0,0,(PurchByItr!AC58*AC$1*PricesByItr!AC58)/1000) -> 0 | AD58: =IF(PricesByItr!AD58<0,0,(PurchByItr!AD58*AD$1*PricesByItr!AD58)/1000) -> 0 | AE58: 0
A59: =PurchByItr!A59 -> 2022 | B59: =PurchByItr!B59 -> 1961 | C59: =IF(PricesByItr!C59<0,0,(PurchByItr!C59*C$1*PricesByItr!C59)/1000) -> 24127.67636 | D59: =IF(PricesByItr!D59<0,0,(PurchByItr!D59*D$1*PricesByItr!D59)/1000) -> 0 | E59: =IF(PricesByItr!E59<0,0,(PurchByItr!E59*E$1*PricesByItr!E59)/1000) -> 12089.86587 | F59: =IF(PricesByItr!F59<0,0,(PurchByItr!F59*F$1*PricesByItr!F59)/1000) -> 0 | G59: =IF(PricesByItr!G59<0,0,(PurchByItr!G59*G$1*PricesByItr!G59)/1000) -> 0 | H59: =IF(PricesByItr!H59<0,0,(PurchByItr!H59*H$1*PricesByItr!H59)/1000) -> 0 | I59: =IF(PricesByItr!I59<0,0,(PurchByItr!I59*I$1*PricesByItr!I59)/1000) -> 5052.853868 | J59: =IF(PricesByItr!J59<0,0,(PurchByItr!J59*J$1*PricesByItr!J59)/1000) -> 0 | K59: =IF(PricesByItr!K59<0,0,(PurchByItr!K59*K$1*PricesByItr!K59)/1000) -> 0 | L59: =IF(PricesByItr!L59<0,0,(PurchByItr!L59*L$1*PricesByItr!L59)/1000) -> -6663.681343 | M59: =IF(PricesByItr!M59<0,0,(PurchByItr!M59*M$1*PricesByItr!M59)/1000) -> -1322.74688 | N59: =IF(PricesByItr!N59<0,0,(PurchByItr!N59*N$1*PricesByItr!N59)/1000) -> 10039.58577 | O59: 43323.55365 | Q59: =PurchByItr!Q59 -> 2023 | R59: =PurchByItr!R59 -> 1962 | S59: =IF(PricesByItr!S59<0,0,(PurchByItr!S59*S$1*PricesByItr!S59)/1000) -> 33374.32038 | T59: =IF(PricesByItr!T59<0,0,(PurchByItr!T59*T$1*PricesByItr!T59)/1000) -> 8768.262188 | U59: =IF(PricesByItr!U59<0,0,(PurchByItr!U59*U$1*PricesByItr!U59)/1000) -> 10422.37946 | V59: =IF(PricesByItr!V59<0,0,(PurchByItr!V59*V$1*PricesByItr!V59)/1000) -> 0 | W59: =IF(PricesByItr!W59<0,0,(PurchByItr!W59*W$1*PricesByItr!W59)/1000) -> 0 | X59: =IF(PricesByItr!X59<0,0,(PurchByItr!X59*X$1*PricesByItr!X59)/1000) -> 31881.72796 | Y59: =IF(PricesByItr!Y59<0,0,(PurchByItr!Y59*Y$1*PricesByItr!Y59)/1000) -> 0 | Z59: =IF(PricesByItr!Z59<0,0,(PurchByItr!Z59*Z$1*PricesByItr!Z59)/1000) -> 0 | AA59: =IF(PricesByItr!AA59<0,0,(PurchByItr!AA59*AA$1*PricesByItr!AA59)/1000) -> 0 | AB59: =IF(PricesByItr!AB59<0,0,(PurchByItr!AB59*AB$1*PricesByItr!AB59)/1000) -> -2098.076157 | AC59: =IF(PricesByItr!AC59<0,0,(PurchByItr!AC59*AC$1*PricesByItr!AC59)/1000) -> -492.8206653 | AD59: =IF(PricesByItr!AD59<0,0,(PurchByItr!AD59*AD$1*PricesByItr!AD59)/1000) -> 9412.707554 | AE59: 91268.50072
A60: =PurchByItr!A60 -> 2022 | B60: =PurchByItr!B60 -> 1998 | C60: =IF(PricesByItr!C60<0,0,(PurchByItr!C60*C$1*PricesByItr!C60)/1000) -> 0 | D60: =IF(PricesByItr!D60<0,0,(PurchByItr!D60*D$1*PricesByItr!D60)/1000) -> 0 | E60: =IF(PricesByItr!E60<0,0,(PurchByItr!E60*E$1*PricesByItr!E60)/1000) -> 5358.204778 | F60: =IF(PricesByItr!F60<0,0,(PurchByItr!F60*F$1*PricesByItr!F60)/1000) -> 0 | G60: =IF(PricesByItr!G60<0,0,(PurchByItr!G60*G$1*PricesByItr!G60)/1000) -> 0 | H60: =IF(PricesByItr!H60<0,0,(PurchByItr!H60*H$1*PricesByItr!H60)/1000) -> 0 | I60: =IF(PricesByItr!I60<0,0,(PurchByItr!I60*I$1*PricesByItr!I60)/1000) -> 18582.04985 | J60: =IF(PricesByItr!J60<0,0,(PurchByItr!J60*J$1*PricesByItr!J60)/1000) -> 0 | K60: =IF(PricesByItr!K60<0,0,(PurchByItr!K60*K$1*PricesByItr!K60)/1000) -> 0 | L60: =IF(PricesByItr!L60<0,0,(PurchByItr!L60*L$1*PricesByItr!L60)/1000) -> 0 | M60: =IF(PricesByItr!M60<0,0,(PurchByItr!M60*M$1*PricesByItr!M60)/1000) -> 0 | N60: =IF(PricesByItr!N60<0,0,(PurchByItr!N60*N$1*PricesByItr!N60)/1000) -> 8621.705015 | O60: 32561.95964 | Q60: =PurchByItr!Q60 -> 2023 | R60: =PurchByItr!R60 -> 1999 | S60: =IF(PricesByItr!S60<0,0,(PurchByItr!S60*S$1*PricesByItr!S60)/1000) -> 22328.25083 | T60: =IF(PricesByItr!T60<0,0,(PurchByItr!T60*T$1*PricesByItr!T60)/1000) -> 17045.75262 | U60: =IF(PricesByItr!U60<0,0,(PurchByItr!U60*U$1*PricesByItr!U60)/1000) -> 0 | V60: =IF(PricesByItr!V60<0,0,(PurchByItr!V60*V$1*PricesByItr!V60)/1000) -> 0 | W60: =IF(PricesByItr!W60<0,0,(PurchByItr!W60*W$1*PricesByItr!W60)/1000) -> 0 | X60: =IF(PricesByItr!X60<0,0,(PurchByItr!X60*X$1*PricesByItr!X60)/1000) -> 0 | Y60: =IF(PricesByItr!Y60<0,0,(PurchByItr!Y60*Y$1*PricesByItr!Y60)/1000) -> 0 | Z60: =IF(PricesByItr!Z60<0,0,(PurchByItr!Z60*Z$1*PricesByItr!Z60)/1000) -> 1081.706923 | AA60: =IF(PricesByItr!AA60<0,0,(PurchByItr!AA60*AA$1*PricesByItr!AA60)/1000) -> 0 | AB60: =IF(PricesByItr!AB60<0,0,(PurchByItr!AB60*AB$1*PricesByItr!AB60)/1000) -> 0 | AC60: =IF(PricesByItr!AC60<0,0,(PurchByItr!AC60*AC$1*PricesByItr!AC60)/1000) -> 0 | AD60: =IF(PricesByItr!AD60<0,0,(PurchByItr!AD60*AD$1*PricesByItr!AD60)/1000) -> 8105.729499 | AE60: 48561.43988
A61: =PurchByItr!A61 -> 2022 | B61: =PurchByItr!B61 -> 1959 | C61: =IF(PricesByItr!C61<0,0,(PurchByItr!C61*C$1*PricesByItr!C61)/1000) -> 27006.52221 | D61: =IF(PricesByItr!D61<0,0,(PurchByItr!D61*D$1*PricesByItr!D61)/1000) -> 0 | E61: =IF(PricesByItr!E61<0,0,(PurchByItr!E61*E$1*PricesByItr!E61)/1000) -> 0 | F61: =IF(PricesByItr!F61<0,0,(PurchByItr!F61*F$1*PricesByItr!F61)/1000) -> 0 | G61: =IF(PricesByItr!G61<0,0,(PurchByItr!G61*G$1*PricesByItr!G61)/1000) -> 0 | H61: =IF(PricesByItr!H61<0,0,(PurchByItr!H61*H$1*PricesByItr!H61)/1000) -> 0 | I61: =IF(PricesByItr!I61<0,0,(PurchByItr!I61*I$1*PricesByItr!I61)/1000) -> 0 | J61: =IF(PricesByItr!J61<0,0,(PurchByItr!J61*J$1*PricesByItr!J61)/1000) -> 0 | K61: =IF(PricesByItr!K61<0,0,(PurchByItr!K61*K$1*PricesByItr!K61)/1000) -> 0 | L61: =IF(PricesByItr!L61<0,0,(PurchByItr!L61*L$1*PricesByItr!L61)/1000) -> 0 | M61: =IF(PricesByItr!M61<0,0,(PurchByItr!M61*M$1*PricesByItr!M61)/1000) -> 0 | N61: =IF(PricesByItr!N61<0,0,(PurchByItr!N61*N$1*PricesByItr!N61)/1000) -> 0 | O61: 27006.52221 | Q61: =PurchByItr!Q61 -> 2023 | R61: =PurchByItr!R61 -> 1960 | S61: =IF(PricesByItr!S61<0,0,(PurchByItr!S61*S$1*PricesByItr!S61)/1000) -> 0 | T61: =IF(PricesByItr!T61<0,0,(PurchByItr!T61*T$1*PricesByItr!T61)/1000) -> 0 | U61: =IF(PricesByItr!U61<0,0,(PurchByItr!U61*U$1*PricesByItr!U61)/1000) -> 0 | V61: =IF(PricesByItr!V61<0,0,(PurchByItr!V61*V$1*PricesByItr!V61)/1000) -> 0 | W61: =IF(PricesByItr!W61<0,0,(PurchByItr!W61*W$1*PricesByItr!W61)/1000) -> 0 | X61: =IF(PricesByItr!X61<0,0,(PurchByItr!X61*X$1*PricesByItr!X61)/1000) -> 0 | Y61: =IF(PricesByItr!Y61<0,0,(PurchByItr!Y61*Y$1*PricesByItr!Y61)/1000) -> 0 | Z61: =IF(PricesByItr!Z61<0,0,(PurchByItr!Z61*Z$1*PricesByItr!Z61)/1000) -> 2742.287233 | AA61: =IF(PricesByItr!AA61<0,0,(PurchByItr!AA61*AA$1*PricesByItr!AA61)/1000) -> 0 | AB61: =IF(PricesByItr!AB61<0,0,(PurchByItr!AB61*AB$1*PricesByItr!AB61)/1000) -> -7856.576944 | AC61: =IF(PricesByItr!AC61<0,0,(PurchByItr!AC61*AC$1*PricesByItr!AC61)/1000) -> 0 | AD61: =IF(PricesByItr!AD61<0,0,(PurchByItr!AD61*AD$1*PricesByItr!AD61)/1000) -> 9241.626961 | AE61: 4127.33725
A62: =PurchByItr!A62 -> 2022 | B62: =PurchByItr!B62 -> 2005 | C62: =IF(PricesByItr!C62<0,0,(PurchByItr!C62*C$1*PricesByItr!C62)/1000) -> 9782.555883 | D62: =IF(PricesByItr!D62<0,0,(PurchByItr!D62*D$1*PricesByItr!D62)/1000) -> 0 | E62: =IF(PricesByItr!E62<0,0,(PurchByItr!E62*E$1*PricesByItr!E62)/1000) -> 0 | F62: =IF(PricesByItr!F62<0,0,(PurchByItr!F62*F$1*PricesByItr!F62)/1000) -> 0 | G62: =IF(PricesByItr!G62<0,0,(PurchByItr!G62*G$1*PricesByItr!G62)/1000) -> 0 | H62: =IF(PricesByItr!H62<0,0,(PurchByItr!H62*H$1*PricesByItr!H62)/1000) -> 3322.083271 | I62: =IF(PricesByItr!I62<0,0,(PurchByItr!I62*I$1*PricesByItr!I62)/1000) -> 51628.97369 | J62: =IF(PricesByItr!J62<0,0,(PurchByItr!J62*J$1*PricesByItr!J62)/1000) -> 25183.14133 | K62: =IF(PricesByItr!K62<0,0,(PurchByItr!K62*K$1*PricesByItr!K62)/1000) -> 3795.199878 | L62: =IF(PricesByItr!L62<0,0,(PurchByItr!L62*L$1*PricesByItr!L62)/1000) -> 0 | M62: =IF(PricesByItr!M62<0,0,(PurchByItr!M62*M$1*PricesByItr!M62)/1000) -> 0 | N62: =IF(PricesByItr!N62<0,0,(PurchByItr!N62*N$1*PricesByItr!N62)/1000) -> 16706.98188 | O62: 110418.9359 | Q62: =PurchByItr!Q62 -> 2023 | R62: =PurchByItr!R62 -> 2006 | S62: =IF(PricesByItr!S62<0,0,(PurchByItr!S62*S$1*PricesByItr!S62)/1000) -> 43369.17194 | T62: =IF(PricesByItr!T62<0,0,(PurchByItr!T62*T$1*PricesByItr!T62)/1000) -> 0 | U62: =IF(PricesByItr!U62<0,0,(PurchByItr!U62*U$1*PricesByItr!U62)/1000) -> 4810.842712 | V62: =IF(PricesByItr!V62<0,0,(PurchByItr!V62*V$1*PricesByItr!V62)/1000) -> 0 | W62: =IF(PricesByItr!W62<0,0,(PurchByItr!W62*W$1*PricesByItr!W62)/1000) -> 0 | X62: =IF(PricesByItr!X62<0,0,(PurchByItr!X62*X$1*PricesByItr!X62)/1000) -> 0 | Y62: =IF(PricesByItr!Y62<0,0,(PurchByItr!Y62*Y$1*PricesByItr!Y62)/1000) -> 0 | Z62: =IF(PricesByItr!Z62<0,0,(PurchByItr!Z62*Z$1*PricesByItr!Z62)/1000) -> 0 | AA62: =IF(PricesByItr!AA62<0,0,(PurchByItr!AA62*AA$1*PricesByItr!AA62)/1000) -> 0 | AB62: =IF(PricesByItr!AB62<0,0,(PurchByItr!AB62*AB$1*PricesByItr!AB62)/1000) -> -2460.283814 | AC62: =IF(PricesByItr!AC62<0,0,(PurchByItr!AC62*AC$1*PricesByItr!AC62)/1000) -> -746.2668331 | AD62: =IF(PricesByItr!AD62<0,0,(PurchByItr!AD62*AD$1*PricesByItr!AD62)/1000) -> 18036.04517 | AE62: 63009.50917
A63: =PurchByItr!A63 -> 2022 | B63: =PurchByItr!B63 -> 1965 | C63: =IF(PricesByItr!C63<0,0,(PurchByItr!C63*C$1*PricesByItr!C63)/1000) -> 617.4336693 | D63: =IF(PricesByItr!D63<0,0,(PurchByItr!D63*D$1*PricesByItr!D63)/1000) -> 0 | E63: =IF(PricesByItr!E63<0,0,(PurchByItr!E63*E$1*PricesByItr!E63)/1000) -> 0 | F63: =IF(PricesByItr!F63<0,0,(PurchByItr!F63*F$1*PricesByItr!F63)/1000) -> 0 | G63: =IF(PricesByItr!G63<0,0,(PurchByItr!G63*G$1*PricesByItr!G63)/1000) -> 0 | H63: =IF(PricesByItr!H63<0,0,(PurchByItr!H63*H$1*PricesByItr!H63)/1000) -> 0 | I63: =IF(PricesByItr!I63<0,0,(PurchByItr!I63*I$1*PricesByItr!I63)/1000) -> 0 | J63: =IF(PricesByItr!J63<0,0,(PurchByItr!J63*J$1*PricesByItr!J63)/1000) -> 0 | K63: =IF(PricesByItr!K63<0,0,(PurchByItr!K63*K$1*PricesByItr!K63)/1000) -> 0 | L63: =IF(PricesByItr!L63<0,0,(PurchByItr!L63*L$1*PricesByItr!L63)/1000) -> 0 | M63: =IF(PricesByItr!M63<0,0,(PurchByItr!M63*M$1*PricesByItr!M63)/1000) -> 0 | N63: =IF(PricesByItr!N63<0,0,(PurchByItr!N63*N$1*PricesByItr!N63)/1000) -> 9666.733569 | O63: 10284.16724 | Q63: =PurchByItr!Q63 -> 2023 | R63: =PurchByItr!R63 -> 1966 | S63: =IF(PricesByItr!S63<0,0,(PurchByItr!S63*S$1*PricesByItr!S63)/1000) -> 19677.7734 | T63: =IF(PricesByItr!T63<0,0,(PurchByItr!T63*T$1*PricesByItr!T63)/1000) -> 12187.47214 | U63: =IF(PricesByItr!U63<0,0,(PurchByItr!U63*U$1*PricesByItr!U63)/1000) -> 2254.791892 | V63: =IF(PricesByItr!V63<0,0,(PurchByItr!V63*V$1*PricesByItr!V63)/1000) -> 0 | W63: =IF(PricesByItr!W63<0,0,(PurchByItr!W63*W$1*PricesByItr!W63)/1000) -> 0 | X63: =IF(PricesByItr!X63<0,0,(PurchByItr!X63*X$1*PricesByItr!X63)/1000) -> 15321.87173 | Y63: =IF(PricesByItr!Y63<0,0,(PurchByItr!Y63*Y$1*PricesByItr!Y63)/1000) -> 6735.322224 | Z63: =IF(PricesByItr!Z63<0,0,(PurchByItr!Z63*Z$1*PricesByItr!Z63)/1000) -> 21895.06261 | AA63: =IF(PricesByItr!AA63<0,0,(PurchByItr!AA63*AA$1*PricesByItr!AA63)/1000) -> 0 | AB63: =IF(PricesByItr!AB63<0,0,(PurchByItr!AB63*AB$1*PricesByItr!AB63)/1000) -> 0 | AC63: =IF(PricesByItr!AC63<0,0,(PurchByItr!AC63*AC$1*PricesByItr!AC63)/1000) -> 0 | AD63: =IF(PricesByItr!AD63<0,0,(PurchByItr!AD63*AD$1*PricesByItr!AD63)/1000) -> 12983.29359 | AE63: 91055.58759
A64: =PurchByItr!A64 -> 2022 | B64: =PurchByItr!B64 -> 2006 | C64: =IF(PricesByItr!C64<0,0,(PurchByItr!C64*C$1*PricesByItr!C64)/1000) -> 33324.13793 | D64: =IF(PricesByItr!D64<0,0,(PurchByItr!D64*D$1*PricesByItr!D64)/1000) -> 0 | E64: =IF(PricesByItr!E64<0,0,(PurchByItr!E64*E$1*PricesByItr!E64)/1000) -> 6016.896211 | F64: =IF(PricesByItr!F64<0,0,(PurchByItr!F64*F$1*PricesByItr!F64)/1000) -> 0 | G64: =IF(PricesByItr!G64<0,0,(PurchByItr!G64*G$1*PricesByItr!G64)/1000) -> 0 | H64: =IF(PricesByItr!H64<0,0,(PurchByItr!H64*H$1*PricesByItr!H64)/1000) -> 0 | I64: =IF(PricesByItr!I64<0,0,(PurchByItr!I64*I$1*PricesByItr!I64)/1000) -> 0 | J64: =IF(PricesByItr!J64<0,0,(PurchByItr!J64*J$1*PricesByItr!J64)/1000) -> 0 | K64: =IF(PricesByItr!K64<0,0,(PurchByItr!K64*K$1*PricesByItr!K64)/1000) -> 0 | L64: =IF(PricesByItr!L64<0,0,(PurchByItr!L64*L$1*PricesByItr!L64)/1000) -> -6179.790579 | M64: =IF(PricesByItr!M64<0,0,(PurchByItr!M64*M$1*PricesByItr!M64)/1000) -> -486.8433867 | N64: =IF(PricesByItr!N64<0,0,(PurchByItr!N64*N$1*PricesByItr!N64)/1000) -> 27971.54125 | O64: 60645.94143 | Q64: =PurchByItr!Q64 -> 2023 | R64: =PurchByItr!R64 -> 2007 | S64: =IF(PricesByItr!S64<0,0,(PurchByItr!S64*S$1*PricesByItr!S64)/1000) -> 33649.93691 | T64: =IF(PricesByItr!T64<0,0,(PurchByItr!T64*T$1*PricesByItr!T64)/1000) -> -4515.581521 | U64: =IF(PricesByItr!U64<0,0,(PurchByItr!U64*U$1*PricesByItr!U64)/1000) -> 4012.833613 | V64: =IF(PricesByItr!V64<0,0,(PurchByItr!V64*V$1*PricesByItr!V64)/1000) -> 0 | W64: =IF(PricesByItr!W64<0,0,(PurchByItr!W64*W$1*PricesByItr!W64)/1000) -> 0 | X64: =IF(PricesByItr!X64<0,0,(PurchByItr!X64*X$1*PricesByItr!X64)/1000) -> 0 | Y64: =IF(PricesByItr!Y64<0,0,(PurchByItr!Y64*Y$1*PricesByItr!Y64)/1000) -> 1381.838409 | Z64: =IF(PricesByItr!Z64<0,0,(PurchByItr!Z64*Z$1*PricesByItr!Z64)/1000) -> 2349.945353 | AA64: =IF(PricesByItr!AA64<0,0,(PurchByItr!AA64*AA$1*PricesByItr!AA64)/1000) -> 0 | AB64: =IF(PricesByItr!AB64<0,0,(PurchByItr!AB64*AB$1*PricesByItr!AB64)/1000) -> -3557.105396 | AC64: =IF(PricesByItr!AC64<0,0,(PurchByItr!AC64*AC$1*PricesByItr!AC64)/1000) -> 1521.161589 | AD64: =IF(PricesByItr!AD64<0,0,(PurchByItr!AD64*AD$1*PricesByItr!AD64)/1000) -> 21825.84106 | AE64: 56668.87001
A65: =PurchByItr!A65 -> 2022 | B65: =PurchByItr!B65 -> 1960 | C65: =IF(PricesByItr!C65<0,0,(PurchByItr!C65*C$1*PricesByItr!C65)/1000) -> 0 | D65: =IF(PricesByItr!D65<0,0,(PurchByItr!D65*D$1*PricesByItr!D65)/1000) -> 0 | E65: =IF(PricesByItr!E65<0,0,(PurchByItr!E65*E$1*PricesByItr!E65)/1000) -> 0 | F65: =IF(PricesByItr!F65<0,0,(PurchByItr!F65*F$1*PricesByItr!F65)/1000) -> 0 | G65: =IF(PricesByItr!G65<0,0,(PurchByItr!G65*G$1*PricesByItr!G65)/1000) -> 0 | H65: =IF(PricesByItr!H65<0,0,(PurchByItr!H65*H$1*PricesByItr!H65)/1000) -> 0 | I65: =IF(PricesByItr!I65<0,0,(PurchByItr!I65*I$1*PricesByItr!I65)/1000) -> 0 | J65: =IF(PricesByItr!J65<0,0,(PurchByItr!J65*J$1*PricesByItr!J65)/1000) -> 3466.948515 | K65: =IF(PricesByItr!K65<0,0,(PurchByItr!K65*K$1*PricesByItr!K65)/1000) -> 0 | L65: =IF(PricesByItr!L65<0,0,(PurchByItr!L65*L$1*PricesByItr!L65)/1000) -> -11966.74472 | M65: =IF(PricesByItr!M65<0,0,(PurchByItr!M65*M$1*PricesByItr!M65)/1000) -> 0 | N65: =IF(PricesByItr!N65<0,0,(PurchByItr!N65*N$1*PricesByItr!N65)/1000) -> 13661.81736 | O65: 5162.021154 | Q65: =PurchByItr!Q65 -> 2023 | R65: =PurchByItr!R65 -> 1961 | S65: =IF(PricesByItr!S65<0,0,(PurchByItr!S65*S$1*PricesByItr!S65)/1000) -> 36295.15737 | T65: =IF(PricesByItr!T65<0,0,(PurchByItr!T65*T$1*PricesByItr!T65)/1000) -> 0 | U65: =IF(PricesByItr!U65<0,0,(PurchByItr!U65*U$1*PricesByItr!U65)/1000) -> 12147.99056 | V65: =IF(PricesByItr!V65<0,0,(PurchByItr!V65*V$1*PricesByItr!V65)/1000) -> 0 | W65: =IF(PricesByItr!W65<0,0,(PurchByItr!W65*W$1*PricesByItr!W65)/1000) -> 0 | X65: =IF(PricesByItr!X65<0,0,(PurchByItr!X65*X$1*PricesByItr!X65)/1000) -> 0 | Y65: =IF(PricesByItr!Y65<0,0,(PurchByItr!Y65*Y$1*PricesByItr!Y65)/1000) -> 6241.007766 | Z65: =IF(PricesByItr!Z65<0,0,(PurchByItr!Z65*Z$1*PricesByItr!Z65)/1000) -> 0 | AA65: =IF(PricesByItr!AA65<0,0,(PurchByItr!AA65*AA$1*PricesByItr!AA65)/1000) -> 0 | AB65: =IF(PricesByItr!AB65<0,0,(PurchByItr!AB65*AB$1*PricesByItr!AB65)/1000) -> -8506.989036 | AC65: =IF(PricesByItr!AC65<0,0,(PurchByItr!AC65*AC$1*PricesByItr!AC65)/1000) -> 0 | AD65: =IF(PricesByItr!AD65<0,0,(PurchByItr!AD65*AD$1*PricesByItr!AD65)/1000) -> 9165.219608 | AE65: 55342.38627
A66: =PurchByItr!A66 -> 2022 | B66: =PurchByItr!B66 -> 1993 | C66: =IF(PricesByItr!C66<0,0,(PurchByItr!C66*C$1*PricesByItr!C66)/1000) -> 29101.26432 | D66: =IF(PricesByItr!D66<0,0,(PurchByItr!D66*D$1*PricesByItr!D66)/1000) -> 8168.214492 | E66: =IF(PricesByItr!E66<0,0,(PurchByItr!E66*E$1*PricesByItr!E66)/1000) -> 49701.81937 | F66: =IF(PricesByItr!F66<0,0,(PurchByItr!F66*F$1*PricesByItr!F66)/1000) -> 73343.5404 | G66: =IF(PricesByItr!G66<0,0,(PurchByItr!G66*G$1*PricesByItr!G66)/1000) -> 87282.61722 | H66: =IF(PricesByItr!H66<0,0,(PurchByItr!H66*H$1*PricesByItr!H66)/1000) -> 18313.67837 | I66: =IF(PricesByItr!I66<0,0,(PurchByItr!I66*I$1*PricesByItr!I66)/1000) -> 33745.77749 | J66: =IF(PricesByItr!J66<0,0,(PurchByItr!J66*J$1*PricesByItr!J66)/1000) -> 0 | K66: =IF(PricesByItr!K66<0,0,(PurchByItr!K66*K$1*PricesByItr!K66)/1000) -> 0 | L66: =IF(PricesByItr!L66<0,0,(PurchByItr!L66*L$1*PricesByItr!L66)/1000) -> 0 | M66: =IF(PricesByItr!M66<0,0,(PurchByItr!M66*M$1*PricesByItr!M66)/1000) -> -1972.856234 | N66: =IF(PricesByItr!N66<0,0,(PurchByItr!N66*N$1*PricesByItr!N66)/1000) -> 0 | O66: 297684.0554 | Q66: =PurchByItr!Q66 -> 2023 | R66: =PurchByItr!R66 -> 1994 | S66: =IF(PricesByItr!S66<0,0,(PurchByItr!S66*S$1*PricesByItr!S66)/1000) -> 36021.20955 | T66: =IF(PricesByItr!T66<0,0,(PurchByItr!T66*T$1*PricesByItr!T66)/1000) -> 15312.37598 | U66: =IF(PricesByItr!U66<0,0,(PurchByItr!U66*U$1*PricesByItr!U66)/1000) -> 40770.47354 | V66: =IF(PricesByItr!V66<0,0,(PurchByItr!V66*V$1*PricesByItr!V66)/1000) -> 77870.09038 | W66: =IF(PricesByItr!W66<0,0,(PurchByItr!W66*W$1*PricesByItr!W66)/1000) -> 24057.03535 | X66: =IF(PricesByItr!X66<0,0,(PurchByItr!X66*X$1*PricesByItr!X66)/1000) -> 39894.25779 | Y66: =IF(PricesByItr!Y66<0,0,(PurchByItr!Y66*Y$1*PricesByItr!Y66)/1000) -> 30003.73031 | Z66: =IF(PricesByItr!Z66<0,0,(PurchByItr!Z66*Z$1*PricesByItr!Z66)/1000) -> 17807.02712 | AA66: =IF(PricesByItr!AA66<0,0,(PurchByItr!AA66*AA$1*PricesByItr!AA66)/1000) -> 39924.69067 | AB66: =IF(PricesByItr!AB66<0,0,(PurchByItr!AB66*AB$1*PricesByItr!AB66)/1000) -> 5826.151224 | AC66: =IF(PricesByItr!AC66<0,0,(PurchByItr!AC66*AC$1*PricesByItr!AC66)/1000) -> 5155.511138 | AD66: =IF(PricesByItr!AD66<0,0,(PurchByItr!AD66*AD$1*PricesByItr!AD66)/1000) -> -430.0349443 | AE66: 332212.5181
A67: =PurchByItr!A67 -> 2022 | B67: =PurchByItr!B67 -> 2007 | C67: =IF(PricesByItr!C67<0,0,(PurchByItr!C67*C$1*PricesByItr!C67)/1000) -> 53955.75859 | D67: =IF(PricesByItr!D67<0,0,(PurchByItr!D67*D$1*PricesByItr!D67)/1000) -> -6234.22491 | E67: =IF(PricesByItr!E67<0,0,(PurchByItr!E67*E$1*PricesByItr!E67)/1000) -> 4420.415791 | F67: =IF(PricesByItr!F67<0,0,(PurchByItr!F67*F$1*PricesByItr!F67)/1000) -> 0 | G67: =IF(PricesByItr!G67<0,0,(PurchByItr!G67*G$1*PricesByItr!G67)/1000) -> 0 | H67: =IF(PricesByItr!H67<0,0,(PurchByItr!H67*H$1*PricesByItr!H67)/1000) -> 0 | I67: =IF(PricesByItr!I67<0,0,(PurchByItr!I67*I$1*PricesByItr!I67)/1000) -> 1240.442151 | J67: =IF(PricesByItr!J67<0,0,(PurchByItr!J67*J$1*PricesByItr!J67)/1000) -> 2955.155362 | K67: =IF(PricesByItr!K67<0,0,(PurchByItr!K67*K$1*PricesByItr!K67)/1000) -> 0 | L67: =IF(PricesByItr!L67<0,0,(PurchByItr!L67*L$1*PricesByItr!L67)/1000) -> -4148.398884 | M67: =IF(PricesByItr!M67<0,0,(PurchByItr!M67*M$1*PricesByItr!M67)/1000) -> 2424.164325 | N67: =IF(PricesByItr!N67<0,0,(PurchByItr!N67*N$1*PricesByItr!N67)/1000) -> 28872.27799 | O67: 83485.59041 | Q67: =PurchByItr!Q67 -> 2023 | R67: =PurchByItr!R67 -> 2008 | S67: =IF(PricesByItr!S67<0,0,(PurchByItr!S67*S$1*PricesByItr!S67)/1000) -> 45121.28473 | T67: =IF(PricesByItr!T67<0,0,(PurchByItr!T67*T$1*PricesByItr!T67)/1000) -> 0 | U67: =IF(PricesByItr!U67<0,0,(PurchByItr!U67*U$1*PricesByItr!U67)/1000) -> 28963.67877 | V67: =IF(PricesByItr!V67<0,0,(PurchByItr!V67*V$1*PricesByItr!V67)/1000) -> 0 | W67: =IF(PricesByItr!W67<0,0,(PurchByItr!W67*W$1*PricesByItr!W67)/1000) -> 6115.422333 | X67: =IF(PricesByItr!X67<0,0,(PurchByItr!X67*X$1*PricesByItr!X67)/1000) -> 2933.004412 | Y67: =IF(PricesByItr!Y67<0,0,(PurchByItr!Y67*Y$1*PricesByItr!Y67)/1000) -> 36070.3972 | Z67: =IF(PricesByItr!Z67<0,0,(PurchByItr!Z67*Z$1*PricesByItr!Z67)/1000) -> 0 | AA67: =IF(PricesByItr!AA67<0,0,(PurchByItr!AA67*AA$1*PricesByItr!AA67)/1000) -> 0 | AB67: =IF(PricesByItr!AB67<0,0,(PurchByItr!AB67*AB$1*PricesByItr!AB67)/1000) -> 0 | AC67: =IF(PricesByItr!AC67<0,0,(PurchByItr!AC67*AC$1*PricesByItr!AC67)/1000) -> -1805.760327 | AD67: =IF(PricesByItr!AD67<0,0,(PurchByItr!AD67*AD$1*PricesByItr!AD67)/1000) -> 8672.106599 | AE67: 126070.1337
A68: =PurchByItr!A68 -> 2022 | B68: =PurchByItr!B68 -> 1982 | C68: =IF(PricesByItr!C68<0,0,(PurchByItr!C68*C$1*PricesByItr!C68)/1000) -> 25222.02202 | D68: =IF(PricesByItr!D68<0,0,(PurchByItr!D68*D$1*PricesByItr!D68)/1000) -> 0 | E68: =IF(PricesByItr!E68<0,0,(PurchByItr!E68*E$1*PricesByItr!E68)/1000) -> 156.1179789 | F68: =IF(PricesByItr!F68<0,0,(PurchByItr!F68*F$1*PricesByItr!F68)/1000) -> 0 | G68: =IF(PricesByItr!G68<0,0,(PurchByItr!G68*G$1*PricesByItr!G68)/1000) -> 0 | H68: =IF(PricesByItr!H68<0,0,(PurchByItr!H68*H$1*PricesByItr!H68)/1000) -> 0 | I68: =IF(PricesByItr!I68<0,0,(PurchByItr!I68*I$1*PricesByItr!I68)/1000) -> 0 | J68: =IF(PricesByItr!J68<0,0,(PurchByItr!J68*J$1*PricesByItr!J68)/1000) -> 0 | K68: =IF(PricesByItr!K68<0,0,(PurchByItr!K68*K$1*PricesByItr!K68)/1000) -> 0 | L68: =IF(PricesByItr!L68<0,0,(PurchByItr!L68*L$1*PricesByItr!L68)/1000) -> 0 | M68: =IF(PricesByItr!M68<0,0,(PurchByItr!M68*M$1*PricesByItr!M68)/1000) -> 0 | N68: =IF(PricesByItr!N68<0,0,(PurchByItr!N68*N$1*PricesByItr!N68)/1000) -> 0 | O68: =SUM(C68:N68) -> 25378.14 | Q68: =PurchByItr!Q68 -> 2023 | R68: =PurchByItr!R68 -> 1983 | S68: =IF(PricesByItr!S68<0,0,(PurchByItr!S68*S$1*PricesByItr!S68)/1000) -> 0 | T68: =IF(PricesByItr!T68<0,0,(PurchByItr!T68*T$1*PricesByItr!T68)/1000) -> 0 | U68: =IF(PricesByItr!U68<0,0,(PurchByItr!U68*U$1*PricesByItr!U68)/1000) -> 0 | V68: =IF(PricesByItr!V68<0,0,(PurchByItr!V68*V$1*PricesByItr!V68)/1000) -> 0 | W68: =IF(PricesByItr!W68<0,0,(PurchByItr!W68*W$1*PricesByItr!W68)/1000) -> 0 | X68: =IF(PricesByItr!X68<0,0,(PurchByItr!X68*X$1*PricesByItr!X68)/1000) -> 0 | Y68: =IF(PricesByItr!Y68<0,0,(PurchByItr!Y68*Y$1*PricesByItr!Y68)/1000) -> 3256.916261 | Z68: =IF(PricesByItr!Z68<0,0,(PurchByItr!Z68*Z$1*PricesByItr!Z68)/1000) -> 0 | AA68: =IF(PricesByItr!AA68<0,0,(PurchByItr!AA68*AA$1*PricesByItr!AA68)/1000) -> 0 | AB68: =IF(PricesByItr!AB68<0,0,(PurchByItr!AB68*AB$1*PricesByItr!AB68)/1000) -> 0 | AC68: =IF(PricesByItr!AC68<0,0,(PurchByItr!AC68*AC$1*PricesByItr!AC68)/1000) -> 0 | AD68: =IF(PricesByItr!AD68<0,0,(PurchByItr!AD68*AD$1*PricesByItr!AD68)/1000) -> 699.2430734 | AE68: =SUM(S68:AD68) -> 3956.159334
A69: =PurchByItr!A69 -> 2022 | B69: =PurchByItr!B69 -> 1952 | C69: =IF(PricesByItr!C69<0,0,(PurchByItr!C69*C$1*PricesByItr!C69)/1000) -> 0 | D69: =IF(PricesByItr!D69<0,0,(PurchByItr!D69*D$1*PricesByItr!D69)/1000) -> 0 | E69: =IF(PricesByItr!E69<0,0,(PurchByItr!E69*E$1*PricesByItr!E69)/1000) -> 0 | F69: =IF(PricesByItr!F69<0,0,(PurchByItr!F69*F$1*PricesByItr!F69)/1000) -> 0 | G69: =IF(PricesByItr!G69<0,0,(PurchByItr!G69*G$1*PricesByItr!G69)/1000) -> 0 | H69: =IF(PricesByItr!H69<0,0,(PurchByItr!H69*H$1*PricesByItr!H69)/1000) -> 0 | I69: =IF(PricesByItr!I69<0,0,(PurchByItr!I69*I$1*PricesByItr!I69)/1000) -> 0 | J69: =IF(PricesByItr!J69<0,0,(PurchByItr!J69*J$1*PricesByItr!J69)/1000) -> 0 | K69: =IF(PricesByItr!K69<0,0,(PurchByItr!K69*K$1*PricesByItr!K69)/1000) -> 0 | L69: =IF(PricesByItr!L69<0,0,(PurchByItr!L69*L$1*PricesByItr!L69)/1000) -> 0 | M69: =IF(PricesByItr!M69<0,0,(PurchByItr!M69*M$1*PricesByItr!M69)/1000) -> 0 | N69: =IF(PricesByItr!N69<0,0,(PurchByItr!N69*N$1*PricesByItr!N69)/1000) -> 13565.22792 | O69: 13565.22792 | Q69: =PurchByItr!Q69 -> 2023 | R69: =PurchByItr!R69 -> 1953 | S69: =IF(PricesByItr!S69<0,0,(PurchByItr!S69*S$1*PricesByItr!S69)/1000) -> 26660.11317 | T69: =IF(PricesByItr!T69<0,0,(PurchByItr!T69*T$1*PricesByItr!T69)/1000) -> 6611.931611 | U69: =IF(PricesByItr!U69<0,0,(PurchByItr!U69*U$1*PricesByItr!U69)/1000) -> 44242.44881 | V69: =IF(PricesByItr!V69<0,0,(PurchByItr!V69*V$1*PricesByItr!V69)/1000) -> 18585.94441 | W69: =IF(PricesByItr!W69<0,0,(PurchByItr!W69*W$1*PricesByItr!W69)/1000) -> 0 | X69: =IF(PricesByItr!X69<0,0,(PurchByItr!X69*X$1*PricesByItr!X69)/1000) -> 18599.00465 | Y69: =IF(PricesByItr!Y69<0,0,(PurchByItr!Y69*Y$1*PricesByItr!Y69)/1000) -> 55285.87146 | Z69: =IF(PricesByItr!Z69<0,0,(PurchByItr!Z69*Z$1*PricesByItr!Z69)/1000) -> 9399.54214 | AA69: =IF(PricesByItr!AA69<0,0,(PurchByItr!AA69*AA$1*PricesByItr!AA69)/1000) -> 0 | AB69: =IF(PricesByItr!AB69<0,0,(PurchByItr!AB69*AB$1*PricesByItr!AB69)/1000) -> 0 | AC69: =IF(PricesByItr!AC69<0,0,(PurchByItr!AC69*AC$1*PricesByItr!AC69)/1000) -> 0 | AD69: =IF(PricesByItr!AD69<0,0,(PurchByItr!AD69*AD$1*PricesByItr!AD69)/1000) -> 5315.854252 | AE69: 184700.7105
A70: =PurchByItr!A70 -> 2022 | B70: =PurchByItr!B70 -> 2008 | C70: =IF(PricesByItr!C70<0,0,(PurchByItr!C70*C$1*PricesByItr!C70)/1000) -> 54739.0137 | D70: =IF(PricesByItr!D70<0,0,(PurchByItr!D70*D$1*PricesByItr!D70)/1000) -> 0 | E70: =IF(PricesByItr!E70<0,0,(PurchByItr!E70*E$1*PricesByItr!E70)/1000) -> 37378.21771 | F70: =IF(PricesByItr!F70<0,0,(PurchByItr!F70*F$1*PricesByItr!F70)/1000) -> 0 | G70: =IF(PricesByItr!G70<0,0,(PurchByItr!G70*G$1*PricesByItr!G70)/1000) -> 8280.305755 | H70: =IF(PricesByItr!H70<0,0,(PurchByItr!H70*H$1*PricesByItr!H70)/1000) -> 2750.186201 | I70: =IF(PricesByItr!I70<0,0,(PurchByItr!I70*I$1*PricesByItr!I70)/1000) -> 32195.8075 | J70: =IF(PricesByItr!J70<0,0,(PurchByItr!J70*J$1*PricesByItr!J70)/1000) -> 0 | K70: =IF(PricesByItr!K70<0,0,(PurchByItr!K70*K$1*PricesByItr!K70)/1000) -> 0 | L70: =IF(PricesByItr!L70<0,0,(PurchByItr!L70*L$1*PricesByItr!L70)/1000) -> 0 | M70: =IF(PricesByItr!M70<0,0,(PurchByItr!M70*M$1*PricesByItr!M70)/1000) -> -2383.937913 | N70: =IF(PricesByItr!N70<0,0,(PurchByItr!N70*N$1*PricesByItr!N70)/1000) -> 11602.87297 | O70: 144562.4659 | Q70: =PurchByItr!Q70 -> 2023 | R70: =PurchByItr!R70 -> 1929 | S70: =IF(PricesByItr!S70<0,0,(PurchByItr!S70*S$1*PricesByItr!S70)/1000) -> 19835.19936 | T70: =IF(PricesByItr!T70<0,0,(PurchByItr!T70*T$1*PricesByItr!T70)/1000) -> 11546.39185 | U70: =IF(PricesByItr!U70<0,0,(PurchByItr!U70*U$1*PricesByItr!U70)/1000) -> 48636.50053 | V70: =IF(PricesByItr!V70<0,0,(PurchByItr!V70*V$1*PricesByItr!V70)/1000) -> 66793.41571 | W70: =IF(PricesByItr!W70<0,0,(PurchByItr!W70*W$1*PricesByItr!W70)/1000) -> 37939.40606 | X70: =IF(PricesByItr!X70<0,0,(PurchByItr!X70*X$1*PricesByItr!X70)/1000) -> 41292.80352 | Y70: =IF(PricesByItr!Y70<0,0,(PurchByItr!Y70*Y$1*PricesByItr!Y70)/1000) -> 56638.26292 | Z70: =IF(PricesByItr!Z70<0,0,(PurchByItr!Z70*Z$1*PricesByItr!Z70)/1000) -> 82314.45729 | AA70: =IF(PricesByItr!AA70<0,0,(PurchByItr!AA70*AA$1*PricesByItr!AA70)/1000) -> 0 | AB70: =IF(PricesByItr!AB70<0,0,(PurchByItr!AB70*AB$1*PricesByItr!AB70)/1000) -> 37785.78167 | AC70: =IF(PricesByItr!AC70<0,0,(PurchByItr!AC70*AC$1*PricesByItr!AC70)/1000) -> 2841.854872 | AD70: =IF(PricesByItr!AD70<0,0,(PurchByItr!AD70*AD$1*PricesByItr!AD70)/1000) -> 0 | AE70: 405624.0738
A71: =PurchByItr!A71 -> 2022 | B71: =PurchByItr!B71 -> 1938 | C71: =IF(PricesByItr!C71<0,0,(PurchByItr!C71*C$1*PricesByItr!C71)/1000) -> 9493.974039 | D71: =IF(PricesByItr!D71<0,0,(PurchByItr!D71*D$1*PricesByItr!D71)/1000) -> 4634.582057 | E71: =IF(PricesByItr!E71<0,0,(PurchByItr!E71*E$1*PricesByItr!E71)/1000) -> 27228.06374 | F71: =IF(PricesByItr!F71<0,0,(PurchByItr!F71*F$1*PricesByItr!F71)/1000) -> 0 | G71: =IF(PricesByItr!G71<0,0,(PurchByItr!G71*G$1*PricesByItr!G71)/1000) -> 0 | H71: =IF(PricesByItr!H71<0,0,(PurchByItr!H71*H$1*PricesByItr!H71)/1000) -> 0 | I71: =IF(PricesByItr!I71<0,0,(PurchByItr!I71*I$1*PricesByItr!I71)/1000) -> 0 | J71: =IF(PricesByItr!J71<0,0,(PurchByItr!J71*J$1*PricesByItr!J71)/1000) -> 0 | K71: =IF(PricesByItr!K71<0,0,(PurchByItr!K71*K$1*PricesByItr!K71)/1000) -> 0 | L71: =IF(PricesByItr!L71<0,0,(PurchByItr!L71*L$1*PricesByItr!L71)/1000) -> -204.8176307 | M71: =IF(PricesByItr!M71<0,0,(PurchByItr!M71*M$1*PricesByItr!M71)/1000) -> 4598.002898 | N71: =IF(PricesByItr!N71<0,0,(PurchByItr!N71*N$1*PricesByItr!N71)/1000) -> -2159.448754 | O71: 43590.35635 | Q71: =PurchByItr!Q71 -> 2023 | R71: =PurchByItr!R71 -> 1939 | S71: =IF(PricesByItr!S71<0,0,(PurchByItr!S71*S$1*PricesByItr!S71)/1000) -> 19081.86081 | T71: =IF(PricesByItr!T71<0,0,(PurchByItr!T71*T$1*PricesByItr!T71)/1000) -> 20594.61845 | U71: =IF(PricesByItr!U71<0,0,(PurchByItr!U71*U$1*PricesByItr!U71)/1000) -> 55223.21236 | V71: =IF(PricesByItr!V71<0,0,(PurchByItr!V71*V$1*PricesByItr!V71)/1000) -> 20670.26669 | W71: =IF(PricesByItr!W71<0,0,(PurchByItr!W71*W$1*PricesByItr!W71)/1000) -> 478.098605 | X71: =IF(PricesByItr!X71<0,0,(PurchByItr!X71*X$1*PricesByItr!X71)/1000) -> 21242.80199 | Y71: =IF(PricesByItr!Y71<0,0,(PurchByItr!Y71*Y$1*PricesByItr!Y71)/1000) -> 18018.73625 | Z71: =IF(PricesByItr!Z71<0,0,(PurchByItr!Z71*Z$1*PricesByItr!Z71)/1000) -> 1909.554883 | AA71: =IF(PricesByItr!AA71<0,0,(PurchByItr!AA71*AA$1*PricesByItr!AA71)/1000) -> 14653.04886 | AB71: =IF(PricesByItr!AB71<0,0,(PurchByItr!AB71*AB$1*PricesByItr!AB71)/1000) -> -1886.46301 | AC71: =IF(PricesByItr!AC71<0,0,(PurchByItr!AC71*AC$1*PricesByItr!AC71)/1000) -> 0 | AD71: =IF(PricesByItr!AD71<0,0,(PurchByItr!AD71*AD$1*PricesByItr!AD71)/1000) -> 11096.26897 | AE71: 181082.0049
A72: =PurchByItr!A72 -> 2022 | B72: =PurchByItr!B72 -> 1985 | C72: =IF(PricesByItr!C72<0,0,(PurchByItr!C72*C$1*PricesByItr!C72)/1000) -> 26789.92352 | D72: =IF(PricesByItr!D72<0,0,(PurchByItr!D72*D$1*PricesByItr!D72)/1000) -> 0 | E72: =IF(PricesByItr!E72<0,0,(PurchByItr!E72*E$1*PricesByItr!E72)/1000) -> 5174.921285 | F72: =IF(PricesByItr!F72<0,0,(PurchByItr!F72*F$1*PricesByItr!F72)/1000) -> 0 | G72: =IF(PricesByItr!G72<0,0,(PurchByItr!G72*G$1*PricesByItr!G72)/1000) -> 0 | H72: =IF(PricesByItr!H72<0,0,(PurchByItr!H72*H$1*PricesByItr!H72)/1000) -> 17357.1834 | I72: =IF(PricesByItr!I72<0,0,(PurchByItr!I72*I$1*PricesByItr!I72)/1000) -> 3752.256938 | J72: =IF(PricesByItr!J72<0,0,(PurchByItr!J72*J$1*PricesByItr!J72)/1000) -> 1376.162222 | K72: =IF(PricesByItr!K72<0,0,(PurchByItr!K72*K$1*PricesByItr!K72)/1000) -> 8784.693277 | L72: =IF(PricesByItr!L72<0,0,(PurchByItr!L72*L$1*PricesByItr!L72)/1000) -> 11820.50761 | M72: =IF(PricesByItr!M72<0,0,(PurchByItr!M72*M$1*PricesByItr!M72)/1000) -> 12805.6904 | N72: =IF(PricesByItr!N72<0,0,(PurchByItr!N72*N$1*PricesByItr!N72)/1000) -> -817.6523697 | O72: 87043.68628 | Q72: =PurchByItr!Q72 -> 2023 | R72: =PurchByItr!R72 -> 1986 | S72: =IF(PricesByItr!S72<0,0,(PurchByItr!S72*S$1*PricesByItr!S72)/1000) -> 5976.126397 | T72: =IF(PricesByItr!T72<0,0,(PurchByItr!T72*T$1*PricesByItr!T72)/1000) -> 0 | U72: =IF(PricesByItr!U72<0,0,(PurchByItr!U72*U$1*PricesByItr!U72)/1000) -> 0 | V72: =IF(PricesByItr!V72<0,0,(PurchByItr!V72*V$1*PricesByItr!V72)/1000) -> 0 | W72: =IF(PricesByItr!W72<0,0,(PurchByItr!W72*W$1*PricesByItr!W72)/1000) -> 0 | X72: =IF(PricesByItr!X72<0,0,(PurchByItr!X72*X$1*PricesByItr!X72)/1000) -> 0 | Y72: =IF(PricesByItr!Y72<0,0,(PurchByItr!Y72*Y$1*PricesByItr!Y72)/1000) -> 5994.917455 | Z72: =IF(PricesByItr!Z72<0,0,(PurchByItr!Z72*Z$1*PricesByItr!Z72)/1000) -> 291.5152542 | AA72: =IF(PricesByItr!AA72<0,0,(PurchByItr!AA72*AA$1*PricesByItr!AA72)/1000) -> 0 | AB72: =IF(PricesByItr!AB72<0,0,(PurchByItr!AB72*AB$1*PricesByItr!AB72)/1000) -> 0 | AC72: =IF(PricesByItr!AC72<0,0,(PurchByItr!AC72*AC$1*PricesByItr!AC72)/1000) -> -1333.769112 | AD72: =IF(PricesByItr!AD72<0,0,(PurchByItr!AD72*AD$1*PricesByItr!AD72)/1000) -> 16454.37034 | AE72: 27383.16034
A73: =PurchByItr!A73 -> 2022 | B73: =PurchByItr!B73 -> 1987 | C73: =IF(PricesByItr!C73<0,0,(PurchByItr!C73*C$1*PricesByItr!C73)/1000) -> 49782.28252 | D73: =IF(PricesByItr!D73<0,0,(PurchByItr!D73*D$1*PricesByItr!D73)/1000) -> 1714.620016 | E73: =IF(PricesByItr!E73<0,0,(PurchByItr!E73*E$1*PricesByItr!E73)/1000) -> 0 | F73: =IF(PricesByItr!F73<0,0,(PurchByItr!F73*F$1*PricesByItr!F73)/1000) -> 19109.00956 | G73: =IF(PricesByItr!G73<0,0,(PurchByItr!G73*G$1*PricesByItr!G73)/1000) -> 23625.34211 | H73: =IF(PricesByItr!H73<0,0,(PurchByItr!H73*H$1*PricesByItr!H73)/1000) -> -1057.775652 | I73: =IF(PricesByItr!I73<0,0,(PurchByItr!I73*I$1*PricesByItr!I73)/1000) -> 14212.30712 | J73: =IF(PricesByItr!J73<0,0,(PurchByItr!J73*J$1*PricesByItr!J73)/1000) -> 0 | K73: =IF(PricesByItr!K73<0,0,(PurchByItr!K73*K$1*PricesByItr!K73)/1000) -> 12836.34249 | L73: =IF(PricesByItr!L73<0,0,(PurchByItr!L73*L$1*PricesByItr!L73)/1000) -> 41774.66293 | M73: =IF(PricesByItr!M73<0,0,(PurchByItr!M73*M$1*PricesByItr!M73)/1000) -> 7709.088783 | N73: =IF(PricesByItr!N73<0,0,(PurchByItr!N73*N$1*PricesByItr!N73)/1000) -> 1120.47323 | O73: 170826.3531 | Q73: =PurchByItr!Q73 -> 2023 | R73: =PurchByItr!R73 -> 1988 | S73: =IF(PricesByItr!S73<0,0,(PurchByItr!S73*S$1*PricesByItr!S73)/1000) -> 26108.41716 | T73: =IF(PricesByItr!T73<0,0,(PurchByItr!T73*T$1*PricesByItr!T73)/1000) -> 23396.15158 | U73: =IF(PricesByItr!U73<0,0,(PurchByItr!U73*U$1*PricesByItr!U73)/1000) -> 58894.03305 | V73: =IF(PricesByItr!V73<0,0,(PurchByItr!V73*V$1*PricesByItr!V73)/1000) -> 115466.2055 | W73: =IF(PricesByItr!W73<0,0,(PurchByItr!W73*W$1*PricesByItr!W73)/1000) -> 39790.21229 | X73: =IF(PricesByItr!X73<0,0,(PurchByItr!X73*X$1*PricesByItr!X73)/1000) -> 40096.56411 | Y73: =IF(PricesByItr!Y73<0,0,(PurchByItr!Y73*Y$1*PricesByItr!Y73)/1000) -> 37296.4146 | Z73: =IF(PricesByItr!Z73<0,0,(PurchByItr!Z73*Z$1*PricesByItr!Z73)/1000) -> 32164.99356 | AA73: =IF(PricesByItr!AA73<0,0,(PurchByItr!AA73*AA$1*PricesByItr!AA73)/1000) -> 29251.19666 | AB73: =IF(PricesByItr!AB73<0,0,(PurchByItr!AB73*AB$1*PricesByItr!AB73)/1000) -> -2598.175763 | AC73: =IF(PricesByItr!AC73<0,0,(PurchByItr!AC73*AC$1*PricesByItr!AC73)/1000) -> 2495.438243 | AD73: =IF(PricesByItr!AD73<0,0,(PurchByItr!AD73*AD$1*PricesByItr!AD73)/1000) -> -2227.910101 | AE73: 400133.5409
A74: =PurchByItr!A74 -> 2022 | B74: =PurchByItr!B74 -> 1933 | C74: =IF(PricesByItr!C74<0,0,(PurchByItr!C74*C$1*PricesByItr!C74)/1000) -> 20535.26032 | D74: =IF(PricesByItr!D74<0,0,(PurchByItr!D74*D$1*PricesByItr!D74)/1000) -> 17996.17411 | E74: =IF(PricesByItr!E74<0,0,(PurchByItr!E74*E$1*PricesByItr!E74)/1000) -> 0 | F74: =IF(PricesByItr!F74<0,0,(PurchByItr!F74*F$1*PricesByItr!F74)/1000) -> 0 | G74: =IF(PricesByItr!G74<0,0,(PurchByItr!G74*G$1*PricesByItr!G74)/1000) -> 0 | H74: =IF(PricesByItr!H74<0,0,(PurchByItr!H74*H$1*PricesByItr!H74)/1000) -> 0 | I74: =IF(PricesByItr!I74<0,0,(PurchByItr!I74*I$1*PricesByItr!I74)/1000) -> 10561.45611 | J74: =IF(PricesByItr!J74<0,0,(PurchByItr!J74*J$1*PricesByItr!J74)/1000) -> 1766.35184 | K74: =IF(PricesByItr!K74<0,0,(PurchByItr!K74*K$1*PricesByItr!K74)/1000) -> 0 | L74: =IF(PricesByItr!L74<0,0,(PurchByItr!L74*L$1*PricesByItr!L74)/1000) -> 0 | M74: =IF(PricesByItr!M74<0,0,(PurchByItr!M74*M$1*PricesByItr!M74)/1000) -> 0 | N74: =IF(PricesByItr!N74<0,0,(PurchByItr!N74*N$1*PricesByItr!N74)/1000) -> 5881.646307 | O74: 56740.88869 | Q74: =PurchByItr!Q74 -> 2023 | R74: =PurchByItr!R74 -> 1934 | S74: =IF(PricesByItr!S74<0,0,(PurchByItr!S74*S$1*PricesByItr!S74)/1000) -> 5261.954568 | T74: =IF(PricesByItr!T74<0,0,(PurchByItr!T74*T$1*PricesByItr!T74)/1000) -> 0 | U74: =IF(PricesByItr!U74<0,0,(PurchByItr!U74*U$1*PricesByItr!U74)/1000) -> 0 | V74: =IF(PricesByItr!V74<0,0,(PurchByItr!V74*V$1*PricesByItr!V74)/1000) -> 0 | W74: =IF(PricesByItr!W74<0,0,(PurchByItr!W74*W$1*PricesByItr!W74)/1000) -> 0 | X74: =IF(PricesByItr!X74<0,0,(PurchByItr!X74*X$1*PricesByItr!X74)/1000) -> 0 | Y74: =IF(PricesByItr!Y74<0,0,(PurchByItr!Y74*Y$1*PricesByItr!Y74)/1000) -> 0 | Z74: =IF(PricesByItr!Z74<0,0,(PurchByItr!Z74*Z$1*PricesByItr!Z74)/1000) -> 0 | AA74: =IF(PricesByItr!AA74<0,0,(PurchByItr!AA74*AA$1*PricesByItr!AA74)/1000) -> -10215.13556 | AB74: =IF(PricesByItr!AB74<0,0,(PurchByItr!AB74*AB$1*PricesByItr!AB74)/1000) -> 27181.24409 | AC74: =IF(PricesByItr!AC74<0,0,(PurchByItr!AC74*AC$1*PricesByItr!AC74)/1000) -> 1483.245811 | AD74: =IF(PricesByItr!AD74<0,0,(PurchByItr!AD74*AD$1*PricesByItr!AD74)/1000) -> 0 | AE74: 23711.3089
A75: =PurchByItr!A75 -> 2022 | B75: =PurchByItr!B75 -> 1994 | C75: =IF(PricesByItr!C75<0,0,(PurchByItr!C75*C$1*PricesByItr!C75)/1000) -> 23292.81347 | D75: =IF(PricesByItr!D75<0,0,(PurchByItr!D75*D$1*PricesByItr!D75)/1000) -> 15752.99093 | E75: =IF(PricesByItr!E75<0,0,(PurchByItr!E75*E$1*PricesByItr!E75)/1000) -> 39767.24992 | F75: =IF(PricesByItr!F75<0,0,(PurchByItr!F75*F$1*PricesByItr!F75)/1000) -> 99688.09722 | G75: =IF(PricesByItr!G75<0,0,(PurchByItr!G75*G$1*PricesByItr!G75)/1000) -> 23236.7435 | H75: =IF(PricesByItr!H75<0,0,(PurchByItr!H75*H$1*PricesByItr!H75)/1000) -> 37350.06193 | I75: =IF(PricesByItr!I75<0,0,(PurchByItr!I75*I$1*PricesByItr!I75)/1000) -> 30974.94933 | J75: =IF(PricesByItr!J75<0,0,(PurchByItr!J75*J$1*PricesByItr!J75)/1000) -> 17044.91548 | K75: =IF(PricesByItr!K75<0,0,(PurchByItr!K75*K$1*PricesByItr!K75)/1000) -> 38547.85747 | L75: =IF(PricesByItr!L75<0,0,(PurchByItr!L75*L$1*PricesByItr!L75)/1000) -> 8438.445392 | M75: =IF(PricesByItr!M75<0,0,(PurchByItr!M75*M$1*PricesByItr!M75)/1000) -> 4969.118351 | N75: =IF(PricesByItr!N75<0,0,(PurchByItr!N75*N$1*PricesByItr!N75)/1000) -> 0 | O75: 339063.243 | Q75: =PurchByItr!Q75 -> 2023 | R75: =PurchByItr!R75 -> 1995 | S75: =IF(PricesByItr!S75<0,0,(PurchByItr!S75*S$1*PricesByItr!S75)/1000) -> 21555.73371 | T75: =IF(PricesByItr!T75<0,0,(PurchByItr!T75*T$1*PricesByItr!T75)/1000) -> 23808.41033 | U75: =IF(PricesByItr!U75<0,0,(PurchByItr!U75*U$1*PricesByItr!U75)/1000) -> 31096.56586 | V75: =IF(PricesByItr!V75<0,0,(PurchByItr!V75*V$1*PricesByItr!V75)/1000) -> 35015.04868 | W75: =IF(PricesByItr!W75<0,0,(PurchByItr!W75*W$1*PricesByItr!W75)/1000) -> 0 | X75: =IF(PricesByItr!X75<0,0,(PurchByItr!X75*X$1*PricesByItr!X75)/1000) -> 0 | Y75: =IF(PricesByItr!Y75<0,0,(PurchByItr!Y75*Y$1*PricesByItr!Y75)/1000) -> 43639.17468 | Z75: =IF(PricesByItr!Z75<0,0,(PurchByItr!Z75*Z$1*PricesByItr!Z75)/1000) -> 1851.460658 | AA75: =IF(PricesByItr!AA75<0,0,(PurchByItr!AA75*AA$1*PricesByItr!AA75)/1000) -> 0 | AB75: =IF(PricesByItr!AB75<0,0,(PurchByItr!AB75*AB$1*PricesByItr!AB75)/1000) -> 0 | AC75: =IF(PricesByItr!AC75<0,0,(PurchByItr!AC75*AC$1*PricesByItr!AC75)/1000) -> 0 | AD75: =IF(PricesByItr!AD75<0,0,(PurchByItr!AD75*AD$1*PricesByItr!AD75)/1000) -> 4569.540511 | AE75: 161535.9344
A76: =PurchByItr!A76 -> 2022 | B76: =PurchByItr!B76 -> 1999 | C76: =IF(PricesByItr!C76<0,0,(PurchByItr!C76*C$1*PricesByItr!C76)/1000) -> 31930.08167 | D76: =IF(PricesByItr!D76<0,0,(PurchByItr!D76*D$1*PricesByItr!D76)/1000) -> 23008.26283 | E76: =IF(PricesByItr!E76<0,0,(PurchByItr!E76*E$1*PricesByItr!E76)/1000) -> 0 | F76: =IF(PricesByItr!F76<0,0,(PurchByItr!F76*F$1*PricesByItr!F76)/1000) -> 0 | G76: =IF(PricesByItr!G76<0,0,(PurchByItr!G76*G$1*PricesByItr!G76)/1000) -> 0 | H76: =IF(PricesByItr!H76<0,0,(PurchByItr!H76*H$1*PricesByItr!H76)/1000) -> 0 | I76: =IF(PricesByItr!I76<0,0,(PurchByItr!I76*I$1*PricesByItr!I76)/1000) -> 0 | J76: =IF(PricesByItr!J76<0,0,(PurchByItr!J76*J$1*PricesByItr!J76)/1000) -> 2436.065064 | K76: =IF(PricesByItr!K76<0,0,(PurchByItr!K76*K$1*PricesByItr!K76)/1000) -> 0 | L76: =IF(PricesByItr!L76<0,0,(PurchByItr!L76*L$1*PricesByItr!L76)/1000) -> 0 | M76: =IF(PricesByItr!M76<0,0,(PurchByItr!M76*M$1*PricesByItr!M76)/1000) -> 0 | N76: =IF(PricesByItr!N76<0,0,(PurchByItr!N76*N$1*PricesByItr!N76)/1000) -> 10439.62021 | O76: 67814.02977 | Q76: =PurchByItr!Q76 -> 2023 | R76: =PurchByItr!R76 -> 2000 | S76: =IF(PricesByItr!S76<0,0,(PurchByItr!S76*S$1*PricesByItr!S76)/1000) -> 30507.66213 | T76: =IF(PricesByItr!T76<0,0,(PurchByItr!T76*T$1*PricesByItr!T76)/1000) -> 0 | U76: =IF(PricesByItr!U76<0,0,(PurchByItr!U76*U$1*PricesByItr!U76)/1000) -> 0 | V76: =IF(PricesByItr!V76<0,0,(PurchByItr!V76*V$1*PricesByItr!V76)/1000) -> 0 | W76: =IF(PricesByItr!W76<0,0,(PurchByItr!W76*W$1*PricesByItr!W76)/1000) -> 0 | X76: =IF(PricesByItr!X76<0,0,(PurchByItr!X76*X$1*PricesByItr!X76)/1000) -> 0 | Y76: =IF(PricesByItr!Y76<0,0,(PurchByItr!Y76*Y$1*PricesByItr!Y76)/1000) -> 0 | Z76: =IF(PricesByItr!Z76<0,0,(PurchByItr!Z76*Z$1*PricesByItr!Z76)/1000) -> 764.9934707 | AA76: =IF(PricesByItr!AA76<0,0,(PurchByItr!AA76*AA$1*PricesByItr!AA76)/1000) -> 17216.46364 | AB76: =IF(PricesByItr!AB76<0,0,(PurchByItr!AB76*AB$1*PricesByItr!AB76)/1000) -> -796.5078497 | AC76: =IF(PricesByItr!AC76<0,0,(PurchByItr!AC76*AC$1*PricesByItr!AC76)/1000) -> -2413.569971 | AD76: =IF(PricesByItr!AD76<0,0,(PurchByItr!AD76*AD$1*PricesByItr!AD76)/1000) -> 23424.33786 | AE76: 68703.37928
A77: =PurchByItr!A77 -> 2022 | B77: =PurchByItr!B77 -> 1992 | C77: =IF(PricesByItr!C77<0,0,(PurchByItr!C77*C$1*PricesByItr!C77)/1000) -> 27688.19031 | D77: =IF(PricesByItr!D77<0,0,(PurchByItr!D77*D$1*PricesByItr!D77)/1000) -> 8598.161424 | E77: =IF(PricesByItr!E77<0,0,(PurchByItr!E77*E$1*PricesByItr!E77)/1000) -> 65618.50157 | F77: =IF(PricesByItr!F77<0,0,(PurchByItr!F77*F$1*PricesByItr!F77)/1000) -> 23930.06416 | G77: =IF(PricesByItr!G77<0,0,(PurchByItr!G77*G$1*PricesByItr!G77)/1000) -> 17563.9765 | H77: =IF(PricesByItr!H77<0,0,(PurchByItr!H77*H$1*PricesByItr!H77)/1000) -> 53.59166527 | I77: =IF(PricesByItr!I77<0,0,(PurchByItr!I77*I$1*PricesByItr!I77)/1000) -> 19403.64216 | J77: =IF(PricesByItr!J77<0,0,(PurchByItr!J77*J$1*PricesByItr!J77)/1000) -> 11316.12972 | K77: =IF(PricesByItr!K77<0,0,(PurchByItr!K77*K$1*PricesByItr!K77)/1000) -> 27225.62023 | L77: =IF(PricesByItr!L77<0,0,(PurchByItr!L77*L$1*PricesByItr!L77)/1000) -> 27522.85504 | M77: =IF(PricesByItr!M77<0,0,(PurchByItr!M77*M$1*PricesByItr!M77)/1000) -> 7770.329599 | N77: =IF(PricesByItr!N77<0,0,(PurchByItr!N77*N$1*PricesByItr!N77)/1000) -> -2209.014317 | O77: 234482.0481 | Q77: =PurchByItr!Q77 -> 2023 | R77: =PurchByItr!R77 -> 1993 | S77: =IF(PricesByItr!S77<0,0,(PurchByItr!S77*S$1*PricesByItr!S77)/1000) -> 23922.93418 | T77: =IF(PricesByItr!T77<0,0,(PurchByItr!T77*T$1*PricesByItr!T77)/1000) -> 8096.021996 | U77: =IF(PricesByItr!U77<0,0,(PurchByItr!U77*U$1*PricesByItr!U77)/1000) -> 37978.12 | V77: =IF(PricesByItr!V77<0,0,(PurchByItr!V77*V$1*PricesByItr!V77)/1000) -> 75731.00354 | W77: =IF(PricesByItr!W77<0,0,(PurchByItr!W77*W$1*PricesByItr!W77)/1000) -> 67269.13676 | X77: =IF(PricesByItr!X77<0,0,(PurchByItr!X77*X$1*PricesByItr!X77)/1000) -> 15862.86878 | Y77: =IF(PricesByItr!Y77<0,0,(PurchByItr!Y77*Y$1*PricesByItr!Y77)/1000) -> 33247.34269 | Z77: =IF(PricesByItr!Z77<0,0,(PurchByItr!Z77*Z$1*PricesByItr!Z77)/1000) -> 0 | AA77: =IF(PricesByItr!AA77<0,0,(PurchByItr!AA77*AA$1*PricesByItr!AA77)/1000) -> 0 | AB77: =IF(PricesByItr!AB77<0,0,(PurchByItr!AB77*AB$1*PricesByItr!AB77)/1000) -> 0 | AC77: =IF(PricesByItr!AC77<0,0,(PurchByItr!AC77*AC$1*PricesByItr!AC77)/1000) -> -1714.450087 | AD77: =IF(PricesByItr!AD77<0,0,(PurchByItr!AD77*AD$1*PricesByItr!AD77)/1000) -> 0 | AE77: 260392.9779
A78: =PurchByItr!A78 -> 2022 | B78: =PurchByItr!B78 -> 1935 | C78: =IF(PricesByItr!C78<0,0,(PurchByItr!C78*C$1*PricesByItr!C78)/1000) -> 23679.40332 | D78: =IF(PricesByItr!D78<0,0,(PurchByItr!D78*D$1*PricesByItr!D78)/1000) -> 36907.37905 | E78: =IF(PricesByItr!E78<0,0,(PurchByItr!E78*E$1*PricesByItr!E78)/1000) -> 43285.26797 | F78: =IF(PricesByItr!F78<0,0,(PurchByItr!F78*F$1*PricesByItr!F78)/1000) -> 0 | G78: =IF(PricesByItr!G78<0,0,(PurchByItr!G78*G$1*PricesByItr!G78)/1000) -> 0 | H78: =IF(PricesByItr!H78<0,0,(PurchByItr!H78*H$1*PricesByItr!H78)/1000) -> 116.0083607 | I78: =IF(PricesByItr!I78<0,0,(PurchByItr!I78*I$1*PricesByItr!I78)/1000) -> 41853.64703 | J78: =IF(PricesByItr!J78<0,0,(PurchByItr!J78*J$1*PricesByItr!J78)/1000) -> 5769.019232 | K78: =IF(PricesByItr!K78<0,0,(PurchByItr!K78*K$1*PricesByItr!K78)/1000) -> 9441.387389 | L78: =IF(PricesByItr!L78<0,0,(PurchByItr!L78*L$1*PricesByItr!L78)/1000) -> -5542.274025 | M78: =IF(PricesByItr!M78<0,0,(PurchByItr!M78*M$1*PricesByItr!M78)/1000) -> 0 | N78: =IF(PricesByItr!N78<0,0,(PurchByItr!N78*N$1*PricesByItr!N78)/1000) -> 18951.09423 | O78: 174460.9325 | Q78: =PurchByItr!Q78 -> 2023 | R78: =PurchByItr!R78 -> 1936 | S78: =IF(PricesByItr!S78<0,0,(PurchByItr!S78*S$1*PricesByItr!S78)/1000) -> 32773.3297 | T78: =IF(PricesByItr!T78<0,0,(PurchByItr!T78*T$1*PricesByItr!T78)/1000) -> 15973.30632 | U78: =IF(PricesByItr!U78<0,0,(PurchByItr!U78*U$1*PricesByItr!U78)/1000) -> 49769.55142 | V78: =IF(PricesByItr!V78<0,0,(PurchByItr!V78*V$1*PricesByItr!V78)/1000) -> 68767.22258 | W78: =IF(PricesByItr!W78<0,0,(PurchByItr!W78*W$1*PricesByItr!W78)/1000) -> 85548.39115 | X78: =IF(PricesByItr!X78<0,0,(PurchByItr!X78*X$1*PricesByItr!X78)/1000) -> 27099.65063 | Y78: =IF(PricesByItr!Y78<0,0,(PurchByItr!Y78*Y$1*PricesByItr!Y78)/1000) -> 21220.80049 | Z78: =IF(PricesByItr!Z78<0,0,(PurchByItr!Z78*Z$1*PricesByItr!Z78)/1000) -> 0 | AA78: =IF(PricesByItr!AA78<0,0,(PurchByItr!AA78*AA$1*PricesByItr!AA78)/1000) -> 0 | AB78: =IF(PricesByItr!AB78<0,0,(PurchByItr!AB78*AB$1*PricesByItr!AB78)/1000) -> 0 | AC78: =IF(PricesByItr!AC78<0,0,(PurchByItr!AC78*AC$1*PricesByItr!AC78)/1000) -> 158.1502551 | AD78: =IF(PricesByItr!AD78<0,0,(PurchByItr!AD78*AD$1*PricesByItr!AD78)/1000) -> 17118.20058 | AE78: 318428.6031
A79: =PurchByItr!A79 -> 2022 | B79: =PurchByItr!B79 -> 1932 | C79: =IF(PricesByItr!C79<0,0,(PurchByItr!C79*C$1*PricesByItr!C79)/1000) -> 15869.17797 | D79: =IF(PricesByItr!D79<0,0,(PurchByItr!D79*D$1*PricesByItr!D79)/1000) -> 11118.0518 | E79: =IF(PricesByItr!E79<0,0,(PurchByItr!E79*E$1*PricesByItr!E79)/1000) -> 45781.12601 | F79: =IF(PricesByItr!F79<0,0,(PurchByItr!F79*F$1*PricesByItr!F79)/1000) -> 53151.74408 | G79: =IF(PricesByItr!G79<0,0,(PurchByItr!G79*G$1*PricesByItr!G79)/1000) -> 52782.1785 | H79: =IF(PricesByItr!H79<0,0,(PurchByItr!H79*H$1*PricesByItr!H79)/1000) -> -1211.8269 | I79: =IF(PricesByItr!I79<0,0,(PurchByItr!I79*I$1*PricesByItr!I79)/1000) -> 0 | J79: =IF(PricesByItr!J79<0,0,(PurchByItr!J79*J$1*PricesByItr!J79)/1000) -> 0 | K79: =IF(PricesByItr!K79<0,0,(PurchByItr!K79*K$1*PricesByItr!K79)/1000) -> 0 | L79: =IF(PricesByItr!L79<0,0,(PurchByItr!L79*L$1*PricesByItr!L79)/1000) -> 0 | M79: =IF(PricesByItr!M79<0,0,(PurchByItr!M79*M$1*PricesByItr!M79)/1000) -> -960.7902735 | N79: =IF(PricesByItr!N79<0,0,(PurchByItr!N79*N$1*PricesByItr!N79)/1000) -> 11191.86581 | O79: 187721.527 | Q79: =PurchByItr!Q79 -> 2023 | R79: =PurchByItr!R79 -> 1933 | S79: =IF(PricesByItr!S79<0,0,(PurchByItr!S79*S$1*PricesByItr!S79)/1000) -> 27031.1698 | T79: =IF(PricesByItr!T79<0,0,(PurchByItr!T79*T$1*PricesByItr!T79)/1000) -> 14340.57272 | U79: =IF(PricesByItr!U79<0,0,(PurchByItr!U79*U$1*PricesByItr!U79)/1000) -> 0 | V79: =IF(PricesByItr!V79<0,0,(PurchByItr!V79*V$1*PricesByItr!V79)/1000) -> 0 | W79: =IF(PricesByItr!W79<0,0,(PurchByItr!W79*W$1*PricesByItr!W79)/1000) -> 0 | X79: =IF(PricesByItr!X79<0,0,(PurchByItr!X79*X$1*PricesByItr!X79)/1000) -> 0 | Y79: =IF(PricesByItr!Y79<0,0,(PurchByItr!Y79*Y$1*PricesByItr!Y79)/1000) -> 13693.64901 | Z79: =IF(PricesByItr!Z79<0,0,(PurchByItr!Z79*Z$1*PricesByItr!Z79)/1000) -> 1460.55091 | AA79: =IF(PricesByItr!AA79<0,0,(PurchByItr!AA79*AA$1*PricesByItr!AA79)/1000) -> 0 | AB79: =IF(PricesByItr!AB79<0,0,(PurchByItr!AB79*AB$1*PricesByItr!AB79)/1000) -> 0 | AC79: =IF(PricesByItr!AC79<0,0,(PurchByItr!AC79*AC$1*PricesByItr!AC79)/1000) -> 0 | AD79: =IF(PricesByItr!AD79<0,0,(PurchByItr!AD79*AD$1*PricesByItr!AD79)/1000) -> 5595.196073 | AE79: 62121.13852
A80: =PurchByItr!A80 -> 2022 | B80: =PurchByItr!B80 -> 1948 | C80: =IF(PricesByItr!C80<0,0,(PurchByItr!C80*C$1*PricesByItr!C80)/1000) -> 0 | D80: =IF(PricesByItr!D80<0,0,(PurchByItr!D80*D$1*PricesByItr!D80)/1000) -> 0 | E80: =IF(PricesByItr!E80<0,0,(PurchByItr!E80*E$1*PricesByItr!E80)/1000) -> 0 | F80: =IF(PricesByItr!F80<0,0,(PurchByItr!F80*F$1*PricesByItr!F80)/1000) -> 0 | G80: =IF(PricesByItr!G80<0,0,(PurchByItr!G80*G$1*PricesByItr!G80)/1000) -> 0 | H80: =IF(PricesByItr!H80<0,0,(PurchByItr!H80*H$1*PricesByItr!H80)/1000) -> 0 | I80: =IF(PricesByItr!I80<0,0,(PurchByItr!I80*I$1*PricesByItr!I80)/1000) -> 1291.335628 | J80: =IF(PricesByItr!J80<0,0,(PurchByItr!J80*J$1*PricesByItr!J80)/1000) -> 0 | K80: =IF(PricesByItr!K80<0,0,(PurchByItr!K80*K$1*PricesByItr!K80)/1000) -> 0 | L80: =IF(PricesByItr!L80<0,0,(PurchByItr!L80*L$1*PricesByItr!L80)/1000) -> 0 | M80: =IF(PricesByItr!M80<0,0,(PurchByItr!M80*M$1*PricesByItr!M80)/1000) -> 0 | N80: =IF(PricesByItr!N80<0,0,(PurchByItr!N80*N$1*PricesByItr!N80)/1000) -> 3421.735247 | O80: 4713.070874 | Q80: =PurchByItr!Q80 -> 2023 | R80: =PurchByItr!R80 -> 1949 | S80: =IF(PricesByItr!S80<0,0,(PurchByItr!S80*S$1*PricesByItr!S80)/1000) -> 16701.87744 | T80: =IF(PricesByItr!T80<0,0,(PurchByItr!T80*T$1*PricesByItr!T80)/1000) -> 0 | U80: =IF(PricesByItr!U80<0,0,(PurchByItr!U80*U$1*PricesByItr!U80)/1000) -> 38694.84945 | V80: =IF(PricesByItr!V80<0,0,(PurchByItr!V80*V$1*PricesByItr!V80)/1000) -> 0 | W80: =IF(PricesByItr!W80<0,0,(PurchByItr!W80*W$1*PricesByItr!W80)/1000) -> 9021.112031 | X80: =IF(PricesByItr!X80<0,0,(PurchByItr!X80*X$1*PricesByItr!X80)/1000) -> 0 | Y80: =IF(PricesByItr!Y80<0,0,(PurchByItr!Y80*Y$1*PricesByItr!Y80)/1000) -> 0 | Z80: =IF(PricesByItr!Z80<0,0,(PurchByItr!Z80*Z$1*PricesByItr!Z80)/1000) -> 0 | AA80: =IF(PricesByItr!AA80<0,0,(PurchByItr!AA80*AA$1*PricesByItr!AA80)/1000) -> 0 | AB80: =IF(PricesByItr!AB80<0,0,(PurchByItr!AB80*AB$1*PricesByItr!AB80)/1000) -> 10608.31659 | AC80: =IF(PricesByItr!AC80<0,0,(PurchByItr!AC80*AC$1*PricesByItr!AC80)/1000) -> 7151.408075 | AD80: =IF(PricesByItr!AD80<0,0,(PurchByItr!AD80*AD$1*PricesByItr!AD80)/1000) -> -3338.408867 | AE80: 78839.15473
A81: =PurchByItr!A81 -> 2022 | B81: =PurchByItr!B81 -> 1930 | C81: =IF(PricesByItr!C81<0,0,(PurchByItr!C81*C$1*PricesByItr!C81)/1000) -> 31897.36608 | D81: =IF(PricesByItr!D81<0,0,(PurchByItr!D81*D$1*PricesByItr!D81)/1000) -> 26481.15906 | E81: =IF(PricesByItr!E81<0,0,(PurchByItr!E81*E$1*PricesByItr!E81)/1000) -> 71425.45178 | F81: =IF(PricesByItr!F81<0,0,(PurchByItr!F81*F$1*PricesByItr!F81)/1000) -> 78574.63048 | G81: =IF(PricesByItr!G81<0,0,(PurchByItr!G81*G$1*PricesByItr!G81)/1000) -> 29319.84119 | H81: =IF(PricesByItr!H81<0,0,(PurchByItr!H81*H$1*PricesByItr!H81)/1000) -> 58071.61678 | I81: =IF(PricesByItr!I81<0,0,(PurchByItr!I81*I$1*PricesByItr!I81)/1000) -> 64704.40878 | J81: =IF(PricesByItr!J81<0,0,(PurchByItr!J81*J$1*PricesByItr!J81)/1000) -> 46587.54321 | K81: =IF(PricesByItr!K81<0,0,(PurchByItr!K81*K$1*PricesByItr!K81)/1000) -> 42097.17254 | L81: =IF(PricesByItr!L81<0,0,(PurchByItr!L81*L$1*PricesByItr!L81)/1000) -> -2359.387448 | M81: =IF(PricesByItr!M81<0,0,(PurchByItr!M81*M$1*PricesByItr!M81)/1000) -> 4468.371586 | N81: =IF(PricesByItr!N81<0,0,(PurchByItr!N81*N$1*PricesByItr!N81)/1000) -> -2236.949855 | O81: 449031.2242 | Q81: =PurchByItr!Q81 -> 2023 | R81: =PurchByItr!R81 -> 1931 | S81: =IF(PricesByItr!S81<0,0,(PurchByItr!S81*S$1*PricesByItr!S81)/1000) -> 27433.63581 | T81: =IF(PricesByItr!T81<0,0,(PurchByItr!T81*T$1*PricesByItr!T81)/1000) -> 10860.42371 | U81: =IF(PricesByItr!U81<0,0,(PurchByItr!U81*U$1*PricesByItr!U81)/1000) -> 70100.79502 | V81: =IF(PricesByItr!V81<0,0,(PurchByItr!V81*V$1*PricesByItr!V81)/1000) -> 117780.1749 | W81: =IF(PricesByItr!W81<0,0,(PurchByItr!W81*W$1*PricesByItr!W81)/1000) -> 34293.09188 | X81: =IF(PricesByItr!X81<0,0,(PurchByItr!X81*X$1*PricesByItr!X81)/1000) -> 25318.92507 | Y81: =IF(PricesByItr!Y81<0,0,(PurchByItr!Y81*Y$1*PricesByItr!Y81)/1000) -> 50906.67888 | Z81: =IF(PricesByItr!Z81<0,0,(PurchByItr!Z81*Z$1*PricesByItr!Z81)/1000) -> 49041.7756 | AA81: =IF(PricesByItr!AA81<0,0,(PurchByItr!AA81*AA$1*PricesByItr!AA81)/1000) -> 22750.44127 | AB81: =IF(PricesByItr!AB81<0,0,(PurchByItr!AB81*AB$1*PricesByItr!AB81)/1000) -> 0 | AC81: =IF(PricesByItr!AC81<0,0,(PurchByItr!AC81*AC$1*PricesByItr!AC81)/1000) -> 0 | AD81: =IF(PricesByItr!AD81<0,0,(PurchByItr!AD81*AD$1*PricesByItr!AD81)/1000) -> 0 | AE81: 408485.9421
A82: =PurchByItr!A82 -> 2022 | B82: =PurchByItr!B82 -> 1978 | C82: =IF(PricesByItr!C82<0,0,(PurchByItr!C82*C$1*PricesByItr!C82)/1000) -> 22030.42795 | D82: =IF(PricesByItr!D82<0,0,(PurchByItr!D82*D$1*PricesByItr!D82)/1000) -> 5784.4413 | E82: =IF(PricesByItr!E82<0,0,(PurchByItr!E82*E$1*PricesByItr!E82)/1000) -> 4825.632228 | F82: =IF(PricesByItr!F82<0,0,(PurchByItr!F82*F$1*PricesByItr!F82)/1000) -> 0 | G82: =IF(PricesByItr!G82<0,0,(PurchByItr!G82*G$1*PricesByItr!G82)/1000) -> 11969.79636 | H82: =IF(PricesByItr!H82<0,0,(PurchByItr!H82*H$1*PricesByItr!H82)/1000) -> 11951.35834 | I82: =IF(PricesByItr!I82<0,0,(PurchByItr!I82*I$1*PricesByItr!I82)/1000) -> 8477.888463 | J82: =IF(PricesByItr!J82<0,0,(PurchByItr!J82*J$1*PricesByItr!J82)/1000) -> 0 | K82: =IF(PricesByItr!K82<0,0,(PurchByItr!K82*K$1*PricesByItr!K82)/1000) -> 0 | L82: =IF(PricesByItr!L82<0,0,(PurchByItr!L82*L$1*PricesByItr!L82)/1000) -> 0 | M82: =IF(PricesByItr!M82<0,0,(PurchByItr!M82*M$1*PricesByItr!M82)/1000) -> -343.9569321 | N82: =IF(PricesByItr!N82<0,0,(PurchByItr!N82*N$1*PricesByItr!N82)/1000) -> 0 | O82: 64695.5877 | Q82: =PurchByItr!Q82 -> 2023 | R82: =PurchByItr!R82 -> 1979 | S82: =IF(PricesByItr!S82<0,0,(PurchByItr!S82*S$1*PricesByItr!S82)/1000) -> 6535.806203 | T82: =IF(PricesByItr!T82<0,0,(PurchByItr!T82*T$1*PricesByItr!T82)/1000) -> 1343.065792 | U82: =IF(PricesByItr!U82<0,0,(PurchByItr!U82*U$1*PricesByItr!U82)/1000) -> 43847.61401 | V82: =IF(PricesByItr!V82<0,0,(PurchByItr!V82*V$1*PricesByItr!V82)/1000) -> 1142.472077 | W82: =IF(PricesByItr!W82<0,0,(PurchByItr!W82*W$1*PricesByItr!W82)/1000) -> 14753.92592 | X82: =IF(PricesByItr!X82<0,0,(PurchByItr!X82*X$1*PricesByItr!X82)/1000) -> 0 | Y82: =IF(PricesByItr!Y82<0,0,(PurchByItr!Y82*Y$1*PricesByItr!Y82)/1000) -> 37054.81684 | Z82: =IF(PricesByItr!Z82<0,0,(PurchByItr!Z82*Z$1*PricesByItr!Z82)/1000) -> 0 | AA82: =IF(PricesByItr!AA82<0,0,(PurchByItr!AA82*AA$1*PricesByItr!AA82)/1000) -> 4236.146118 | AB82: =IF(PricesByItr!AB82<0,0,(PurchByItr!AB82*AB$1*PricesByItr!AB82)/1000) -> 16590.21904 | AC82: =IF(PricesByItr!AC82<0,0,(PurchByItr!AC82*AC$1*PricesByItr!AC82)/1000) -> 3653.871597 | AD82: =IF(PricesByItr!AD82<0,0,(PurchByItr!AD82*AD$1*PricesByItr!AD82)/1000) -> -85.86494263 | AE82: 129072.0727
A83: =PurchByItr!A83 -> 2022 | B83: =PurchByItr!B83 -> 1961 | C83: =IF(PricesByItr!C83<0,0,(PurchByItr!C83*C$1*PricesByItr!C83)/1000) -> 18108.17285 | D83: =IF(PricesByItr!D83<0,0,(PurchByItr!D83*D$1*PricesByItr!D83)/1000) -> 0 | E83: =IF(PricesByItr!E83<0,0,(PurchByItr!E83*E$1*PricesByItr!E83)/1000) -> 7561.486143 | F83: =IF(PricesByItr!F83<0,0,(PurchByItr!F83*F$1*PricesByItr!F83)/1000) -> 0 | G83: =IF(PricesByItr!G83<0,0,(PurchByItr!G83*G$1*PricesByItr!G83)/1000) -> 0 | H83: =IF(PricesByItr!H83<0,0,(PurchByItr!H83*H$1*PricesByItr!H83)/1000) -> 0 | I83: =IF(PricesByItr!I83<0,0,(PurchByItr!I83*I$1*PricesByItr!I83)/1000) -> 7643.464939 | J83: =IF(PricesByItr!J83<0,0,(PurchByItr!J83*J$1*PricesByItr!J83)/1000) -> 0 | K83: =IF(PricesByItr!K83<0,0,(PurchByItr!K83*K$1*PricesByItr!K83)/1000) -> 0 | L83: =IF(PricesByItr!L83<0,0,(PurchByItr!L83*L$1*PricesByItr!L83)/1000) -> -9828.063252 | M83: =IF(PricesByItr!M83<0,0,(PurchByItr!M83*M$1*PricesByItr!M83)/1000) -> -1454.974761 | N83: =IF(PricesByItr!N83<0,0,(PurchByItr!N83*N$1*PricesByItr!N83)/1000) -> 11426.08364 | O83: 33456.16957 | Q83: =PurchByItr!Q83 -> 2023 | R83: =PurchByItr!R83 -> 1962 | S83: =IF(PricesByItr!S83<0,0,(PurchByItr!S83*S$1*PricesByItr!S83)/1000) -> 31132.0014 | T83: =IF(PricesByItr!T83<0,0,(PurchByItr!T83*T$1*PricesByItr!T83)/1000) -> 7105.231218 | U83: =IF(PricesByItr!U83<0,0,(PurchByItr!U83*U$1*PricesByItr!U83)/1000) -> 10777.99259 | V83: =IF(PricesByItr!V83<0,0,(PurchByItr!V83*V$1*PricesByItr!V83)/1000) -> 0 | W83: =IF(PricesByItr!W83<0,0,(PurchByItr!W83*W$1*PricesByItr!W83)/1000) -> 0 | X83: =IF(PricesByItr!X83<0,0,(PurchByItr!X83*X$1*PricesByItr!X83)/1000) -> 30329.42099 | Y83: =IF(PricesByItr!Y83<0,0,(PurchByItr!Y83*Y$1*PricesByItr!Y83)/1000) -> 0 | Z83: =IF(PricesByItr!Z83<0,0,(PurchByItr!Z83*Z$1*PricesByItr!Z83)/1000) -> 0 | AA83: =IF(PricesByItr!AA83<0,0,(PurchByItr!AA83*AA$1*PricesByItr!AA83)/1000) -> 0 | AB83: =IF(PricesByItr!AB83<0,0,(PurchByItr!AB83*AB$1*PricesByItr!AB83)/1000) -> -4817.4164 | AC83: =IF(PricesByItr!AC83<0,0,(PurchByItr!AC83*AC$1*PricesByItr!AC83)/1000) -> -801.5446855 | AD83: =IF(PricesByItr!AD83<0,0,(PurchByItr!AD83*AD$1*PricesByItr!AD83)/1000) -> 10643.39915 | AE83: =SUM(S83:AD83) -> 84369.08427
A84: =PurchByItr!A84 -> 2022 | B84: =PurchByItr!B84 -> 1938 | C84: =IF(PricesByItr!C84<0,0,(PurchByItr!C84*C$1*PricesByItr!C84)/1000) -> 9259.270617 | D84: =IF(PricesByItr!D84<0,0,(PurchByItr!D84*D$1*PricesByItr!D84)/1000) -> 3838.360158 | E84: =IF(PricesByItr!E84<0,0,(PurchByItr!E84*E$1*PricesByItr!E84)/1000) -> 21120.94867 | F84: =IF(PricesByItr!F84<0,0,(PurchByItr!F84*F$1*PricesByItr!F84)/1000) -> 0 | G84: =IF(PricesByItr!G84<0,0,(PurchByItr!G84*G$1*PricesByItr!G84)/1000) -> 0 | H84: =IF(PricesByItr!H84<0,0,(PurchByItr!H84*H$1*PricesByItr!H84)/1000) -> 0 | I84: =IF(PricesByItr!I84<0,0,(PurchByItr!I84*I$1*PricesByItr!I84)/1000) -> 0 | J84: =IF(PricesByItr!J84<0,0,(PurchByItr!J84*J$1*PricesByItr!J84)/1000) -> 0 | K84: =IF(PricesByItr!K84<0,0,(PurchByItr!K84*K$1*PricesByItr!K84)/1000) -> 0 | L84: =IF(PricesByItr!L84<0,0,(PurchByItr!L84*L$1*PricesByItr!L84)/1000) -> -154.3560474 | M84: =IF(PricesByItr!M84<0,0,(PurchByItr!M84*M$1*PricesByItr!M84)/1000) -> 4512.296058 | N84: =IF(PricesByItr!N84<0,0,(PurchByItr!N84*N$1*PricesByItr!N84)/1000) -> -1974.105882 | O84: 36602.41358 | Q84: =PurchByItr!Q84 -> 2023 | R84: =PurchByItr!R84 -> 1939 | S84: =IF(PricesByItr!S84<0,0,(PurchByItr!S84*S$1*PricesByItr!S84)/1000) -> 19480.44814 | T84: =IF(PricesByItr!T84<0,0,(PurchByItr!T84*T$1*PricesByItr!T84)/1000) -> 14837.84084 | U84: =IF(PricesByItr!U84<0,0,(PurchByItr!U84*U$1*PricesByItr!U84)/1000) -> 49714.56657 | V84: =IF(PricesByItr!V84<0,0,(PurchByItr!V84*V$1*PricesByItr!V84)/1000) -> 18568.80941 | W84: =IF(PricesByItr!W84<0,0,(PurchByItr!W84*W$1*PricesByItr!W84)/1000) -> 424.531199 | X84: =IF(PricesByItr!X84<0,0,(PurchByItr!X84*X$1*PricesByItr!X84)/1000) -> 22549.5448 | Y84: =IF(PricesByItr!Y84<0,0,(PurchByItr!Y84*Y$1*PricesByItr!Y84)/1000) -> 17965.80512 | Z84: =IF(PricesByItr!Z84<0,0,(PurchByItr!Z84*Z$1*PricesByItr!Z84)/1000) -> 2540.695865 | AA84: =IF(PricesByItr!AA84<0,0,(PurchByItr!AA84*AA$1*PricesByItr!AA84)/1000) -> 11258.22699 | AB84: =IF(PricesByItr!AB84<0,0,(PurchByItr!AB84*AB$1*PricesByItr!AB84)/1000) -> -1170.304079 | AC84: =IF(PricesByItr!AC84<0,0,(PurchByItr!AC84*AC$1*PricesByItr!AC84)/1000) -> 0 | AD84: =IF(PricesByItr!AD84<0,0,(PurchByItr!AD84*AD$1*PricesByItr!AD84)/1000) -> 10470.51646 | AE84: 166640.6813
A85: =PurchByItr!A85 -> 2022 | B85: =PurchByItr!B85 -> 1953 | C85: =IF(PricesByItr!C85<0,0,(PurchByItr!C85*C$1*PricesByItr!C85)/1000) -> 32967.62695 | D85: =IF(PricesByItr!D85<0,0,(PurchByItr!D85*D$1*PricesByItr!D85)/1000) -> 5758.172909 | E85: =IF(PricesByItr!E85<0,0,(PurchByItr!E85*E$1*PricesByItr!E85)/1000) -> 47385.57041 | F85: =IF(PricesByItr!F85<0,0,(PurchByItr!F85*F$1*PricesByItr!F85)/1000) -> 16456.78447 | G85: =IF(PricesByItr!G85<0,0,(PurchByItr!G85*G$1*PricesByItr!G85)/1000) -> 0 | H85: =IF(PricesByItr!H85<0,0,(PurchByItr!H85*H$1*PricesByItr!H85)/1000) -> 13934.25365 | I85: =IF(PricesByItr!I85<0,0,(PurchByItr!I85*I$1*PricesByItr!I85)/1000) -> 53347.1516 | J85: =IF(PricesByItr!J85<0,0,(PurchByItr!J85*J$1*PricesByItr!J85)/1000) -> 7740.404539 | K85: =IF(PricesByItr!K85<0,0,(PurchByItr!K85*K$1*PricesByItr!K85)/1000) -> 0 | L85: =IF(PricesByItr!L85<0,0,(PurchByItr!L85*L$1*PricesByItr!L85)/1000) -> 0 | M85: =IF(PricesByItr!M85<0,0,(PurchByItr!M85*M$1*PricesByItr!M85)/1000) -> 0 | N85: =IF(PricesByItr!N85<0,0,(PurchByItr!N85*N$1*PricesByItr!N85)/1000) -> 5762.12807 | O85: 183352.0926 | Q85: =PurchByItr!Q85 -> 2023 | R85: =PurchByItr!R85 -> 1954 | S85: =IF(PricesByItr!S85<0,0,(PurchByItr!S85*S$1*PricesByItr!S85)/1000) -> 18531.15897 | T85: =IF(PricesByItr!T85<0,0,(PurchByItr!T85*T$1*PricesByItr!T85)/1000) -> 0 | U85: =IF(PricesByItr!U85<0,0,(PurchByItr!U85*U$1*PricesByItr!U85)/1000) -> 0 | V85: =IF(PricesByItr!V85<0,0,(PurchByItr!V85*V$1*PricesByItr!V85)/1000) -> 0 | W85: =IF(PricesByItr!W85<0,0,(PurchByItr!W85*W$1*PricesByItr!W85)/1000) -> 0 | X85: =IF(PricesByItr!X85<0,0,(PurchByItr!X85*X$1*PricesByItr!X85)/1000) -> 0 | Y85: =IF(PricesByItr!Y85<0,0,(PurchByItr!Y85*Y$1*PricesByItr!Y85)/1000) -> 2232.360817 | Z85: =IF(PricesByItr!Z85<0,0,(PurchByItr!Z85*Z$1*PricesByItr!Z85)/1000) -> 0 | AA85: =IF(PricesByItr!AA85<0,0,(PurchByItr!AA85*AA$1*PricesByItr!AA85)/1000) -> 0 | AB85: =IF(PricesByItr!AB85<0,0,(PurchByItr!AB85*AB$1*PricesByItr!AB85)/1000) -> 0 | AC85: =IF(PricesByItr!AC85<0,0,(PurchByItr!AC85*AC$1*PricesByItr!AC85)/1000) -> 0 | AD85: =IF(PricesByItr!AD85<0,0,(PurchByItr!AD85*AD$1*PricesByItr!AD85)/1000) -> 0 | AE85: 20763.51979
A86: =PurchByItr!A86 -> 2022 | B86: =PurchByItr!B86 -> 2008 | C86: =IF(PricesByItr!C86<0,0,(PurchByItr!C86*C$1*PricesByItr!C86)/1000) -> 34941.79111 | D86: =IF(PricesByItr!D86<0,0,(PurchByItr!D86*D$1*PricesByItr!D86)/1000) -> 0 | E86: =IF(PricesByItr!E86<0,0,(PurchByItr!E86*E$1*PricesByItr!E86)/1000) -> 43743.69555 | F86: =IF(PricesByItr!F86<0,0,(PurchByItr!F86*F$1*PricesByItr!F86)/1000) -> 0 | G86: =IF(PricesByItr!G86<0,0,(PurchByItr!G86*G$1*PricesByItr!G86)/1000) -> 6727.140063 | H86: =IF(PricesByItr!H86<0,0,(PurchByItr!H86*H$1*PricesByItr!H86)/1000) -> 2445.481969 | I86: =IF(PricesByItr!I86<0,0,(PurchByItr!I86*I$1*PricesByItr!I86)/1000) -> 34144.44683 | J86: =IF(PricesByItr!J86<0,0,(PurchByItr!J86*J$1*PricesByItr!J86)/1000) -> 0 | K86: =IF(PricesByItr!K86<0,0,(PurchByItr!K86*K$1*PricesByItr!K86)/1000) -> 0 | L86: =IF(PricesByItr!L86<0,0,(PurchByItr!L86*L$1*PricesByItr!L86)/1000) -> 0 | M86: =IF(PricesByItr!M86<0,0,(PurchByItr!M86*M$1*PricesByItr!M86)/1000) -> -2815.580719 | N86: =IF(PricesByItr!N86<0,0,(PurchByItr!N86*N$1*PricesByItr!N86)/1000) -> 11819.89634 | O86: 131006.8711 | Q86: =PurchByItr!Q86 -> 2023 | R86: =PurchByItr!R86 -> 1929 | S86: =IF(PricesByItr!S86<0,0,(PurchByItr!S86*S$1*PricesByItr!S86)/1000) -> 21165.8937 | T86: =IF(PricesByItr!T86<0,0,(PurchByItr!T86*T$1*PricesByItr!T86)/1000) -> 12318.68715 | U86: =IF(PricesByItr!U86<0,0,(PurchByItr!U86*U$1*PricesByItr!U86)/1000) -> 50004.14819 | V86: =IF(PricesByItr!V86<0,0,(PurchByItr!V86*V$1*PricesByItr!V86)/1000) -> 54867.54173 | W86: =IF(PricesByItr!W86<0,0,(PurchByItr!W86*W$1*PricesByItr!W86)/1000) -> 41898.42417 | X86: =IF(PricesByItr!X86<0,0,(PurchByItr!X86*X$1*PricesByItr!X86)/1000) -> 44694.6199 | Y86: =IF(PricesByItr!Y86<0,0,(PurchByItr!Y86*Y$1*PricesByItr!Y86)/1000) -> 84947.10648 | Z86: =IF(PricesByItr!Z86<0,0,(PurchByItr!Z86*Z$1*PricesByItr!Z86)/1000) -> 114650.8439 | AA86: =IF(PricesByItr!AA86<0,0,(PurchByItr!AA86*AA$1*PricesByItr!AA86)/1000) -> 0 | AB86: =IF(PricesByItr!AB86<0,0,(PurchByItr!AB86*AB$1*PricesByItr!AB86)/1000) -> 49990.30303 | AC86: =IF(PricesByItr!AC86<0,0,(PurchByItr!AC86*AC$1*PricesByItr!AC86)/1000) -> 3961.084747 | AD86: =IF(PricesByItr!AD86<0,0,(PurchByItr!AD86*AD$1*PricesByItr!AD86)/1000) -> 0 | AE86: 478498.653
A87: =PurchByItr!A87 -> 2022 | B87: =PurchByItr!B87 -> 2007 | C87: =IF(PricesByItr!C87<0,0,(PurchByItr!C87*C$1*PricesByItr!C87)/1000) -> 47799.12406 | D87: =IF(PricesByItr!D87<0,0,(PurchByItr!D87*D$1*PricesByItr!D87)/1000) -> -6966.57809 | E87: =IF(PricesByItr!E87<0,0,(PurchByItr!E87*E$1*PricesByItr!E87)/1000) -> 4521.856 | F87: =IF(PricesByItr!F87<0,0,(PurchByItr!F87*F$1*PricesByItr!F87)/1000) -> 0 | G87: =IF(PricesByItr!G87<0,0,(PurchByItr!G87*G$1*PricesByItr!G87)/1000) -> 0 | H87: =IF(PricesByItr!H87<0,0,(PurchByItr!H87*H$1*PricesByItr!H87)/1000) -> 0 | I87: =IF(PricesByItr!I87<0,0,(PurchByItr!I87*I$1*PricesByItr!I87)/1000) -> 1394.529994 | J87: =IF(PricesByItr!J87<0,0,(PurchByItr!J87*J$1*PricesByItr!J87)/1000) -> 3395.903631 | K87: =IF(PricesByItr!K87<0,0,(PurchByItr!K87*K$1*PricesByItr!K87)/1000) -> 0 | L87: =IF(PricesByItr!L87<0,0,(PurchByItr!L87*L$1*PricesByItr!L87)/1000) -> -4185.677143 | M87: =IF(PricesByItr!M87<0,0,(PurchByItr!M87*M$1*PricesByItr!M87)/1000) -> 2297.99655 | N87: =IF(PricesByItr!N87<0,0,(PurchByItr!N87*N$1*PricesByItr!N87)/1000) -> 31209.35217 | O87: 79466.50717 | Q87: =PurchByItr!Q87 -> 2023 | R87: =PurchByItr!R87 -> 2008 | S87: =IF(PricesByItr!S87<0,0,(PurchByItr!S87*S$1*PricesByItr!S87)/1000) -> 44579.71456 | T87: =IF(PricesByItr!T87<0,0,(PurchByItr!T87*T$1*PricesByItr!T87)/1000) -> 0 | U87: =IF(PricesByItr!U87<0,0,(PurchByItr!U87*U$1*PricesByItr!U87)/1000) -> 32462.90585 | V87: =IF(PricesByItr!V87<0,0,(PurchByItr!V87*V$1*PricesByItr!V87)/1000) -> 0 | W87: =IF(PricesByItr!W87<0,0,(PurchByItr!W87*W$1*PricesByItr!W87)/1000) -> 6850.910979 | X87: =IF(PricesByItr!X87<0,0,(PurchByItr!X87*X$1*PricesByItr!X87)/1000) -> 3170.162502 | Y87: =IF(PricesByItr!Y87<0,0,(PurchByItr!Y87*Y$1*PricesByItr!Y87)/1000) -> 39298.16259 | Z87: =IF(PricesByItr!Z87<0,0,(PurchByItr!Z87*Z$1*PricesByItr!Z87)/1000) -> 0 | AA87: =IF(PricesByItr!AA87<0,0,(PurchByItr!AA87*AA$1*PricesByItr!AA87)/1000) -> 0 | AB87: =IF(PricesByItr!AB87<0,0,(PurchByItr!AB87*AB$1*PricesByItr!AB87)/1000) -> 0 | AC87: =IF(PricesByItr!AC87<0,0,(PurchByItr!AC87*AC$1*PricesByItr!AC87)/1000) -> -2491.48978 | AD87: =IF(PricesByItr!AD87<0,0,(PurchByItr!AD87*AD$1*PricesByItr!AD87)/1000) -> 13471.94687 | AE87: 137342.3136
A88: =PurchByItr!A88 -> 2022 | B88: =PurchByItr!B88 -> 1936 | C88: =IF(PricesByItr!C88<0,0,(PurchByItr!C88*C$1*PricesByItr!C88)/1000) -> 27716.81671 | D88: =IF(PricesByItr!D88<0,0,(PurchByItr!D88*D$1*PricesByItr!D88)/1000) -> 14056.67183 | E88: =IF(PricesByItr!E88<0,0,(PurchByItr!E88*E$1*PricesByItr!E88)/1000) -> 48859.63497 | F88: =IF(PricesByItr!F88<0,0,(PurchByItr!F88*F$1*PricesByItr!F88)/1000) -> 109941.6798 | G88: =IF(PricesByItr!G88<0,0,(PurchByItr!G88*G$1*PricesByItr!G88)/1000) -> 73853.61719 | H88: =IF(PricesByItr!H88<0,0,(PurchByItr!H88*H$1*PricesByItr!H88)/1000) -> 23887.20761 | I88: =IF(PricesByItr!I88<0,0,(PurchByItr!I88*I$1*PricesByItr!I88)/1000) -> 18378.65596 | J88: =IF(PricesByItr!J88<0,0,(PurchByItr!J88*J$1*PricesByItr!J88)/1000) -> 0 | K88: =IF(PricesByItr!K88<0,0,(PurchByItr!K88*K$1*PricesByItr!K88)/1000) -> 0 | L88: =IF(PricesByItr!L88<0,0,(PurchByItr!L88*L$1*PricesByItr!L88)/1000) -> 0 | M88: =IF(PricesByItr!M88<0,0,(PurchByItr!M88*M$1*PricesByItr!M88)/1000) -> 148.9386078 | N88: =IF(PricesByItr!N88<0,0,(PurchByItr!N88*N$1*PricesByItr!N88)/1000) -> 12746.52323 | O88: 329589.7459 | Q88: =PurchByItr!Q88 -> 2023 | R88: =PurchByItr!R88 -> 1937 | S88: =IF(PricesByItr!S88<0,0,(PurchByItr!S88*S$1*PricesByItr!S88)/1000) -> 26966.6217 | T88: =IF(PricesByItr!T88<0,0,(PurchByItr!T88*T$1*PricesByItr!T88)/1000) -> 6311.679526 | U88: =IF(PricesByItr!U88<0,0,(PurchByItr!U88*U$1*PricesByItr!U88)/1000) -> 39514.44106 | V88: =IF(PricesByItr!V88<0,0,(PurchByItr!V88*V$1*PricesByItr!V88)/1000) -> 72530.60616 | W88: =IF(PricesByItr!W88<0,0,(PurchByItr!W88*W$1*PricesByItr!W88)/1000) -> 72113.23819 | X88: =IF(PricesByItr!X88<0,0,(PurchByItr!X88*X$1*PricesByItr!X88)/1000) -> 39924.33682 | Y88: =IF(PricesByItr!Y88<0,0,(PurchByItr!Y88*Y$1*PricesByItr!Y88)/1000) -> 37132.60357 | Z88: =IF(PricesByItr!Z88<0,0,(PurchByItr!Z88*Z$1*PricesByItr!Z88)/1000) -> 34274.80695 | AA88: =IF(PricesByItr!AA88<0,0,(PurchByItr!AA88*AA$1*PricesByItr!AA88)/1000) -> 5093.763597 | AB88: =IF(PricesByItr!AB88<0,0,(PurchByItr!AB88*AB$1*PricesByItr!AB88)/1000) -> 9553.487936 | AC88: =IF(PricesByItr!AC88<0,0,(PurchByItr!AC88*AC$1*PricesByItr!AC88)/1000) -> 934.4814528 | AD88: =IF(PricesByItr!AD88<0,0,(PurchByItr!AD88*AD$1*PricesByItr!AD88)/1000) -> -4177.978839 | AE88: 340172.0881
A89: =PurchByItr!A89 -> 2022 | B89: =PurchByItr!B89 -> 1994 | C89: =IF(PricesByItr!C89<0,0,(PurchByItr!C89*C$1*PricesByItr!C89)/1000) -> 32158.28157 | D89: =IF(PricesByItr!D89<0,0,(PurchByItr!D89*D$1*PricesByItr!D89)/1000) -> 16208.78447 | E89: =IF(PricesByItr!E89<0,0,(PurchByItr!E89*E$1*PricesByItr!E89)/1000) -> 40602.28694 | F89: =IF(PricesByItr!F89<0,0,(PurchByItr!F89*F$1*PricesByItr!F89)/1000) -> 86723.31041 | G89: =IF(PricesByItr!G89<0,0,(PurchByItr!G89*G$1*PricesByItr!G89)/1000) -> 24601.65165 | H89: =IF(PricesByItr!H89<0,0,(PurchByItr!H89*H$1*PricesByItr!H89)/1000) -> 48606.76086 | I89: =IF(PricesByItr!I89<0,0,(PurchByItr!I89*I$1*PricesByItr!I89)/1000) -> 44174.0796 | J89: =IF(PricesByItr!J89<0,0,(PurchByItr!J89*J$1*PricesByItr!J89)/1000) -> 18147.62644 | K89: =IF(PricesByItr!K89<0,0,(PurchByItr!K89*K$1*PricesByItr!K89)/1000) -> 27482.17426 | L89: =IF(PricesByItr!L89<0,0,(PurchByItr!L89*L$1*PricesByItr!L89)/1000) -> 9504.504795 | M89: =IF(PricesByItr!M89<0,0,(PurchByItr!M89*M$1*PricesByItr!M89)/1000) -> 4137.676005 | N89: =IF(PricesByItr!N89<0,0,(PurchByItr!N89*N$1*PricesByItr!N89)/1000) -> 0 | O89: 352347.137 | Q89: =PurchByItr!Q89 -> 2023 | R89: =PurchByItr!R89 -> 1995 | S89: =IF(PricesByItr!S89<0,0,(PurchByItr!S89*S$1*PricesByItr!S89)/1000) -> 24586.6408 | T89: =IF(PricesByItr!T89<0,0,(PurchByItr!T89*T$1*PricesByItr!T89)/1000) -> 26694.9515 | U89: =IF(PricesByItr!U89<0,0,(PurchByItr!U89*U$1*PricesByItr!U89)/1000) -> 32767.80128 | V89: =IF(PricesByItr!V89<0,0,(PurchByItr!V89*V$1*PricesByItr!V89)/1000) -> 36457.33004 | W89: =IF(PricesByItr!W89<0,0,(PurchByItr!W89*W$1*PricesByItr!W89)/1000) -> 0 | X89: =IF(PricesByItr!X89<0,0,(PurchByItr!X89*X$1*PricesByItr!X89)/1000) -> 0 | Y89: =IF(PricesByItr!Y89<0,0,(PurchByItr!Y89*Y$1*PricesByItr!Y89)/1000) -> 64285.56061 | Z89: =IF(PricesByItr!Z89<0,0,(PurchByItr!Z89*Z$1*PricesByItr!Z89)/1000) -> 3418.311816 | AA89: =IF(PricesByItr!AA89<0,0,(PurchByItr!AA89*AA$1*PricesByItr!AA89)/1000) -> 0 | AB89: =IF(PricesByItr!AB89<0,0,(PurchByItr!AB89*AB$1*PricesByItr!AB89)/1000) -> 0 | AC89: =IF(PricesByItr!AC89<0,0,(PurchByItr!AC89*AC$1*PricesByItr!AC89)/1000) -> 0 | AD89: =IF(PricesByItr!AD89<0,0,(PurchByItr!AD89*AD$1*PricesByItr!AD89)/1000) -> 5715.572059 | AE89: 193926.1681
A90: =PurchByItr!A90 -> 2022 | B90: =PurchByItr!B90 -> 1983 | C90: =IF(PricesByItr!C90<0,0,(PurchByItr!C90*C$1*PricesByItr!C90)/1000) -> 0 | D90: =IF(PricesByItr!D90<0,0,(PurchByItr!D90*D$1*PricesByItr!D90)/1000) -> 0 | E90: =IF(PricesByItr!E90<0,0,(PurchByItr!E90*E$1*PricesByItr!E90)/1000) -> 0 | F90: =IF(PricesByItr!F90<0,0,(PurchByItr!F90*F$1*PricesByItr!F90)/1000) -> 0 | G90: =IF(PricesByItr!G90<0,0,(PurchByItr!G90*G$1*PricesByItr!G90)/1000) -> 0 | H90: =IF(PricesByItr!H90<0,0,(PurchByItr!H90*H$1*PricesByItr!H90)/1000) -> 0 | I90: =IF(PricesByItr!I90<0,0,(PurchByItr!I90*I$1*PricesByItr!I90)/1000) -> 2379.570746 | J90: =IF(PricesByItr!J90<0,0,(PurchByItr!J90*J$1*PricesByItr!J90)/1000) -> 0 | K90: =IF(PricesByItr!K90<0,0,(PurchByItr!K90*K$1*PricesByItr!K90)/1000) -> 0 | L90: =IF(PricesByItr!L90<0,0,(PurchByItr!L90*L$1*PricesByItr!L90)/1000) -> 0 | M90: =IF(PricesByItr!M90<0,0,(PurchByItr!M90*M$1*PricesByItr!M90)/1000) -> 0 | N90: =IF(PricesByItr!N90<0,0,(PurchByItr!N90*N$1*PricesByItr!N90)/1000) -> 674.3096603 | O90: 3053.880406 | Q90: =PurchByItr!Q90 -> 2023 | R90: =PurchByItr!R90 -> 1984 | S90: =IF(PricesByItr!S90<0,0,(PurchByItr!S90*S$1*PricesByItr!S90)/1000) -> 16669.6243 | T90: =IF(PricesByItr!T90<0,0,(PurchByItr!T90*T$1*PricesByItr!T90)/1000) -> 0 | U90: =IF(PricesByItr!U90<0,0,(PurchByItr!U90*U$1*PricesByItr!U90)/1000) -> 0 | V90: =IF(PricesByItr!V90<0,0,(PurchByItr!V90*V$1*PricesByItr!V90)/1000) -> 0 | W90: =IF(PricesByItr!W90<0,0,(PurchByItr!W90*W$1*PricesByItr!W90)/1000) -> 0 | X90: =IF(PricesByItr!X90<0,0,(PurchByItr!X90*X$1*PricesByItr!X90)/1000) -> 0 | Y90: =IF(PricesByItr!Y90<0,0,(PurchByItr!Y90*Y$1*PricesByItr!Y90)/1000) -> 0 | Z90: =IF(PricesByItr!Z90<0,0,(PurchByItr!Z90*Z$1*PricesByItr!Z90)/1000) -> 0 | AA90: =IF(PricesByItr!AA90<0,0,(PurchByItr!AA90*AA$1*PricesByItr!AA90)/1000) -> 0 | AB90: =IF(PricesByItr!AB90<0,0,(PurchByItr!AB90*AB$1*PricesByItr!AB90)/1000) -> 0 | AC90: =IF(PricesByItr!AC90<0,0,(PurchByItr!AC90*AC$1*PricesByItr!AC90)/1000) -> 0 | AD90: =IF(PricesByItr!AD90<0,0,(PurchByItr!AD90*AD$1*PricesByItr!AD90)/1000) -> 0 | AE90: 16669.6243
A91: =PurchByItr!A91 -> 2022 | B91: =PurchByItr!B91 -> 1940 | C91: =IF(PricesByItr!C91<0,0,(PurchByItr!C91*C$1*PricesByItr!C91)/1000) -> 31948.02737 | D91: =IF(PricesByItr!D91<0,0,(PurchByItr!D91*D$1*PricesByItr!D91)/1000) -> 5777.320826 | E91: =IF(PricesByItr!E91<0,0,(PurchByItr!E91*E$1*PricesByItr!E91)/1000) -> 50221.59909 | F91: =IF(PricesByItr!F91<0,0,(PurchByItr!F91*F$1*PricesByItr!F91)/1000) -> 1449.771643 | G91: =IF(PricesByItr!G91<0,0,(PurchByItr!G91*G$1*PricesByItr!G91)/1000) -> 11631.76526 | H91: =IF(PricesByItr!H91<0,0,(PurchByItr!H91*H$1*PricesByItr!H91)/1000) -> 0 | I91: =IF(PricesByItr!I91<0,0,(PurchByItr!I91*I$1*PricesByItr!I91)/1000) -> 7712.556333 | J91: =IF(PricesByItr!J91<0,0,(PurchByItr!J91*J$1*PricesByItr!J91)/1000) -> 17535.85272 | K91: =IF(PricesByItr!K91<0,0,(PurchByItr!K91*K$1*PricesByItr!K91)/1000) -> 19104.19253 | L91: =IF(PricesByItr!L91<0,0,(PurchByItr!L91*L$1*PricesByItr!L91)/1000) -> 16438.98489 | M91: =IF(PricesByItr!M91<0,0,(PurchByItr!M91*M$1*PricesByItr!M91)/1000) -> 11149.2439 | N91: =IF(PricesByItr!N91<0,0,(PurchByItr!N91*N$1*PricesByItr!N91)/1000) -> 0 | O91: 172969.3146 | Q91: =PurchByItr!Q91 -> 2023 | R91: =PurchByItr!R91 -> 1941 | S91: =IF(PricesByItr!S91<0,0,(PurchByItr!S91*S$1*PricesByItr!S91)/1000) -> 20507.58942 | T91: =IF(PricesByItr!T91<0,0,(PurchByItr!T91*T$1*PricesByItr!T91)/1000) -> 9968.788409 | U91: =IF(PricesByItr!U91<0,0,(PurchByItr!U91*U$1*PricesByItr!U91)/1000) -> 24136.79367 | V91: =IF(PricesByItr!V91<0,0,(PurchByItr!V91*V$1*PricesByItr!V91)/1000) -> 54289.02396 | W91: =IF(PricesByItr!W91<0,0,(PurchByItr!W91*W$1*PricesByItr!W91)/1000) -> 32448.47286 | X91: =IF(PricesByItr!X91<0,0,(PurchByItr!X91*X$1*PricesByItr!X91)/1000) -> 36934.08917 | Y91: =IF(PricesByItr!Y91<0,0,(PurchByItr!Y91*Y$1*PricesByItr!Y91)/1000) -> 63191.18292 | Z91: =IF(PricesByItr!Z91<0,0,(PurchByItr!Z91*Z$1*PricesByItr!Z91)/1000) -> 41651.79656 | AA91: =IF(PricesByItr!AA91<0,0,(PurchByItr!AA91*AA$1*PricesByItr!AA91)/1000) -> 32465.58096 | AB91: =IF(PricesByItr!AB91<0,0,(PurchByItr!AB91*AB$1*PricesByItr!AB91)/1000) -> 6743.945286 | AC91: =IF(PricesByItr!AC91<0,0,(PurchByItr!AC91*AC$1*PricesByItr!AC91)/1000) -> 0 | AD91: =IF(PricesByItr!AD91<0,0,(PurchByItr!AD91*AD$1*PricesByItr!AD91)/1000) -> 0 | AE91: 322337.2632
A92: =PurchByItr!A92 -> 2022 | B92: =PurchByItr!B92 -> 1986 | C92: =IF(PricesByItr!C92<0,0,(PurchByItr!C92*C$1*PricesByItr!C92)/1000) -> 6258.91553 | D92: =IF(PricesByItr!D92<0,0,(PurchByItr!D92*D$1*PricesByItr!D92)/1000) -> 0 | E92: =IF(PricesByItr!E92<0,0,(PurchByItr!E92*E$1*PricesByItr!E92)/1000) -> 0 | F92: =IF(PricesByItr!F92<0,0,(PurchByItr!F92*F$1*PricesByItr!F92)/1000) -> 0 | G92: =IF(PricesByItr!G92<0,0,(PurchByItr!G92*G$1*PricesByItr!G92)/1000) -> 0 | H92: =IF(PricesByItr!H92<0,0,(PurchByItr!H92*H$1*PricesByItr!H92)/1000) -> 0 | I92: =IF(PricesByItr!I92<0,0,(PurchByItr!I92*I$1*PricesByItr!I92)/1000) -> 7148.618968 | J92: =IF(PricesByItr!J92<0,0,(PurchByItr!J92*J$1*PricesByItr!J92)/1000) -> 537.7751042 | K92: =IF(PricesByItr!K92<0,0,(PurchByItr!K92*K$1*PricesByItr!K92)/1000) -> 0 | L92: =IF(PricesByItr!L92<0,0,(PurchByItr!L92*L$1*PricesByItr!L92)/1000) -> 0 | M92: =IF(PricesByItr!M92<0,0,(PurchByItr!M92*M$1*PricesByItr!M92)/1000) -> -1543.241002 | N92: =IF(PricesByItr!N92<0,0,(PurchByItr!N92*N$1*PricesByItr!N92)/1000) -> 11150.12469 | O92: 23552.19329 | Q92: =PurchByItr!Q92 -> 2023 | R92: =PurchByItr!R92 -> 1987 | S92: =IF(PricesByItr!S92<0,0,(PurchByItr!S92*S$1*PricesByItr!S92)/1000) -> 24903.97826 | T92: =IF(PricesByItr!T92<0,0,(PurchByItr!T92*T$1*PricesByItr!T92)/1000) -> 903.4228253 | U92: =IF(PricesByItr!U92<0,0,(PurchByItr!U92*U$1*PricesByItr!U92)/1000) -> 0 | V92: =IF(PricesByItr!V92<0,0,(PurchByItr!V92*V$1*PricesByItr!V92)/1000) -> 13256.84025 | W92: =IF(PricesByItr!W92<0,0,(PurchByItr!W92*W$1*PricesByItr!W92)/1000) -> 17105.12514 | X92: =IF(PricesByItr!X92<0,0,(PurchByItr!X92*X$1*PricesByItr!X92)/1000) -> -513.3175999 | Y92: =IF(PricesByItr!Y92<0,0,(PurchByItr!Y92*Y$1*PricesByItr!Y92)/1000) -> 10467.95795 | Z92: =IF(PricesByItr!Z92<0,0,(PurchByItr!Z92*Z$1*PricesByItr!Z92)/1000) -> 0 | AA92: =IF(PricesByItr!AA92<0,0,(PurchByItr!AA92*AA$1*PricesByItr!AA92)/1000) -> 12307.83803 | AB92: =IF(PricesByItr!AB92<0,0,(PurchByItr!AB92*AB$1*PricesByItr!AB92)/1000) -> 37099.09083 | AC92: =IF(PricesByItr!AC92<0,0,(PurchByItr!AC92*AC$1*PricesByItr!AC92)/1000) -> 12368.34745 | AD92: =IF(PricesByItr!AD92<0,0,(PurchByItr!AD92*AD$1*PricesByItr!AD92)/1000) -> 1077.241982 | AE92: 128976.5251
A93: =PurchByItr!A93 -> 2022 | B93: =PurchByItr!B93 -> 1956 | C93: =IF(PricesByItr!C93<0,0,(PurchByItr!C93*C$1*PricesByItr!C93)/1000) -> 12554.90812 | D93: =IF(PricesByItr!D93<0,0,(PurchByItr!D93*D$1*PricesByItr!D93)/1000) -> 0 | E93: =IF(PricesByItr!E93<0,0,(PurchByItr!E93*E$1*PricesByItr!E93)/1000) -> 0 | F93: =IF(PricesByItr!F93<0,0,(PurchByItr!F93*F$1*PricesByItr!F93)/1000) -> 0 | G93: =IF(PricesByItr!G93<0,0,(PurchByItr!G93*G$1*PricesByItr!G93)/1000) -> 0 | H93: =IF(PricesByItr!H93<0,0,(PurchByItr!H93*H$1*PricesByItr!H93)/1000) -> 0 | I93: =IF(PricesByItr!I93<0,0,(PurchByItr!I93*I$1*PricesByItr!I93)/1000) -> 0 | J93: =IF(PricesByItr!J93<0,0,(PurchByItr!J93*J$1*PricesByItr!J93)/1000) -> 0 | K93: =IF(PricesByItr!K93<0,0,(PurchByItr!K93*K$1*PricesByItr!K93)/1000) -> 0 | L93: =IF(PricesByItr!L93<0,0,(PurchByItr!L93*L$1*PricesByItr!L93)/1000) -> 0 | M93: =IF(PricesByItr!M93<0,0,(PurchByItr!M93*M$1*PricesByItr!M93)/1000) -> 0 | N93: =IF(PricesByItr!N93<0,0,(PurchByItr!N93*N$1*PricesByItr!N93)/1000) -> 13773.97584 | O93: 26328.88396 | Q93: =PurchByItr!Q93 -> 2023 | R93: =PurchByItr!R93 -> 1957 | S93: =IF(PricesByItr!S93<0,0,(PurchByItr!S93*S$1*PricesByItr!S93)/1000) -> 18018.11071 | T93: =IF(PricesByItr!T93<0,0,(PurchByItr!T93*T$1*PricesByItr!T93)/1000) -> 0 | U93: =IF(PricesByItr!U93<0,0,(PurchByItr!U93*U$1*PricesByItr!U93)/1000) -> 0 | V93: =IF(PricesByItr!V93<0,0,(PurchByItr!V93*V$1*PricesByItr!V93)/1000) -> 0 | W93: =IF(PricesByItr!W93<0,0,(PurchByItr!W93*W$1*PricesByItr!W93)/1000) -> 0 | X93: =IF(PricesByItr!X93<0,0,(PurchByItr!X93*X$1*PricesByItr!X93)/1000) -> 0 | Y93: =IF(PricesByItr!Y93<0,0,(PurchByItr!Y93*Y$1*PricesByItr!Y93)/1000) -> 3490.449658 | Z93: =IF(PricesByItr!Z93<0,0,(PurchByItr!Z93*Z$1*PricesByItr!Z93)/1000) -> 0 | AA93: =IF(PricesByItr!AA93<0,0,(PurchByItr!AA93*AA$1*PricesByItr!AA93)/1000) -> 0 | AB93: =IF(PricesByItr!AB93<0,0,(PurchByItr!AB93*AB$1*PricesByItr!AB93)/1000) -> 0 | AC93: =IF(PricesByItr!AC93<0,0,(PurchByItr!AC93*AC$1*PricesByItr!AC93)/1000) -> -803.4732672 | AD93: =IF(PricesByItr!AD93<0,0,(PurchByItr!AD93*AD$1*PricesByItr!AD93)/1000) -> 12106.27321 | AE93: 32811.36031
A94: =PurchByItr!A94 -> 2022 | B94: =PurchByItr!B94 -> 2008 | C94: =IF(PricesByItr!C94<0,0,(PurchByItr!C94*C$1*PricesByItr!C94)/1000) -> 45100.46523 | D94: =IF(PricesByItr!D94<0,0,(PurchByItr!D94*D$1*PricesByItr!D94)/1000) -> 0 | E94: =IF(PricesByItr!E94<0,0,(PurchByItr!E94*E$1*PricesByItr!E94)/1000) -> 33780.85397 | F94: =IF(PricesByItr!F94<0,0,(PurchByItr!F94*F$1*PricesByItr!F94)/1000) -> 0 | G94: =IF(PricesByItr!G94<0,0,(PurchByItr!G94*G$1*PricesByItr!G94)/1000) -> 7647.3882 | H94: =IF(PricesByItr!H94<0,0,(PurchByItr!H94*H$1*PricesByItr!H94)/1000) -> 3105.769308 | I94: =IF(PricesByItr!I94<0,0,(PurchByItr!I94*I$1*PricesByItr!I94)/1000) -> 40362.7861 | J94: =IF(PricesByItr!J94<0,0,(PurchByItr!J94*J$1*PricesByItr!J94)/1000) -> 0 | K94: =IF(PricesByItr!K94<0,0,(PurchByItr!K94*K$1*PricesByItr!K94)/1000) -> 0 | L94: =IF(PricesByItr!L94<0,0,(PurchByItr!L94*L$1*PricesByItr!L94)/1000) -> 0 | M94: =IF(PricesByItr!M94<0,0,(PurchByItr!M94*M$1*PricesByItr!M94)/1000) -> -2656.894156 | N94: =IF(PricesByItr!N94<0,0,(PurchByItr!N94*N$1*PricesByItr!N94)/1000) -> 13369.35232 | O94: 140709.721 | Q94: =PurchByItr!Q94 -> 2023 | R94: =PurchByItr!R94 -> 1929 | S94: =IF(PricesByItr!S94<0,0,(PurchByItr!S94*S$1*PricesByItr!S94)/1000) -> 22223.58684 | T94: =IF(PricesByItr!T94<0,0,(PurchByItr!T94*T$1*PricesByItr!T94)/1000) -> 14573.48987 | U94: =IF(PricesByItr!U94<0,0,(PurchByItr!U94*U$1*PricesByItr!U94)/1000) -> 59713.93279 | V94: =IF(PricesByItr!V94<0,0,(PurchByItr!V94*V$1*PricesByItr!V94)/1000) -> 73094.7471 | W94: =IF(PricesByItr!W94<0,0,(PurchByItr!W94*W$1*PricesByItr!W94)/1000) -> 39168.81658 | X94: =IF(PricesByItr!X94<0,0,(PurchByItr!X94*X$1*PricesByItr!X94)/1000) -> 37402.52994 | Y94: =IF(PricesByItr!Y94<0,0,(PurchByItr!Y94*Y$1*PricesByItr!Y94)/1000) -> 49712.76325 | Z94: =IF(PricesByItr!Z94<0,0,(PurchByItr!Z94*Z$1*PricesByItr!Z94)/1000) -> 66184.36454 | AA94: =IF(PricesByItr!AA94<0,0,(PurchByItr!AA94*AA$1*PricesByItr!AA94)/1000) -> 0 | AB94: =IF(PricesByItr!AB94<0,0,(PurchByItr!AB94*AB$1*PricesByItr!AB94)/1000) -> 35277.66467 | AC94: =IF(PricesByItr!AC94<0,0,(PurchByItr!AC94*AC$1*PricesByItr!AC94)/1000) -> 2201.844204 | AD94: =IF(PricesByItr!AD94<0,0,(PurchByItr!AD94*AD$1*PricesByItr!AD94)/1000) -> 0 | AE94: 399553.7398
A95: =PurchByItr!A95 -> 2022 | B95: =PurchByItr!B95 -> 1956 | C95: =IF(PricesByItr!C95<0,0,(PurchByItr!C95*C$1*PricesByItr!C95)/1000) -> 21986.20855 | D95: =IF(PricesByItr!D95<0,0,(PurchByItr!D95*D$1*PricesByItr!D95)/1000) -> 0 | E95: =IF(PricesByItr!E95<0,0,(PurchByItr!E95*E$1*PricesByItr!E95)/1000) -> 0 | F95: =IF(PricesByItr!F95<0,0,(PurchByItr!F95*F$1*PricesByItr!F95)/1000) -> 0 | G95: =IF(PricesByItr!G95<0,0,(PurchByItr!G95*G$1*PricesByItr!G95)/1000) -> 0 | H95: =IF(PricesByItr!H95<0,0,(PurchByItr!H95*H$1*PricesByItr!H95)/1000) -> 0 | I95: =IF(PricesByItr!I95<0,0,(PurchByItr!I95*I$1*PricesByItr!I95)/1000) -> 0 | J95: =IF(PricesByItr!J95<0,0,(PurchByItr!J95*J$1*PricesByItr!J95)/1000) -> 0 | K95: =IF(PricesByItr!K95<0,0,(PurchByItr!K95*K$1*PricesByItr!K95)/1000) -> 0 | L95: =IF(PricesByItr!L95<0,0,(PurchByItr!L95*L$1*PricesByItr!L95)/1000) -> 0 | M95: =IF(PricesByItr!M95<0,0,(PurchByItr!M95*M$1*PricesByItr!M95)/1000) -> 0 | N95: =IF(PricesByItr!N95<0,0,(PurchByItr!N95*N$1*PricesByItr!N95)/1000) -> 13864.44365 | O95: 35850.6522 | Q95: =PurchByItr!Q95 -> 2023 | R95: =PurchByItr!R95 -> 1957 | S95: =IF(PricesByItr!S95<0,0,(PurchByItr!S95*S$1*PricesByItr!S95)/1000) -> 14396.92196 | T95: =IF(PricesByItr!T95<0,0,(PurchByItr!T95*T$1*PricesByItr!T95)/1000) -> 0 | U95: =IF(PricesByItr!U95<0,0,(PurchByItr!U95*U$1*PricesByItr!U95)/1000) -> 0 | V95: =IF(PricesByItr!V95<0,0,(PurchByItr!V95*V$1*PricesByItr!V95)/1000) -> 0 | W95: =IF(PricesByItr!W95<0,0,(PurchByItr!W95*W$1*PricesByItr!W95)/1000) -> 0 | X95: =IF(PricesByItr!X95<0,0,(PurchByItr!X95*X$1*PricesByItr!X95)/1000) -> 0 | Y95: =IF(PricesByItr!Y95<0,0,(PurchByItr!Y95*Y$1*PricesByItr!Y95)/1000) -> 3249.119265 | Z95: =IF(PricesByItr!Z95<0,0,(PurchByItr!Z95*Z$1*PricesByItr!Z95)/1000) -> 0 | AA95: =IF(PricesByItr!AA95<0,0,(PurchByItr!AA95*AA$1*PricesByItr!AA95)/1000) -> 0 | AB95: =IF(PricesByItr!AB95<0,0,(PurchByItr!AB95*AB$1*PricesByItr!AB95)/1000) -> 0 | AC95: =IF(PricesByItr!AC95<0,0,(PurchByItr!AC95*AC$1*PricesByItr!AC95)/1000) -> -739.3736857 | AD95: =IF(PricesByItr!AD95<0,0,(PurchByItr!AD95*AD$1*PricesByItr!AD95)/1000) -> 13256.74897 | AE95: 30163.41651
A96: =PurchByItr!A96 -> 2022 | B96: =PurchByItr!B96 -> 1938 | C96: =IF(PricesByItr!C96<0,0,(PurchByItr!C96*C$1*PricesByItr!C96)/1000) -> 19095.16978 | D96: =IF(PricesByItr!D96<0,0,(PurchByItr!D96*D$1*PricesByItr!D96)/1000) -> 6752.447906 | E96: =IF(PricesByItr!E96<0,0,(PurchByItr!E96*E$1*PricesByItr!E96)/1000) -> 33441.77369 | F96: =IF(PricesByItr!F96<0,0,(PurchByItr!F96*F$1*PricesByItr!F96)/1000) -> 0 | G96: =IF(PricesByItr!G96<0,0,(PurchByItr!G96*G$1*PricesByItr!G96)/1000) -> 0 | H96: =IF(PricesByItr!H96<0,0,(PurchByItr!H96*H$1*PricesByItr!H96)/1000) -> 0 | I96: =IF(PricesByItr!I96<0,0,(PurchByItr!I96*I$1*PricesByItr!I96)/1000) -> 0 | J96: =IF(PricesByItr!J96<0,0,(PurchByItr!J96*J$1*PricesByItr!J96)/1000) -> 0 | K96: =IF(PricesByItr!K96<0,0,(PurchByItr!K96*K$1*PricesByItr!K96)/1000) -> 0 | L96: =IF(PricesByItr!L96<0,0,(PurchByItr!L96*L$1*PricesByItr!L96)/1000) -> -234.1344043 | M96: =IF(PricesByItr!M96<0,0,(PurchByItr!M96*M$1*PricesByItr!M96)/1000) -> 7273.816817 | N96: =IF(PricesByItr!N96<0,0,(PurchByItr!N96*N$1*PricesByItr!N96)/1000) -> -2853.335792 | O96: 63475.73799 | Q96: =PurchByItr!Q96 -> 2023 | R96: =PurchByItr!R96 -> 1939 | S96: =IF(PricesByItr!S96<0,0,(PurchByItr!S96*S$1*PricesByItr!S96)/1000) -> 36858.173 | T96: =IF(PricesByItr!T96<0,0,(PurchByItr!T96*T$1*PricesByItr!T96)/1000) -> 27886.9441 | U96: =IF(PricesByItr!U96<0,0,(PurchByItr!U96*U$1*PricesByItr!U96)/1000) -> 86173.25084 | V96: =IF(PricesByItr!V96<0,0,(PurchByItr!V96*V$1*PricesByItr!V96)/1000) -> 25972.24644 | W96: =IF(PricesByItr!W96<0,0,(PurchByItr!W96*W$1*PricesByItr!W96)/1000) -> 512.4649988 | X96: =IF(PricesByItr!X96<0,0,(PurchByItr!X96*X$1*PricesByItr!X96)/1000) -> 25137.98926 | Y96: =IF(PricesByItr!Y96<0,0,(PurchByItr!Y96*Y$1*PricesByItr!Y96)/1000) -> 19926.16356 | Z96: =IF(PricesByItr!Z96<0,0,(PurchByItr!Z96*Z$1*PricesByItr!Z96)/1000) -> 2287.79376 | AA96: =IF(PricesByItr!AA96<0,0,(PurchByItr!AA96*AA$1*PricesByItr!AA96)/1000) -> 14162.96121 | AB96: =IF(PricesByItr!AB96<0,0,(PurchByItr!AB96*AB$1*PricesByItr!AB96)/1000) -> -1489.427872 | AC96: =IF(PricesByItr!AC96<0,0,(PurchByItr!AC96*AC$1*PricesByItr!AC96)/1000) -> 0 | AD96: =IF(PricesByItr!AD96<0,0,(PurchByItr!AD96*AD$1*PricesByItr!AD96)/1000) -> 12737.62277 | AE96: 250166.1821
A97: =PurchByItr!A97 -> 2022 | B97: =PurchByItr!B97 -> 2005 | C97: =IF(PricesByItr!C97<0,0,(PurchByItr!C97*C$1*PricesByItr!C97)/1000) -> 13161.46789 | D97: =IF(PricesByItr!D97<0,0,(PurchByItr!D97*D$1*PricesByItr!D97)/1000) -> 0 | E97: =IF(PricesByItr!E97<0,0,(PurchByItr!E97*E$1*PricesByItr!E97)/1000) -> 0 | F97: =IF(PricesByItr!F97<0,0,(PurchByItr!F97*F$1*PricesByItr!F97)/1000) -> 0 | G97: =IF(PricesByItr!G97<0,0,(PurchByItr!G97*G$1*PricesByItr!G97)/1000) -> 0 | H97: =IF(PricesByItr!H97<0,0,(PurchByItr!H97*H$1*PricesByItr!H97)/1000) -> 3416.34504 | I97: =IF(PricesByItr!I97<0,0,(PurchByItr!I97*I$1*PricesByItr!I97)/1000) -> 49455.65221 | J97: =IF(PricesByItr!J97<0,0,(PurchByItr!J97*J$1*PricesByItr!J97)/1000) -> 24570.70639 | K97: =IF(PricesByItr!K97<0,0,(PurchByItr!K97*K$1*PricesByItr!K97)/1000) -> 3156.810416 | L97: =IF(PricesByItr!L97<0,0,(PurchByItr!L97*L$1*PricesByItr!L97)/1000) -> 0 | M97: =IF(PricesByItr!M97<0,0,(PurchByItr!M97*M$1*PricesByItr!M97)/1000) -> 0 | N97: =IF(PricesByItr!N97<0,0,(PurchByItr!N97*N$1*PricesByItr!N97)/1000) -> 16994.04667 | O97: 110755.0286 | Q97: =PurchByItr!Q97 -> 2023 | R97: =PurchByItr!R97 -> 2006 | S97: =IF(PricesByItr!S97<0,0,(PurchByItr!S97*S$1*PricesByItr!S97)/1000) -> 56154.46469 | T97: =IF(PricesByItr!T97<0,0,(PurchByItr!T97*T$1*PricesByItr!T97)/1000) -> 0 | U97: =IF(PricesByItr!U97<0,0,(PurchByItr!U97*U$1*PricesByItr!U97)/1000) -> 4601.988997 | V97: =IF(PricesByItr!V97<0,0,(PurchByItr!V97*V$1*PricesByItr!V97)/1000) -> 0 | W97: =IF(PricesByItr!W97<0,0,(PurchByItr!W97*W$1*PricesByItr!W97)/1000) -> 0 | X97: =IF(PricesByItr!X97<0,0,(PurchByItr!X97*X$1*PricesByItr!X97)/1000) -> 0 | Y97: =IF(PricesByItr!Y97<0,0,(PurchByItr!Y97*Y$1*PricesByItr!Y97)/1000) -> 0 | Z97: =IF(PricesByItr!Z97<0,0,(PurchByItr!Z97*Z$1*PricesByItr!Z97)/1000) -> 0 | AA97: =IF(PricesByItr!AA97<0,0,(PurchByItr!AA97*AA$1*PricesByItr!AA97)/1000) -> 0 | AB97: =IF(PricesByItr!AB97<0,0,(PurchByItr!AB97*AB$1*PricesByItr!AB97)/1000) -> -3749.231309 | AC97: =IF(PricesByItr!AC97<0,0,(PurchByItr!AC97*AC$1*PricesByItr!AC97)/1000) -> -658.2941947 | AD97: =IF(PricesByItr!AD97<0,0,(PurchByItr!AD97*AD$1*PricesByItr!AD97)/1000) -> 19645.66114 | AE97: 75994.58933
A98: =PurchByItr!A98 -> 2022 | B98: =PurchByItr!B98 -> 1964 | C98: =IF(PricesByItr!C98<0,0,(PurchByItr!C98*C$1*PricesByItr!C98)/1000) -> 18585.17529 | D98: =IF(PricesByItr!D98<0,0,(PurchByItr!D98*D$1*PricesByItr!D98)/1000) -> 13042.90001 | E98: =IF(PricesByItr!E98<0,0,(PurchByItr!E98*E$1*PricesByItr!E98)/1000) -> 9418.640963 | F98: =IF(PricesByItr!F98<0,0,(PurchByItr!F98*F$1*PricesByItr!F98)/1000) -> 24420.86792 | G98: =IF(PricesByItr!G98<0,0,(PurchByItr!G98*G$1*PricesByItr!G98)/1000) -> 0 | H98: =IF(PricesByItr!H98<0,0,(PurchByItr!H98*H$1*PricesByItr!H98)/1000) -> 30935.58744 | I98: =IF(PricesByItr!I98<0,0,(PurchByItr!I98*I$1*PricesByItr!I98)/1000) -> 15333.83691 | J98: =IF(PricesByItr!J98<0,0,(PurchByItr!J98*J$1*PricesByItr!J98)/1000) -> 0 | K98: =IF(PricesByItr!K98<0,0,(PurchByItr!K98*K$1*PricesByItr!K98)/1000) -> 0 | L98: =IF(PricesByItr!L98<0,0,(PurchByItr!L98*L$1*PricesByItr!L98)/1000) -> 0 | M98: =IF(PricesByItr!M98<0,0,(PurchByItr!M98*M$1*PricesByItr!M98)/1000) -> 0 | N98: =IF(PricesByItr!N98<0,0,(PurchByItr!N98*N$1*PricesByItr!N98)/1000) -> 0 | O98: 111737.0085 | Q98: =PurchByItr!Q98 -> 2023 | R98: =PurchByItr!R98 -> 1965 | S98: =IF(PricesByItr!S98<0,0,(PurchByItr!S98*S$1*PricesByItr!S98)/1000) -> 611.9133643 | T98: =IF(PricesByItr!T98<0,0,(PurchByItr!T98*T$1*PricesByItr!T98)/1000) -> 0 | U98: =IF(PricesByItr!U98<0,0,(PurchByItr!U98*U$1*PricesByItr!U98)/1000) -> 0 | V98: =IF(PricesByItr!V98<0,0,(PurchByItr!V98*V$1*PricesByItr!V98)/1000) -> 0 | W98: =IF(PricesByItr!W98<0,0,(PurchByItr!W98*W$1*PricesByItr!W98)/1000) -> 0 | X98: =IF(PricesByItr!X98<0,0,(PurchByItr!X98*X$1*PricesByItr!X98)/1000) -> 0 | Y98: =IF(PricesByItr!Y98<0,0,(PurchByItr!Y98*Y$1*PricesByItr!Y98)/1000) -> 0 | Z98: =IF(PricesByItr!Z98<0,0,(PurchByItr!Z98*Z$1*PricesByItr!Z98)/1000) -> 0 | AA98: =IF(PricesByItr!AA98<0,0,(PurchByItr!AA98*AA$1*PricesByItr!AA98)/1000) -> 0 | AB98: =IF(PricesByItr!AB98<0,0,(PurchByItr!AB98*AB$1*PricesByItr!AB98)/1000) -> 0 | AC98: =IF(PricesByItr!AC98<0,0,(PurchByItr!AC98*AC$1*PricesByItr!AC98)/1000) -> 0 | AD98: =IF(PricesByItr!AD98<0,0,(PurchByItr!AD98*AD$1*PricesByItr!AD98)/1000) -> 7258.069391 | AE98: 7869.982755
A99: =PurchByItr!A99 -> 2022 | B99: =PurchByItr!B99 -> 1937 | C99: =IF(PricesByItr!C99<0,0,(PurchByItr!C99*C$1*PricesByItr!C99)/1000) -> 21447.39385 | D99: =IF(PricesByItr!D99<0,0,(PurchByItr!D99*D$1*PricesByItr!D99)/1000) -> 5005.213734 | E99: =IF(PricesByItr!E99<0,0,(PurchByItr!E99*E$1*PricesByItr!E99)/1000) -> 44760.46668 | F99: =IF(PricesByItr!F99<0,0,(PurchByItr!F99*F$1*PricesByItr!F99)/1000) -> 88178.98637 | G99: =IF(PricesByItr!G99<0,0,(PurchByItr!G99*G$1*PricesByItr!G99)/1000) -> 77809.19331 | H99: =IF(PricesByItr!H99<0,0,(PurchByItr!H99*H$1*PricesByItr!H99)/1000) -> 41680.43297 | I99: =IF(PricesByItr!I99<0,0,(PurchByItr!I99*I$1*PricesByItr!I99)/1000) -> 55845.6576 | J99: =IF(PricesByItr!J99<0,0,(PurchByItr!J99*J$1*PricesByItr!J99)/1000) -> 39456.95862 | K99: =IF(PricesByItr!K99<0,0,(PurchByItr!K99*K$1*PricesByItr!K99)/1000) -> 9904.818474 | L99: =IF(PricesByItr!L99<0,0,(PurchByItr!L99*L$1*PricesByItr!L99)/1000) -> 8842.86743 | M99: =IF(PricesByItr!M99<0,0,(PurchByItr!M99*M$1*PricesByItr!M99)/1000) -> 1615.276655 | N99: =IF(PricesByItr!N99<0,0,(PurchByItr!N99*N$1*PricesByItr!N99)/1000) -> -6215.989644 | O99: 388331.276 | Q99: =PurchByItr!Q99 -> 2023 | R99: =PurchByItr!R99 -> 1938 | S99: =IF(PricesByItr!S99<0,0,(PurchByItr!S99*S$1*PricesByItr!S99)/1000) -> 18072.37281 | T99: =IF(PricesByItr!T99<0,0,(PurchByItr!T99*T$1*PricesByItr!T99)/1000) -> 5418.411888 | U99: =IF(PricesByItr!U99<0,0,(PurchByItr!U99*U$1*PricesByItr!U99)/1000) -> 26878.79116 | V99: =IF(PricesByItr!V99<0,0,(PurchByItr!V99*V$1*PricesByItr!V99)/1000) -> 0 | W99: =IF(PricesByItr!W99<0,0,(PurchByItr!W99*W$1*PricesByItr!W99)/1000) -> 0 | X99: =IF(PricesByItr!X99<0,0,(PurchByItr!X99*X$1*PricesByItr!X99)/1000) -> 0 | Y99: =IF(PricesByItr!Y99<0,0,(PurchByItr!Y99*Y$1*PricesByItr!Y99)/1000) -> 0 | Z99: =IF(PricesByItr!Z99<0,0,(PurchByItr!Z99*Z$1*PricesByItr!Z99)/1000) -> 0 | AA99: =IF(PricesByItr!AA99<0,0,(PurchByItr!AA99*AA$1*PricesByItr!AA99)/1000) -> 0 | AB99: =IF(PricesByItr!AB99<0,0,(PurchByItr!AB99*AB$1*PricesByItr!AB99)/1000) -> -145.4273678 | AC99: =IF(PricesByItr!AC99<0,0,(PurchByItr!AC99*AC$1*PricesByItr!AC99)/1000) -> 5186.368863 | AD99: =IF(PricesByItr!AD99<0,0,(PurchByItr!AD99*AD$1*PricesByItr!AD99)/1000) -> -2059.841992 | AE99: 53350.67536
A100: =PurchByItr!A100 -> 2022 | B100: =PurchByItr!B100 -> 1985 | C100: =IF(PricesByItr!C100<0,0,(PurchByItr!C100*C$1*PricesByItr!C100)/1000) -> 18022.86977 | D100: =IF(PricesByItr!D100<0,0,(PurchByItr!D100*D$1*PricesByItr!D100)/1000) -> 0 | E100: =IF(PricesByItr!E100<0,0,(PurchByItr!E100*E$1*PricesByItr!E100)/1000) -> 6241.79353 | F100: =IF(PricesByItr!F100<0,0,(PurchByItr!F100*F$1*PricesByItr!F100)/1000) -> 0 | G100: =IF(PricesByItr!G100<0,0,(PurchByItr!G100*G$1*PricesByItr!G100)/1000) -> 0 | H100: =IF(PricesByItr!H100<0,0,(PurchByItr!H100*H$1*PricesByItr!H100)/1000) -> 14664.02919 | I100: =IF(PricesByItr!I100<0,0,(PurchByItr!I100*I$1*PricesByItr!I100)/1000) -> 3498.390426 | J100: =IF(PricesByItr!J100<0,0,(PurchByItr!J100*J$1*PricesByItr!J100)/1000) -> 1114.831616 | K100: =IF(PricesByItr!K100<0,0,(PurchByItr!K100*K$1*PricesByItr!K100)/1000) -> 7750.979106 | L100: =IF(PricesByItr!L100<0,0,(PurchByItr!L100*L$1*PricesByItr!L100)/1000) -> 14118.5 | M100: =IF(PricesByItr!M100<0,0,(PurchByItr!M100*M$1*PricesByItr!M100)/1000) -> 10606.78342 | N100: =IF(PricesByItr!N100<0,0,(PurchByItr!N100*N$1*PricesByItr!N100)/1000) -> -657.2250717 | O100: 75360.95198 | Q100: =PurchByItr!Q100 -> 2023 | R100: =PurchByItr!R100 -> 1986 | S100: =IF(PricesByItr!S100<0,0,(PurchByItr!S100*S$1*PricesByItr!S100)/1000) -> 5259.147384 | T100: =IF(PricesByItr!T100<0,0,(PurchByItr!T100*T$1*PricesByItr!T100)/1000) -> 0 | U100: =IF(PricesByItr!U100<0,0,(PurchByItr!U100*U$1*PricesByItr!U100)/1000) -> 0 | V100: =IF(PricesByItr!V100<0,0,(PurchByItr!V100*V$1*PricesByItr!V100)/1000) -> 0 | W100: =IF(PricesByItr!W100<0,0,(PurchByItr!W100*W$1*PricesByItr!W100)/1000) -> 0 | X100: =IF(PricesByItr!X100<0,0,(PurchByItr!X100*X$1*PricesByItr!X100)/1000) -> 0 | Y100: =IF(PricesByItr!Y100<0,0,(PurchByItr!Y100*Y$1*PricesByItr!Y100)/1000) -> 5485.071437 | Z100: =IF(PricesByItr!Z100<0,0,(PurchByItr!Z100*Z$1*PricesByItr!Z100)/1000) -> 280.1839433 | AA100: =IF(PricesByItr!AA100<0,0,(PurchByItr!AA100*AA$1*PricesByItr!AA100)/1000) -> 0 | AB100: =IF(PricesByItr!AB100<0,0,(PurchByItr!AB100*AB$1*PricesByItr!AB100)/1000) -> 0 | AC100: =IF(PricesByItr!AC100<0,0,(PurchByItr!AC100*AC$1*PricesByItr!AC100)/1000) -> -1233.683535 | AD100: =IF(PricesByItr!AD100<0,0,(PurchByItr!AD100*AD$1*PricesByItr!AD100)/1000) -> 15884.26058 | AE100: 25674.97981
A101: =PurchByItr!A101 -> 2022 | B101: =PurchByItr!B101 -> 1984 | C101: =IF(PricesByItr!C101<0,0,(PurchByItr!C101*C$1*PricesByItr!C101)/1000) -> 21790.90906 | D101: =IF(PricesByItr!D101<0,0,(PurchByItr!D101*D$1*PricesByItr!D101)/1000) -> 0 | E101: =IF(PricesByItr!E101<0,0,(PurchByItr!E101*E$1*PricesByItr!E101)/1000) -> 0 | F101: =IF(PricesByItr!F101<0,0,(PurchByItr!F101*F$1*PricesByItr!F101)/1000) -> 0 | G101: =IF(PricesByItr!G101<0,0,(PurchByItr!G101*G$1*PricesByItr!G101)/1000) -> 0 | H101: =IF(PricesByItr!H101<0,0,(PurchByItr!H101*H$1*PricesByItr!H101)/1000) -> 0 | I101: =IF(PricesByItr!I101<0,0,(PurchByItr!I101*I$1*PricesByItr!I101)/1000) -> 0 | J101: =IF(PricesByItr!J101<0,0,(PurchByItr!J101*J$1*PricesByItr!J101)/1000) -> 0 | K101: =IF(PricesByItr!K101<0,0,(PurchByItr!K101*K$1*PricesByItr!K101)/1000) -> 0 | L101: =IF(PricesByItr!L101<0,0,(PurchByItr!L101*L$1*PricesByItr!L101)/1000) -> 0 | M101: =IF(PricesByItr!M101<0,0,(PurchByItr!M101*M$1*PricesByItr!M101)/1000) -> 0 | N101: =IF(PricesByItr!N101<0,0,(PurchByItr!N101*N$1*PricesByItr!N101)/1000) -> 0 | O101: 21790.90906 | Q101: =PurchByItr!Q101 -> 2023 | R101: =PurchByItr!R101 -> 1985 | S101: =IF(PricesByItr!S101<0,0,(PurchByItr!S101*S$1*PricesByItr!S101)/1000) -> 22836.38 | T101: =IF(PricesByItr!T101<0,0,(PurchByItr!T101*T$1*PricesByItr!T101)/1000) -> 0 | U101: =IF(PricesByItr!U101<0,0,(PurchByItr!U101*U$1*PricesByItr!U101)/1000) -> 3750.130525 | V101: =IF(PricesByItr!V101<0,0,(PurchByItr!V101*V$1*PricesByItr!V101)/1000) -> 0 | W101: =IF(PricesByItr!W101<0,0,(PurchByItr!W101*W$1*PricesByItr!W101)/1000) -> 0 | X101: =IF(PricesByItr!X101<0,0,(PurchByItr!X101*X$1*PricesByItr!X101)/1000) -> 15389.25548 | Y101: =IF(PricesByItr!Y101<0,0,(PurchByItr!Y101*Y$1*PricesByItr!Y101)/1000) -> 2945.399753 | Z101: =IF(PricesByItr!Z101<0,0,(PurchByItr!Z101*Z$1*PricesByItr!Z101)/1000) -> 0 | AA101: =IF(PricesByItr!AA101<0,0,(PurchByItr!AA101*AA$1*PricesByItr!AA101)/1000) -> 8307.834805 | AB101: =IF(PricesByItr!AB101<0,0,(PurchByItr!AB101*AB$1*PricesByItr!AB101)/1000) -> 11472.22242 | AC101: =IF(PricesByItr!AC101<0,0,(PurchByItr!AC101*AC$1*PricesByItr!AC101)/1000) -> 5779.75909 | AD101: =IF(PricesByItr!AD101<0,0,(PurchByItr!AD101*AD$1*PricesByItr!AD101)/1000) -> -722.0261186 | AE101: 69758.95596
A102: =PurchByItr!A102 -> 2022 | B102: =PurchByItr!B102 -> 1989 | C102: =IF(PricesByItr!C102<0,0,(PurchByItr!C102*C$1*PricesByItr!C102)/1000) -> 23497.28539 | D102: =IF(PricesByItr!D102<0,0,(PurchByItr!D102*D$1*PricesByItr!D102)/1000) -> -755.4293208 | E102: =IF(PricesByItr!E102<0,0,(PurchByItr!E102*E$1*PricesByItr!E102)/1000) -> 27261.51928 | F102: =IF(PricesByItr!F102<0,0,(PurchByItr!F102*F$1*PricesByItr!F102)/1000) -> 50388.93668 | G102: =IF(PricesByItr!G102<0,0,(PurchByItr!G102*G$1*PricesByItr!G102)/1000) -> 55219.33531 | H102: =IF(PricesByItr!H102<0,0,(PurchByItr!H102*H$1*PricesByItr!H102)/1000) -> 0 | I102: =IF(PricesByItr!I102<0,0,(PurchByItr!I102*I$1*PricesByItr!I102)/1000) -> 0 | J102: =IF(PricesByItr!J102<0,0,(PurchByItr!J102*J$1*PricesByItr!J102)/1000) -> 0 | K102: =IF(PricesByItr!K102<0,0,(PurchByItr!K102*K$1*PricesByItr!K102)/1000) -> 4440.655685 | L102: =IF(PricesByItr!L102<0,0,(PurchByItr!L102*L$1*PricesByItr!L102)/1000) -> -3295.573989 | M102: =IF(PricesByItr!M102<0,0,(PurchByItr!M102*M$1*PricesByItr!M102)/1000) -> 6115.177075 | N102: =IF(PricesByItr!N102<0,0,(PurchByItr!N102*N$1*PricesByItr!N102)/1000) -> 0 | O102: 162871.9061 | Q102: =PurchByItr!Q102 -> 2023 | R102: =PurchByItr!R102 -> 1990 | S102: =IF(PricesByItr!S102<0,0,(PurchByItr!S102*S$1*PricesByItr!S102)/1000) -> 20212.98386 | T102: =IF(PricesByItr!T102<0,0,(PurchByItr!T102*T$1*PricesByItr!T102)/1000) -> 13406.1661 | U102: =IF(PricesByItr!U102<0,0,(PurchByItr!U102*U$1*PricesByItr!U102)/1000) -> 0 | V102: =IF(PricesByItr!V102<0,0,(PurchByItr!V102*V$1*PricesByItr!V102)/1000) -> 0 | W102: =IF(PricesByItr!W102<0,0,(PurchByItr!W102*W$1*PricesByItr!W102)/1000) -> 0 | X102: =IF(PricesByItr!X102<0,0,(PurchByItr!X102*X$1*PricesByItr!X102)/1000) -> 0 | Y102: =IF(PricesByItr!Y102<0,0,(PurchByItr!Y102*Y$1*PricesByItr!Y102)/1000) -> 8069.076653 | Z102: =IF(PricesByItr!Z102<0,0,(PurchByItr!Z102*Z$1*PricesByItr!Z102)/1000) -> 10493.43487 | AA102: =IF(PricesByItr!AA102<0,0,(PurchByItr!AA102*AA$1*PricesByItr!AA102)/1000) -> 0 | AB102: =IF(PricesByItr!AB102<0,0,(PurchByItr!AB102*AB$1*PricesByItr!AB102)/1000) -> -1613.480188 | AC102: =IF(PricesByItr!AC102<0,0,(PurchByItr!AC102*AC$1*PricesByItr!AC102)/1000) -> 0 | AD102: =IF(PricesByItr!AD102<0,0,(PurchByItr!AD102*AD$1*PricesByItr!AD102)/1000) -> 15804.98276 | AE102: 66373.16405
A103: =PurchByItr!A103 -> 2022 | B103: =PurchByItr!B103 -> 1968 | C103: =IF(PricesByItr!C103<0,0,(PurchByItr!C103*C$1*PricesByItr!C103)/1000) -> 19439.26266 | D103: =IF(PricesByItr!D103<0,0,(PurchByItr!D103*D$1*PricesByItr!D103)/1000) -> 0 | E103: =IF(PricesByItr!E103<0,0,(PurchByItr!E103*E$1*PricesByItr!E103)/1000) -> 0 | F103: =IF(PricesByItr!F103<0,0,(PurchByItr!F103*F$1*PricesByItr!F103)/1000) -> 0 | G103: =IF(PricesByItr!G103<0,0,(PurchByItr!G103*G$1*PricesByItr!G103)/1000) -> 0 | H103: =IF(PricesByItr!H103<0,0,(PurchByItr!H103*H$1*PricesByItr!H103)/1000) -> 0 | I103: =IF(PricesByItr!I103<0,0,(PurchByItr!I103*I$1*PricesByItr!I103)/1000) -> 48180.74781 | J103: =IF(PricesByItr!J103<0,0,(PurchByItr!J103*J$1*PricesByItr!J103)/1000) -> 13612.37323 | K103: =IF(PricesByItr!K103<0,0,(PurchByItr!K103*K$1*PricesByItr!K103)/1000) -> 0 | L103: =IF(PricesByItr!L103<0,0,(PurchByItr!L103*L$1*PricesByItr!L103)/1000) -> 0 | M103: =IF(PricesByItr!M103<0,0,(PurchByItr!M103*M$1*PricesByItr!M103)/1000) -> 0 | N103: =IF(PricesByItr!N103<0,0,(PurchByItr!N103*N$1*PricesByItr!N103)/1000) -> 0 | O103: 81232.3837 | Q103: =PurchByItr!Q103 -> 2023 | R103: =PurchByItr!R103 -> 1969 | S103: =IF(PricesByItr!S103<0,0,(PurchByItr!S103*S$1*PricesByItr!S103)/1000) -> 0 | T103: =IF(PricesByItr!T103<0,0,(PurchByItr!T103*T$1*PricesByItr!T103)/1000) -> 0 | U103: =IF(PricesByItr!U103<0,0,(PurchByItr!U103*U$1*PricesByItr!U103)/1000) -> 0 | V103: =IF(PricesByItr!V103<0,0,(PurchByItr!V103*V$1*PricesByItr!V103)/1000) -> 0 | W103: =IF(PricesByItr!W103<0,0,(PurchByItr!W103*W$1*PricesByItr!W103)/1000) -> 0 | X103: =IF(PricesByItr!X103<0,0,(PurchByItr!X103*X$1*PricesByItr!X103)/1000) -> 0 | Y103: =IF(PricesByItr!Y103<0,0,(PurchByItr!Y103*Y$1*PricesByItr!Y103)/1000) -> 0 | Z103: =IF(PricesByItr!Z103<0,0,(PurchByItr!Z103*Z$1*PricesByItr!Z103)/1000) -> 0 | AA103: =IF(PricesByItr!AA103<0,0,(PurchByItr!AA103*AA$1*PricesByItr!AA103)/1000) -> 0 | AB103: =IF(PricesByItr!AB103<0,0,(PurchByItr!AB103*AB$1*PricesByItr!AB103)/1000) -> 0 | AC103: =IF(PricesByItr!AC103<0,0,(PurchByItr!AC103*AC$1*PricesByItr!AC103)/1000) -> 0 | AD103: =IF(PricesByItr!AD103<0,0,(PurchByItr!AD103*AD$1*PricesByItr!AD103)/1000) -> 9290.403768 | AE103: 9290.403768
A104: =PurchByItr!A104 -> 2022 | B104: =PurchByItr!B104 -> 1970 | C104: =IF(PricesByItr!C104<0,0,(PurchByItr!C104*C$1*PricesByItr!C104)/1000) -> 34011.81727 | D104: =IF(PricesByItr!D104<0,0,(PurchByItr!D104*D$1*PricesByItr!D104)/1000) -> 0 | E104: =IF(PricesByItr!E104<0,0,(PurchByItr!E104*E$1*PricesByItr!E104)/1000) -> 33907.25012 | F104: =IF(PricesByItr!F104<0,0,(PurchByItr!F104*F$1*PricesByItr!F104)/1000) -> 0 | G104: =IF(PricesByItr!G104<0,0,(PurchByItr!G104*G$1*PricesByItr!G104)/1000) -> 0 | H104: =IF(PricesByItr!H104<0,0,(PurchByItr!H104*H$1*PricesByItr!H104)/1000) -> 5629.804113 | I104: =IF(PricesByItr!I104<0,0,(PurchByItr!I104*I$1*PricesByItr!I104)/1000) -> 61000.8086 | J104: =IF(PricesByItr!J104<0,0,(PurchByItr!J104*J$1*PricesByItr!J104)/1000) -> 0 | K104: =IF(PricesByItr!K104<0,0,(PurchByItr!K104*K$1*PricesByItr!K104)/1000) -> 0 | L104: =IF(PricesByItr!L104<0,0,(PurchByItr!L104*L$1*PricesByItr!L104)/1000) -> 359.4165143 | M104: =IF(PricesByItr!M104<0,0,(PurchByItr!M104*M$1*PricesByItr!M104)/1000) -> -1654.797893 | N104: =IF(PricesByItr!N104<0,0,(PurchByItr!N104*N$1*PricesByItr!N104)/1000) -> 14631.86125 | O104: 147886.16 | Q104: =PurchByItr!Q104 -> 2023 | R104: =PurchByItr!R104 -> 1971 | S104: =IF(PricesByItr!S104<0,0,(PurchByItr!S104*S$1*PricesByItr!S104)/1000) -> 57606.46619 | T104: =IF(PricesByItr!T104<0,0,(PurchByItr!T104*T$1*PricesByItr!T104)/1000) -> 16133.51921 | U104: =IF(PricesByItr!U104<0,0,(PurchByItr!U104*U$1*PricesByItr!U104)/1000) -> 18619.14823 | V104: =IF(PricesByItr!V104<0,0,(PurchByItr!V104*V$1*PricesByItr!V104)/1000) -> 0 | W104: =IF(PricesByItr!W104<0,0,(PurchByItr!W104*W$1*PricesByItr!W104)/1000) -> 0 | X104: =IF(PricesByItr!X104<0,0,(PurchByItr!X104*X$1*PricesByItr!X104)/1000) -> 0 | Y104: =IF(PricesByItr!Y104<0,0,(PurchByItr!Y104*Y$1*PricesByItr!Y104)/1000) -> 0 | Z104: =IF(PricesByItr!Z104<0,0,(PurchByItr!Z104*Z$1*PricesByItr!Z104)/1000) -> 0 | AA104: =IF(PricesByItr!AA104<0,0,(PurchByItr!AA104*AA$1*PricesByItr!AA104)/1000) -> 0 | AB104: =IF(PricesByItr!AB104<0,0,(PurchByItr!AB104*AB$1*PricesByItr!AB104)/1000) -> 0 | AC104: =IF(PricesByItr!AC104<0,0,(PurchByItr!AC104*AC$1*PricesByItr!AC104)/1000) -> 0 | AD104: =IF(PricesByItr!AD104<0,0,(PurchByItr!AD104*AD$1*PricesByItr!AD104)/1000) -> 2893.12481 | AE104: 95252.25844
A105: =PurchByItr!A105 -> 2022 | B105: =PurchByItr!B105 -> 1999 | C105: =IF(PricesByItr!C105<0,0,(PurchByItr!C105*C$1*PricesByItr!C105)/1000) -> 26527.20256 | D105: =IF(PricesByItr!D105<0,0,(PurchByItr!D105*D$1*PricesByItr!D105)/1000) -> 22993.01979 | E105: =IF(PricesByItr!E105<0,0,(PurchByItr!E105*E$1*PricesByItr!E105)/1000) -> 0 | F105: =IF(PricesByItr!F105<0,0,(PurchByItr!F105*F$1*PricesByItr!F105)/1000) -> 0 | G105: =IF(PricesByItr!G105<0,0,(PurchByItr!G105*G$1*PricesByItr!G105)/1000) -> 0 | H105: =IF(PricesByItr!H105<0,0,(PurchByItr!H105*H$1*PricesByItr!H105)/1000) -> 0 | I105: =IF(PricesByItr!I105<0,0,(PurchByItr!I105*I$1*PricesByItr!I105)/1000) -> 0 | J105: =IF(PricesByItr!J105<0,0,(PurchByItr!J105*J$1*PricesByItr!J105)/1000) -> 1984.394424 | K105: =IF(PricesByItr!K105<0,0,(PurchByItr!K105*K$1*PricesByItr!K105)/1000) -> 0 | L105: =IF(PricesByItr!L105<0,0,(PurchByItr!L105*L$1*PricesByItr!L105)/1000) -> 0 | M105: =IF(PricesByItr!M105<0,0,(PurchByItr!M105*M$1*PricesByItr!M105)/1000) -> 0 | N105: =IF(PricesByItr!N105<0,0,(PurchByItr!N105*N$1*PricesByItr!N105)/1000) -> 10219.62668 | O105: 61724.24345 | Q105: =PurchByItr!Q105 -> 2023 | R105: =PurchByItr!R105 -> 2000 | S105: =IF(PricesByItr!S105<0,0,(PurchByItr!S105*S$1*PricesByItr!S105)/1000) -> 34790.60148 | T105: =IF(PricesByItr!T105<0,0,(PurchByItr!T105*T$1*PricesByItr!T105)/1000) -> 0 | U105: =IF(PricesByItr!U105<0,0,(PurchByItr!U105*U$1*PricesByItr!U105)/1000) -> 0 | V105: =IF(PricesByItr!V105<0,0,(PurchByItr!V105*V$1*PricesByItr!V105)/1000) -> 0 | W105: =IF(PricesByItr!W105<0,0,(PurchByItr!W105*W$1*PricesByItr!W105)/1000) -> 0 | X105: =IF(PricesByItr!X105<0,0,(PurchByItr!X105*X$1*PricesByItr!X105)/1000) -> 0 | Y105: =IF(PricesByItr!Y105<0,0,(PurchByItr!Y105*Y$1*PricesByItr!Y105)/1000) -> 0 | Z105: =IF(PricesByItr!Z105<0,0,(PurchByItr!Z105*Z$1*PricesByItr!Z105)/1000) -> 374.2721908 | AA105: =IF(PricesByItr!AA105<0,0,(PurchByItr!AA105*AA$1*PricesByItr!AA105)/1000) -> 22699.16405 | AB105: =IF(PricesByItr!AB105<0,0,(PurchByItr!AB105*AB$1*PricesByItr!AB105)/1000) -> -956.3237721 | AC105: =IF(PricesByItr!AC105<0,0,(PurchByItr!AC105*AC$1*PricesByItr!AC105)/1000) -> -1889.506902 | AD105: =IF(PricesByItr!AD105<0,0,(PurchByItr!AD105*AD$1*PricesByItr!AD105)/1000) -> 17356.00356 | AE105: 72374.2106
A106: =PurchByItr!A106 -> 2022 | B106: =PurchByItr!B106 -> 1993 | C106: =IF(PricesByItr!C106<0,0,(PurchByItr!C106*C$1*PricesByItr!C106)/1000) -> 31098.49397 | D106: =IF(PricesByItr!D106<0,0,(PurchByItr!D106*D$1*PricesByItr!D106)/1000) -> 7318.405034 | E106: =IF(PricesByItr!E106<0,0,(PurchByItr!E106*E$1*PricesByItr!E106)/1000) -> 48941.09489 | F106: =IF(PricesByItr!F106<0,0,(PurchByItr!F106*F$1*PricesByItr!F106)/1000) -> 59051.33706 | G106: =IF(PricesByItr!G106<0,0,(PurchByItr!G106*G$1*PricesByItr!G106)/1000) -> 70948.43306 | H106: =IF(PricesByItr!H106<0,0,(PurchByItr!H106*H$1*PricesByItr!H106)/1000) -> 14157.69312 | I106: =IF(PricesByItr!I106<0,0,(PurchByItr!I106*I$1*PricesByItr!I106)/1000) -> 29170.50462 | J106: =IF(PricesByItr!J106<0,0,(PurchByItr!J106*J$1*PricesByItr!J106)/1000) -> 0 | K106: =IF(PricesByItr!K106<0,0,(PurchByItr!K106*K$1*PricesByItr!K106)/1000) -> 0 | L106: =IF(PricesByItr!L106<0,0,(PurchByItr!L106*L$1*PricesByItr!L106)/1000) -> 0 | M106: =IF(PricesByItr!M106<0,0,(PurchByItr!M106*M$1*PricesByItr!M106)/1000) -> -1837.869659 | N106: =IF(PricesByItr!N106<0,0,(PurchByItr!N106*N$1*PricesByItr!N106)/1000) -> 0 | O106: 258848.0921 | Q106: =PurchByItr!Q106 -> 2023 | R106: =PurchByItr!R106 -> 1994 | S106: =IF(PricesByItr!S106<0,0,(PurchByItr!S106*S$1*PricesByItr!S106)/1000) -> 22172.01629 | T106: =IF(PricesByItr!T106<0,0,(PurchByItr!T106*T$1*PricesByItr!T106)/1000) -> 13953.34458 | U106: =IF(PricesByItr!U106<0,0,(PurchByItr!U106*U$1*PricesByItr!U106)/1000) -> 38755.60704 | V106: =IF(PricesByItr!V106<0,0,(PurchByItr!V106*V$1*PricesByItr!V106)/1000) -> 80652.31604 | W106: =IF(PricesByItr!W106<0,0,(PurchByItr!W106*W$1*PricesByItr!W106)/1000) -> 24908.77616 | X106: =IF(PricesByItr!X106<0,0,(PurchByItr!X106*X$1*PricesByItr!X106)/1000) -> 36242.47503 | Y106: =IF(PricesByItr!Y106<0,0,(PurchByItr!Y106*Y$1*PricesByItr!Y106)/1000) -> 40779.28035 | Z106: =IF(PricesByItr!Z106<0,0,(PurchByItr!Z106*Z$1*PricesByItr!Z106)/1000) -> 16182.1513 | AA106: =IF(PricesByItr!AA106<0,0,(PurchByItr!AA106*AA$1*PricesByItr!AA106)/1000) -> 33179.91566 | AB106: =IF(PricesByItr!AB106<0,0,(PurchByItr!AB106*AB$1*PricesByItr!AB106)/1000) -> 4753.070652 | AC106: =IF(PricesByItr!AC106<0,0,(PurchByItr!AC106*AC$1*PricesByItr!AC106)/1000) -> 4286.144669 | AD106: =IF(PricesByItr!AD106<0,0,(PurchByItr!AD106*AD$1*PricesByItr!AD106)/1000) -> -359.6333516 | AE106: 315505.4644
A107: =PurchByItr!A107 -> 2022 | B107: =PurchByItr!B107 -> 1979 | C107: =IF(PricesByItr!C107<0,0,(PurchByItr!C107*C$1*PricesByItr!C107)/1000) -> 3499.10275 | D107: =IF(PricesByItr!D107<0,0,(PurchByItr!D107*D$1*PricesByItr!D107)/1000) -> 21210.84362 | E107: =IF(PricesByItr!E107<0,0,(PurchByItr!E107*E$1*PricesByItr!E107)/1000) -> 50377.68044 | F107: =IF(PricesByItr!F107<0,0,(PurchByItr!F107*F$1*PricesByItr!F107)/1000) -> 21330.30266 | G107: =IF(PricesByItr!G107<0,0,(PurchByItr!G107*G$1*PricesByItr!G107)/1000) -> 7280.737742 | H107: =IF(PricesByItr!H107<0,0,(PurchByItr!H107*H$1*PricesByItr!H107)/1000) -> 905.3012536 | I107: =IF(PricesByItr!I107<0,0,(PurchByItr!I107*I$1*PricesByItr!I107)/1000) -> 28869.59495 | J107: =IF(PricesByItr!J107<0,0,(PurchByItr!J107*J$1*PricesByItr!J107)/1000) -> 0 | K107: =IF(PricesByItr!K107<0,0,(PurchByItr!K107*K$1*PricesByItr!K107)/1000) -> 8523.677844 | L107: =IF(PricesByItr!L107<0,0,(PurchByItr!L107*L$1*PricesByItr!L107)/1000) -> 16408.57386 | M107: =IF(PricesByItr!M107<0,0,(PurchByItr!M107*M$1*PricesByItr!M107)/1000) -> 5315.478121 | N107: =IF(PricesByItr!N107<0,0,(PurchByItr!N107*N$1*PricesByItr!N107)/1000) -> -1666.626604 | O107: 162054.6666 | Q107: =PurchByItr!Q107 -> 2023 | R107: =PurchByItr!R107 -> 1980 | S107: =IF(PricesByItr!S107<0,0,(PurchByItr!S107*S$1*PricesByItr!S107)/1000) -> 20391.11592 | T107: =IF(PricesByItr!T107<0,0,(PurchByItr!T107*T$1*PricesByItr!T107)/1000) -> 25792.18701 | U107: =IF(PricesByItr!U107<0,0,(PurchByItr!U107*U$1*PricesByItr!U107)/1000) -> 44660.37793 | V107: =IF(PricesByItr!V107<0,0,(PurchByItr!V107*V$1*PricesByItr!V107)/1000) -> 20043.67859 | W107: =IF(PricesByItr!W107<0,0,(PurchByItr!W107*W$1*PricesByItr!W107)/1000) -> 13701.14817 | X107: =IF(PricesByItr!X107<0,0,(PurchByItr!X107*X$1*PricesByItr!X107)/1000) -> 27767.13111 | Y107: =IF(PricesByItr!Y107<0,0,(PurchByItr!Y107*Y$1*PricesByItr!Y107)/1000) -> 5881.780605 | Z107: =IF(PricesByItr!Z107<0,0,(PurchByItr!Z107*Z$1*PricesByItr!Z107)/1000) -> 0 | AA107: =IF(PricesByItr!AA107<0,0,(PurchByItr!AA107*AA$1*PricesByItr!AA107)/1000) -> 0 | AB107: =IF(PricesByItr!AB107<0,0,(PurchByItr!AB107*AB$1*PricesByItr!AB107)/1000) -> -1100.663578 | AC107: =IF(PricesByItr!AC107<0,0,(PurchByItr!AC107*AC$1*PricesByItr!AC107)/1000) -> -1389.32742 | AD107: =IF(PricesByItr!AD107<0,0,(PurchByItr!AD107*AD$1*PricesByItr!AD107)/1000) -> 7630.80343 | AE107: 163378.2318
A108: =PurchByItr!A108 -> 2022 | B108: =PurchByItr!B108 -> 1947 | C108: =IF(PricesByItr!C108<0,0,(PurchByItr!C108*C$1*PricesByItr!C108)/1000) -> 29878.144 | D108: =IF(PricesByItr!D108<0,0,(PurchByItr!D108*D$1*PricesByItr!D108)/1000) -> 0 | E108: =IF(PricesByItr!E108<0,0,(PurchByItr!E108*E$1*PricesByItr!E108)/1000) -> 0 | F108: =IF(PricesByItr!F108<0,0,(PurchByItr!F108*F$1*PricesByItr!F108)/1000) -> 0 | G108: =IF(PricesByItr!G108<0,0,(PurchByItr!G108*G$1*PricesByItr!G108)/1000) -> 0 | H108: =IF(PricesByItr!H108<0,0,(PurchByItr!H108*H$1*PricesByItr!H108)/1000) -> 0 | I108: =IF(PricesByItr!I108<0,0,(PurchByItr!I108*I$1*PricesByItr!I108)/1000) -> 4744.430002 | J108: =IF(PricesByItr!J108<0,0,(PurchByItr!J108*J$1*PricesByItr!J108)/1000) -> 0 | K108: =IF(PricesByItr!K108<0,0,(PurchByItr!K108*K$1*PricesByItr!K108)/1000) -> 0 | L108: =IF(PricesByItr!L108<0,0,(PurchByItr!L108*L$1*PricesByItr!L108)/1000) -> 0 | M108: =IF(PricesByItr!M108<0,0,(PurchByItr!M108*M$1*PricesByItr!M108)/1000) -> 0 | N108: =IF(PricesByItr!N108<0,0,(PurchByItr!N108*N$1*PricesByItr!N108)/1000) -> 10039.08496 | O108: 44661.65896 | Q108: =PurchByItr!Q108 -> 2023 | R108: =PurchByItr!R108 -> 1948 | S108: =IF(PricesByItr!S108<0,0,(PurchByItr!S108*S$1*PricesByItr!S108)/1000) -> 0 | T108: =IF(PricesByItr!T108<0,0,(PurchByItr!T108*T$1*PricesByItr!T108)/1000) -> 0 | U108: =IF(PricesByItr!U108<0,0,(PurchByItr!U108*U$1*PricesByItr!U108)/1000) -> 0 | V108: =IF(PricesByItr!V108<0,0,(PurchByItr!V108*V$1*PricesByItr!V108)/1000) -> 0 | W108: =IF(PricesByItr!W108<0,0,(PurchByItr!W108*W$1*PricesByItr!W108)/1000) -> 0 | X108: =IF(PricesByItr!X108<0,0,(PurchByItr!X108*X$1*PricesByItr!X108)/1000) -> 0 | Y108: =IF(PricesByItr!Y108<0,0,(PurchByItr!Y108*Y$1*PricesByItr!Y108)/1000) -> 1662.110373 | Z108: =IF(PricesByItr!Z108<0,0,(PurchByItr!Z108*Z$1*PricesByItr!Z108)/1000) -> 0 | AA108: =IF(PricesByItr!AA108<0,0,(PurchByItr!AA108*AA$1*PricesByItr!AA108)/1000) -> 0 | AB108: =IF(PricesByItr!AB108<0,0,(PurchByItr!AB108*AB$1*PricesByItr!AB108)/1000) -> 0 | AC108: =IF(PricesByItr!AC108<0,0,(PurchByItr!AC108*AC$1*PricesByItr!AC108)/1000) -> 0 | AD108: =IF(PricesByItr!AD108<0,0,(PurchByItr!AD108*AD$1*PricesByItr!AD108)/1000) -> 2391.987964 | AE108: 4054.098337
A109: =PurchByItr!A109 -> 2022 | B109: =PurchByItr!B109 -> 1929 | C109: =IF(PricesByItr!C109<0,0,(PurchByItr!C109*C$1*PricesByItr!C109)/1000) -> 17930.45012 | D109: =IF(PricesByItr!D109<0,0,(PurchByItr!D109*D$1*PricesByItr!D109)/1000) -> 10651.92003 | E109: =IF(PricesByItr!E109<0,0,(PurchByItr!E109*E$1*PricesByItr!E109)/1000) -> 48594.362 | F109: =IF(PricesByItr!F109<0,0,(PurchByItr!F109*F$1*PricesByItr!F109)/1000) -> 44078.79692 | G109: =IF(PricesByItr!G109<0,0,(PurchByItr!G109*G$1*PricesByItr!G109)/1000) -> 34119.68251 | H109: =IF(PricesByItr!H109<0,0,(PurchByItr!H109*H$1*PricesByItr!H109)/1000) -> 30607.84307 | I109: =IF(PricesByItr!I109<0,0,(PurchByItr!I109*I$1*PricesByItr!I109)/1000) -> 38702.69662 | J109: =IF(PricesByItr!J109<0,0,(PurchByItr!J109*J$1*PricesByItr!J109)/1000) -> 63339.32059 | K109: =IF(PricesByItr!K109<0,0,(PurchByItr!K109*K$1*PricesByItr!K109)/1000) -> 130.7418879 | L109: =IF(PricesByItr!L109<0,0,(PurchByItr!L109*L$1*PricesByItr!L109)/1000) -> 27297.04665 | M109: =IF(PricesByItr!M109<0,0,(PurchByItr!M109*M$1*PricesByItr!M109)/1000) -> 2364.549471 | N109: =IF(PricesByItr!N109<0,0,(PurchByItr!N109*N$1*PricesByItr!N109)/1000) -> 0 | O109: 317817.4099 | Q109: =PurchByItr!Q109 -> 2023 | R109: =PurchByItr!R109 -> 1930 | S109: =IF(PricesByItr!S109<0,0,(PurchByItr!S109*S$1*PricesByItr!S109)/1000) -> 22860.64633 | T109: =IF(PricesByItr!T109<0,0,(PurchByItr!T109*T$1*PricesByItr!T109)/1000) -> 24583.41835 | U109: =IF(PricesByItr!U109<0,0,(PurchByItr!U109*U$1*PricesByItr!U109)/1000) -> 54980.89465 | V109: =IF(PricesByItr!V109<0,0,(PurchByItr!V109*V$1*PricesByItr!V109)/1000) -> 82072.63449 | W109: =IF(PricesByItr!W109<0,0,(PurchByItr!W109*W$1*PricesByItr!W109)/1000) -> 31794.46313 | X109: =IF(PricesByItr!X109<0,0,(PurchByItr!X109*X$1*PricesByItr!X109)/1000) -> 63246.77745 | Y109: =IF(PricesByItr!Y109<0,0,(PurchByItr!Y109*Y$1*PricesByItr!Y109)/1000) -> 67497.01194 | Z109: =IF(PricesByItr!Z109<0,0,(PurchByItr!Z109*Z$1*PricesByItr!Z109)/1000) -> 50049.1567 | AA109: =IF(PricesByItr!AA109<0,0,(PurchByItr!AA109*AA$1*PricesByItr!AA109)/1000) -> 40817.59548 | AB109: =IF(PricesByItr!AB109<0,0,(PurchByItr!AB109*AB$1*PricesByItr!AB109)/1000) -> -1295.482347 | AC109: =IF(PricesByItr!AC109<0,0,(PurchByItr!AC109*AC$1*PricesByItr!AC109)/1000) -> 4351.817715 | AD109: =IF(PricesByItr!AD109<0,0,(PurchByItr!AD109*AD$1*PricesByItr!AD109)/1000) -> -2393.55102 | AE109: 438565.3829
